{"text_format":"1","workbook":"xlsx","n_sheets":17,"sheets":["Notes","Summary","ICB Q1","Trusts Q1","Sites Q1","ICB Q2","Trusts Q2","Sites Q2","ICB Q3","Trusts Q3","Sites Q3","ICB Q4","Trusts Q4","BSQ1","BSQ2","BSQ3","BSQ4"],"not_rendered":{"charts":0,"images":0,"macros":1,"external_links":1,"defined_names":15,"comments":0,"pivot_tables":0},"unopened":[],"bounds":{"document_bytes":16777216,"sheet_cells":100000,"rows_first":2000,"rows_last":500,"rows_between":2000,"halvings":0,"cell_chars":16384,"cell_head_chars":4096},"cells_cut":0,"cells_raw":0,"read":"whole","date_system":"1900"}

{"sheet":"Notes","index":0,"n_rows":2,"n_cols":1,"rows_kept":2,"cut":false,"hidden":false,"merged":[[1,8,3,14]]}
[]
["Maternity Friends and Family Test (FFT) Data - March 2025"]

{"sheet":"Summary","index":1,"n_rows":23,"n_cols":10,"rows_kept":23,"cut":false,"hidden":false,"merged":[[6,1,7,1],[6,4,6,5],[6,6,6,7],[6,8,6,9]]}
[]
[]
[]
[]
[]
[]
[null,"FFT","Number of organisations submitting","Total responses to date","Responses",null,"Percentage Positive",null,"Percentage Negative"]
[null,null,"2024-12-01","2024-12-01","2024-12-01","2024-01-26","2024-12-01","2024-01-26","2024-12-01","2024-01-26"]
[null,"Maternity Total","NA",3578961,16913,16596,0.92236740968485775,0.92287298144131114,4.7478271152368003E-2,4.3986502771752228E-2]
[null,"Maternity NHS Total","NA",3575558,16913,16596,0.92236740968485775,0.92287298144131114,4.7478271152368003E-2,4.3986502771752228E-2]
[null,"Maternity IS Total","NA",3403,0,0,"NA","NA","NA","NA"]
[null,"Antenatal Total",109,782578,5312,4783,0.92168674698795183,0.91846121680953374,5.2334337349397589E-2,5.0804934141752037E-2]
[null,"Antenatal NHS ",109,781394,5312,4783,0.92168674698795183,0.91846121680953374,5.2334337349397589E-2,5.0804934141752037E-2]
[null,"Antenatal IS",0,1184,0,0,"NA","NA","NA","NA"]
[null,"Birth Total",118,1103013,4676,4894,0.92686056458511545,0.92521454842664486,4.662104362703165E-2,4.495300367797303E-2]
[null,"Birth NHS",118,1102589,4676,4894,0.92686056458511545,0.92521454842664486,4.662104362703165E-2,4.495300367797303E-2]
[null,"Birth IS",0,424,0,0,"NA","NA","NA","NA"]
[null,"Postnatal Ward Total",112,1216360,5616,5415,0.91969373219373218,0.92169898430286246,4.5049857549857547E-2,3.9889196675900275E-2]
[null,"Postnatal Ward Total NHS",112,1216360,5616,5415,0.91969373219373218,0.92169898430286246,4.5049857549857547E-2,3.9889196675900275E-2]
[null,"Postnatal Ward Total IS","NA","NA","NA","NA","NA","NA","NA","NA"]
[null,"Postnatal Community Total",118,477010,1309,1504,0.92055003819709702,0.93351063829787229,4.1252864782276549E-2,3.3909574468085103E-2]
[null,"Postnatal Community NHS",118,475215,1309,1504,0.92055003819709702,0.93351063829787229,4.1252864782276549E-2,3.3909574468085103E-2]
[null,"Postnatal Community IS",0,1795,0,0,"NA","NA","NA","NA"]

{"sheet":"ICB Q1","index":2,"n_rows":53,"n_cols":11,"rows_kept":53,"cut":false,"hidden":false,"merged":[[8,0,9,0],[8,1,9,1],[8,2,9,2],[8,3,9,3],[8,4,9,4],[8,5,8,10]]}
[]
[]
[]
[]
[]
[null,"   Sort data by:           "]
[]
[]
["ICB Code","ICB Name","Total Responses","Percentage Positive","Percentage Negative","Breakdown of Responses"]
[null,null,null,null,null,"Very Good","Good","Neither Good nor Poor","Poor","Very Poor","Don't Know"]
[null,"England (including Independent Sector providers)",5312,0.92168674698795183,5.2334337349397589E-2,4046,850,116,116,162,22]
[null,"England (excluding Independent Sector providers)",5312,0.92168674698795183,5.2334337349397589E-2,4046,850,116,116,162,22]
[null,"Selection (excluding suppressed data)",{"$f":"SUBTOTAL(9,C14:C53)","v":5312},{"$f":"IFERROR((F13+G13)/SUM(F13:K13), \"-\")","v":0.92169811320754713},{"$f":"IFERROR((I13+J13)/SUM(F13:K13), \"-\")","v":5.2452830188679245E-2},{"$f":"SUBTOTAL(9,F14:F53)","v":4035},850,115,116,162,22]
["QE1","LANCASHIRE AND SOUTH CUMBRIA ICB",194,0.90721649484536082,4.1237113402061855E-2,144,32,6,4,4,4]
["QF7","SOUTH YORKSHIRE ICB",145,0.9517241379310345,3.4482758620689655E-2,112,26,2,4,1,0]
["QGH","HEREFORDSHIRE AND WORCESTERSHIRE ICB",84,0.95238095238095233,3.5714285714285712E-2,71,9,1,2,1,0]
["QH8","MID AND SOUTH ESSEX ICB",12,0.91666666666666663,8.3333333333333329E-2,8,3,0,0,1,0]
["QHG","BEDFORDSHIRE, LUTON AND MILTON KEYNES ICB",556,0.90647482014388492,4.4964028776978415E-2,355,149,23,12,13,4]
["QHL","BIRMINGHAM AND SOLIHULL ICB",150,0.92666666666666664,0.06,121,18,1,3,6,1]
["QHM","NORTH EAST AND NORTH CUMBRIA ICB",341,0.95014662756598245,3.8123167155425221E-2,281,43,4,7,6,0]
["QJ2","DERBY AND DERBYSHIRE ICB",89,0.8651685393258427,6.741573033707865E-2,53,24,6,3,3,0]
["QJG","SUFFOLK AND NORTH EAST ESSEX ICB",11,0.90909090909090906,0,"*","*","*","*","*","*"]
["QJK","DEVON ICB",12,0.91666666666666663,0,9,2,1,0,0,0]
["QJM","LINCOLNSHIRE ICB",0,"NA","NA",0,0,0,0,0,0]
["QK1","LEICESTER, LEICESTERSHIRE AND RUTLAND ICB",52,0.98076923076923073,1.9230769230769232E-2,43,8,0,0,1,0]
["QKK","SOUTH EAST LONDON ICB",70,0.9285714285714286,1.4285714285714285E-2,44,21,3,1,0,1]
["QKS","KENT AND MEDWAY ICB",274,0.91970802919708028,5.4744525547445258E-2,225,27,6,7,8,1]
["QM7","HERTFORDSHIRE AND WEST ESSEX ICB",55,0.98181818181818181,1.8181818181818181E-2,33,21,0,1,0,0]
["QMF","NORTH EAST LONDON ICB",183,0.83606557377049184,0.12568306010928962,131,22,6,7,16,1]
["QMJ","NORTH CENTRAL LONDON ICB",155,0.9096774193548387,6.4516129032258063E-2,109,32,3,3,7,1]
["QMM","NORFOLK AND WAVENEY ICB",113,0.98230088495575218,8.8495575221238937E-3,101,10,0,1,0,1]
["QNC","STAFFORDSHIRE AND STOKE-ON-TRENT ICB",26,0.80769230769230771,0.15384615384615385,16,5,1,0,4,0]
["QNQ","FRIMLEY ICB",45,0.64444444444444449,0.28888888888888886,21,8,3,2,11,0]
["QOC","SHROPSHIRE, TELFORD AND WREKIN ICB",22,0.95454545454545459,0,21,0,1,0,0,0]
["QOP","GREATER MANCHESTER ICB",578,0.96020761245674735,1.9031141868512111E-2,497,58,10,3,8,2]
["QOQ","HUMBER AND NORTH YORKSHIRE ICB",21,0.80952380952380953,9.5238095238095233E-2,14,3,1,1,1,1]
["QOX","BATH AND NORTH EAST SOMERSET, SWINDON AND WILTSHIRE ICB",106,0.85849056603773588,0.13207547169811321,71,20,1,6,8,0]
["QPM","NORTHAMPTONSHIRE ICB",152,0.98026315789473684,1.3157894736842105E-2,139,10,1,2,0,0]
["QRL","HAMPSHIRE AND ISLE OF WIGHT ICB",212,0.92452830188679247,5.1886792452830191E-2,153,43,5,7,4,0]
["QRV","NORTH WEST LONDON ICB",158,0.83544303797468356,0.10126582278481013,98,34,10,4,12,0]
["QSL","SOMERSET ICB",1,"*","*","*","*","*","*","*","*"]
["QT1","NOTTINGHAM AND NOTTINGHAMSHIRE ICB",125,0.95199999999999996,2.4E-2,102,17,2,2,1,1]
["QT6","CORNWALL AND THE ISLES OF SCILLY ICB",25,0.96,0.04,17,7,0,1,0,0]
["QU9","BUCKINGHAMSHIRE, OXFORDSHIRE AND BERKSHIRE WEST ICB",89,0.8202247191011236,0.15730337078651685,59,14,2,11,3,0]
["QUA","BLACK COUNTRY ICB",184,0.93478260869565222,4.8913043478260872E-2,96,76,2,4,5,1]
["QUE","CAMBRIDGESHIRE AND PETERBOROUGH ICB",284,0.98239436619718312,1.4084507042253521E-2,267,12,1,1,3,0]
["QUY","BRISTOL, NORTH SOMERSET AND SOUTH GLOUCESTERSHIRE ICB",32,1,0,29,3,0,0,0,0]
["QVV","DORSET ICB",40,0.82499999999999996,0.1,25,8,3,2,2,0]
["QWE","SOUTH WEST LONDON ICB",93,0.89247311827956988,0.10752688172043011,80,3,0,2,8,0]
["QWO","WEST YORKSHIRE ICB",451,0.93791574279379153,4.2128603104212861E-2,375,48,7,4,15,2]
["QWU","COVENTRY AND WARWICKSHIRE ICB",91,0.8571428571428571,0.13186813186813187,62,16,0,6,6,1]
["QXU","SURREY HEARTLANDS ICB",13,0.76923076923076927,0.23076923076923078,7,3,0,1,2,0]
["QYG","CHESHIRE AND MERSEYSIDE ICB",68,0.8970588235294118,5.8823529411764705E-2,46,15,3,2,2,0]

{"sheet":"Trusts Q1","index":3,"n_rows":122,"n_cols":20,"rows_kept":122,"cut":false,"hidden":false,"merged":[[8,6,8,11],[8,12,8,19],[8,0,9,0],[8,1,9,1],[8,2,9,2],[8,3,9,3],[8,4,9,4],[8,5,9,5]]}
[]
[]
[]
[]
[]
[null,"   Sort data by:           "]
[]
[]
["ICB Code","Trust Code","Trust Name","Total Responses","Percentage Positive","Percentage Negative","Breakdown of Responses",null,null,null,null,null,"Mode of Collection"]
[null,null,null,null,null,null,"Very Good","Good","Neither Good nor Poor","Poor","Very Poor","Don't Know","Mode SMS","Mode Electronic Discharge","Mode Electronic Home","Mode Paper Discharge","Mode Paper Home","Mode Telephone","Mode Online","Mode Other"]
[null,null,"England (including Independent Sector providers)",5312,0.92168674698795183,5.2334337349397589E-2,4046,850,116,116,162,22,1551,781,46,1756,95,6,1068,9]
[null,null,"England (excluding Independent Sector providers)",5312,0.92168674698795183,5.2334337349397589E-2,4046,850,116,116,162,22,1551,781,46,1756,95,6,1068,9]
[null,null,"Selection (excluding suppressed data)",{"$f":"SUBTOTAL(9,D14:D298)","v":5312},{"$f":"IFERROR((G13+H13)/SUM(G13:L13), \"-\")","v":0.9247673727974659},{"$f":"IFERROR((J13+K13)/SUM(G13:L13), \"-\")","v":5.0089091269055634E-2},{"$f":"SUBTOTAL(9,G14:G298)","v":3875},796,108,105,148,19,1464,722,12,1737,90,0,1022,{"$f":"SUBTOTAL(9,T14:T298)","v":4}]
["QE1","RXN","LANCASHIRE TEACHING HOSPITALS NHS FOUNDATION TRUST",13,0.92307692307692313,0,8,4,0,0,0,1,13,0,0,0,0,0,0,0]
["QE1","RTX","UNIVERSITY HOSPITALS OF MORECAMBE BAY NHS FOUNDATION TRUST",24,0.91666666666666663,0,19,3,1,0,0,1,0,0,0,0,0,0,24,0]
["QE1","RXL","BLACKPOOL TEACHING HOSPITALS NHS FOUNDATION TRUST",42,0.97619047619047616,2.3809523809523808E-2,32,9,0,0,1,0,17,0,0,19,0,0,6,0]
["QE1","RXR","EAST LANCASHIRE HOSPITALS NHS TRUST",115,0.87826086956521743,6.0869565217391307E-2,85,16,5,4,3,2,53,0,0,62,0,0,0,0]
["QF7","RFF","BARNSLEY HOSPITAL NHS FOUNDATION TRUST",9,0.88888888888888884,0.1111111111111111,7,1,0,1,0,0,2,5,0,0,0,0,2,0]
["QF7","RP5","DONCASTER AND BASSETLAW TEACHING HOSPITALS NHS FOUNDATION TRUST",12,1,0,11,1,0,0,0,0,0,0,0,0,0,0,12,0]
["QF7","RFR","THE ROTHERHAM NHS FOUNDATION TRUST",30,0.96666666666666667,3.3333333333333333E-2,28,1,0,0,1,0,0,0,0,29,0,0,1,0]
["QF7","RHQ","SHEFFIELD TEACHING HOSPITALS NHS FOUNDATION TRUST",94,0.94680851063829785,3.1914893617021274E-2,66,23,2,3,0,0,63,0,0,29,0,0,2,0]
["QGH","RLQ","WYE VALLEY NHS TRUST",10,0.8,0.2,8,0,0,1,1,0,10,0,0,0,0,0,0,0]
["QGH","RWP","WORCESTERSHIRE ACUTE HOSPITALS NHS TRUST",74,0.97297297297297303,1.3513513513513514E-2,63,9,1,1,0,0,0,74,0,0,0,0,0,0]
["QH8","RAJ","MID AND SOUTH ESSEX NHS FOUNDATION TRUST",12,0.91666666666666663,8.3333333333333329E-2,8,3,0,0,1,0,0,0,0,0,0,0,12,0]
["QHG","RC9","BEDFORDSHIRE HOSPITALS NHS FOUNDATION TRUST",109,0.93577981651376152,3.669724770642202E-2,67,35,3,3,1,0,0,78,0,0,0,0,31,0]
["QHG","RD8","MILTON KEYNES UNIVERSITY HOSPITAL NHS FOUNDATION TRUST",447,0.89932885906040272,4.6979865771812082E-2,288,114,20,9,12,4,415,0,0,22,0,0,10,0]
["QHL","RRK","UNIVERSITY HOSPITALS BIRMINGHAM NHS FOUNDATION TRUST",4,"*","*","*","*","*","*","*","*","*","*","*","*","*","*","*","*"]
["QHL","RXK","SANDWELL AND WEST BIRMINGHAM HOSPITALS NHS TRUST",40,0.85,0.1,"*","*","*","*","*","*","*","*","*","*","*","*","*","*"]
["QHL","RQ3","BIRMINGHAM WOMEN'S AND CHILDREN'S NHS FOUNDATION TRUST",106,0.97169811320754718,2.8301886792452831E-2,95,8,0,1,2,0,0,0,0,0,0,0,106,0]
["QHM","RTF","NORTHUMBRIA HEALTHCARE NHS FOUNDATION TRUST",0,"NA","NA",0,0,0,0,0,0,0,0,0,0,0,0,0,0]
["QHM","RVW","NORTH TEES AND HARTLEPOOL NHS FOUNDATION TRUST",4,"*","*","*","*","*","*","*","*","*","*","*","*","*","*","*","*"]
["QHM","RNN","NORTH CUMBRIA INTEGRATED CARE NHS FOUNDATION TRUST",8,1,0,"*","*","*","*","*","*","*","*","*","*","*","*","*","*"]
["QHM","RR7","GATESHEAD HEALTH NHS FOUNDATION TRUST",8,1,0,8,0,0,0,0,0,8,0,0,0,0,0,0,0]
["QHM","R0B","SOUTH TYNESIDE AND SUNDERLAND NHS FOUNDATION TRUST",24,0.95833333333333337,4.1666666666666664E-2,21,2,0,0,1,0,0,0,0,0,0,0,24,0]
["QHM","RXP","COUNTY DURHAM AND DARLINGTON NHS FOUNDATION TRUST",42,1,0,38,4,0,0,0,0,0,0,0,0,42,0,0,0]
["QHM","RTD","THE NEWCASTLE UPON TYNE HOSPITALS NHS FOUNDATION TRUST",55,0.92727272727272725,5.4545454545454543E-2,46,5,1,2,1,0,55,0,0,0,0,0,0,0]
["QHM","RTR","SOUTH TEES HOSPITALS NHS FOUNDATION TRUST",200,0.94,4.4999999999999998E-2,159,29,3,5,4,0,179,21,0,0,0,0,0,0]
["QJ2","RFS","CHESTERFIELD ROYAL HOSPITAL NHS FOUNDATION TRUST",24,0.91666666666666663,4.1666666666666664E-2,17,5,1,1,0,0,24,0,0,0,0,0,0,0]
["QJ2","RTG","UNIVERSITY HOSPITALS OF DERBY AND BURTON NHS FOUNDATION TRUST",65,0.84615384615384615,7.6923076923076927E-2,36,19,5,2,3,0,63,2,0,0,0,0,0,0]
["QJG","RGR","WEST SUFFOLK NHS FOUNDATION TRUST",1,"*","*","*","*","*","*","*","*","*","*","*","*","*","*","*","*"]
["QJG","RDE","EAST SUFFOLK AND NORTH ESSEX NHS FOUNDATION TRUST",10,1,0,"*","*","*","*","*","*","*","*","*","*","*","*","*","*"]
["QJK","RH8","ROYAL DEVON UNIVERSITY HEALTHCARE NHS FOUNDATION TRUST",2,"*","*","*","*","*","*","*","*","*","*","*","*","*","*","*","*"]
["QJK","RA9","TORBAY AND SOUTH DEVON NHS FOUNDATION TRUST",4,"*","*","*","*","*","*","*","*","*","*","*","*","*","*","*","*"]
["QJK","RK9","UNIVERSITY HOSPITALS PLYMOUTH NHS TRUST",6,1,0,5,1,0,0,0,0,0,0,0,0,0,0,6,0]
["QJM","RWD","UNITED LINCOLNSHIRE TEACHING HOSPITALS NHS TRUST",0,"NA","NA",0,0,0,0,0,0,0,0,0,0,0,0,0,0]
["QK1","RWE","UNIVERSITY HOSPITALS OF LEICESTER NHS TRUST",52,0.98076923076923073,1.9230769230769232E-2,43,8,0,0,1,0,44,8,0,0,0,0,0,0]
["QKK","RJ1","GUY'S AND ST THOMAS' NHS FOUNDATION TRUST",8,0.75,0,6,0,2,0,0,0,0,0,0,0,0,0,8,0]
["QKK","RJ2","LEWISHAM AND GREENWICH NHS TRUST",62,0.95161290322580649,1.6129032258064516E-2,38,21,1,1,0,1,0,0,0,48,0,0,14,0]
["QKS","RPA","MEDWAY NHS FOUNDATION TRUST",4,"*","*","*","*","*","*","*","*","*","*","*","*","*","*","*","*"]
["QKS","RVV","EAST KENT HOSPITALS UNIVERSITY NHS FOUNDATION TRUST",25,0.92,0.04,"*","*","*","*","*","*","*","*","*","*","*","*","*","*"]
["QKS","RWF","MAIDSTONE AND TUNBRIDGE WELLS NHS TRUST",74,0.89189189189189189,9.45945945945946E-2,57,9,0,3,4,1,43,0,0,0,23,0,8,0]
["QKS","RN7","DARTFORD AND GRAVESHAM NHS TRUST",171,0.93567251461988299,3.5087719298245612E-2,147,13,5,2,4,0,0,0,0,0,0,0,171,0]
["QM7","RQW","THE PRINCESS ALEXANDRA HOSPITAL NHS TRUST",0,"NA","NA",0,0,0,0,0,0,0,0,0,0,0,0,0,0]
["QM7","RWG","WEST HERTFORDSHIRE TEACHING HOSPITALS NHS TRUST",2,"*","*","*","*","*","*","*","*","*","*","*","*","*","*","*","*"]
["QM7","RWH","EAST AND NORTH HERTFORDSHIRE NHS TRUST",53,0.98113207547169812,1.8867924528301886E-2,"*","*","*","*","*","*","*","*","*","*","*","*","*","*"]
["QMF","RQX","HOMERTON HEALTHCARE NHS FOUNDATION TRUST",5,0.6,0.4,3,0,0,1,1,0,5,0,0,0,0,0,0,0]
["QMF","RF4","BARKING, HAVERING AND REDBRIDGE UNIVERSITY HOSPITALS NHS TRUST",55,0.67272727272727273,0.2,27,10,6,6,5,1,0,7,0,47,0,0,0,1]
["QMF","R1H","BARTS HEALTH NHS TRUST",123,0.91869918699186992,8.1300813008130079E-2,101,12,0,0,10,0,0,0,0,47,0,0,76,0]
["QMJ","RRV","UNIVERSITY COLLEGE LONDON HOSPITALS NHS FOUNDATION TRUST",0,"NA","NA",0,0,0,0,0,0,0,0,0,0,0,0,0,0]
["QMJ","RKE","WHITTINGTON HEALTH NHS TRUST",18,1,0,18,0,0,0,0,0,0,0,0,17,0,0,1,0]
["QMJ","RAL","ROYAL FREE LONDON NHS FOUNDATION TRUST",137,0.8978102189781022,7.2992700729927001E-2,91,32,3,3,7,1,42,94,0,1,0,0,0,0]
["QMM","RGP","JAMES PAGET UNIVERSITY HOSPITALS NHS FOUNDATION TRUST",0,"NA","NA",0,0,0,0,0,0,0,0,0,0,0,0,0,0]
["QMM","RM1","NORFOLK AND NORWICH UNIVERSITY HOSPITALS NHS FOUNDATION TRUST",47,0.97872340425531912,0,45,1,0,0,0,1,0,0,0,44,0,0,3,0]
["QMM","RCX","THE QUEEN ELIZABETH HOSPITAL, KING'S LYNN, NHS FOUNDATION TRUST",66,0.98484848484848486,1.5151515151515152E-2,56,9,0,1,0,0,0,0,0,66,0,0,0,0]
["QNC","RJE","UNIVERSITY HOSPITALS OF NORTH MIDLANDS NHS TRUST",26,0.80769230769230771,0.15384615384615385,16,5,1,0,4,0,25,0,0,0,0,0,1,0]
["QNQ","RDU","FRIMLEY HEALTH NHS FOUNDATION TRUST",45,0.64444444444444449,0.28888888888888886,21,8,3,2,11,0,0,0,0,2,0,0,43,0]
["QOC","RXW","THE SHREWSBURY AND TELFORD HOSPITAL NHS TRUST",22,0.95454545454545459,0,21,0,1,0,0,0,0,0,0,21,0,0,1,0]
["QOP","RRF","WRIGHTINGTON, WIGAN AND LEIGH NHS FOUNDATION TRUST",2,"*","*","*","*","*","*","*","*","*","*","*","*","*","*","*","*"]
["QOP","RWJ","STOCKPORT NHS FOUNDATION TRUST",10,0.8,0.2,"*","*","*","*","*","*","*","*","*","*","*","*","*","*"]
["QOP","RMP","TAMESIDE AND GLOSSOP INTEGRATED CARE NHS FOUNDATION TRUST",80,0.95,2.5000000000000001E-2,75,1,2,0,2,0,0,33,0,47,0,0,0,0]
["QOP","RMC","BOLTON NHS FOUNDATION TRUST",110,0.9363636363636364,3.6363636363636362E-2,102,1,3,1,3,0,0,2,0,108,0,0,0,0]
["QOP","R0A","MANCHESTER UNIVERSITY NHS FOUNDATION TRUST",376,0.97606382978723405,7.9787234042553185E-3,313,54,5,0,3,1,0,163,0,206,0,0,7,0]
["QOQ","RCD","HARROGATE AND DISTRICT NHS FOUNDATION TRUST",0,"NA","NA",0,0,0,0,0,0,0,0,0,0,0,0,0,0]
["QOQ","RWA","HULL UNIVERSITY TEACHING HOSPITALS NHS TRUST",1,"*","*","*","*","*","*","*","*","*","*","*","*","*","*","*","*"]
["QOQ","RJL","NORTHERN LINCOLNSHIRE AND GOOLE NHS FOUNDATION TRUST",20,0.8,0.1,"*","*","*","*","*","*","*","*","*","*","*","*","*","*"]
["QOX","RNZ","SALISBURY NHS FOUNDATION TRUST",7,1,0,5,2,0,0,0,0,6,0,0,1,0,0,0,0]
["QOX","RD1","ROYAL UNITED HOSPITALS BATH NHS FOUNDATION TRUST",19,0.94736842105263153,5.2631578947368418E-2,13,5,0,1,0,0,13,0,0,6,0,0,0,0]
["QOX","RN3","GREAT WESTERN HOSPITALS NHS FOUNDATION TRUST",80,0.82499999999999996,0.16250000000000001,53,13,1,5,8,0,0,65,0,1,0,0,14,0]
["QPM","RNQ","KETTERING GENERAL HOSPITAL NHS FOUNDATION TRUST",36,0.97222222222222221,2.7777777777777776E-2,32,3,0,1,0,0,0,0,0,0,20,0,16,0]
["QPM","RNS","NORTHAMPTON GENERAL HOSPITAL NHS TRUST",116,0.98275862068965514,8.6206896551724137E-3,107,7,1,1,0,0,7,0,0,93,0,0,16,0]
["QRL","R1F","ISLE OF WIGHT NHS TRUST",5,0.8,0.2,4,0,0,1,0,0,0,0,0,0,5,0,0,0]
["QRL","RHU","PORTSMOUTH HOSPITALS UNIVERSITY NATIONAL HEALTH SERVICE TRUST",5,1,0,4,1,0,0,0,0,0,0,0,5,0,0,0,0]
["QRL","RN5","HAMPSHIRE HOSPITALS NHS FOUNDATION TRUST",63,0.98412698412698407,1.5873015873015872E-2,58,4,0,0,1,0,0,0,0,54,0,0,9,0]
["QRL","RHM","UNIVERSITY HOSPITAL SOUTHAMPTON NHS FOUNDATION TRUST",139,0.89928057553956831,6.4748201438848921E-2,87,38,5,6,3,0,0,0,0,0,0,0,139,0]
["QRV","RYJ","IMPERIAL COLLEGE HEALTHCARE NHS TRUST",43,0.93023255813953487,2.3255813953488372E-2,35,5,2,1,0,0,0,0,0,0,0,0,43,0]
["QRV","R1K","LONDON NORTH WEST UNIVERSITY HEALTHCARE NHS TRUST",53,0.71698113207547165,0.22641509433962265,29,9,3,2,10,0,0,0,0,53,0,0,0,0]
["QRV","RAS","THE HILLINGDON HOSPITALS NHS FOUNDATION TRUST",62,0.87096774193548387,4.8387096774193547E-2,34,20,5,1,2,0,0,0,0,0,0,0,62,0]
["QSL","RH5","SOMERSET NHS FOUNDATION TRUST",1,"*","*","*","*","*","*","*","*","*","*","*","*","*","*","*","*"]
["QT1","RK5","SHERWOOD FOREST HOSPITALS NHS FOUNDATION TRUST",8,0.75,0.125,4,2,1,1,0,0,0,0,0,0,0,0,8,0]
["QT1","RX1","NOTTINGHAM UNIVERSITY HOSPITALS NHS TRUST",117,0.96581196581196582,1.7094017094017096E-2,98,15,1,1,1,1,0,11,0,104,0,0,2,0]
["QT6","REF","ROYAL CORNWALL HOSPITALS NHS TRUST",25,0.96,0.04,17,7,0,1,0,0,0,5,0,0,0,0,20,0]
["QU9","RTH","OXFORD UNIVERSITY HOSPITALS NHS FOUNDATION TRUST",10,0.9,0,8,1,1,0,0,0,0,0,0,0,0,0,10,0]
["QU9","RHW","ROYAL BERKSHIRE NHS FOUNDATION TRUST",26,1,0,21,5,0,0,0,0,15,0,0,11,0,0,0,0]
["QU9","RXQ","BUCKINGHAMSHIRE HEALTHCARE NHS TRUST",53,0.71698113207547165,0.26415094339622641,30,8,1,11,3,0,53,0,0,0,0,0,0,0]
["QUA","RNA","THE DUDLEY GROUP NHS FOUNDATION TRUST",13,0.92307692307692313,0,11,1,0,0,0,1,0,0,0,12,0,0,1,0]
["QUA","RL4","THE ROYAL WOLVERHAMPTON NHS TRUST",17,0.82352941176470584,0.17647058823529413,11,3,0,0,3,0,17,0,0,0,0,0,0,0]
["QUA","RBK","WALSALL HEALTHCARE NHS TRUST",154,0.94805194805194803,3.896103896103896E-2,74,72,2,4,2,0,52,102,0,0,0,0,0,0]
["QUE","RGT","CAMBRIDGE UNIVERSITY HOSPITALS NHS FOUNDATION TRUST",10,0.5,0.4,5,0,1,1,3,0,0,3,0,0,0,0,7,0]
["QUE","RGN","NORTH WEST ANGLIA NHS FOUNDATION TRUST",274,1,0,262,12,0,0,0,0,0,0,0,274,0,0,0,0]
["QUY","RA7","UNIVERSITY HOSPITALS BRISTOL AND WESTON NHS FOUNDATION TRUST",32,1,0,29,3,0,0,0,0,0,0,0,32,0,0,0,0]
["QVV","RBD","DORSET COUNTY HOSPITAL NHS FOUNDATION TRUST",1,"*","*","*","*","*","*","*","*","*","*","*","*","*","*","*","*"]
["QVV","R0D","UNIVERSITY HOSPITALS DORSET NHS FOUNDATION TRUST",39,0.82051282051282048,0.10256410256410256,"*","*","*","*","*","*","*","*","*","*","*","*","*","*"]
["QWE","RVR","EPSOM AND ST HELIER UNIVERSITY HOSPITALS NHS TRUST",3,"*","*","*","*","*","*","*","*","*","*","*","*","*","*","*","*"]
["QWE","RJ7","ST GEORGE'S UNIVERSITY HOSPITALS NHS FOUNDATION TRUST",27,0.77777777777777779,0.22222222222222221,"*","*","*","*","*","*","*","*","*","*","*","*","*","*"]
["QWE","RAX","KINGSTON AND RICHMOND NHS FOUNDATION TRUST",63,0.96825396825396826,3.1746031746031744E-2,59,2,0,1,1,0,0,0,12,0,0,0,51,0]
["QWO","RAE","BRADFORD TEACHING HOSPITALS NHS FOUNDATION TRUST",5,0.8,0.2,4,0,0,0,1,0,0,0,0,0,0,0,5,0]
["QWO","RWY","CALDERDALE AND HUDDERSFIELD NHS FOUNDATION TRUST",15,0.8,0.2,11,1,0,1,2,0,0,0,0,0,0,0,15,0]
["QWO","RR8","LEEDS TEACHING HOSPITALS NHS TRUST",85,0.96470588235294119,3.5294117647058823E-2,75,7,0,2,1,0,83,2,0,0,0,0,0,0]
["QWO","RXF","MID YORKSHIRE TEACHING NHS TRUST",346,0.93930635838150289,3.4682080924855488E-2,285,40,7,1,11,2,84,0,0,261,0,0,1,0]
["QWU","RLT","GEORGE ELIOT HOSPITAL NHS TRUST",0,"NA","NA",0,0,0,0,0,0,0,0,0,0,0,0,0,0]
["QWU","RJC","SOUTH WARWICKSHIRE UNIVERSITY NHS FOUNDATION TRUST",11,0.81818181818181823,0.18181818181818182,8,1,0,1,1,0,0,0,0,0,0,0,11,0]
["QWU","RKB","UNIVERSITY HOSPITALS COVENTRY AND WARWICKSHIRE NHS TRUST",80,0.86250000000000004,0.125,54,15,0,5,5,1,37,39,0,0,0,0,4,0]
["QXU","RTK","ASHFORD AND ST PETER'S HOSPITALS NHS FOUNDATION TRUST",0,"NA","NA",0,0,0,0,0,0,0,0,0,0,0,0,0,0]
["QXU","RTP","SURREY AND SUSSEX HEALTHCARE NHS TRUST",6,0.66666666666666663,0.33333333333333331,2,2,0,1,1,0,0,0,0,0,0,0,4,2]
["QXU","RA2","ROYAL SURREY COUNTY HOSPITAL NHS FOUNDATION TRUST",7,0.8571428571428571,0.14285714285714285,5,1,0,0,1,0,0,0,0,5,0,0,2,0]
["QYG","RWW","WARRINGTON AND HALTON TEACHING HOSPITALS NHS FOUNDATION TRUST",0,"NA","NA",0,0,0,0,0,0,0,0,0,0,0,0,0,0]
["QYG","RJR","COUNTESS OF CHESTER HOSPITAL NHS FOUNDATION TRUST",5,0.8,0.2,3,1,0,1,0,0,5,0,0,0,0,0,0,0]
["QYG","RBT","MID CHESHIRE HOSPITALS NHS FOUNDATION TRUST",7,1,0,6,1,0,0,0,0,7,0,0,0,0,0,0,0]
["QYG","REP","LIVERPOOL WOMEN'S NHS FOUNDATION TRUST",12,0.83333333333333337,8.3333333333333329E-2,7,3,1,0,1,0,11,0,0,0,0,0,0,1]
["QYG","RBN","MERSEY AND WEST LANCASHIRE TEACHING HOSPITALS NHS TRUST",13,0.92307692307692313,0,9,3,1,0,0,0,0,0,0,0,0,0,13,0]
["QYG","RJN","EAST CHESHIRE NHS TRUST",13,1,0,10,3,0,0,0,0,13,0,0,0,0,0,0,0]
["QYG","RBL","WIRRAL UNIVERSITY TEACHING HOSPITAL NHS FOUNDATION TRUST",18,0.83333333333333337,0.1111111111111111,11,4,1,1,1,0,0,8,0,10,0,0,0,0]

{"sheet":"Sites Q1","index":4,"n_rows":203,"n_cols":14,"rows_kept":203,"cut":false,"hidden":false,"merged":[[8,6,9,6],[8,7,9,7],[8,8,8,13],[8,0,9,0],[8,1,9,1],[8,2,9,2],[8,3,9,3],[8,4,9,4],[8,5,9,5]]}
[]
[]
[]
[]
[]
[null,"   Sort data by:           "]
[]
[]
["ICB Code","Trust Code","Trust Name","Site Code","Site Name","Total Responses","Percentage Positive","Percentage Negative","Breakdown of Responses"]
[null,null,null,null,null,null,null,null,"Very Good","Good","Neither Good nor Poor","Poor","Very Poor","Don't Know"]
[null,null,null,null,"England (including Independent Sector providers)",5312,0.92168674698795183,5.2334337349397589E-2,4046,850,116,116,162,22]
[null,null,null,null,"England (excluding Independent Sector providers)",5312,0.92168674698795183,5.2334337349397589E-2,4046,850,116,116,162,22]
[null,null,null,null,"Selection (excluding suppressed data)",{"$f":"SUBTOTAL(9,F14:F297)","v":5312},{"$f":"IFERROR((I13+J13)/SUM(I13:N13), \"-\")","v":0.92497225305216424},{"$f":"IFERROR((L13+M13)/SUM(I13:N13), \"-\")","v":4.9056603773584909E-2},{"$f":"SUBTOTAL(9,I14:I297)","v":3450},717,101,93,128,16]
["QE1","RXL","BLACKPOOL TEACHING HOSPITALS NHS FOUNDATION TRUST","RXL01","Blackpool Victoria Hospital",42,0.97619047619047616,2.3809523809523808E-2,32,9,0,0,1,0]
["QE1","RXR","EAST LANCASHIRE HOSPITALS NHS TRUST","RXR20","Royal Blackburn Hospital",115,0.87826086956521743,6.0869565217391307E-2,85,16,5,4,3,2]
["QE1","RXN","LANCASHIRE TEACHING HOSPITALS NHS FOUNDATION TRUST","RXN01","Chorley and South Ribble Hospital",0,"NA","NA",0,0,0,0,0,0]
["QE1","RXN","LANCASHIRE TEACHING HOSPITALS NHS FOUNDATION TRUST","RXN02","Royal Preston Hospital",13,0.92307692307692313,0,8,4,0,0,0,1]
["QE1","RTX","UNIVERSITY HOSPITALS OF MORECAMBE BAY NHS FOUNDATION TRUST","RTXBU","Furness General Hospital",12,1,0,11,1,0,0,0,0]
["QE1","RTX","UNIVERSITY HOSPITALS OF MORECAMBE BAY NHS FOUNDATION TRUST","RTX02","Royal Lancaster Infirmary",9,0.88888888888888884,0,"*","*","*","*","*","*"]
["QE1","RTX","UNIVERSITY HOSPITALS OF MORECAMBE BAY NHS FOUNDATION TRUST","RTXBW","Westmorland General Hospital",3,"*","*","*","*","*","*","*","*"]
["QF7","RFF","BARNSLEY HOSPITAL NHS FOUNDATION TRUST","RFFAA","Barnsley Hospital NHS Foundation Trust HQ",9,0.88888888888888884,0.1111111111111111,7,1,0,1,0,0]
["QF7","RP5","DONCASTER AND BASSETLAW TEACHING HOSPITALS NHS FOUNDATION TRUST","RP5BA","Bassetlaw Hospital",1,"*","*","*","*","*","*","*","*"]
["QF7","RP5","DONCASTER AND BASSETLAW TEACHING HOSPITALS NHS FOUNDATION TRUST","RP5DR","Doncaster Royal Infirmary",4,"*","*","*","*","*","*","*","*"]
["QF7","RP5","DONCASTER AND BASSETLAW TEACHING HOSPITALS NHS FOUNDATION TRUST","RP5XXX","Non-hospital site",7,1,0,6,1,0,0,0,0]
["QF7","RHQ","SHEFFIELD TEACHING HOSPITALS NHS FOUNDATION TRUST","RHQHH","Royal Hallamshire Hospital",94,0.94680851063829785,3.1914893617021274E-2,66,23,2,3,0,0]
["QF7","RFR","THE ROTHERHAM NHS FOUNDATION TRUST","RFRPA","Rotherham District General Hospital",30,0.96666666666666667,3.3333333333333333E-2,28,1,0,0,1,0]
["QGH","RWP","WORCESTERSHIRE ACUTE HOSPITALS NHS TRUST","RWP01","Alexandra Hospital",0,"NA","NA",0,0,0,0,0,0]
["QGH","RWP","WORCESTERSHIRE ACUTE HOSPITALS NHS TRUST","RWP31","Kidderminster Hospital",0,"NA","NA",0,0,0,0,0,0]
["QGH","RWP","WORCESTERSHIRE ACUTE HOSPITALS NHS TRUST","RWP50","Worcestershire Royal Hospital",74,0.97297297297297303,1.3513513513513514E-2,63,9,1,1,0,0]
["QGH","RLQ","WYE VALLEY NHS TRUST","RLQ01","Hereford County Hospital",10,0.8,0.2,8,0,0,1,1,0]
["QH8","RAJ","MID AND SOUTH ESSEX NHS FOUNDATION TRUST","RAJ12","BASILDON HOSPITAL",1,"*","*","*","*","*","*","*","*"]
["QH8","RAJ","MID AND SOUTH ESSEX NHS FOUNDATION TRUST","RAJ32","MID ESSEX HOSPITAL",0,"NA","NA",0,0,0,0,0,0]
["QH8","RAJ","MID AND SOUTH ESSEX NHS FOUNDATION TRUST","RAJ01","Southend Hospital",11,0.90909090909090906,9.0909090909090912E-2,"*","*","*","*","*","*"]
["QHG","RC9","BEDFORDSHIRE HOSPITALS NHS FOUNDATION TRUST","RC979","BEDFORD HOSPITAL SOUTH WING",7,0.8571428571428571,0.14285714285714285,6,0,0,1,0,0]
["QHG","RC9","BEDFORDSHIRE HOSPITALS NHS FOUNDATION TRUST","RC971","Luton and Dunstable Hospital",102,0.94117647058823528,2.9411764705882353E-2,61,35,3,2,1,0]
["QHG","RD8","MILTON KEYNES UNIVERSITY HOSPITAL NHS FOUNDATION TRUST","RD816","Milton Keynes Hospital",447,0.89932885906040272,4.6979865771812082E-2,288,114,20,9,12,4]
["QHL","RQ3","BIRMINGHAM WOMEN'S AND CHILDREN'S NHS FOUNDATION TRUST","RQ370","Birmingham Women's Hospital",106,0.97169811320754718,2.8301886792452831E-2,95,8,0,1,2,0]
["QHL","RXK","SANDWELL AND WEST BIRMINGHAM HOSPITALS NHS TRUST","RXK02","City Hospital",4,"*","*","*","*","*","*","*","*"]
["QHL","RXK","SANDWELL AND WEST BIRMINGHAM HOSPITALS NHS TRUST","RXK01","Sandwell General Hospital",36,0.83333333333333337,0.1111111111111111,"*","*","*","*","*","*"]
["QHL","RRK","UNIVERSITY HOSPITALS BIRMINGHAM NHS FOUNDATION TRUST","RRK98","Good Hope Hospital",0,"NA","NA",0,0,0,0,0,0]
["QHL","RRK","UNIVERSITY HOSPITALS BIRMINGHAM NHS FOUNDATION TRUST","RRK97","Heartlands Hospital",4,"*","*","*","*","*","*","*","*"]
["QHL","RRK","UNIVERSITY HOSPITALS BIRMINGHAM NHS FOUNDATION TRUST","RRK99","Solihull Hospital",0,"NA","NA",0,0,0,0,0,0]
["QHM","RXP","COUNTY DURHAM AND DARLINGTON NHS FOUNDATION TRUST","RXPDA","Darlington Memorial Hospital",18,1,0,15,3,0,0,0,0]
["QHM","RXP","COUNTY DURHAM AND DARLINGTON NHS FOUNDATION TRUST","RXPCP","University Hospital Of North Durham",24,1,0,23,1,0,0,0,0]
["QHM","RR7","GATESHEAD HEALTH NHS FOUNDATION TRUST","RR7EN","Queen Elizabeth Hospital",8,1,0,8,0,0,0,0,0]
["QHM","RNN","NORTH CUMBRIA INTEGRATED CARE NHS FOUNDATION TRUST","RNN62","Cumberland Infirmary",1,"*","*","*","*","*","*","*","*"]
["QHM","RNN","NORTH CUMBRIA INTEGRATED CARE NHS FOUNDATION TRUST","RNNBX","West Cumberland Hospital",7,1,0,"*","*","*","*","*","*"]
["QHM","RVW","NORTH TEES AND HARTLEPOOL NHS FOUNDATION TRUST","RVWAE","University Hospital Of North Tees",4,"*","*","*","*","*","*","*","*"]
["QHM","RTF","NORTHUMBRIA HEALTHCARE NHS FOUNDATION TRUST","RTFXXX","Non-hospital site",0,"NA","NA",0,0,0,0,0,0]
["QHM","RTR","SOUTH TEES HOSPITALS NHS FOUNDATION TRUST","RTR45","Friarage Hospital Site",4,"*","*","*","*","*","*","*","*"]
["QHM","RTR","SOUTH TEES HOSPITALS NHS FOUNDATION TRUST","RTRAT","The James Cook University Hospital",196,0.93877551020408168,4.5918367346938778E-2,"*","*","*","*","*","*"]
["QHM","R0B","SOUTH TYNESIDE AND SUNDERLAND NHS FOUNDATION TRUST","R0BXXX","Non-hospital site",11,1,0,11,0,0,0,0,0]
["QHM","R0B","SOUTH TYNESIDE AND SUNDERLAND NHS FOUNDATION TRUST","R0B0Q","South Tyneside District Hospital",2,"*","*","*","*","*","*","*","*"]
["QHM","R0B","SOUTH TYNESIDE AND SUNDERLAND NHS FOUNDATION TRUST","R0B01","Sunderland Royal Hospital",11,0.90909090909090906,9.0909090909090912E-2,"*","*","*","*","*","*"]
["QHM","RTD","THE NEWCASTLE UPON TYNE HOSPITALS NHS FOUNDATION TRUST","RTD02","The Royal Victoria Infirmary",55,0.92727272727272725,5.4545454545454543E-2,46,5,1,2,1,0]
["QJ2","RFS","CHESTERFIELD ROYAL HOSPITAL NHS FOUNDATION TRUST","RFSDA","Chesterfield Royal Hospital",24,0.91666666666666663,4.1666666666666664E-2,17,5,1,1,0,0]
["QJ2","RTG","UNIVERSITY HOSPITALS OF DERBY AND BURTON NHS FOUNDATION TRUST","RTG02","Queens Hospital, Burton Upon Trent",27,0.92592592592592593,7.407407407407407E-2,16,9,0,0,2,0]
["QJ2","RTG","UNIVERSITY HOSPITALS OF DERBY AND BURTON NHS FOUNDATION TRUST","RTGFG","Royal Derby Hospital",38,0.78947368421052633,7.8947368421052627E-2,20,10,5,2,1,0]
["QJG","RDE","EAST SUFFOLK AND NORTH ESSEX NHS FOUNDATION TRUST","RDEE4","Colchester General Hospital",2,"*","*","*","*","*","*","*","*"]
["QJG","RDE","EAST SUFFOLK AND NORTH ESSEX NHS FOUNDATION TRUST","RDE03","Ipswich Hospital",8,1,0,"*","*","*","*","*","*"]
["QJG","RGR","WEST SUFFOLK NHS FOUNDATION TRUST","RGR50","West Suffolk Hospital",1,"*","*","*","*","*","*","*","*"]
["QJK","RH8","ROYAL DEVON UNIVERSITY HEALTHCARE NHS FOUNDATION TRUST","RH880","North Devon District Hospital",2,"*","*","*","*","*","*","*","*"]
["QJK","RH8","ROYAL DEVON UNIVERSITY HEALTHCARE NHS FOUNDATION TRUST","RH801","Royal Devon and Exeter Hospital (Wonford)",0,"NA","NA",0,0,0,0,0,0]
["QJK","RA9","TORBAY AND SOUTH DEVON NHS FOUNDATION TRUST","RA901","Torbay Hospital",4,"*","*","*","*","*","*","*","*"]
["QJK","RK9","UNIVERSITY HOSPITALS PLYMOUTH NHS TRUST","RK950","Derriford Hospital",3,"*","*","*","*","*","*","*","*"]
["QJK","RK9","UNIVERSITY HOSPITALS PLYMOUTH NHS TRUST","RK9XXX","Non-hospital site",3,"*","*","*","*","*","*","*","*"]
["QJM","RWD","UNITED LINCOLNSHIRE TEACHING HOSPITALS NHS TRUST","RWDLP","Grantham and District Hospital",0,"NA","NA",0,0,0,0,0,0]
["QJM","RWD","UNITED LINCOLNSHIRE TEACHING HOSPITALS NHS TRUST","RWDDA","Lincoln County Hospital",0,"NA","NA",0,0,0,0,0,0]
["QJM","RWD","UNITED LINCOLNSHIRE TEACHING HOSPITALS NHS TRUST","RWDLA","Pilgrim Hospital",0,"NA","NA",0,0,0,0,0,0]
["QK1","RWE","UNIVERSITY HOSPITALS OF LEICESTER NHS TRUST","RWEAK","Leicester General Hospital",0,"NA","NA",0,0,0,0,0,0]
["QK1","RWE","UNIVERSITY HOSPITALS OF LEICESTER NHS TRUST","RWEAA","Leicester Royal Infirmary",3,"*","*","*","*","*","*","*","*"]
["QK1","RWE","UNIVERSITY HOSPITALS OF LEICESTER NHS TRUST","RWEXXX","Non-hospital site",46,1,0,40,6,0,0,0,0]
["QK1","RWE","UNIVERSITY HOSPITALS OF LEICESTER NHS TRUST","RWE10","St Mary's Hospital",3,"*","*","*","*","*","*","*","*"]
["QKK","RJ1","GUY'S AND ST THOMAS' NHS FOUNDATION TRUST","RJ122","St Thomas' Hospital",8,0.75,0,6,0,2,0,0,0]
["QKK","RJ2","LEWISHAM AND GREENWICH NHS TRUST","RJ231","Queen Elizabeth Hospital",22,0.90909090909090906,0,7,13,1,0,0,1]
["QKK","RJ2","LEWISHAM AND GREENWICH NHS TRUST","RJ224","University Hospital Lewisham",40,0.97499999999999998,2.5000000000000001E-2,31,8,0,1,0,0]
["QKS","RN7","DARTFORD AND GRAVESHAM NHS TRUST","RN707","Darent Valley Hospital",171,0.93567251461988299,3.5087719298245612E-2,147,13,5,2,4,0]
["QKS","RVV","EAST KENT HOSPITALS UNIVERSITY NHS FOUNDATION TRUST","RVV02","Buckland Hospital",3,"*","*","*","*","*","*","*","*"]
["QKS","RVV","EAST KENT HOSPITALS UNIVERSITY NHS FOUNDATION TRUST","RVVXXX","Non-hospital site",9,1,0,8,1,0,0,0,0]
["QKS","RVV","EAST KENT HOSPITALS UNIVERSITY NHS FOUNDATION TRUST","RVV09","Queen Elizabeth The Queen Mother Hospital",4,"*","*","*","*","*","*","*","*"]
["QKS","RVV","EAST KENT HOSPITALS UNIVERSITY NHS FOUNDATION TRUST","RVV03","Royal Victoria Hospital (Folkestone)",1,"*","*","*","*","*","*","*","*"]
["QKS","RVV","EAST KENT HOSPITALS UNIVERSITY NHS FOUNDATION TRUST","RVV01","William Harvey Hospital (Ashford)",8,1,0,6,2,0,0,0,0]
["QKS","RWF","MAIDSTONE AND TUNBRIDGE WELLS NHS TRUST","RWF03","Maidstone District General Hospital",23,0.91304347826086951,4.3478260869565216E-2,"*","*","*","*","*","*"]
["QKS","RWF","MAIDSTONE AND TUNBRIDGE WELLS NHS TRUST","RWFXXX","Non-hospital site",3,"*","*","*","*","*","*","*","*"]
["QKS","RWF","MAIDSTONE AND TUNBRIDGE WELLS NHS TRUST","RWFTW","The Tunbridge Wells Hospital",48,0.875,0.125,35,7,0,2,4,0]
["QKS","RPA","MEDWAY NHS FOUNDATION TRUST","RPA02","Medway Maritime Hospital",4,"*","*","*","*","*","*","*","*"]
["QM7","RWH","EAST AND NORTH HERTFORDSHIRE NHS TRUST","RWH23","Hertford County Hospital",0,"NA","NA",0,0,0,0,0,0]
["QM7","RWH","EAST AND NORTH HERTFORDSHIRE NHS TRUST","RWH01","Lister Hospital",38,0.97368421052631582,2.6315789473684209E-2,"*","*","*","*","*","*"]
["QM7","RWH","EAST AND NORTH HERTFORDSHIRE NHS TRUST","RWHXXX","Non-hospital site",0,"NA","NA",0,0,0,0,0,0]
["QM7","RWH","EAST AND NORTH HERTFORDSHIRE NHS TRUST","RWH20","Queen Elizabeth I I Hospital",15,1,0,"*","*","*","*","*","*"]
["QM7","RQW","THE PRINCESS ALEXANDRA HOSPITAL NHS TRUST","RQWG0","Princess Alexandra Hospital",0,"NA","NA",0,0,0,0,0,0]
["QM7","RWG","WEST HERTFORDSHIRE TEACHING HOSPITALS NHS TRUST","RWG02","Watford General Hospital",2,"*","*","*","*","*","*","*","*"]
["QMF","RF4","BARKING, HAVERING AND REDBRIDGE UNIVERSITY HOSPITALS NHS TRUST","RF4XXX","Non-hospital site",55,0.67272727272727273,0.2,27,10,6,6,5,1]
["QMF","R1H","BARTS HEALTH NHS TRUST","R1HNH","Newham General Hospital",66,0.96969696969696972,3.0303030303030304E-2,55,9,0,0,2,0]
["QMF","R1H","BARTS HEALTH NHS TRUST","R1H12","The Royal London Hospital",27,0.7407407407407407,0.25925925925925924,20,0,0,0,7,0]
["QMF","R1H","BARTS HEALTH NHS TRUST","R1HKH","Whipps Cross University Hospital",30,0.96666666666666667,3.3333333333333333E-2,26,3,0,0,1,0]
["QMF","RQX","HOMERTON HEALTHCARE NHS FOUNDATION TRUST","RQXM1","Homerton University Hospital",5,0.6,0.4,3,0,0,1,1,0]
["QMJ","RAL","ROYAL FREE LONDON NHS FOUNDATION TRUST","RAL26","Barnet Hospital",25,0.84,0.12,18,3,1,2,1,0]
["QMJ","RAL","ROYAL FREE LONDON NHS FOUNDATION TRUST","RALC7","Chase Farm Hospital",6,0.83333333333333337,0,"*","*","*","*","*","*"]
["QMJ","RAL","ROYAL FREE LONDON NHS FOUNDATION TRUST","RALRA","Edgware Community Hospital",13,1,0,11,2,0,0,0,0]
["QMJ","RAL","ROYAL FREE LONDON NHS FOUNDATION TRUST","RAL22","Finchley Memorial Hospital",2,"*","*","*","*","*","*","*","*"]
["QMJ","RAL","ROYAL FREE LONDON NHS FOUNDATION TRUST","RAL27","North Middlesex University Hospital",43,0.88372093023255816,0.11627906976744186,28,10,0,1,4,0]
["QMJ","RAL","ROYAL FREE LONDON NHS FOUNDATION TRUST","RAL01","Royal Free Hospital",48,0.91666666666666663,4.1666666666666664E-2,30,14,2,0,2,0]
["QMJ","RRV","UNIVERSITY COLLEGE LONDON HOSPITALS NHS FOUNDATION TRUST","RRV11","University College Hospital Elizabeth Garrett Anderson Wing",0,"NA","NA",0,0,0,0,0,0]
["QMJ","RKE","WHITTINGTON HEALTH NHS TRUST","RKEXXX","Non-hospital site",14,1,0,"*","*","*","*","*","*"]
["QMJ","RKE","WHITTINGTON HEALTH NHS TRUST","RKEQ4","The Whittington Hospital",4,"*","*","*","*","*","*","*","*"]
["QMM","RGP","JAMES PAGET UNIVERSITY HOSPITALS NHS FOUNDATION TRUST","RGP75","James Paget University Hospital",0,"NA","NA",0,0,0,0,0,0]
["QMM","RM1","NORFOLK AND NORWICH UNIVERSITY HOSPITALS NHS FOUNDATION TRUST","RM102","Norfolk and Norwich University Hospital",47,0.97872340425531912,0,45,1,0,0,0,1]
["QMM","RCX","THE QUEEN ELIZABETH HOSPITAL, KING'S LYNN, NHS FOUNDATION TRUST","RCXXXX","Non-hospital site",14,1,0,13,1,0,0,0,0]
["QMM","RCX","THE QUEEN ELIZABETH HOSPITAL, KING'S LYNN, NHS FOUNDATION TRUST","RCX66","North Cambridgeshire Hospital",0,"NA","NA",0,0,0,0,0,0]
["QMM","RCX","THE QUEEN ELIZABETH HOSPITAL, KING'S LYNN, NHS FOUNDATION TRUST","RCX70","The Queen Elizabeth Hospital",52,0.98076923076923073,1.9230769230769232E-2,43,8,0,1,0,0]
["QNC","RJE","UNIVERSITY HOSPITALS OF NORTH MIDLANDS NHS TRUST","RJE09","County Hospital",1,"*","*","*","*","*","*","*","*"]
["QNC","RJE","UNIVERSITY HOSPITALS OF NORTH MIDLANDS NHS TRUST","RJEXXX","Non-hospital site",4,"*","*","*","*","*","*","*","*"]
["QNC","RJE","UNIVERSITY HOSPITALS OF NORTH MIDLANDS NHS TRUST","RJE01","Royal Stoke University Hospital",21,0.76190476190476186,0.19047619047619047,12,4,1,0,4,0]
["QNQ","RDU","FRIMLEY HEALTH NHS FOUNDATION TRUST","RDU01","Frimley Park Hospital",2,"*","*","*","*","*","*","*","*"]
["QNQ","RDU","FRIMLEY HEALTH NHS FOUNDATION TRUST","RDU50","Wexham Park Hospital",43,0.65116279069767447,0.27906976744186046,"*","*","*","*","*","*"]
["QOC","RXW","THE SHREWSBURY AND TELFORD HOSPITAL NHS TRUST","RXWAS","Royal Shrewsbury Hospital",13,1,0,13,0,0,0,0,0]
["QOC","RXW","THE SHREWSBURY AND TELFORD HOSPITAL NHS TRUST","RXWAT","The Princess Royal Hospital",9,0.88888888888888884,0,8,0,1,0,0,0]
["QOP","RMC","BOLTON NHS FOUNDATION TRUST","RMC01","Royal Bolton Hospital",110,0.9363636363636364,3.6363636363636362E-2,102,1,3,1,3,0]
["QOP","R0A","MANCHESTER UNIVERSITY NHS FOUNDATION TRUST","R0A05","St Mary's Hospital",376,0.97606382978723405,7.9787234042553185E-3,313,54,5,0,3,1]
["QOP","RWJ","STOCKPORT NHS FOUNDATION TRUST","RWJ09","Stepping Hill Hospital",10,0.8,0.2,"*","*","*","*","*","*"]
["QOP","RMP","TAMESIDE AND GLOSSOP INTEGRATED CARE NHS FOUNDATION TRUST","RMP01","Tameside General Hospital",80,0.95,2.5000000000000001E-2,75,1,2,0,2,0]
["QOP","RRF","WRIGHTINGTON, WIGAN AND LEIGH NHS FOUNDATION TRUST","RRF02","Royal Albert Edward Infirmary",2,"*","*","*","*","*","*","*","*"]
["QOQ","RCD","HARROGATE AND DISTRICT NHS FOUNDATION TRUST","RCD01","Harrogate District Hospital",0,"NA","NA",0,0,0,0,0,0]
["QOQ","RWA","HULL UNIVERSITY TEACHING HOSPITALS NHS TRUST","RWA01","Hull Royal Infirmary",1,"*","*","*","*","*","*","*","*"]
["QOQ","RJL","NORTHERN LINCOLNSHIRE AND GOOLE NHS FOUNDATION TRUST","RJL30","Diana, Princess Of Wales Hospital",9,0.77777777777777779,0.1111111111111111,"*","*","*","*","*","*"]
["QOQ","RJL","NORTHERN LINCOLNSHIRE AND GOOLE NHS FOUNDATION TRUST","RJL31","Goole and District Hospital (Acute)",1,"*","*","*","*","*","*","*","*"]
["QOQ","RJL","NORTHERN LINCOLNSHIRE AND GOOLE NHS FOUNDATION TRUST","RJL32","Scunthorpe General Hospital",10,0.8,0.1,6,2,1,0,1,0]
["QOX","RN3","GREAT WESTERN HOSPITALS NHS FOUNDATION TRUST","RN325","The Great Western Hospital",80,0.82499999999999996,0.16250000000000001,53,13,1,5,8,0]
["QOX","RD1","ROYAL UNITED HOSPITALS BATH NHS FOUNDATION TRUST","RD102","Chippenham Community Hospital",8,1,0,6,2,0,0,0,0]
["QOX","RD1","ROYAL UNITED HOSPITALS BATH NHS FOUNDATION TRUST","RD121","Frome Community Hospital",1,"*","*","*","*","*","*","*","*"]
["QOX","RD1","ROYAL UNITED HOSPITALS BATH NHS FOUNDATION TRUST","RD130","Princess Anne Wing RUH",7,0.8571428571428571,0.14285714285714285,3,3,0,1,0,0]
["QOX","RD1","ROYAL UNITED HOSPITALS BATH NHS FOUNDATION TRUST","RD108","Trowbridge Community Hospital",3,"*","*","*","*","*","*","*","*"]
["QOX","RNZ","SALISBURY NHS FOUNDATION TRUST","RNZ02","Salisbury District Hospital",7,1,0,5,2,0,0,0,0]
["QPM","RNQ","KETTERING GENERAL HOSPITAL NHS FOUNDATION TRUST","RNQ51","Kettering General Hospital",36,0.97222222222222221,2.7777777777777776E-2,32,3,0,1,0,0]
["QPM","RNS","NORTHAMPTON GENERAL HOSPITAL NHS TRUST","RNS01","Northampton General Hospital (Acute)",116,0.98275862068965514,8.6206896551724137E-3,107,7,1,1,0,0]
["QRL","RN5","HAMPSHIRE HOSPITALS NHS FOUNDATION TRUST","RN542","Andover War Memorial Hospital",29,0.96551724137931039,3.4482758620689655E-2,28,0,0,0,1,0]
["QRL","RN5","HAMPSHIRE HOSPITALS NHS FOUNDATION TRUST","RN506","Basingstoke and North Hampshire Hospital",14,1,0,"*","*","*","*","*","*"]
["QRL","RN5","HAMPSHIRE HOSPITALS NHS FOUNDATION TRUST","RN5XXX","Non-hospital site",3,"*","*","*","*","*","*","*","*"]
["QRL","RN5","HAMPSHIRE HOSPITALS NHS FOUNDATION TRUST","RN541","Royal Hampshire County Hospital",17,1,0,15,2,0,0,0,0]
["QRL","R1F","ISLE OF WIGHT NHS TRUST","R1F01","St Mary's Hospital",5,0.8,0.2,4,0,0,1,0,0]
["QRL","RHU","PORTSMOUTH HOSPITALS UNIVERSITY NATIONAL HEALTH SERVICE TRUST","RHU03","Queen Alexandra Hospital",5,1,0,4,1,0,0,0,0]
["QRL","RHM","UNIVERSITY HOSPITAL SOUTHAMPTON NHS FOUNDATION TRUST","RHM12","Princess Anne Hospital",139,0.89928057553956831,6.4748201438848921E-2,87,38,5,6,3,0]
["QRV","RYJ","IMPERIAL COLLEGE HEALTHCARE NHS TRUST","RYJ04","Queen Charlotte's Hospital",32,0.90625,3.125E-2,25,4,2,1,0,0]
["QRV","RYJ","IMPERIAL COLLEGE HEALTHCARE NHS TRUST","RYJ01","St Mary's Hospital (HQ)",11,1,0,10,1,0,0,0,0]
["QRV","R1K","LONDON NORTH WEST UNIVERSITY HEALTHCARE NHS TRUST","R1K01","Northwick Park Hospital",53,0.71698113207547165,0.22641509433962265,29,9,3,2,10,0]
["QRV","RAS","THE HILLINGDON HOSPITALS NHS FOUNDATION TRUST","RAS01","Hillingdon Hospital",62,0.87096774193548387,4.8387096774193547E-2,34,20,5,1,2,0]
["QSL","RH5","SOMERSET NHS FOUNDATION TRUST","RH5K6","Bridgwater Hospital",0,"NA","NA",0,0,0,0,0,0]
["QSL","RH5","SOMERSET NHS FOUNDATION TRUST","RH5A8","MUSGROVE PARK HOSPITAL",1,"*","*","*","*","*","*","*","*"]
["QSL","RH5","SOMERSET NHS FOUNDATION TRUST","RH5XXXX","Non-hospital site home/in-transit births",0,"NA","NA",0,0,0,0,0,0]
["QSL","RH5","SOMERSET NHS FOUNDATION TRUST","RH5O4","Yeovil District Hospital",0,"NA","NA",0,0,0,0,0,0]
["QT1","RX1","NOTTINGHAM UNIVERSITY HOSPITALS NHS TRUST","RX1XXX","Non-hospital site",3,"*","*","*","*","*","*","*","*"]
["QT1","RX1","NOTTINGHAM UNIVERSITY HOSPITALS NHS TRUST","RX1CC","Nottingham University Hospitals NHS Trust - City Campus",54,1,0,"*","*","*","*","*","*"]
["QT1","RX1","NOTTINGHAM UNIVERSITY HOSPITALS NHS TRUST","RX1RA","Nottingham University Hospitals NHS Trust - Queen's Medical Centre Campus",60,0.93333333333333335,3.3333333333333333E-2,52,4,1,1,1,1]
["QT1","RK5","SHERWOOD FOREST HOSPITALS NHS FOUNDATION TRUST","RK5BC","King's Mill Hospital",8,0.75,0.125,4,2,1,1,0,0]
["QT6","REF","ROYAL CORNWALL HOSPITALS NHS TRUST","REFXXX","Non-hospital site",4,"*","*","*","*","*","*","*","*"]
["QT6","REF","ROYAL CORNWALL HOSPITALS NHS TRUST","REF12","Royal Cornwall Hospital (Treliske)",21,0.95238095238095233,4.7619047619047616E-2,"*","*","*","*","*","*"]
["QU9","RXQ","BUCKINGHAMSHIRE HEALTHCARE NHS TRUST","RXQ02","Stoke Mandeville Hospital",35,0.77142857142857146,0.22857142857142856,21,6,0,7,1,0]
["QU9","RXQ","BUCKINGHAMSHIRE HEALTHCARE NHS TRUST","RXQ50","Wycombe Hospital",18,0.61111111111111116,0.33333333333333331,9,2,1,4,2,0]
["QU9","RTH","OXFORD UNIVERSITY HOSPITALS NHS FOUNDATION TRUST","RTH08","John Radcliffe Hospital",10,0.9,0,8,1,1,0,0,0]
["QU9","RHW","ROYAL BERKSHIRE NHS FOUNDATION TRUST","RHW01","Royal Berkshire Hospital",26,1,0,21,5,0,0,0,0]
["QUA","RNA","THE DUDLEY GROUP NHS FOUNDATION TRUST","RNA01","Russells Hall Hospital",13,0.92307692307692313,0,11,1,0,0,0,1]
["QUA","RL4","THE ROYAL WOLVERHAMPTON NHS TRUST","RL403","New Cross Hospital",17,0.82352941176470584,0.17647058823529413,11,3,0,0,3,0]
["QUA","RBK","WALSALL HEALTHCARE NHS TRUST","RBK02","Manor Hospital",154,0.94805194805194803,3.896103896103896E-2,74,72,2,4,2,0]
["QUE","RGT","CAMBRIDGE UNIVERSITY HOSPITALS NHS FOUNDATION TRUST","RGT32","Rosie Hospital",10,0.5,0.4,5,0,1,1,3,0]
["QUE","RGN","NORTH WEST ANGLIA NHS FOUNDATION TRUST","RGN90","Hinchingbrooke Hospital",146,1,0,143,3,0,0,0,0]
["QUE","RGN","NORTH WEST ANGLIA NHS FOUNDATION TRUST","RGN80","Peterborough City Hospital",128,1,0,119,9,0,0,0,0]
["QUY","RA7","UNIVERSITY HOSPITALS BRISTOL AND WESTON NHS FOUNDATION TRUST","RA707","ST MICHAEL'S HOSPITAL",32,1,0,29,3,0,0,0,0]
["QVV","RBD","DORSET COUNTY HOSPITAL NHS FOUNDATION TRUST","RBD01","Dorset County Hospital",1,"*","*","*","*","*","*","*","*"]
["QVV","R0D","UNIVERSITY HOSPITALS DORSET NHS FOUNDATION TRUST","R0D01","Poole Hospital",39,0.82051282051282048,0.10256410256410256,"*","*","*","*","*","*"]
["QVV","R0D","UNIVERSITY HOSPITALS DORSET NHS FOUNDATION TRUST","R0D02","Royal Bournemouth Hospital",0,"NA","NA",0,0,0,0,0,0]
["QWE","RVR","EPSOM AND ST HELIER UNIVERSITY HOSPITALS NHS TRUST","RVR50","Epsom Hospital",3,"*","*","*","*","*","*","*","*"]
["QWE","RVR","EPSOM AND ST HELIER UNIVERSITY HOSPITALS NHS TRUST","RVRXXX","Non-hospital site",0,"NA","NA",0,0,0,0,0,0]
["QWE","RVR","EPSOM AND ST HELIER UNIVERSITY HOSPITALS NHS TRUST","RVR05","St Helier Hospital",0,"NA","NA",0,0,0,0,0,0]
["QWE","RAX","KINGSTON AND RICHMOND NHS FOUNDATION TRUST","RAX01","Kingston Hospital",63,0.96825396825396826,3.1746031746031744E-2,59,2,0,1,1,0]
["QWE","RJ7","ST GEORGE'S UNIVERSITY HOSPITALS NHS FOUNDATION TRUST","RJ701","St George's Hospital (Tooting)",27,0.77777777777777779,0.22222222222222221,"*","*","*","*","*","*"]
["QWO","RAE","BRADFORD TEACHING HOSPITALS NHS FOUNDATION TRUST","RAE01","Bradford Royal Infirmary",5,0.8,0.2,4,0,0,0,1,0]
["QWO","RWY","CALDERDALE AND HUDDERSFIELD NHS FOUNDATION TRUST","RWY02","Calderdale Royal Hospital",10,0.8,0.2,7,1,0,1,1,0]
["QWO","RWY","CALDERDALE AND HUDDERSFIELD NHS FOUNDATION TRUST","RWY01","Huddersfield Royal Infirmary",3,"*","*","*","*","*","*","*","*"]
["QWO","RWY","CALDERDALE AND HUDDERSFIELD NHS FOUNDATION TRUST","RWYXXX","Non-hospital site",2,"*","*","*","*","*","*","*","*"]
["QWO","RR8","LEEDS TEACHING HOSPITALS NHS TRUST","RR801","Leeds General Infirmary",0,"NA","NA",0,0,0,0,0,0]
["QWO","RR8","LEEDS TEACHING HOSPITALS NHS TRUST","RR8XXX","Non-hospital site",83,0.96385542168674698,3.614457831325301E-2,"*","*","*","*","*","*"]
["QWO","RR8","LEEDS TEACHING HOSPITALS NHS TRUST","RR813","St James's University Hospital",2,"*","*","*","*","*","*","*","*"]
["QWO","RXF","MID YORKSHIRE TEACHING NHS TRUST","RXF10","Dewsbury and District Hospital",95,0.96842105263157896,2.1052631578947368E-2,87,5,1,0,2,0]
["QWO","RXF","MID YORKSHIRE TEACHING NHS TRUST","RXF05","Pinderfields General Hospital",201,0.93532338308457708,2.9850746268656716E-2,158,30,5,1,5,2]
["QWO","RXF","MID YORKSHIRE TEACHING NHS TRUST","RXF03","Pontefract General Infirmary",50,0.9,0.08,40,5,1,0,4,0]
["QWU","RLT","GEORGE ELIOT HOSPITAL NHS TRUST","RLT01","George Eliot Hospital - Acute Services",0,"NA","NA",0,0,0,0,0,0]
["QWU","RJC","SOUTH WARWICKSHIRE UNIVERSITY NHS FOUNDATION TRUST","RJCXXX","Non-hospital site",4,"*","*","*","*","*","*","*","*"]
["QWU","RJC","SOUTH WARWICKSHIRE UNIVERSITY NHS FOUNDATION TRUST","RJC02","Warwick Hospital",7,0.8571428571428571,0.14285714285714285,"*","*","*","*","*","*"]
["QWU","RKB","UNIVERSITY HOSPITALS COVENTRY AND WARWICKSHIRE NHS TRUST","RKB03","Hospital Of St Cross",0,"NA","NA",0,0,0,0,0,0]
["QWU","RKB","UNIVERSITY HOSPITALS COVENTRY AND WARWICKSHIRE NHS TRUST","RKBXXX","Non-hospital site",35,0.8,0.17142857142857143,21,7,0,3,3,1]
["QWU","RKB","UNIVERSITY HOSPITALS COVENTRY AND WARWICKSHIRE NHS TRUST","RKB01","University Hospital (Coventry)",45,0.91111111111111109,8.8888888888888892E-2,33,8,0,2,2,0]
["QXU","RTK","ASHFORD AND ST PETER'S HOSPITALS NHS FOUNDATION TRUST","RTK02","Ashford Hospital",0,"NA","NA",0,0,0,0,0,0]
["QXU","RA2","ROYAL SURREY COUNTY HOSPITAL NHS FOUNDATION TRUST","RA201","Royal Surrey County Hospital",7,0.8571428571428571,0.14285714285714285,5,1,0,0,1,0]
["QXU","RTP","SURREY AND SUSSEX HEALTHCARE NHS TRUST","RTP04","East Surrey Hospital",6,0.66666666666666663,0.33333333333333331,2,2,0,1,1,0]
["QYG","RJR","COUNTESS OF CHESTER HOSPITAL NHS FOUNDATION TRUST","RJR05","Countess Of Chester Hospital",5,0.8,0.2,3,1,0,1,0,0]
["QYG","RJN","EAST CHESHIRE NHS TRUST","RJN71","Macclesfield District General Hospital",13,1,0,10,3,0,0,0,0]
["QYG","REP","LIVERPOOL WOMEN'S NHS FOUNDATION TRUST","REP01","Liverpool Womens Hospital",12,0.83333333333333337,8.3333333333333329E-2,7,3,1,0,1,0]
["QYG","RBN","MERSEY AND WEST LANCASHIRE TEACHING HOSPITALS NHS TRUST","RBN52","Ormskirk and District General Hospital",1,"*","*","*","*","*","*","*","*"]
["QYG","RBN","MERSEY AND WEST LANCASHIRE TEACHING HOSPITALS NHS TRUST","RBN01","Whiston Hospital",12,1,0,"*","*","*","*","*","*"]
["QYG","RBT","MID CHESHIRE HOSPITALS NHS FOUNDATION TRUST","RBT20","Leighton Hospital",7,1,0,6,1,0,0,0,0]
["QYG","RWW","WARRINGTON AND HALTON TEACHING HOSPITALS NHS FOUNDATION TRUST","RWWWH","Warrington Hospital",0,"NA","NA",0,0,0,0,0,0]
["QYG","RBL","WIRRAL UNIVERSITY TEACHING HOSPITAL NHS FOUNDATION TRUST","RBL14","Arrowe Park Hospital",18,0.83333333333333337,0.1111111111111111,11,4,1,1,1,0]

{"sheet":"ICB Q2","index":5,"n_rows":55,"n_cols":32,"rows_kept":55,"cut":false,"hidden":false,"merged":[[8,6,8,11],[8,0,9,0],[8,1,9,1],[8,2,9,2],[8,3,9,3],[8,4,9,4],[8,5,9,5],[8,12,9,12],[8,13,9,13],[8,14,9,14],[8,15,9,15],[8,16,8,21],[8,22,9,22],[8,23,9,23],[8,24,9,24],[8,25,9,25],[8,26,8,31]]}
[]
[]
[]
[]
[]
[null,"   Sort data by:           "]
[]
[]
["ICB Code","ICB Name","Total Responses","Total Eligible","Percentage Positive","Percentage Negative","Breakdown of Responses",null,null,null,null,null,"Total Responses","Total Eligible","Percentage Positive","Percentage Negative","Breakdown of Responses",null,null,null,null,null,"Total Responses","Total Eligible","Percentage Positive","Percentage Negative","Breakdown of Responses"]
[null,null,null,null,null,null,"Very Good","Good","Neither Good nor Poor","Poor","Very Poor","Don't Know",null,null,null,null,"Very Good","Good","Neither Good nor Poor","Poor","Very Poor","Don't Know",null,null,null,null,"Very Good","Good","Neither Good nor Poor","Poor","Very Poor","Don't Know"]
[null,"England (including Independent Sector providers)",4676,42098,0.92686056458511545,4.662104362703165E-2,3716,618,95,86,132,29,{"$f":"SUM(M14:M55)","v":4676},{"$f":"SUM(N14:N55)","v":42098},{"$f":"SUM(Q11+R11)/SUM(Q11:V11)","v":0.92686056458511545},{"$f":"SUM(T11+U11)/SUM(Q11:V11)","v":4.662104362703165E-2},3716,618,95,86,132,29,{"$f":"IFERROR(C11-M11,0)","v":0},{"$f":"IFERROR(D11-N11,0)","v":0},{"$f":"IFERROR(E11-O11,0)","v":0},{"$f":"IFERROR(F11-P11,0)","v":0},{"$f":"IFERROR(G11-Q11,0)","v":0},{"$f":"IFERROR(H11-R11,0)","v":0},{"$f":"IFERROR(I11-S11,0)","v":0},{"$f":"IFERROR(J11-T11,0)","v":0},{"$f":"IFERROR(K11-U11,0)","v":0},{"$f":"IFERROR(L11-V11,0)","v":0}]
[null,"England (excluding Independent Sector providers)",4676,42098,0.92686056458511545,4.662104362703165E-2,3716,618,95,86,132,29,{"$f":"SUM(M14:M55)","v":4676},{"$f":"SUM(N14:N55)","v":42098},0.92686056458511545,4.662104362703165E-2,3716,618,95,86,132,29,0,0,0,0,0,0,0,0,0,0]
[null,"Selection (excluding suppressed data)",{"$f":"SUBTOTAL(9,C14:C55)","v":4676},{"$f":"SUBTOTAL(9,D14:D55)","v":42098},{"$f":"IFERROR((G13+H13)/SUM(G13:L13), \"-\")","v":0.9265779304422499},{"$f":"IFERROR((J13+K13)/SUM(G13:L13), \"-\")","v":4.6801202232717908E-2},{"$f":"SUBTOTAL(9,G14:G55)","v":3701},615,95,86,132,29,{"$f":"SUMIF(C14:C55,\"<>*\",M14:M55)","v":4676},{"$f":"SUMIF(D14:D55,\"<>*\",N14:N55)","v":42098},0.9265779304422499,4.6801202232717908E-2,3701,615,95,86,132,29,0,0,0,0,0,0,0,0,0,0]
["QE1","LANCASHIRE AND SOUTH CUMBRIA ICB",135,1005,0.80740740740740746,8.1481481481481488E-2,98,11,9,5,6,6,{"$f":"VLOOKUP($A14,[1]Sheet2!$A$49:$I$90,2,0)","v":135},{"$f":"VLOOKUP($A14,[1]Sheet2!$A$49:$I$90,3,0)","v":1005},{"$f":"SUM(Q14+R14)/SUM(Q14:V14)","v":0.80740740740740746},{"$f":"SUM(T14+U14)/SUM(Q14:V14)","v":8.1481481481481488E-2},{"$f":"VLOOKUP($A14,[1]Sheet2!$A$49:$I$90,4,0)","v":98},{"$f":"VLOOKUP($A14,[1]Sheet2!$A$49:$I$90,5,0)","v":11},{"$f":"VLOOKUP($A14,[1]Sheet2!$A$49:$I$90,6,0)","v":9},{"$f":"VLOOKUP($A14,[1]Sheet2!$A$49:$I$90,7,0)","v":5},{"$f":"VLOOKUP($A14,[1]Sheet2!$A$49:$I$90,8,0)","v":6},{"$f":"VLOOKUP($A14,[1]Sheet2!$A$49:$I$90,9,0)","v":6},{"$f":"IFERROR(C14-M14,0)","v":0},{"$f":"IFERROR(D14-N14,0)","v":0},0,0,0,0,0,0,0,0]
["QF7","SOUTH YORKSHIRE ICB",107,1249,0.93457943925233644,2.8037383177570093E-2,86,14,4,1,2,0,{"$f":"VLOOKUP($A15,[1]Sheet2!$A$49:$I$90,2,0)","v":107},{"$f":"VLOOKUP($A15,[1]Sheet2!$A$49:$I$90,3,0)","v":1249},{"$f":"SUM(Q15+R15)/SUM(Q15:V15)","v":0.93457943925233644},{"$f":"SUM(T15+U15)/SUM(Q15:V15)","v":2.8037383177570093E-2},{"$f":"VLOOKUP($A15,[1]Sheet2!$A$49:$I$90,4,0)","v":86},{"$f":"VLOOKUP($A15,[1]Sheet2!$A$49:$I$90,5,0)","v":14},{"$f":"VLOOKUP($A15,[1]Sheet2!$A$49:$I$90,6,0)","v":4},{"$f":"VLOOKUP($A15,[1]Sheet2!$A$49:$I$90,7,0)","v":1},{"$f":"VLOOKUP($A15,[1]Sheet2!$A$49:$I$90,8,0)","v":2},{"$f":"VLOOKUP($A15,[1]Sheet2!$A$49:$I$90,9,0)","v":0},{"$f":"IFERROR(C15-M15,0)","v":0},{"$f":"IFERROR(D15-N15,0)","v":0},{"$f":"IFERROR(E15-O15,0)","v":0},{"$f":"IFERROR(F15-P15,0)","v":0},{"$f":"IFERROR(G15-Q15,0)","v":0},{"$f":"IFERROR(H15-R15,0)","v":0},{"$f":"IFERROR(I15-S15,0)","v":0},{"$f":"IFERROR(J15-T15,0)","v":0},{"$f":"IFERROR(K15-U15,0)","v":0},{"$f":"IFERROR(L15-V15,0)","v":0}]
["QGH","HEREFORDSHIRE AND WORCESTERSHIRE ICB",93,263,0.989247311827957,1.0752688172043012E-2,85,7,0,1,0,0,{"$f":"VLOOKUP($A16,[1]Sheet2!$A$49:$I$90,2,0)","v":93},{"$f":"VLOOKUP($A16,[1]Sheet2!$A$49:$I$90,3,0)","v":263},0.989247311827957,1.0752688172043012E-2,{"$f":"VLOOKUP($A16,[1]Sheet2!$A$49:$I$90,4,0)","v":85},{"$f":"VLOOKUP($A16,[1]Sheet2!$A$49:$I$90,5,0)","v":7},{"$f":"VLOOKUP($A16,[1]Sheet2!$A$49:$I$90,6,0)","v":0},{"$f":"VLOOKUP($A16,[1]Sheet2!$A$49:$I$90,7,0)","v":1},{"$f":"VLOOKUP($A16,[1]Sheet2!$A$49:$I$90,8,0)","v":0},{"$f":"VLOOKUP($A16,[1]Sheet2!$A$49:$I$90,9,0)","v":0},0,0,0,0,0,0,0,0,0,0]
["QH8","MID AND SOUTH ESSEX ICB",181,610,0.88397790055248615,8.8397790055248615E-2,143,17,4,6,10,1,{"$f":"VLOOKUP($A17,[1]Sheet2!$A$49:$I$90,2,0)","v":181},{"$f":"VLOOKUP($A17,[1]Sheet2!$A$49:$I$90,3,0)","v":610},0.88397790055248615,8.8397790055248615E-2,{"$f":"VLOOKUP($A17,[1]Sheet2!$A$49:$I$90,4,0)","v":143},{"$f":"VLOOKUP($A17,[1]Sheet2!$A$49:$I$90,5,0)","v":17},{"$f":"VLOOKUP($A17,[1]Sheet2!$A$49:$I$90,6,0)","v":4},{"$f":"VLOOKUP($A17,[1]Sheet2!$A$49:$I$90,7,0)","v":6},{"$f":"VLOOKUP($A17,[1]Sheet2!$A$49:$I$90,8,0)","v":10},{"$f":"VLOOKUP($A17,[1]Sheet2!$A$49:$I$90,9,0)","v":1},0,0,0,0,0,0,0,0,0,0]
["QHG","BEDFORDSHIRE, LUTON AND MILTON KEYNES ICB",77,625,0.94805194805194803,3.896103896103896E-2,54,19,1,2,1,0,{"$f":"VLOOKUP($A18,[1]Sheet2!$A$49:$I$90,2,0)","v":77},{"$f":"VLOOKUP($A18,[1]Sheet2!$A$49:$I$90,3,0)","v":625},0.94805194805194803,3.896103896103896E-2,{"$f":"VLOOKUP($A18,[1]Sheet2!$A$49:$I$90,4,0)","v":54},{"$f":"VLOOKUP($A18,[1]Sheet2!$A$49:$I$90,5,0)","v":19},{"$f":"VLOOKUP($A18,[1]Sheet2!$A$49:$I$90,6,0)","v":1},{"$f":"VLOOKUP($A18,[1]Sheet2!$A$49:$I$90,7,0)","v":2},{"$f":"VLOOKUP($A18,[1]Sheet2!$A$49:$I$90,8,0)","v":1},{"$f":"VLOOKUP($A18,[1]Sheet2!$A$49:$I$90,9,0)","v":0},0,0,0,0,0,0,0,0,0,0]
["QHL","BIRMINGHAM AND SOLIHULL ICB",116,1927,0.83620689655172409,9.4827586206896547E-2,77,20,7,1,10,1,{"$f":"VLOOKUP($A19,[1]Sheet2!$A$49:$I$90,2,0)","v":116},{"$f":"VLOOKUP($A19,[1]Sheet2!$A$49:$I$90,3,0)","v":1927},0.83620689655172409,9.4827586206896547E-2,{"$f":"VLOOKUP($A19,[1]Sheet2!$A$49:$I$90,4,0)","v":77},{"$f":"VLOOKUP($A19,[1]Sheet2!$A$49:$I$90,5,0)","v":20},{"$f":"VLOOKUP($A19,[1]Sheet2!$A$49:$I$90,6,0)","v":7},{"$f":"VLOOKUP($A19,[1]Sheet2!$A$49:$I$90,7,0)","v":1},{"$f":"VLOOKUP($A19,[1]Sheet2!$A$49:$I$90,8,0)","v":10},{"$f":"VLOOKUP($A19,[1]Sheet2!$A$49:$I$90,9,0)","v":1},0,0,0,0,0,0,0,0,0,0]
["QHM","NORTH EAST AND NORTH CUMBRIA ICB",200,2307,0.97499999999999998,0.01,166,29,3,1,1,0,{"$f":"VLOOKUP($A20,[1]Sheet2!$A$49:$I$90,2,0)","v":200},{"$f":"VLOOKUP($A20,[1]Sheet2!$A$49:$I$90,3,0)","v":2307},0.97499999999999998,0.01,{"$f":"VLOOKUP($A20,[1]Sheet2!$A$49:$I$90,4,0)","v":166},{"$f":"VLOOKUP($A20,[1]Sheet2!$A$49:$I$90,5,0)","v":29},{"$f":"VLOOKUP($A20,[1]Sheet2!$A$49:$I$90,6,0)","v":3},{"$f":"VLOOKUP($A20,[1]Sheet2!$A$49:$I$90,7,0)","v":1},{"$f":"VLOOKUP($A20,[1]Sheet2!$A$49:$I$90,8,0)","v":1},{"$f":"VLOOKUP($A20,[1]Sheet2!$A$49:$I$90,9,0)","v":0},0,0,0,0,0,0,0,0,0,0]
["QJ2","DERBY AND DERBYSHIRE ICB",131,929,0.9007633587786259,5.3435114503816793E-2,89,29,5,6,1,1,{"$f":"VLOOKUP($A21,[1]Sheet2!$A$49:$I$90,2,0)","v":131},{"$f":"VLOOKUP($A21,[1]Sheet2!$A$49:$I$90,3,0)","v":929},0.9007633587786259,5.3435114503816793E-2,{"$f":"VLOOKUP($A21,[1]Sheet2!$A$49:$I$90,4,0)","v":89},{"$f":"VLOOKUP($A21,[1]Sheet2!$A$49:$I$90,5,0)","v":29},{"$f":"VLOOKUP($A21,[1]Sheet2!$A$49:$I$90,6,0)","v":5},{"$f":"VLOOKUP($A21,[1]Sheet2!$A$49:$I$90,7,0)","v":6},{"$f":"VLOOKUP($A21,[1]Sheet2!$A$49:$I$90,8,0)","v":1},{"$f":"VLOOKUP($A21,[1]Sheet2!$A$49:$I$90,9,0)","v":1},0,0,0,0,0,0,0,0,0,0]
["QJG","SUFFOLK AND NORTH EAST ESSEX ICB",30,593,0.96666666666666667,3.3333333333333333E-2,27,2,0,1,0,0,{"$f":"VLOOKUP($A22,[1]Sheet2!$A$49:$I$90,2,0)","v":30},{"$f":"VLOOKUP($A22,[1]Sheet2!$A$49:$I$90,3,0)","v":593},0.96666666666666667,3.3333333333333333E-2,{"$f":"VLOOKUP($A22,[1]Sheet2!$A$49:$I$90,4,0)","v":27},{"$f":"VLOOKUP($A22,[1]Sheet2!$A$49:$I$90,5,0)","v":2},{"$f":"VLOOKUP($A22,[1]Sheet2!$A$49:$I$90,6,0)","v":0},{"$f":"VLOOKUP($A22,[1]Sheet2!$A$49:$I$90,7,0)","v":1},{"$f":"VLOOKUP($A22,[1]Sheet2!$A$49:$I$90,8,0)","v":0},{"$f":"VLOOKUP($A22,[1]Sheet2!$A$49:$I$90,9,0)","v":0},0,0,0,0,0,0,0,0,0,0]
["QJK","DEVON ICB",23,609,0.82608695652173914,0.13043478260869565,17,2,1,3,0,0,{"$f":"VLOOKUP($A23,[1]Sheet2!$A$49:$I$90,2,0)","v":23},{"$f":"VLOOKUP($A23,[1]Sheet2!$A$49:$I$90,3,0)","v":609},0.82608695652173914,0.13043478260869565,{"$f":"VLOOKUP($A23,[1]Sheet2!$A$49:$I$90,4,0)","v":17},{"$f":"VLOOKUP($A23,[1]Sheet2!$A$49:$I$90,5,0)","v":2},{"$f":"VLOOKUP($A23,[1]Sheet2!$A$49:$I$90,6,0)","v":1},{"$f":"VLOOKUP($A23,[1]Sheet2!$A$49:$I$90,7,0)","v":3},{"$f":"VLOOKUP($A23,[1]Sheet2!$A$49:$I$90,8,0)","v":0},{"$f":"VLOOKUP($A23,[1]Sheet2!$A$49:$I$90,9,0)","v":0},0,0,0,0,0,0,0,0,0,0]
["QJM","LINCOLNSHIRE ICB",0,354,"NA","NA",0,0,0,0,0,0,{"$f":"VLOOKUP($A24,[1]Sheet2!$A$49:$I$90,2,0)","v":0},{"$f":"VLOOKUP($A24,[1]Sheet2!$A$49:$I$90,3,0)","v":354},{"$error":"#DIV/0!"},{"$error":"#DIV/0!"},{"$f":"VLOOKUP($A24,[1]Sheet2!$A$49:$I$90,4,0)","v":0},{"$f":"VLOOKUP($A24,[1]Sheet2!$A$49:$I$90,5,0)","v":0},{"$f":"VLOOKUP($A24,[1]Sheet2!$A$49:$I$90,6,0)","v":0},{"$f":"VLOOKUP($A24,[1]Sheet2!$A$49:$I$90,7,0)","v":0},{"$f":"VLOOKUP($A24,[1]Sheet2!$A$49:$I$90,8,0)","v":0},{"$f":"VLOOKUP($A24,[1]Sheet2!$A$49:$I$90,9,0)","v":0},0,0,0,0,0,0,0,0,0,0]
["QK1","LEICESTER, LEICESTERSHIRE AND RUTLAND ICB",136,749,0.93382352941176472,2.9411764705882353E-2,97,30,4,2,2,1,{"$f":"VLOOKUP($A25,[1]Sheet2!$A$49:$I$90,2,0)","v":136},{"$f":"VLOOKUP($A25,[1]Sheet2!$A$49:$I$90,3,0)","v":749},0.93382352941176472,2.9411764705882353E-2,{"$f":"VLOOKUP($A25,[1]Sheet2!$A$49:$I$90,4,0)","v":97},{"$f":"VLOOKUP($A25,[1]Sheet2!$A$49:$I$90,5,0)","v":30},{"$f":"VLOOKUP($A25,[1]Sheet2!$A$49:$I$90,6,0)","v":4},{"$f":"VLOOKUP($A25,[1]Sheet2!$A$49:$I$90,7,0)","v":2},{"$f":"VLOOKUP($A25,[1]Sheet2!$A$49:$I$90,8,0)","v":2},{"$f":"VLOOKUP($A25,[1]Sheet2!$A$49:$I$90,9,0)","v":1},0,0,0,0,0,0,0,0,0,0]
["QKK","SOUTH EAST LONDON ICB",230,1499,0.93913043478260871,1.7391304347826087E-2,176,40,8,2,2,2,{"$f":"VLOOKUP($A26,[1]Sheet2!$A$49:$I$90,2,0)","v":230},{"$f":"VLOOKUP($A26,[1]Sheet2!$A$49:$I$90,3,0)","v":1499},0.93913043478260871,1.7391304347826087E-2,{"$f":"VLOOKUP($A26,[1]Sheet2!$A$49:$I$90,4,0)","v":176},{"$f":"VLOOKUP($A26,[1]Sheet2!$A$49:$I$90,5,0)","v":40},{"$f":"VLOOKUP($A26,[1]Sheet2!$A$49:$I$90,6,0)","v":8},{"$f":"VLOOKUP($A26,[1]Sheet2!$A$49:$I$90,7,0)","v":2},{"$f":"VLOOKUP($A26,[1]Sheet2!$A$49:$I$90,8,0)","v":2},{"$f":"VLOOKUP($A26,[1]Sheet2!$A$49:$I$90,9,0)","v":2},0,0,0,0,0,0,0,0,0,0]
["QKS","KENT AND MEDWAY ICB",175,1598,0.97142857142857142,2.2857142857142857E-2,153,17,1,2,2,0,{"$f":"VLOOKUP($A27,[1]Sheet2!$A$49:$I$90,2,0)","v":175},{"$f":"VLOOKUP($A27,[1]Sheet2!$A$49:$I$90,3,0)","v":1598},0.97142857142857142,2.2857142857142857E-2,{"$f":"VLOOKUP($A27,[1]Sheet2!$A$49:$I$90,4,0)","v":153},{"$f":"VLOOKUP($A27,[1]Sheet2!$A$49:$I$90,5,0)","v":17},{"$f":"VLOOKUP($A27,[1]Sheet2!$A$49:$I$90,6,0)","v":1},{"$f":"VLOOKUP($A27,[1]Sheet2!$A$49:$I$90,7,0)","v":2},{"$f":"VLOOKUP($A27,[1]Sheet2!$A$49:$I$90,8,0)","v":2},{"$f":"VLOOKUP($A27,[1]Sheet2!$A$49:$I$90,9,0)","v":0},0,0,0,0,0,0,0,0,0,0]
["QM7","HERTFORDSHIRE AND WEST ESSEX ICB",48,975,0.9375,6.25E-2,41,4,0,2,1,0,{"$f":"VLOOKUP($A28,[1]Sheet2!$A$49:$I$90,2,0)","v":48},{"$f":"VLOOKUP($A28,[1]Sheet2!$A$49:$I$90,3,0)","v":975},0.9375,6.25E-2,{"$f":"VLOOKUP($A28,[1]Sheet2!$A$49:$I$90,4,0)","v":41},{"$f":"VLOOKUP($A28,[1]Sheet2!$A$49:$I$90,5,0)","v":4},{"$f":"VLOOKUP($A28,[1]Sheet2!$A$49:$I$90,6,0)","v":0},{"$f":"VLOOKUP($A28,[1]Sheet2!$A$49:$I$90,7,0)","v":2},{"$f":"VLOOKUP($A28,[1]Sheet2!$A$49:$I$90,8,0)","v":1},{"$f":"VLOOKUP($A28,[1]Sheet2!$A$49:$I$90,9,0)","v":0},0,0,0,0,0,0,0,0,0,0]
["QMF","NORTH EAST LONDON ICB",134,2263,0.82089552238805974,0.12686567164179105,87,23,6,1,16,1,{"$f":"VLOOKUP($A29,[1]Sheet2!$A$49:$I$90,2,0)","v":134},{"$f":"VLOOKUP($A29,[1]Sheet2!$A$49:$I$90,3,0)","v":2263},0.82089552238805974,0.12686567164179105,{"$f":"VLOOKUP($A29,[1]Sheet2!$A$49:$I$90,4,0)","v":87},{"$f":"VLOOKUP($A29,[1]Sheet2!$A$49:$I$90,5,0)","v":23},{"$f":"VLOOKUP($A29,[1]Sheet2!$A$49:$I$90,6,0)","v":6},{"$f":"VLOOKUP($A29,[1]Sheet2!$A$49:$I$90,7,0)","v":1},{"$f":"VLOOKUP($A29,[1]Sheet2!$A$49:$I$90,8,0)","v":16},{"$f":"VLOOKUP($A29,[1]Sheet2!$A$49:$I$90,9,0)","v":1},0,0,0,0,0,0,0,0,0,0]
["QMJ","NORTH CENTRAL LONDON ICB",131,1574,0.8854961832061069,6.8702290076335881E-2,81,35,6,2,7,0,{"$f":"VLOOKUP($A30,[1]Sheet2!$A$49:$I$90,2,0)","v":131},{"$f":"VLOOKUP($A30,[1]Sheet2!$A$49:$I$90,3,0)","v":1574},0.8854961832061069,6.8702290076335881E-2,{"$f":"VLOOKUP($A30,[1]Sheet2!$A$49:$I$90,4,0)","v":81},{"$f":"VLOOKUP($A30,[1]Sheet2!$A$49:$I$90,5,0)","v":35},{"$f":"VLOOKUP($A30,[1]Sheet2!$A$49:$I$90,6,0)","v":6},{"$f":"VLOOKUP($A30,[1]Sheet2!$A$49:$I$90,7,0)","v":2},{"$f":"VLOOKUP($A30,[1]Sheet2!$A$49:$I$90,8,0)","v":7},{"$f":"VLOOKUP($A30,[1]Sheet2!$A$49:$I$90,9,0)","v":0},0,0,0,0,0,0,0,0,0,0]
["QMM","NORFOLK AND WAVENEY ICB",31,651,0.967741935483871,3.2258064516129031E-2,30,0,0,1,0,0,{"$f":"VLOOKUP($A31,[1]Sheet2!$A$49:$I$90,2,0)","v":31},{"$f":"VLOOKUP($A31,[1]Sheet2!$A$49:$I$90,3,0)","v":651},0.967741935483871,3.2258064516129031E-2,{"$f":"VLOOKUP($A31,[1]Sheet2!$A$49:$I$90,4,0)","v":30},{"$f":"VLOOKUP($A31,[1]Sheet2!$A$49:$I$90,5,0)","v":0},{"$f":"VLOOKUP($A31,[1]Sheet2!$A$49:$I$90,6,0)","v":0},{"$f":"VLOOKUP($A31,[1]Sheet2!$A$49:$I$90,7,0)","v":1},{"$f":"VLOOKUP($A31,[1]Sheet2!$A$49:$I$90,8,0)","v":0},{"$f":"VLOOKUP($A31,[1]Sheet2!$A$49:$I$90,9,0)","v":0},0,0,0,0,0,0,0,0,0,0]
["QNC","STAFFORDSHIRE AND STOKE-ON-TRENT ICB",37,511,0.78378378378378377,0.21621621621621623,24,5,0,1,7,0,{"$f":"VLOOKUP($A32,[1]Sheet2!$A$49:$I$90,2,0)","v":37},{"$f":"VLOOKUP($A32,[1]Sheet2!$A$49:$I$90,3,0)","v":511},0.78378378378378377,0.21621621621621623,{"$f":"VLOOKUP($A32,[1]Sheet2!$A$49:$I$90,4,0)","v":24},{"$f":"VLOOKUP($A32,[1]Sheet2!$A$49:$I$90,5,0)","v":5},{"$f":"VLOOKUP($A32,[1]Sheet2!$A$49:$I$90,6,0)","v":0},{"$f":"VLOOKUP($A32,[1]Sheet2!$A$49:$I$90,7,0)","v":1},{"$f":"VLOOKUP($A32,[1]Sheet2!$A$49:$I$90,8,0)","v":7},{"$f":"VLOOKUP($A32,[1]Sheet2!$A$49:$I$90,9,0)","v":0},0,0,0,0,0,0,0,0,0,0]
["QNQ","FRIMLEY ICB",67,0,0.97014925373134331,2.9850746268656716E-2,59,6,0,0,2,0,{"$f":"VLOOKUP($A33,[1]Sheet2!$A$49:$I$90,2,0)","v":67},{"$f":"VLOOKUP($A33,[1]Sheet2!$A$49:$I$90,3,0)","v":0},0.97014925373134331,2.9850746268656716E-2,{"$f":"VLOOKUP($A33,[1]Sheet2!$A$49:$I$90,4,0)","v":59},{"$f":"VLOOKUP($A33,[1]Sheet2!$A$49:$I$90,5,0)","v":6},{"$f":"VLOOKUP($A33,[1]Sheet2!$A$49:$I$90,6,0)","v":0},{"$f":"VLOOKUP($A33,[1]Sheet2!$A$49:$I$90,7,0)","v":0},{"$f":"VLOOKUP($A33,[1]Sheet2!$A$49:$I$90,8,0)","v":2},{"$f":"VLOOKUP($A33,[1]Sheet2!$A$49:$I$90,9,0)","v":0},0,0,0,0,0,0,0,0,0,0]
["QNX","SUSSEX ICB",78,917,0.94871794871794868,2.564102564102564E-2,63,11,2,1,1,0,{"$f":"VLOOKUP($A34,[1]Sheet2!$A$49:$I$90,2,0)","v":78},{"$f":"VLOOKUP($A34,[1]Sheet2!$A$49:$I$90,3,0)","v":917},0.94871794871794868,2.564102564102564E-2,{"$f":"VLOOKUP($A34,[1]Sheet2!$A$49:$I$90,4,0)","v":63},{"$f":"VLOOKUP($A34,[1]Sheet2!$A$49:$I$90,5,0)","v":11},{"$f":"VLOOKUP($A34,[1]Sheet2!$A$49:$I$90,6,0)","v":2},{"$f":"VLOOKUP($A34,[1]Sheet2!$A$49:$I$90,7,0)","v":1},{"$f":"VLOOKUP($A34,[1]Sheet2!$A$49:$I$90,8,0)","v":1},{"$f":"VLOOKUP($A34,[1]Sheet2!$A$49:$I$90,9,0)","v":0},0,0,0,0,0,0,0,0,0,0]
["QOC","SHROPSHIRE, TELFORD AND WREKIN ICB",22,321,0.95454545454545459,4.5454545454545456E-2,20,1,0,1,0,0,{"$f":"VLOOKUP($A35,[1]Sheet2!$A$49:$I$90,2,0)","v":22},{"$f":"VLOOKUP($A35,[1]Sheet2!$A$49:$I$90,3,0)","v":321},0.95454545454545459,4.5454545454545456E-2,{"$f":"VLOOKUP($A35,[1]Sheet2!$A$49:$I$90,4,0)","v":20},{"$f":"VLOOKUP($A35,[1]Sheet2!$A$49:$I$90,5,0)","v":1},{"$f":"VLOOKUP($A35,[1]Sheet2!$A$49:$I$90,6,0)","v":0},{"$f":"VLOOKUP($A35,[1]Sheet2!$A$49:$I$90,7,0)","v":1},{"$f":"VLOOKUP($A35,[1]Sheet2!$A$49:$I$90,8,0)","v":0},{"$f":"VLOOKUP($A35,[1]Sheet2!$A$49:$I$90,9,0)","v":0},0,0,0,0,0,0,0,0,0,0]
["QOP","GREATER MANCHESTER ICB",505,4861,0.9247524752475248,5.9405940594059403E-2,388,79,8,11,19,0,{"$f":"VLOOKUP($A36,[1]Sheet2!$A$49:$I$90,2,0)","v":505},{"$f":"VLOOKUP($A36,[1]Sheet2!$A$49:$I$90,3,0)","v":4861},0.9247524752475248,5.9405940594059403E-2,{"$f":"VLOOKUP($A36,[1]Sheet2!$A$49:$I$90,4,0)","v":388},{"$f":"VLOOKUP($A36,[1]Sheet2!$A$49:$I$90,5,0)","v":79},{"$f":"VLOOKUP($A36,[1]Sheet2!$A$49:$I$90,6,0)","v":8},{"$f":"VLOOKUP($A36,[1]Sheet2!$A$49:$I$90,7,0)","v":11},{"$f":"VLOOKUP($A36,[1]Sheet2!$A$49:$I$90,8,0)","v":19},{"$f":"VLOOKUP($A36,[1]Sheet2!$A$49:$I$90,9,0)","v":0},0,0,0,0,0,0,0,0,0,0]
["QOQ","HUMBER AND NORTH YORKSHIRE ICB",74,939,0.95945945945945943,4.0540540540540543E-2,66,5,0,2,1,0,{"$f":"VLOOKUP($A37,[1]Sheet2!$A$49:$I$90,2,0)","v":74},{"$f":"VLOOKUP($A37,[1]Sheet2!$A$49:$I$90,3,0)","v":939},0.95945945945945943,4.0540540540540543E-2,{"$f":"VLOOKUP($A37,[1]Sheet2!$A$49:$I$90,4,0)","v":66},{"$f":"VLOOKUP($A37,[1]Sheet2!$A$49:$I$90,5,0)","v":5},{"$f":"VLOOKUP($A37,[1]Sheet2!$A$49:$I$90,6,0)","v":0},{"$f":"VLOOKUP($A37,[1]Sheet2!$A$49:$I$90,7,0)","v":2},{"$f":"VLOOKUP($A37,[1]Sheet2!$A$49:$I$90,8,0)","v":1},{"$f":"VLOOKUP($A37,[1]Sheet2!$A$49:$I$90,9,0)","v":0},0,0,0,0,0,0,0,0,0,0]
["QOX","BATH AND NORTH EAST SOMERSET, SWINDON AND WILTSHIRE ICB",15,313,0.73333333333333328,0.26666666666666666,8,3,0,4,0,0,{"$f":"VLOOKUP($A38,[1]Sheet2!$A$49:$I$90,2,0)","v":15},{"$f":"VLOOKUP($A38,[1]Sheet2!$A$49:$I$90,3,0)","v":313},0.73333333333333328,0.26666666666666666,{"$f":"VLOOKUP($A38,[1]Sheet2!$A$49:$I$90,4,0)","v":8},{"$f":"VLOOKUP($A38,[1]Sheet2!$A$49:$I$90,5,0)","v":3},{"$f":"VLOOKUP($A38,[1]Sheet2!$A$49:$I$90,6,0)","v":0},{"$f":"VLOOKUP($A38,[1]Sheet2!$A$49:$I$90,7,0)","v":4},{"$f":"VLOOKUP($A38,[1]Sheet2!$A$49:$I$90,8,0)","v":0},{"$f":"VLOOKUP($A38,[1]Sheet2!$A$49:$I$90,9,0)","v":0},0,0,0,0,0,0,0,0,0,0]
["QPM","NORTHAMPTONSHIRE ICB",37,566,0.97297297297297303,2.7027027027027029E-2,33,3,0,1,0,0,{"$f":"VLOOKUP($A39,[1]Sheet2!$A$49:$I$90,2,0)","v":37},{"$f":"VLOOKUP($A39,[1]Sheet2!$A$49:$I$90,3,0)","v":566},0.97297297297297303,2.7027027027027029E-2,{"$f":"VLOOKUP($A39,[1]Sheet2!$A$49:$I$90,4,0)","v":33},{"$f":"VLOOKUP($A39,[1]Sheet2!$A$49:$I$90,5,0)","v":3},{"$f":"VLOOKUP($A39,[1]Sheet2!$A$49:$I$90,6,0)","v":0},{"$f":"VLOOKUP($A39,[1]Sheet2!$A$49:$I$90,7,0)","v":1},{"$f":"VLOOKUP($A39,[1]Sheet2!$A$49:$I$90,8,0)","v":0},{"$f":"VLOOKUP($A39,[1]Sheet2!$A$49:$I$90,9,0)","v":0},0,0,0,0,0,0,0,0,0,0]
["QR1","GLOUCESTERSHIRE ICB",57,100,0.94736842105263153,5.2631578947368418E-2,46,8,0,2,1,0,{"$f":"VLOOKUP($A40,[1]Sheet2!$A$49:$I$90,2,0)","v":57},{"$f":"VLOOKUP($A40,[1]Sheet2!$A$49:$I$90,3,0)","v":100},0.94736842105263153,5.2631578947368418E-2,{"$f":"VLOOKUP($A40,[1]Sheet2!$A$49:$I$90,4,0)","v":46},{"$f":"VLOOKUP($A40,[1]Sheet2!$A$49:$I$90,5,0)","v":8},{"$f":"VLOOKUP($A40,[1]Sheet2!$A$49:$I$90,6,0)","v":0},{"$f":"VLOOKUP($A40,[1]Sheet2!$A$49:$I$90,7,0)","v":2},{"$f":"VLOOKUP($A40,[1]Sheet2!$A$49:$I$90,8,0)","v":1},{"$f":"VLOOKUP($A40,[1]Sheet2!$A$49:$I$90,9,0)","v":0},0,0,0,0,0,0,0,0,0,0]
["QRL","HAMPSHIRE AND ISLE OF WIGHT ICB",357,1252,0.98319327731092432,5.6022408963585435E-3,319,32,4,2,0,0,{"$f":"VLOOKUP($A41,[1]Sheet2!$A$49:$I$90,2,0)","v":357},{"$f":"VLOOKUP($A41,[1]Sheet2!$A$49:$I$90,3,0)","v":1252},0.98319327731092432,5.6022408963585435E-3,{"$f":"VLOOKUP($A41,[1]Sheet2!$A$49:$I$90,4,0)","v":319},{"$f":"VLOOKUP($A41,[1]Sheet2!$A$49:$I$90,5,0)","v":32},{"$f":"VLOOKUP($A41,[1]Sheet2!$A$49:$I$90,6,0)","v":4},{"$f":"VLOOKUP($A41,[1]Sheet2!$A$49:$I$90,7,0)","v":2},{"$f":"VLOOKUP($A41,[1]Sheet2!$A$49:$I$90,8,0)","v":0},{"$f":"VLOOKUP($A41,[1]Sheet2!$A$49:$I$90,9,0)","v":0},0,0,0,0,0,0,0,0,0,0]
["QRV","NORTH WEST LONDON ICB",179,1444,0.94413407821229045,3.3519553072625698E-2,123,46,4,6,0,0,{"$f":"VLOOKUP($A42,[1]Sheet2!$A$49:$I$90,2,0)","v":179},{"$f":"VLOOKUP($A42,[1]Sheet2!$A$49:$I$90,3,0)","v":1444},0.94413407821229045,3.3519553072625698E-2,{"$f":"VLOOKUP($A42,[1]Sheet2!$A$49:$I$90,4,0)","v":123},{"$f":"VLOOKUP($A42,[1]Sheet2!$A$49:$I$90,5,0)","v":46},{"$f":"VLOOKUP($A42,[1]Sheet2!$A$49:$I$90,6,0)","v":4},{"$f":"VLOOKUP($A42,[1]Sheet2!$A$49:$I$90,7,0)","v":6},{"$f":"VLOOKUP($A42,[1]Sheet2!$A$49:$I$90,8,0)","v":0},{"$f":"VLOOKUP($A42,[1]Sheet2!$A$49:$I$90,9,0)","v":0},0,0,0,0,0,0,0,0,0,0]
["QSL","SOMERSET ICB",4,352,"*","*","*","*","*","*","*","*",{"$f":"VLOOKUP($A43,[1]Sheet2!$A$49:$I$90,2,0)","v":4},{"$f":"VLOOKUP($A43,[1]Sheet2!$A$49:$I$90,3,0)","v":352},1,0,{"$f":"VLOOKUP($A43,[1]Sheet2!$A$49:$I$90,4,0)","v":3},{"$f":"VLOOKUP($A43,[1]Sheet2!$A$49:$I$90,5,0)","v":1},{"$f":"VLOOKUP($A43,[1]Sheet2!$A$49:$I$90,6,0)","v":0},{"$f":"VLOOKUP($A43,[1]Sheet2!$A$49:$I$90,7,0)","v":0},{"$f":"VLOOKUP($A43,[1]Sheet2!$A$49:$I$90,8,0)","v":0},{"$f":"VLOOKUP($A43,[1]Sheet2!$A$49:$I$90,9,0)","v":0},0,0,0,0,0,0,0,0,0,0]
["QT1","NOTTINGHAM AND NOTTINGHAMSHIRE ICB",54,644,0.88888888888888884,9.2592592592592587E-2,42,6,1,2,3,0,{"$f":"VLOOKUP($A44,[1]Sheet2!$A$49:$I$90,2,0)","v":54},{"$f":"VLOOKUP($A44,[1]Sheet2!$A$49:$I$90,3,0)","v":644},0.88888888888888884,9.2592592592592587E-2,{"$f":"VLOOKUP($A44,[1]Sheet2!$A$49:$I$90,4,0)","v":42},{"$f":"VLOOKUP($A44,[1]Sheet2!$A$49:$I$90,5,0)","v":6},{"$f":"VLOOKUP($A44,[1]Sheet2!$A$49:$I$90,6,0)","v":1},{"$f":"VLOOKUP($A44,[1]Sheet2!$A$49:$I$90,7,0)","v":2},{"$f":"VLOOKUP($A44,[1]Sheet2!$A$49:$I$90,8,0)","v":3},{"$f":"VLOOKUP($A44,[1]Sheet2!$A$49:$I$90,9,0)","v":0},0,0,0,0,0,0,0,0,0,0]
["QT6","CORNWALL AND THE ISLES OF SCILLY ICB",14,283,1,0,"*","*","*","*","*","*",{"$f":"VLOOKUP($A45,[1]Sheet2!$A$49:$I$90,2,0)","v":14},{"$f":"VLOOKUP($A45,[1]Sheet2!$A$49:$I$90,3,0)","v":283},1,0,{"$f":"VLOOKUP($A45,[1]Sheet2!$A$49:$I$90,4,0)","v":12},{"$f":"VLOOKUP($A45,[1]Sheet2!$A$49:$I$90,5,0)","v":2},{"$f":"VLOOKUP($A45,[1]Sheet2!$A$49:$I$90,6,0)","v":0},{"$f":"VLOOKUP($A45,[1]Sheet2!$A$49:$I$90,7,0)","v":0},{"$f":"VLOOKUP($A45,[1]Sheet2!$A$49:$I$90,8,0)","v":0},{"$f":"VLOOKUP($A45,[1]Sheet2!$A$49:$I$90,9,0)","v":0},0,0,0,0,0,0,0,0,0,0]
["QU9","BUCKINGHAMSHIRE, OXFORDSHIRE AND BERKSHIRE WEST ICB",48,1204,0.9375,4.1666666666666664E-2,42,3,1,0,2,0,{"$f":"VLOOKUP($A46,[1]Sheet2!$A$49:$I$90,2,0)","v":48},{"$f":"VLOOKUP($A46,[1]Sheet2!$A$49:$I$90,3,0)","v":1204},0.9375,4.1666666666666664E-2,{"$f":"VLOOKUP($A46,[1]Sheet2!$A$49:$I$90,4,0)","v":42},{"$f":"VLOOKUP($A46,[1]Sheet2!$A$49:$I$90,5,0)","v":3},{"$f":"VLOOKUP($A46,[1]Sheet2!$A$49:$I$90,6,0)","v":1},{"$f":"VLOOKUP($A46,[1]Sheet2!$A$49:$I$90,7,0)","v":0},{"$f":"VLOOKUP($A46,[1]Sheet2!$A$49:$I$90,8,0)","v":2},{"$f":"VLOOKUP($A46,[1]Sheet2!$A$49:$I$90,9,0)","v":0},0,0,0,0,0,0,0,0,0,0]
["QUA","BLACK COUNTRY ICB",174,942,0.92528735632183912,1.7241379310344827E-2,146,15,4,2,1,6,{"$f":"VLOOKUP($A47,[1]Sheet2!$A$49:$I$90,2,0)","v":174},{"$f":"VLOOKUP($A47,[1]Sheet2!$A$49:$I$90,3,0)","v":942},0.92528735632183912,1.7241379310344827E-2,{"$f":"VLOOKUP($A47,[1]Sheet2!$A$49:$I$90,4,0)","v":146},{"$f":"VLOOKUP($A47,[1]Sheet2!$A$49:$I$90,5,0)","v":15},{"$f":"VLOOKUP($A47,[1]Sheet2!$A$49:$I$90,6,0)","v":4},{"$f":"VLOOKUP($A47,[1]Sheet2!$A$49:$I$90,7,0)","v":2},{"$f":"VLOOKUP($A47,[1]Sheet2!$A$49:$I$90,8,0)","v":1},{"$f":"VLOOKUP($A47,[1]Sheet2!$A$49:$I$90,9,0)","v":6},0,0,0,0,0,0,0,0,0,0]
["QUE","CAMBRIDGESHIRE AND PETERBOROUGH ICB",63,929,0.87301587301587302,9.5238095238095233E-2,51,4,1,0,6,1,{"$f":"VLOOKUP($A48,[1]Sheet2!$A$49:$I$90,2,0)","v":63},{"$f":"VLOOKUP($A48,[1]Sheet2!$A$49:$I$90,3,0)","v":929},0.87301587301587302,9.5238095238095233E-2,{"$f":"VLOOKUP($A48,[1]Sheet2!$A$49:$I$90,4,0)","v":51},{"$f":"VLOOKUP($A48,[1]Sheet2!$A$49:$I$90,5,0)","v":4},{"$f":"VLOOKUP($A48,[1]Sheet2!$A$49:$I$90,6,0)","v":1},{"$f":"VLOOKUP($A48,[1]Sheet2!$A$49:$I$90,7,0)","v":0},{"$f":"VLOOKUP($A48,[1]Sheet2!$A$49:$I$90,8,0)","v":6},{"$f":"VLOOKUP($A48,[1]Sheet2!$A$49:$I$90,9,0)","v":1},0,0,0,0,0,0,0,0,0,0]
["QUY","BRISTOL, NORTH SOMERSET AND SOUTH GLOUCESTERSHIRE ICB",79,733,0.97468354430379744,1.2658227848101266E-2,68,9,1,0,1,0,{"$f":"VLOOKUP($A49,[1]Sheet2!$A$49:$I$90,2,0)","v":79},{"$f":"VLOOKUP($A49,[1]Sheet2!$A$49:$I$90,3,0)","v":733},0.97468354430379744,1.2658227848101266E-2,{"$f":"VLOOKUP($A49,[1]Sheet2!$A$49:$I$90,4,0)","v":68},{"$f":"VLOOKUP($A49,[1]Sheet2!$A$49:$I$90,5,0)","v":9},{"$f":"VLOOKUP($A49,[1]Sheet2!$A$49:$I$90,6,0)","v":1},{"$f":"VLOOKUP($A49,[1]Sheet2!$A$49:$I$90,7,0)","v":0},{"$f":"VLOOKUP($A49,[1]Sheet2!$A$49:$I$90,8,0)","v":1},{"$f":"VLOOKUP($A49,[1]Sheet2!$A$49:$I$90,9,0)","v":0},0,0,0,0,0,0,0,0,0,0]
["QVV","DORSET ICB",30,407,0.93333333333333335,6.6666666666666666E-2,22,6,0,0,2,0,{"$f":"VLOOKUP($A50,[1]Sheet2!$A$49:$I$90,2,0)","v":30},{"$f":"VLOOKUP($A50,[1]Sheet2!$A$49:$I$90,3,0)","v":407},0.93333333333333335,6.6666666666666666E-2,{"$f":"VLOOKUP($A50,[1]Sheet2!$A$49:$I$90,4,0)","v":22},{"$f":"VLOOKUP($A50,[1]Sheet2!$A$49:$I$90,5,0)","v":6},{"$f":"VLOOKUP($A50,[1]Sheet2!$A$49:$I$90,6,0)","v":0},{"$f":"VLOOKUP($A50,[1]Sheet2!$A$49:$I$90,7,0)","v":0},{"$f":"VLOOKUP($A50,[1]Sheet2!$A$49:$I$90,8,0)","v":2},{"$f":"VLOOKUP($A50,[1]Sheet2!$A$49:$I$90,9,0)","v":0},0,0,0,0,0,0,0,0,0,0]
["QWE","SOUTH WEST LONDON ICB",93,970,0.978494623655914,1.0752688172043012E-2,82,9,1,0,1,0,{"$f":"VLOOKUP($A51,[1]Sheet2!$A$49:$I$90,2,0)","v":93},{"$f":"VLOOKUP($A51,[1]Sheet2!$A$49:$I$90,3,0)","v":970},0.978494623655914,1.0752688172043012E-2,{"$f":"VLOOKUP($A51,[1]Sheet2!$A$49:$I$90,4,0)","v":82},{"$f":"VLOOKUP($A51,[1]Sheet2!$A$49:$I$90,5,0)","v":9},{"$f":"VLOOKUP($A51,[1]Sheet2!$A$49:$I$90,6,0)","v":1},{"$f":"VLOOKUP($A51,[1]Sheet2!$A$49:$I$90,7,0)","v":0},{"$f":"VLOOKUP($A51,[1]Sheet2!$A$49:$I$90,8,0)","v":1},{"$f":"VLOOKUP($A51,[1]Sheet2!$A$49:$I$90,9,0)","v":0},0,0,0,0,0,0,0,0,0,0]
["QWO","WEST YORKSHIRE ICB",261,1494,0.97701149425287359,1.532567049808429E-2,239,16,2,1,3,0,{"$f":"VLOOKUP($A52,[1]Sheet2!$A$49:$I$90,2,0)","v":261},{"$f":"VLOOKUP($A52,[1]Sheet2!$A$49:$I$90,3,0)","v":1494},0.97701149425287359,1.532567049808429E-2,{"$f":"VLOOKUP($A52,[1]Sheet2!$A$49:$I$90,4,0)","v":239},{"$f":"VLOOKUP($A52,[1]Sheet2!$A$49:$I$90,5,0)","v":16},{"$f":"VLOOKUP($A52,[1]Sheet2!$A$49:$I$90,6,0)","v":2},{"$f":"VLOOKUP($A52,[1]Sheet2!$A$49:$I$90,7,0)","v":1},{"$f":"VLOOKUP($A52,[1]Sheet2!$A$49:$I$90,8,0)","v":3},{"$f":"VLOOKUP($A52,[1]Sheet2!$A$49:$I$90,9,0)","v":0},0,0,0,0,0,0,0,0,0,0]
["QWU","COVENTRY AND WARWICKSHIRE ICB",71,930,0.971830985915493,1.4084507042253521E-2,65,4,1,1,0,0,{"$f":"VLOOKUP($A53,[1]Sheet2!$A$49:$I$90,2,0)","v":71},{"$f":"VLOOKUP($A53,[1]Sheet2!$A$49:$I$90,3,0)","v":930},0.971830985915493,1.4084507042253521E-2,{"$f":"VLOOKUP($A53,[1]Sheet2!$A$49:$I$90,4,0)","v":65},{"$f":"VLOOKUP($A53,[1]Sheet2!$A$49:$I$90,5,0)","v":4},{"$f":"VLOOKUP($A53,[1]Sheet2!$A$49:$I$90,6,0)","v":1},{"$f":"VLOOKUP($A53,[1]Sheet2!$A$49:$I$90,7,0)","v":1},{"$f":"VLOOKUP($A53,[1]Sheet2!$A$49:$I$90,8,0)","v":0},{"$f":"VLOOKUP($A53,[1]Sheet2!$A$49:$I$90,9,0)","v":0},0,0,0,0,0,0,0,0,0,0]
["QXU","SURREY HEARTLANDS ICB",217,523,0.83870967741935487,0.10138248847926268,163,19,4,5,17,9,{"$f":"VLOOKUP($A54,[1]Sheet2!$A$49:$I$90,2,0)","v":217},{"$f":"VLOOKUP($A54,[1]Sheet2!$A$49:$I$90,3,0)","v":523},0.83870967741935487,0.10138248847926268,{"$f":"VLOOKUP($A54,[1]Sheet2!$A$49:$I$90,4,0)","v":163},{"$f":"VLOOKUP($A54,[1]Sheet2!$A$49:$I$90,5,0)","v":19},{"$f":"VLOOKUP($A54,[1]Sheet2!$A$49:$I$90,6,0)","v":4},{"$f":"VLOOKUP($A54,[1]Sheet2!$A$49:$I$90,7,0)","v":5},{"$f":"VLOOKUP($A54,[1]Sheet2!$A$49:$I$90,8,0)","v":17},{"$f":"VLOOKUP($A54,[1]Sheet2!$A$49:$I$90,9,0)","v":9},0,0,0,0,0,0,0,0,0,0]
["QYG","CHESHIRE AND MERSEYSIDE ICB",162,1683,0.9320987654320988,5.5555555555555552E-2,125,26,2,5,4,0,{"$f":"VLOOKUP($A55,[1]Sheet2!$A$49:$I$90,2,0)","v":162},{"$f":"VLOOKUP($A55,[1]Sheet2!$A$49:$I$90,3,0)","v":1683},0.9320987654320988,5.5555555555555552E-2,{"$f":"VLOOKUP($A55,[1]Sheet2!$A$49:$I$90,4,0)","v":125},{"$f":"VLOOKUP($A55,[1]Sheet2!$A$49:$I$90,5,0)","v":26},{"$f":"VLOOKUP($A55,[1]Sheet2!$A$49:$I$90,6,0)","v":2},{"$f":"VLOOKUP($A55,[1]Sheet2!$A$49:$I$90,7,0)","v":5},{"$f":"VLOOKUP($A55,[1]Sheet2!$A$49:$I$90,8,0)","v":4},{"$f":"VLOOKUP($A55,[1]Sheet2!$A$49:$I$90,9,0)","v":0},0,0,0,0,0,0,0,0,0,0]

{"sheet":"Trusts Q2","index":6,"n_rows":131,"n_cols":21,"rows_kept":131,"cut":false,"hidden":false,"merged":[[8,6,9,6],[8,7,8,12],[8,13,8,20],[8,0,9,0],[8,1,9,1],[8,2,9,2],[8,3,9,3],[8,4,9,4],[8,5,9,5]]}
[]
[]
[]
[]
[]
[null,"   Sort data by:           "]
[]
[]
["ICB Code","Trust Code","Trust Name","Total Responses","Total Eligible","Percentage Positive","Percentage Negative","Breakdown of Responses",null,null,null,null,null,"Mode of Collection"]
[null,null,null,null,null,null,null,"Very Good","Good","Neither Good nor Poor","Poor","Very Poor","Don't Know","Mode SMS","Mode Electronic Discharge","Mode Electronic Home","Mode Paper Discharge","Mode Paper Home","Mode Telephone","Mode Online","Mode Other"]
[null,null,"England (including Independent Sector providers)",4676,42098,0.92686056458511545,4.662104362703165E-2,3716,618,95,86,132,29,1729,1009,50,984,30,2,848,24]
[null,null,"England (excluding Independent Sector providers)",4676,42098,0.92686056458511545,4.662104362703165E-2,3716,618,95,86,132,29,1729,1009,50,984,30,2,848,24]
[null,null,"Selection (excluding suppressed data)",{"$f":"SUBTOTAL(9,D14:D299)","v":4676},{"$f":"SUBTOTAL(9,E14:E299)","v":42098},{"$f":"IFERROR((H13+I13)/SUM(H13:M13), \"-\")","v":0.92539682539682544},{"$f":"IFERROR((K13+L13)/SUM(H13:M13), \"-\")","v":4.7619047619047616E-2},{"$f":"SUBTOTAL(9,H14:H299)","v":3496},{"$f":"SUBTOTAL(9,I14:I299)","v":585},91,81,129,28,1629,972,50,901,28,2,804,24]
["QE1","RXL","BLACKPOOL TEACHING HOSPITALS NHS FOUNDATION TRUST",26,220,0.76923076923076927,7.6923076923076927E-2,18,2,4,0,2,0,25,0,0,0,0,0,1,0]
["QE1","RXR","EAST LANCASHIRE HOSPITALS NHS TRUST",73,502,0.84931506849315064,8.2191780821917804E-2,54,8,4,3,3,1,50,0,0,21,0,0,2,0]
["QE1","RXN","LANCASHIRE TEACHING HOSPITALS NHS FOUNDATION TRUST",13,260,0.69230769230769229,0.23076923076923078,9,0,1,2,1,0,13,0,0,0,0,0,0,0]
["QE1","RTX","UNIVERSITY HOSPITALS OF MORECAMBE BAY NHS FOUNDATION TRUST",23,23,0.78260869565217395,0,17,1,0,0,0,5,0,0,0,0,0,0,23,0]
["QF7","RFF","BARNSLEY HOSPITAL NHS FOUNDATION TRUST",28,242,0.9285714285714286,3.5714285714285712E-2,24,2,1,0,1,0,12,15,0,0,0,0,1,0]
["QF7","RP5","DONCASTER AND BASSETLAW TEACHING HOSPITALS NHS FOUNDATION TRUST",32,375,0.90625,3.125E-2,24,5,2,1,0,0,0,0,0,0,0,0,32,0]
["QF7","RHQ","SHEFFIELD TEACHING HOSPITALS NHS FOUNDATION TRUST",36,426,0.94444444444444442,2.7777777777777776E-2,27,7,1,0,1,0,30,0,0,3,0,0,3,0]
["QF7","RFR","THE ROTHERHAM NHS FOUNDATION TRUST",11,206,1,0,11,0,0,0,0,0,0,0,0,11,0,0,0,0]
["QGH","RWP","WORCESTERSHIRE ACUTE HOSPITALS NHS TRUST",64,144,0.984375,1.5625E-2,61,2,0,1,0,0,0,64,0,0,0,0,0,0]
["QGH","RLQ","WYE VALLEY NHS TRUST",29,119,1,0,24,5,0,0,0,0,29,0,0,0,0,0,0,0]
["QH8","RAJ","MID AND SOUTH ESSEX NHS FOUNDATION TRUST",181,610,0.88397790055248615,8.8397790055248615E-2,143,17,4,6,10,1,175,0,0,0,0,0,6,0]
["QHG","RC9","BEDFORDSHIRE HOSPITALS NHS FOUNDATION TRUST",47,305,0.91489361702127658,6.3829787234042548E-2,31,12,1,2,1,0,0,38,0,0,0,0,9,0]
["QHG","RD8","MILTON KEYNES UNIVERSITY HOSPITAL NHS FOUNDATION TRUST",30,320,1,0,23,7,0,0,0,0,7,0,0,17,0,0,6,0]
["QHL","RQ3","BIRMINGHAM WOMEN'S AND CHILDREN'S NHS FOUNDATION TRUST",15,612,1,0,13,2,0,0,0,0,0,0,0,0,0,0,15,0]
["QHL","RXK","SANDWELL AND WEST BIRMINGHAM HOSPITALS NHS TRUST",31,442,0.80645161290322576,9.6774193548387094E-2,21,4,2,0,3,1,31,0,0,0,0,0,0,0]
["QHL","RRK","UNIVERSITY HOSPITALS BIRMINGHAM NHS FOUNDATION TRUST",70,873,0.81428571428571428,0.11428571428571428,43,14,5,1,7,0,68,2,0,0,0,0,0,0]
["QHM","RXP","COUNTY DURHAM AND DARLINGTON NHS FOUNDATION TRUST",58,330,1,0,51,7,0,0,0,0,0,0,0,58,0,0,0,0]
["QHM","RR7","GATESHEAD HEALTH NHS FOUNDATION TRUST",8,147,1,0,8,0,0,0,0,0,8,0,0,0,0,0,0,0]
["QHM","RNN","NORTH CUMBRIA INTEGRATED CARE NHS FOUNDATION TRUST",15,202,1,0,13,2,0,0,0,0,0,0,0,0,15,0,0,0]
["QHM","RVW","NORTH TEES AND HARTLEPOOL NHS FOUNDATION TRUST",0,257,"NA","NA",0,0,0,0,0,0,0,0,0,0,0,0,0,0]
["QHM","RTF","NORTHUMBRIA HEALTHCARE NHS FOUNDATION TRUST",24,286,1,0,22,2,0,0,0,0,9,0,0,15,0,0,0,0]
["QHM","RTR","SOUTH TEES HOSPITALS NHS FOUNDATION TRUST",31,371,0.967741935483871,3.2258064516129031E-2,23,7,0,1,0,0,28,2,0,0,0,0,0,1]
["QHM","R0B","SOUTH TYNESIDE AND SUNDERLAND NHS FOUNDATION TRUST",9,307,1,0,9,0,0,0,0,0,0,0,0,0,0,0,9,0]
["QHM","RTD","THE NEWCASTLE UPON TYNE HOSPITALS NHS FOUNDATION TRUST",55,407,0.92727272727272725,1.8181818181818181E-2,40,11,3,0,1,0,55,0,0,0,0,0,0,0]
["QJ2","RFS","CHESTERFIELD ROYAL HOSPITAL NHS FOUNDATION TRUST",62,232,0.95161290322580649,3.2258064516129031E-2,46,13,1,1,1,0,18,4,40,0,0,0,0,0]
["QJ2","RTG","UNIVERSITY HOSPITALS OF DERBY AND BURTON NHS FOUNDATION TRUST",69,697,0.85507246376811596,7.2463768115942032E-2,43,16,4,5,0,1,65,0,0,4,0,0,0,0]
["QJG","RDE","EAST SUFFOLK AND NORTH ESSEX NHS FOUNDATION TRUST",8,541,1,0,7,1,0,0,0,0,0,0,0,0,0,0,8,0]
["QJG","RGR","WEST SUFFOLK NHS FOUNDATION TRUST",22,52,0.95454545454545459,4.5454545454545456E-2,20,1,0,1,0,0,0,9,0,0,0,0,13,0]
["QJK","RH8","ROYAL DEVON UNIVERSITY HEALTHCARE NHS FOUNDATION TRUST",4,404,"*","*","*","*","*","*","*","*","*","*","*","*","*","*","*","*"]
["QJK","RA9","TORBAY AND SOUTH DEVON NHS FOUNDATION TRUST",0,152,"NA","NA",0,0,0,0,0,0,0,0,0,0,0,0,0,0]
["QJK","RK9","UNIVERSITY HOSPITALS PLYMOUTH NHS TRUST",19,53,0.84210526315789469,0.10526315789473684,"*","*","*","*","*","*","*","*","*","*","*","*","*","*"]
["QJM","RWD","UNITED LINCOLNSHIRE TEACHING HOSPITALS NHS TRUST",0,354,"NA","NA",0,0,0,0,0,0,0,0,0,0,0,0,0,0]
["QK1","RWE","UNIVERSITY HOSPITALS OF LEICESTER NHS TRUST",136,749,0.93382352941176472,2.9411764705882353E-2,97,30,4,2,2,1,0,136,0,0,0,0,0,0]
["QKK","RJ1","GUY'S AND ST THOMAS' NHS FOUNDATION TRUST",87,527,0.90804597701149425,4.5977011494252873E-2,63,16,4,2,2,0,0,0,0,82,0,0,5,0]
["QKK","RJZ","KING'S COLLEGE HOSPITAL NHS FOUNDATION TRUST",68,464,0.97058823529411764,0,60,6,2,0,0,0,0,68,0,0,0,0,0,0]
["QKK","RJ2","LEWISHAM AND GREENWICH NHS TRUST",75,508,0.94666666666666666,0,53,18,2,0,0,2,0,72,0,3,0,0,0,0]
["QKS","RN7","DARTFORD AND GRAVESHAM NHS TRUST",25,354,1,0,23,2,0,0,0,0,0,11,0,0,0,0,14,0]
["QKS","RVV","EAST KENT HOSPITALS UNIVERSITY NHS FOUNDATION TRUST",57,472,0.94736842105263153,3.5087719298245612E-2,43,11,1,1,1,0,57,0,0,0,0,0,0,0]
["QKS","RWF","MAIDSTONE AND TUNBRIDGE WELLS NHS TRUST",54,433,1,0,52,2,0,0,0,0,11,0,0,14,0,0,29,0]
["QKS","RPA","MEDWAY NHS FOUNDATION TRUST",39,339,0.94871794871794868,5.128205128205128E-2,35,2,0,1,1,0,0,0,0,0,0,0,39,0]
["QM7","RWH","EAST AND NORTH HERTFORDSHIRE NHS TRUST",16,351,1,0,13,3,0,0,0,0,0,8,1,7,0,0,0,0]
["QM7","RQW","THE PRINCESS ALEXANDRA HOSPITAL NHS TRUST",7,313,0.8571428571428571,0.14285714285714285,5,1,0,0,1,0,7,0,0,0,0,0,0,0]
["QM7","RWG","WEST HERTFORDSHIRE TEACHING HOSPITALS NHS TRUST",25,311,0.92,0.08,23,0,0,2,0,0,0,25,0,0,0,0,0,0]
["QMF","RF4","BARKING, HAVERING AND REDBRIDGE UNIVERSITY HOSPITALS NHS TRUST",41,534,0.95121951219512191,2.4390243902439025E-2,"*","*","*","*","*","*","*","*","*","*","*","*","*","*"]
["QMF","R1H","BARTS HEALTH NHS TRUST",91,1251,0.75824175824175821,0.17582417582417584,55,14,6,1,15,0,62,0,0,19,0,0,10,0]
["QMF","RQX","HOMERTON HEALTHCARE NHS FOUNDATION TRUST",2,478,"*","*","*","*","*","*","*","*","*","*","*","*","*","*","*","*"]
["QMJ","RAL","ROYAL FREE LONDON NHS FOUNDATION TRUST",126,863,0.88095238095238093,7.1428571428571425E-2,76,35,6,2,7,0,24,19,0,81,0,2,0,0]
["QMJ","RRV","UNIVERSITY COLLEGE LONDON HOSPITALS NHS FOUNDATION TRUST",0,524,"NA","NA",0,0,0,0,0,0,0,0,0,0,0,0,0,0]
["QMJ","RKE","WHITTINGTON HEALTH NHS TRUST",5,187,1,0,5,0,0,0,0,0,0,0,0,4,0,0,1,0]
["QMM","RGP","JAMES PAGET UNIVERSITY HOSPITALS NHS FOUNDATION TRUST",9,125,1,0,"*","*","*","*","*","*","*","*","*","*","*","*","*","*"]
["QMM","RM1","NORFOLK AND NORWICH UNIVERSITY HOSPITALS NHS FOUNDATION TRUST",3,394,"*","*","*","*","*","*","*","*","*","*","*","*","*","*","*","*"]
["QMM","RCX","THE QUEEN ELIZABETH HOSPITAL, KING'S LYNN, NHS FOUNDATION TRUST",19,132,1,0,19,0,0,0,0,0,0,0,0,18,0,0,1,0]
["QNC","RJE","UNIVERSITY HOSPITALS OF NORTH MIDLANDS NHS TRUST",37,511,0.78378378378378377,0.21621621621621623,24,5,0,1,7,0,37,0,0,0,0,0,0,0]
["QNQ","RDU","FRIMLEY HEALTH NHS FOUNDATION TRUST",67,0,0.97014925373134331,2.9850746268656716E-2,59,6,0,0,2,0,0,0,0,31,0,0,36,0]
["QNX","RXC","EAST SUSSEX HEALTHCARE NHS TRUST",27,211,1,0,21,6,0,0,0,0,20,0,0,0,0,0,7,0]
["QNX","RYR","UNIVERSITY HOSPITALS SUSSEX NHS FOUNDATION TRUST",51,706,0.92156862745098034,3.9215686274509803E-2,42,5,2,1,1,0,51,0,0,0,0,0,0,0]
["QOC","RXW","THE SHREWSBURY AND TELFORD HOSPITAL NHS TRUST",22,321,0.95454545454545459,4.5454545454545456E-2,20,1,0,1,0,0,0,0,0,22,0,0,0,0]
["QOP","RMC","BOLTON NHS FOUNDATION TRUST",169,398,0.94674556213017746,4.7337278106508875E-2,132,28,1,5,3,0,130,0,0,39,0,0,0,0]
["QOP","R0A","MANCHESTER UNIVERSITY NHS FOUNDATION TRUST",174,3392,0.96551724137931039,1.1494252873563218E-2,142,26,4,1,1,0,0,145,0,9,0,0,20,0]
["QOP","RM3","NORTHERN CARE ALLIANCE NHS FOUNDATION TRUST",144,477,0.84722222222222221,0.13194444444444445,98,24,3,5,14,0,59,0,0,0,0,0,85,0]
["QOP","RWJ","STOCKPORT NHS FOUNDATION TRUST",1,212,"*","*","*","*","*","*","*","*","*","*","*","*","*","*","*","*"]
["QOP","RMP","TAMESIDE AND GLOSSOP INTEGRATED CARE NHS FOUNDATION TRUST",13,194,0.92307692307692313,7.6923076923076927E-2,12,0,0,0,1,0,0,11,0,2,0,0,0,0]
["QOP","RRF","WRIGHTINGTON, WIGAN AND LEIGH NHS FOUNDATION TRUST",4,188,"*","*","*","*","*","*","*","*","*","*","*","*","*","*","*","*"]
["QOQ","RCD","HARROGATE AND DISTRICT NHS FOUNDATION TRUST",0,2,"NA","NA",0,0,0,0,0,0,0,0,0,0,0,0,0,0]
["QOQ","RWA","HULL UNIVERSITY TEACHING HOSPITALS NHS TRUST",55,311,0.94545454545454544,5.4545454545454543E-2,50,2,0,2,1,0,6,0,0,0,1,0,48,0]
["QOQ","RJL","NORTHERN LINCOLNSHIRE AND GOOLE NHS FOUNDATION TRUST",19,309,1,0,16,3,0,0,0,0,18,0,0,1,0,0,0,0]
["QOQ","RCB","YORK AND SCARBOROUGH TEACHING HOSPITALS NHS FOUNDATION TRUST",0,317,"NA","NA",0,0,0,0,0,0,0,0,0,0,0,0,0,0]
["QOX","RN3","GREAT WESTERN HOSPITALS NHS FOUNDATION TRUST",11,4,0.63636363636363635,0.36363636363636365,5,2,0,4,0,0,0,4,0,0,0,0,7,0]
["QOX","RD1","ROYAL UNITED HOSPITALS BATH NHS FOUNDATION TRUST",1,306,"*","*","*","*","*","*","*","*","*","*","*","*","*","*","*","*"]
["QOX","RNZ","SALISBURY NHS FOUNDATION TRUST",3,3,"*","*","*","*","*","*","*","*","*","*","*","*","*","*","*","*"]
["QPM","RNQ","KETTERING GENERAL HOSPITAL NHS FOUNDATION TRUST",1,224,"*","*","*","*","*","*","*","*","*","*","*","*","*","*","*","*"]
["QPM","RNS","NORTHAMPTON GENERAL HOSPITAL NHS TRUST",36,342,0.97222222222222221,2.7777777777777776E-2,"*","*","*","*","*","*","*","*","*","*","*","*","*","*"]
["QR1","RTE","GLOUCESTERSHIRE HOSPITALS NHS FOUNDATION TRUST",57,100,0.94736842105263153,5.2631578947368418E-2,46,8,0,2,1,0,48,0,9,0,0,0,0,0]
["QRL","RN5","HAMPSHIRE HOSPITALS NHS FOUNDATION TRUST",180,381,0.98333333333333328,5.5555555555555558E-3,162,15,2,1,0,0,0,0,0,173,0,0,7,0]
["QRL","R1F","ISLE OF WIGHT NHS TRUST",6,93,1,0,6,0,0,0,0,0,0,0,0,0,6,0,0,0]
["QRL","RHU","PORTSMOUTH HOSPITALS UNIVERSITY NATIONAL HEALTH SERVICE TRUST",27,380,1,0,26,1,0,0,0,0,0,0,0,27,0,0,0,0]
["QRL","RHM","UNIVERSITY HOSPITAL SOUTHAMPTON NHS FOUNDATION TRUST",144,398,0.97916666666666663,6.9444444444444441E-3,125,16,2,1,0,0,0,0,0,0,0,0,144,0]
["QRV","RYJ","IMPERIAL COLLEGE HEALTHCARE NHS TRUST",77,695,0.97402597402597402,2.5974025974025976E-2,64,11,0,2,0,0,0,16,0,10,0,0,51,0]
["QRV","R1K","LONDON NORTH WEST UNIVERSITY HEALTHCARE NHS TRUST",67,440,0.94029850746268662,4.4776119402985072E-2,30,33,1,3,0,0,0,0,0,67,0,0,0,0]
["QRV","RAS","THE HILLINGDON HOSPITALS NHS FOUNDATION TRUST",35,309,0.88571428571428568,2.8571428571428571E-2,29,2,3,1,0,0,0,0,0,0,0,0,35,0]
["QSL","RH5","SOMERSET NHS FOUNDATION TRUST",4,352,"*","*","*","*","*","*","*","*","*","*","*","*","*","*","*","*"]
["QT1","RX1","NOTTINGHAM UNIVERSITY HOSPITALS NHS TRUST",13,377,1,0,13,0,0,0,0,0,0,0,0,12,0,0,1,0]
["QT1","RK5","SHERWOOD FOREST HOSPITALS NHS FOUNDATION TRUST",41,267,0.85365853658536583,0.12195121951219512,29,6,1,2,3,0,0,0,0,0,0,0,41,0]
["QT6","REF","ROYAL CORNWALL HOSPITALS NHS TRUST",14,283,1,0,"*","*","*","*","*","*","*","*","*","*","*","*","*","*"]
["QU9","RXQ","BUCKINGHAMSHIRE HEALTHCARE NHS TRUST",30,327,0.93333333333333335,6.6666666666666666E-2,25,3,0,0,2,0,30,0,0,0,0,0,0,0]
["QU9","RTH","OXFORD UNIVERSITY HOSPITALS NHS FOUNDATION TRUST",13,477,0.92307692307692313,0,12,0,1,0,0,0,0,0,0,0,0,0,13,0]
["QU9","RHW","ROYAL BERKSHIRE NHS FOUNDATION TRUST",5,400,1,0,5,0,0,0,0,0,0,0,0,4,0,0,1,0]
["QUA","RNA","THE DUDLEY GROUP NHS FOUNDATION TRUST",49,288,0.87755102040816324,0,34,9,0,0,0,6,1,0,0,46,0,0,2,0]
["QUA","RL4","THE ROYAL WOLVERHAMPTON NHS TRUST",44,367,0.95454545454545459,2.2727272727272728E-2,41,1,1,0,1,0,44,0,0,0,0,0,0,0]
["QUA","RBK","WALSALL HEALTHCARE NHS TRUST",81,287,0.93827160493827155,2.4691358024691357E-2,71,5,3,2,0,0,27,54,0,0,0,0,0,0]
["QUE","RGT","CAMBRIDGE UNIVERSITY HOSPITALS NHS FOUNDATION TRUST",35,411,0.88571428571428568,8.5714285714285715E-2,27,4,0,0,3,1,0,27,0,2,0,0,6,0]
["QUE","RGN","NORTH WEST ANGLIA NHS FOUNDATION TRUST",28,518,0.8571428571428571,0.10714285714285714,24,0,1,0,3,0,0,0,0,28,0,0,0,0]
["QUY","RVJ","NORTH BRISTOL NHS TRUST",76,372,0.97368421052631582,1.3157894736842105E-2,"*","*","*","*","*","*","*","*","*","*","*","*","*","*"]
["QUY","RA7","UNIVERSITY HOSPITALS BRISTOL AND WESTON NHS FOUNDATION TRUST",3,361,"*","*","*","*","*","*","*","*","*","*","*","*","*","*","*","*"]
["QVV","RBD","DORSET COUNTY HOSPITAL NHS FOUNDATION TRUST",5,98,1,0,1,4,0,0,0,0,0,0,0,5,0,0,0,0]
["QVV","R0D","UNIVERSITY HOSPITALS DORSET NHS FOUNDATION TRUST",25,309,0.92,0.08,21,2,0,0,2,0,0,20,0,0,0,0,5,0]
["QWE","RJ6","CROYDON HEALTH SERVICES NHS TRUST",13,248,0.84615384615384615,7.6923076923076927E-2,"*","*","*","*","*","*","*","*","*","*","*","*","*","*"]
["QWE","RVR","EPSOM AND ST HELIER UNIVERSITY HOSPITALS NHS TRUST",2,312,"*","*","*","*","*","*","*","*","*","*","*","*","*","*","*","*"]
["QWE","RAX","KINGSTON AND RICHMOND NHS FOUNDATION TRUST",52,360,1,0,51,1,0,0,0,0,0,36,0,0,0,0,16,0]
["QWE","RJ7","ST GEORGE'S UNIVERSITY HOSPITALS NHS FOUNDATION TRUST",26,50,1,0,19,7,0,0,0,0,0,19,0,0,6,0,1,0]
["QWO","RCF","AIREDALE NHS FOUNDATION TRUST",18,132,0.94444444444444442,5.5555555555555552E-2,15,2,0,1,0,0,18,0,0,0,0,0,0,0]
["QWO","RAE","BRADFORD TEACHING HOSPITALS NHS FOUNDATION TRUST",25,80,1,0,24,1,0,0,0,0,0,0,0,0,0,0,5,20]
["QWO","RWY","CALDERDALE AND HUDDERSFIELD NHS FOUNDATION TRUST",23,303,0.91304347826086951,8.6956521739130432E-2,21,0,0,0,2,0,0,0,0,0,0,0,23,0]
["QWO","RR8","LEEDS TEACHING HOSPITALS NHS TRUST",128,506,0.984375,7.8125E-3,115,11,1,0,1,0,119,8,0,0,0,0,1,0]
["QWO","RXF","MID YORKSHIRE TEACHING NHS TRUST",67,473,0.9850746268656716,0,64,2,1,0,0,0,9,0,0,55,0,0,3,0]
["QWU","RLT","GEORGE ELIOT HOSPITAL NHS TRUST",23,160,0.95652173913043481,0,"*","*","*","*","*","*","*","*","*","*","*","*","*","*"]
["QWU","RJC","SOUTH WARWICKSHIRE UNIVERSITY NHS FOUNDATION TRUST",4,295,"*","*","*","*","*","*","*","*","*","*","*","*","*","*","*","*"]
["QWU","RKB","UNIVERSITY HOSPITALS COVENTRY AND WARWICKSHIRE NHS TRUST",44,475,0.97727272727272729,2.2727272727272728E-2,43,0,0,1,0,0,38,1,0,0,0,0,5,0]
["QXU","RTK","ASHFORD AND ST PETER'S HOSPITALS NHS FOUNDATION TRUST",158,233,0.79113924050632911,0.13291139240506328,112,13,3,4,17,9,0,158,0,0,0,0,0,0]
["QXU","RA2","ROYAL SURREY COUNTY HOSPITAL NHS FOUNDATION TRUST",49,280,0.97959183673469385,2.0408163265306121E-2,44,4,0,1,0,0,43,0,0,4,0,0,2,0]
["QXU","RTP","SURREY AND SUSSEX HEALTHCARE NHS TRUST",10,10,0.9,0,7,2,1,0,0,0,0,0,0,2,0,0,7,1]
["QYG","RJR","COUNTESS OF CHESTER HOSPITAL NHS FOUNDATION TRUST",14,128,1,0,9,5,0,0,0,0,14,0,0,0,0,0,0,0]
["QYG","RJN","EAST CHESHIRE NHS TRUST",19,106,1,0,18,1,0,0,0,0,19,0,0,0,0,0,0,0]
["QYG","REP","LIVERPOOL WOMEN'S NHS FOUNDATION TRUST",49,587,0.93877551020408168,6.1224489795918366E-2,35,11,0,1,2,0,47,0,0,0,0,0,0,2]
["QYG","RBN","MERSEY AND WEST LANCASHIRE TEACHING HOSPITALS NHS TRUST",60,366,0.91666666666666663,6.6666666666666666E-2,46,9,1,2,2,0,59,0,0,1,0,0,0,0]
["QYG","RBT","MID CHESHIRE HOSPITALS NHS FOUNDATION TRUST",17,265,0.82352941176470584,0.11764705882352941,14,0,1,2,0,0,8,0,0,4,0,0,5,0]
["QYG","RWW","WARRINGTON AND HALTON TEACHING HOSPITALS NHS FOUNDATION TRUST",2,2,"*","*","*","*","*","*","*","*","*","*","*","*","*","*","*","*"]
["QYG","RBL","WIRRAL UNIVERSITY TEACHING HOSPITAL NHS FOUNDATION TRUST",1,229,"*","*","*","*","*","*","*","*","*","*","*","*","*","*","*","*"]

{"sheet":"Sites Q2","index":7,"n_rows":220,"n_cols":14,"rows_kept":220,"cut":false,"hidden":false,"merged":[[8,6,9,6],[8,7,9,7],[8,8,8,13],[8,0,9,0],[8,1,9,1],[8,2,9,2],[8,3,9,3],[8,4,9,4],[8,5,9,5]]}
[]
[]
[]
[]
[]
[null,"   Sort data by:           "]
[]
[]
["ICB Code","Trust Code","Trust Name","Site Code","Site Name","Total Responses","Percentage Positive","Percentage Negative","Breakdown of Responses"]
[null,null,null,null,null,null,null,null,"Very Good","Good","Neither Good nor Poor","Poor","Very Poor","Don't Know"]
[null,null,null,null,"England (including Independent Sector providers)",4676,0.92686056458511545,4.662104362703165E-2,3716,618,95,86,132,29]
[null,null,null,null,"England (excluding Independent Sector providers)",4676,0.92686056458511545,4.662104362703165E-2,3716,618,95,86,132,29]
[null,null,null,null,"Selection (excluding suppressed data)",{"$f":"SUBTOTAL(9,F14:F299)","v":4676},{"$f":"IFERROR((I13+J13)/SUM(I13:N13), \"-\")","v":0.92304049254084775},{"$f":"IFERROR((L13+M13)/SUM(I13:N13), \"-\")","v":4.9490883258347149E-2},{"$f":"SUBTOTAL(9,I14:I299)","v":3330},568,91,80,129,25]
["QE1","RXL","BLACKPOOL TEACHING HOSPITALS NHS FOUNDATION TRUST","RXL01","Blackpool Victoria Hospital",26,0.76923076923076927,7.6923076923076927E-2,18,2,4,0,2,0]
["QE1","RXR","EAST LANCASHIRE HOSPITALS NHS TRUST","RXR20","Royal Blackburn Hospital",73,0.84931506849315064,8.2191780821917804E-2,54,8,4,3,3,1]
["QE1","RXN","LANCASHIRE TEACHING HOSPITALS NHS FOUNDATION TRUST","RXN01","Chorley and South Ribble Hospital",0,"NA","NA",0,0,0,0,0,0]
["QE1","RXN","LANCASHIRE TEACHING HOSPITALS NHS FOUNDATION TRUST","RXN02","Royal Preston Hospital",13,0.69230769230769229,0.23076923076923078,9,0,1,2,1,0]
["QE1","RTX","UNIVERSITY HOSPITALS OF MORECAMBE BAY NHS FOUNDATION TRUST","RTXBU","Furness General Hospital",10,0.8,0,"*","*","*","*","*","*"]
["QE1","RTX","UNIVERSITY HOSPITALS OF MORECAMBE BAY NHS FOUNDATION TRUST","RTX02","Royal Lancaster Infirmary",11,0.81818181818181823,0,8,1,0,0,0,2]
["QE1","RTX","UNIVERSITY HOSPITALS OF MORECAMBE BAY NHS FOUNDATION TRUST","RTXBW","Westmorland General Hospital",2,"*","*","*","*","*","*","*","*"]
["QF7","RFF","BARNSLEY HOSPITAL NHS FOUNDATION TRUST","RFFAA","Barnsley Hospital NHS Foundation Trust HQ",28,0.9285714285714286,3.5714285714285712E-2,24,2,1,0,1,0]
["QF7","RP5","DONCASTER AND BASSETLAW TEACHING HOSPITALS NHS FOUNDATION TRUST","RP5BA","Bassetlaw Hospital",10,1,0,"*","*","*","*","*","*"]
["QF7","RP5","DONCASTER AND BASSETLAW TEACHING HOSPITALS NHS FOUNDATION TRUST","RP5DR","Doncaster Royal Infirmary",20,0.85,0.05,15,2,2,1,0,0]
["QF7","RP5","DONCASTER AND BASSETLAW TEACHING HOSPITALS NHS FOUNDATION TRUST","RP5XXX","Non-hospital site",2,"*","*","*","*","*","*","*","*"]
["QF7","RHQ","SHEFFIELD TEACHING HOSPITALS NHS FOUNDATION TRUST","RHQHH","Royal Hallamshire Hospital",36,0.94444444444444442,2.7777777777777776E-2,27,7,1,0,1,0]
["QF7","RFR","THE ROTHERHAM NHS FOUNDATION TRUST","RFRPA","Rotherham District General Hospital",11,1,0,11,0,0,0,0,0]
["QGH","RWP","WORCESTERSHIRE ACUTE HOSPITALS NHS TRUST","RWP50","Worcestershire Royal Hospital",64,0.984375,1.5625E-2,61,2,0,1,0,0]
["QGH","RLQ","WYE VALLEY NHS TRUST","RLQ01","Hereford County Hospital",29,1,0,24,5,0,0,0,0]
["QH8","RAJ","MID AND SOUTH ESSEX NHS FOUNDATION TRUST","RAJ12","BASILDON HOSPITAL",64,0.84375,0.125,49,5,2,2,6,0]
["QH8","RAJ","MID AND SOUTH ESSEX NHS FOUNDATION TRUST","RAJ32","MID ESSEX HOSPITAL",57,0.8771929824561403,0.10526315789473684,42,8,1,2,4,0]
["QH8","RAJ","MID AND SOUTH ESSEX NHS FOUNDATION TRUST","RAJ01","Southend Hospital",60,0.93333333333333335,3.3333333333333333E-2,52,4,1,2,0,1]
["QHG","RC9","BEDFORDSHIRE HOSPITALS NHS FOUNDATION TRUST","RC979","BEDFORD HOSPITAL SOUTH WING",15,0.93333333333333335,6.6666666666666666E-2,12,2,0,0,1,0]
["QHG","RC9","BEDFORDSHIRE HOSPITALS NHS FOUNDATION TRUST","RC971","Luton and Dunstable Hospital",32,0.90625,6.25E-2,19,10,1,2,0,0]
["QHG","RD8","MILTON KEYNES UNIVERSITY HOSPITAL NHS FOUNDATION TRUST","RD816","Milton Keynes Hospital",30,1,0,23,7,0,0,0,0]
["QHL","RQ3","BIRMINGHAM WOMEN'S AND CHILDREN'S NHS FOUNDATION TRUST","RQ370","Birmingham Women's Hospital",15,1,0,13,2,0,0,0,0]
["QHL","RXK","SANDWELL AND WEST BIRMINGHAM HOSPITALS NHS TRUST","RXK02","City Hospital",0,"NA","NA",0,0,0,0,0,0]
["QHL","RXK","SANDWELL AND WEST BIRMINGHAM HOSPITALS NHS TRUST","I3W1A","MIDLAND METROPOLITAN UNIVERSITY HOSPITAL",31,0.80645161290322576,9.6774193548387094E-2,21,4,2,0,3,1]
["QHL","RRK","UNIVERSITY HOSPITALS BIRMINGHAM NHS FOUNDATION TRUST","RRK98","Good Hope Hospital",22,0.81818181818181823,4.5454545454545456E-2,14,4,3,0,1,0]
["QHL","RRK","UNIVERSITY HOSPITALS BIRMINGHAM NHS FOUNDATION TRUST","RRK97","Heartlands Hospital",48,0.8125,0.14583333333333334,29,10,2,1,6,0]
["QHL","RRK","UNIVERSITY HOSPITALS BIRMINGHAM NHS FOUNDATION TRUST","RRK99","Solihull Hospital",0,"NA","NA",0,0,0,0,0,0]
["QHM","RXP","COUNTY DURHAM AND DARLINGTON NHS FOUNDATION TRUST","RXPDA","Darlington Memorial Hospital",55,1,0,"*","*","*","*","*","*"]
["QHM","RXP","COUNTY DURHAM AND DARLINGTON NHS FOUNDATION TRUST","RXPCP","University Hospital Of North Durham",3,"*","*","*","*","*","*","*","*"]
["QHM","RR7","GATESHEAD HEALTH NHS FOUNDATION TRUST","RR7EN","Queen Elizabeth Hospital",8,1,0,8,0,0,0,0,0]
["QHM","RNN","NORTH CUMBRIA INTEGRATED CARE NHS FOUNDATION TRUST","RNN62","Cumberland Infirmary",7,1,0,6,1,0,0,0,0]
["QHM","RNN","NORTH CUMBRIA INTEGRATED CARE NHS FOUNDATION TRUST","RNNBX","West Cumberland Hospital",8,1,0,7,1,0,0,0,0]
["QHM","RVW","NORTH TEES AND HARTLEPOOL NHS FOUNDATION TRUST","RVWAE","University Hospital Of North Tees",0,"NA","NA",0,0,0,0,0,0]
["QHM","RTF","NORTHUMBRIA HEALTHCARE NHS FOUNDATION TRUST","RTFDJ","Alnwick Infirmary",0,"NA","NA",0,0,0,0,0,0]
["QHM","RTF","NORTHUMBRIA HEALTHCARE NHS FOUNDATION TRUST","RTFDH","Berwick Infirmary",0,"NA","NA",0,0,0,0,0,0]
["QHM","RTF","NORTHUMBRIA HEALTHCARE NHS FOUNDATION TRUST","RTFDR","Hexham General Hospital",0,"NA","NA",0,0,0,0,0,0]
["QHM","RTF","NORTHUMBRIA HEALTHCARE NHS FOUNDATION TRUST","RTFXXX","Non-hospital site",0,"NA","NA",0,0,0,0,0,0]
["QHM","RTF","NORTHUMBRIA HEALTHCARE NHS FOUNDATION TRUST","RTF86","The Northumbria",24,1,0,22,2,0,0,0,0]
["QHM","RTR","SOUTH TEES HOSPITALS NHS FOUNDATION TRUST","RTR45","Friarage Hospital Site",0,"NA","NA",0,0,0,0,0,0]
["QHM","RTR","SOUTH TEES HOSPITALS NHS FOUNDATION TRUST","RTRAT","The James Cook University Hospital",31,0.967741935483871,3.2258064516129031E-2,23,7,0,1,0,0]
["QHM","R0B","SOUTH TYNESIDE AND SUNDERLAND NHS FOUNDATION TRUST","R0B0Q","South Tyneside District Hospital",4,"*","*","*","*","*","*","*","*"]
["QHM","R0B","SOUTH TYNESIDE AND SUNDERLAND NHS FOUNDATION TRUST","R0B01","Sunderland Royal Hospital",5,1,0,"*","*","*","*","*","*"]
["QHM","RTD","THE NEWCASTLE UPON TYNE HOSPITALS NHS FOUNDATION TRUST","RTD02","The Royal Victoria Infirmary",55,0.92727272727272725,1.8181818181818181E-2,40,11,3,0,1,0]
["QJ2","RFS","CHESTERFIELD ROYAL HOSPITAL NHS FOUNDATION TRUST","RFSDA","Chesterfield Royal Hospital",62,0.95161290322580649,3.2258064516129031E-2,46,13,1,1,1,0]
["QJ2","RTG","UNIVERSITY HOSPITALS OF DERBY AND BURTON NHS FOUNDATION TRUST","RTG02","Queens Hospital, Burton Upon Trent",6,1,0,5,1,0,0,0,0]
["QJ2","RTG","UNIVERSITY HOSPITALS OF DERBY AND BURTON NHS FOUNDATION TRUST","RTGFG","Royal Derby Hospital",63,0.84126984126984128,7.9365079365079361E-2,38,15,4,5,0,1]
["QJG","RDE","EAST SUFFOLK AND NORTH ESSEX NHS FOUNDATION TRUST","RDEE2","Clacton and District Hospital",0,"NA","NA",0,0,0,0,0,0]
["QJG","RDE","EAST SUFFOLK AND NORTH ESSEX NHS FOUNDATION TRUST","RDEE4","Colchester General Hospital",4,"*","*","*","*","*","*","*","*"]
["QJG","RDE","EAST SUFFOLK AND NORTH ESSEX NHS FOUNDATION TRUST","RDE03","Ipswich Hospital",4,"*","*","*","*","*","*","*","*"]
["QJG","RDE","EAST SUFFOLK AND NORTH ESSEX NHS FOUNDATION TRUST","RDEXXX","Non-hospital site",0,"NA","NA",0,0,0,0,0,0]
["QJG","RGR","WEST SUFFOLK NHS FOUNDATION TRUST","RGR50","West Suffolk Hospital",22,0.95454545454545459,4.5454545454545456E-2,20,1,0,1,0,0]
["QJK","RH8","ROYAL DEVON UNIVERSITY HEALTHCARE NHS FOUNDATION TRUST","RH8XXX","Non-hospital site",0,"NA","NA",0,0,0,0,0,0]
["QJK","RH8","ROYAL DEVON UNIVERSITY HEALTHCARE NHS FOUNDATION TRUST","RH880","North Devon District Hospital",1,"*","*","*","*","*","*","*","*"]
["QJK","RH8","ROYAL DEVON UNIVERSITY HEALTHCARE NHS FOUNDATION TRUST","RH801","Royal Devon and Exeter Hospital (Wonford)",3,"*","*","*","*","*","*","*","*"]
["QJK","RH8","ROYAL DEVON UNIVERSITY HEALTHCARE NHS FOUNDATION TRUST","RH853","Tiverton and District Hospital",0,"NA","NA",0,0,0,0,0,0]
["QJK","RA9","TORBAY AND SOUTH DEVON NHS FOUNDATION TRUST","RA901","Torbay Hospital",0,"NA","NA",0,0,0,0,0,0]
["QJK","RK9","UNIVERSITY HOSPITALS PLYMOUTH NHS TRUST","RK950","Derriford Hospital",17,0.88235294117647056,5.8823529411764705E-2,"*","*","*","*","*","*"]
["QJK","RK9","UNIVERSITY HOSPITALS PLYMOUTH NHS TRUST","RK9XXX","Non-hospital site",2,"*","*","*","*","*","*","*","*"]
["QJM","RWD","UNITED LINCOLNSHIRE TEACHING HOSPITALS NHS TRUST","RWDLP","Grantham and District Hospital",0,"NA","NA",0,0,0,0,0,0]
["QJM","RWD","UNITED LINCOLNSHIRE TEACHING HOSPITALS NHS TRUST","RWDDA","Lincoln County Hospital",0,"NA","NA",0,0,0,0,0,0]
["QJM","RWD","UNITED LINCOLNSHIRE TEACHING HOSPITALS NHS TRUST","RWDLA","Pilgrim Hospital",0,"NA","NA",0,0,0,0,0,0]
["QK1","RWE","UNIVERSITY HOSPITALS OF LEICESTER NHS TRUST","RWEAK","Leicester General Hospital",41,0.87804878048780488,2.4390243902439025E-2,27,9,4,1,0,0]
["QK1","RWE","UNIVERSITY HOSPITALS OF LEICESTER NHS TRUST","RWEAA","Leicester Royal Infirmary",87,0.95402298850574707,3.4482758620689655E-2,62,21,0,1,2,1]
["QK1","RWE","UNIVERSITY HOSPITALS OF LEICESTER NHS TRUST","RWEXXX","Non-hospital site",5,1,0,"*","*","*","*","*","*"]
["QK1","RWE","UNIVERSITY HOSPITALS OF LEICESTER NHS TRUST","RWE10","St Mary's Hospital",3,"*","*","*","*","*","*","*","*"]
["QKK","RJ1","GUY'S AND ST THOMAS' NHS FOUNDATION TRUST","RJ1XXX","Non-hospital site",0,"NA","NA",0,0,0,0,0,0]
["QKK","RJ1","GUY'S AND ST THOMAS' NHS FOUNDATION TRUST","RJ122","St Thomas' Hospital",87,0.90804597701149425,4.5977011494252873E-2,63,16,4,2,2,0]
["QKK","RJZ","KING'S COLLEGE HOSPITAL NHS FOUNDATION TRUST","RJZ01","King's College Hospital (Denmark Hill)",0,"NA","NA",0,0,0,0,0,0]
["QKK","RJZ","KING'S COLLEGE HOSPITAL NHS FOUNDATION TRUST","RJZ30","Princess Royal University Hospital",68,0.97058823529411764,0,60,6,2,0,0,0]
["QKK","RJ2","LEWISHAM AND GREENWICH NHS TRUST","RJ231","Queen Elizabeth Hospital",34,0.97058823529411764,0,26,7,1,0,0,0]
["QKK","RJ2","LEWISHAM AND GREENWICH NHS TRUST","RJ224","University Hospital Lewisham",41,0.92682926829268297,0,27,11,1,0,0,2]
["QKS","RN7","DARTFORD AND GRAVESHAM NHS TRUST","RN707","Darent Valley Hospital",25,1,0,23,2,0,0,0,0]
["QKS","RVV","EAST KENT HOSPITALS UNIVERSITY NHS FOUNDATION TRUST","RVV09","Queen Elizabeth The Queen Mother Hospital",24,0.95833333333333337,0,22,1,1,0,0,0]
["QKS","RVV","EAST KENT HOSPITALS UNIVERSITY NHS FOUNDATION TRUST","RVV01","William Harvey Hospital (Ashford)",33,0.93939393939393945,6.0606060606060608E-2,21,10,0,1,1,0]
["QKS","RWF","MAIDSTONE AND TUNBRIDGE WELLS NHS TRUST","RWF08","Crowborough Birthing Centre",6,1,0,6,0,0,0,0,0]
["QKS","RWF","MAIDSTONE AND TUNBRIDGE WELLS NHS TRUST","RWF03","Maidstone District General Hospital",24,1,0,22,2,0,0,0,0]
["QKS","RWF","MAIDSTONE AND TUNBRIDGE WELLS NHS TRUST","RWFXXX","Non-hospital site",0,"NA","NA",0,0,0,0,0,0]
["QKS","RWF","MAIDSTONE AND TUNBRIDGE WELLS NHS TRUST","RWFTW","The Tunbridge Wells Hospital",24,1,0,24,0,0,0,0,0]
["QKS","RPA","MEDWAY NHS FOUNDATION TRUST","RPA02","Medway Maritime Hospital",39,0.94871794871794868,5.128205128205128E-2,35,2,0,1,1,0]
["QM7","RWH","EAST AND NORTH HERTFORDSHIRE NHS TRUST","RWH01","Lister Hospital",16,1,0,13,3,0,0,0,0]
["QM7","RWH","EAST AND NORTH HERTFORDSHIRE NHS TRUST","RWHXXX","Non-hospital site",0,"NA","NA",0,0,0,0,0,0]
["QM7","RQW","THE PRINCESS ALEXANDRA HOSPITAL NHS TRUST","RQWG0","Princess Alexandra Hospital",7,0.8571428571428571,0.14285714285714285,5,1,0,0,1,0]
["QM7","RWG","WEST HERTFORDSHIRE TEACHING HOSPITALS NHS TRUST","RWG02","Watford General Hospital",25,0.92,0.08,23,0,0,2,0,0]
["QMF","RF4","BARKING, HAVERING AND REDBRIDGE UNIVERSITY HOSPITALS NHS TRUST","RF4QH","Queen's Hospital",41,0.95121951219512191,2.4390243902439025E-2,"*","*","*","*","*","*"]
["QMF","R1H","BARTS HEALTH NHS TRUST","R1HNH","Newham General Hospital",34,0.79411764705882348,0.11764705882352941,24,3,3,0,4,0]
["QMF","R1H","BARTS HEALTH NHS TRUST","R1H12","The Royal London Hospital",41,0.70731707317073167,0.21951219512195122,19,10,3,1,8,0]
["QMF","R1H","BARTS HEALTH NHS TRUST","R1HKH","Whipps Cross University Hospital",16,0.8125,0.1875,12,1,0,0,3,0]
["QMF","RQX","HOMERTON HEALTHCARE NHS FOUNDATION TRUST","RQXM1","Homerton University Hospital",2,"*","*","*","*","*","*","*","*"]
["QMJ","RAL","ROYAL FREE LONDON NHS FOUNDATION TRUST","RAL26","Barnet Hospital",7,1,0,3,4,0,0,0,0]
["QMJ","RAL","ROYAL FREE LONDON NHS FOUNDATION TRUST","RAL27","North Middlesex University Hospital",107,0.85981308411214952,8.4112149532710276E-2,70,22,6,2,7,0]
["QMJ","RAL","ROYAL FREE LONDON NHS FOUNDATION TRUST","RAL01","Royal Free Hospital",12,1,0,3,9,0,0,0,0]
["QMJ","RRV","UNIVERSITY COLLEGE LONDON HOSPITALS NHS FOUNDATION TRUST","RRV11","University College Hospital Elizabeth Garrett Anderson Wing",0,"NA","NA",0,0,0,0,0,0]
["QMJ","RKE","WHITTINGTON HEALTH NHS TRUST","RKEXXX","Non-hospital site",0,"NA","NA",0,0,0,0,0,0]
["QMJ","RKE","WHITTINGTON HEALTH NHS TRUST","RKEQ4","The Whittington Hospital",5,1,0,5,0,0,0,0,0]
["QMM","RGP","JAMES PAGET UNIVERSITY HOSPITALS NHS FOUNDATION TRUST","RGP75","James Paget University Hospital",9,1,0,"*","*","*","*","*","*"]
["QMM","RM1","NORFOLK AND NORWICH UNIVERSITY HOSPITALS NHS FOUNDATION TRUST","RM102","Norfolk and Norwich University Hospital",3,"*","*","*","*","*","*","*","*"]
["QMM","RCX","THE QUEEN ELIZABETH HOSPITAL, KING'S LYNN, NHS FOUNDATION TRUST","RCXXXX","Non-hospital site",0,"NA","NA",0,0,0,0,0,0]
["QMM","RCX","THE QUEEN ELIZABETH HOSPITAL, KING'S LYNN, NHS FOUNDATION TRUST","RCX70","The Queen Elizabeth Hospital",19,1,0,19,0,0,0,0,0]
["QNC","RJE","UNIVERSITY HOSPITALS OF NORTH MIDLANDS NHS TRUST","RJE01","Royal Stoke University Hospital",37,0.78378378378378377,0.21621621621621623,24,5,0,1,7,0]
["QNQ","RDU","FRIMLEY HEALTH NHS FOUNDATION TRUST","RDU01","Frimley Park Hospital",6,1,0,6,0,0,0,0,0]
["QNQ","RDU","FRIMLEY HEALTH NHS FOUNDATION TRUST","RDU50","Wexham Park Hospital",61,0.96721311475409832,3.2786885245901641E-2,53,6,0,0,2,0]
["QNX","RXC","EAST SUSSEX HEALTHCARE NHS TRUST","RXC01","Conquest Hospital",25,1,0,"*","*","*","*","*","*"]
["QNX","RXC","EAST SUSSEX HEALTHCARE NHS TRUST","RXC02","Eastbourne District General Hospital",0,"NA","NA",0,0,0,0,0,0]
["QNX","RXC","EAST SUSSEX HEALTHCARE NHS TRUST","RXCXXX","Non-hospital site",2,"*","*","*","*","*","*","*","*"]
["QNX","RYR","UNIVERSITY HOSPITALS SUSSEX NHS FOUNDATION TRUST","N6J7V","Princess Royal Hospital",15,0.93333333333333335,0,14,0,1,0,0,0]
["QNX","RYR","UNIVERSITY HOSPITALS SUSSEX NHS FOUNDATION TRUST","E0A3H","Royal Sussex County Hospital",13,0.92307692307692313,7.6923076923076927E-2,9,3,0,0,1,0]
["QNX","RYR","UNIVERSITY HOSPITALS SUSSEX NHS FOUNDATION TRUST","RYR16","St Richard's Hospital",15,0.8666666666666667,6.6666666666666666E-2,12,1,1,1,0,0]
["QNX","RYR","UNIVERSITY HOSPITALS SUSSEX NHS FOUNDATION TRUST","RYR18","Worthing Hospital",8,1,0,7,1,0,0,0,0]
["QOC","RXW","THE SHREWSBURY AND TELFORD HOSPITAL NHS TRUST","RXWMB","Bridgnorth Hospital (Maternity)",0,"NA","NA",0,0,0,0,0,0]
["QOC","RXW","THE SHREWSBURY AND TELFORD HOSPITAL NHS TRUST","RXWML","Ludlow Hospital (Maternity)",0,"NA","NA",0,0,0,0,0,0]
["QOC","RXW","THE SHREWSBURY AND TELFORD HOSPITAL NHS TRUST","RXWXXX","Non-hospital site",0,"NA","NA",0,0,0,0,0,0]
["QOC","RXW","THE SHREWSBURY AND TELFORD HOSPITAL NHS TRUST","RXWMJ","Robert Jones & Agnes Hunt Orthopaedic & District Hospital",0,"NA","NA",0,0,0,0,0,0]
["QOC","RXW","THE SHREWSBURY AND TELFORD HOSPITAL NHS TRUST","RXWAS","Royal Shrewsbury Hospital",0,"NA","NA",0,0,0,0,0,0]
["QOC","RXW","THE SHREWSBURY AND TELFORD HOSPITAL NHS TRUST","RXWAT","The Princess Royal Hospital",22,0.95454545454545459,4.5454545454545456E-2,20,1,0,1,0,0]
["QOP","RMC","BOLTON NHS FOUNDATION TRUST","RMC01","Royal Bolton Hospital",169,0.94674556213017746,4.7337278106508875E-2,132,28,1,5,3,0]
["QOP","R0A","MANCHESTER UNIVERSITY NHS FOUNDATION TRUST","R0A05","St Mary's Hospital",174,0.96551724137931039,1.1494252873563218E-2,142,26,4,1,1,0]
["QOP","RM3","NORTHERN CARE ALLIANCE NHS FOUNDATION TRUST","RM317","Royal Oldham Hospital",144,0.84722222222222221,0.13194444444444445,98,24,3,5,14,0]
["QOP","RWJ","STOCKPORT NHS FOUNDATION TRUST","RWJXXX","Non-hospital site",0,"NA","NA",0,0,0,0,0,0]
["QOP","RWJ","STOCKPORT NHS FOUNDATION TRUST","RWJ09","Stepping Hill Hospital",1,"*","*","*","*","*","*","*","*"]
["QOP","RMP","TAMESIDE AND GLOSSOP INTEGRATED CARE NHS FOUNDATION TRUST","RMP01","Tameside General Hospital",13,0.92307692307692313,7.6923076923076927E-2,12,0,0,0,1,0]
["QOP","RRF","WRIGHTINGTON, WIGAN AND LEIGH NHS FOUNDATION TRUST","RRF02","Royal Albert Edward Infirmary",4,"*","*","*","*","*","*","*","*"]
["QOQ","RCD","HARROGATE AND DISTRICT NHS FOUNDATION TRUST","RCD01","Harrogate District Hospital",0,"NA","NA",0,0,0,0,0,0]
["QOQ","RWA","HULL UNIVERSITY TEACHING HOSPITALS NHS TRUST","RWA01","Hull Royal Infirmary",55,0.94545454545454544,5.4545454545454543E-2,50,2,0,2,1,0]
["QOQ","RJL","NORTHERN LINCOLNSHIRE AND GOOLE NHS FOUNDATION TRUST","RJL30","Diana, Princess Of Wales Hospital",13,1,0,11,2,0,0,0,0]
["QOQ","RJL","NORTHERN LINCOLNSHIRE AND GOOLE NHS FOUNDATION TRUST","RJL32","Scunthorpe General Hospital",6,1,0,5,1,0,0,0,0]
["QOQ","RCB","YORK AND SCARBOROUGH TEACHING HOSPITALS NHS FOUNDATION TRUST","RCBCA","Scarborough General Hospital",0,"NA","NA",0,0,0,0,0,0]
["QOQ","RCB","YORK AND SCARBOROUGH TEACHING HOSPITALS NHS FOUNDATION TRUST","RCB55","York Hospital",0,"NA","NA",0,0,0,0,0,0]
["QOX","RN3","GREAT WESTERN HOSPITALS NHS FOUNDATION TRUST","RN3XXX","Non-hospital site",0,"NA","NA",0,0,0,0,0,0]
["QOX","RN3","GREAT WESTERN HOSPITALS NHS FOUNDATION TRUST","RN325","The Great Western Hospital",11,0.63636363636363635,0.36363636363636365,5,2,0,4,0,0]
["QOX","RD1","ROYAL UNITED HOSPITALS BATH NHS FOUNDATION TRUST","RD130","Princess Anne Wing RUH",1,"*","*","*","*","*","*","*","*"]
["QOX","RNZ","SALISBURY NHS FOUNDATION TRUST","RNZXXX","Non-hospital site",0,"NA","NA",0,0,0,0,0,0]
["QOX","RNZ","SALISBURY NHS FOUNDATION TRUST","RNZ02","Salisbury District Hospital",3,"*","*","*","*","*","*","*","*"]
["QPM","RNQ","KETTERING GENERAL HOSPITAL NHS FOUNDATION TRUST","RNQ51","Kettering General Hospital",1,"*","*","*","*","*","*","*","*"]
["QPM","RNS","NORTHAMPTON GENERAL HOSPITAL NHS TRUST","RNS01","Northampton General Hospital (Acute)",36,0.97222222222222221,2.7777777777777776E-2,"*","*","*","*","*","*"]
["QR1","RTE","GLOUCESTERSHIRE HOSPITALS NHS FOUNDATION TRUST","RTE03","Gloucestershire Royal Hospital",51,0.94117647058823528,5.8823529411764705E-2,40,8,0,2,1,0]
["QR1","RTE","GLOUCESTERSHIRE HOSPITALS NHS FOUNDATION TRUST","RTEXXX","Non-hospital site",6,1,0,6,0,0,0,0,0]
["QRL","RN5","HAMPSHIRE HOSPITALS NHS FOUNDATION TRUST","RN506","Basingstoke and North Hampshire Hospital",120,0.9916666666666667,0,107,12,1,0,0,0]
["QRL","RN5","HAMPSHIRE HOSPITALS NHS FOUNDATION TRUST","RN541","Royal Hampshire County Hospital",60,0.96666666666666667,1.6666666666666666E-2,55,3,1,1,0,0]
["QRL","R1F","ISLE OF WIGHT NHS TRUST","R1F01","St Mary's Hospital",6,1,0,6,0,0,0,0,0]
["QRL","RHU","PORTSMOUTH HOSPITALS UNIVERSITY NATIONAL HEALTH SERVICE TRUST","RHU03","Queen Alexandra Hospital",27,1,0,26,1,0,0,0,0]
["QRL","RHM","UNIVERSITY HOSPITAL SOUTHAMPTON NHS FOUNDATION TRUST","RHM12","Princess Anne Hospital",144,0.97916666666666663,6.9444444444444441E-3,125,16,2,1,0,0]
["QRV","RYJ","IMPERIAL COLLEGE HEALTHCARE NHS TRUST","RYJ04","Queen Charlotte's Hospital",54,1,0,45,9,0,0,0,0]
["QRV","RYJ","IMPERIAL COLLEGE HEALTHCARE NHS TRUST","RYJ01","St Mary's Hospital (HQ)",23,0.91304347826086951,8.6956521739130432E-2,19,2,0,2,0,0]
["QRV","R1K","LONDON NORTH WEST UNIVERSITY HEALTHCARE NHS TRUST","R1K01","Northwick Park Hospital",67,0.94029850746268662,4.4776119402985072E-2,30,33,1,3,0,0]
["QRV","RAS","THE HILLINGDON HOSPITALS NHS FOUNDATION TRUST","RAS01","Hillingdon Hospital",35,0.88571428571428568,2.8571428571428571E-2,29,2,3,1,0,0]
["QSL","RH5","SOMERSET NHS FOUNDATION TRUST","RH5K6","Bridgwater Hospital",0,"NA","NA",0,0,0,0,0,0]
["QSL","RH5","SOMERSET NHS FOUNDATION TRUST","RH5A8","MUSGROVE PARK HOSPITAL",1,"*","*","*","*","*","*","*","*"]
["QSL","RH5","SOMERSET NHS FOUNDATION TRUST","RH5XXXX","Non-hospital site home/in-transit births",1,"*","*","*","*","*","*","*","*"]
["QSL","RH5","SOMERSET NHS FOUNDATION TRUST","RH5O4","Yeovil District Hospital",2,"*","*","*","*","*","*","*","*"]
["QT1","RX1","NOTTINGHAM UNIVERSITY HOSPITALS NHS TRUST","RX1XXX","Non-hospital site",0,"NA","NA",0,0,0,0,0,0]
["QT1","RX1","NOTTINGHAM UNIVERSITY HOSPITALS NHS TRUST","RX1CC","Nottingham University Hospitals NHS Trust - City Campus",0,"NA","NA",0,0,0,0,0,0]
["QT1","RX1","NOTTINGHAM UNIVERSITY HOSPITALS NHS TRUST","RX1RA","Nottingham University Hospitals NHS Trust - Queen's Medical Centre Campus",13,1,0,13,0,0,0,0,0]
["QT1","RK5","SHERWOOD FOREST HOSPITALS NHS FOUNDATION TRUST","RK5BC","King's Mill Hospital",41,0.85365853658536583,0.12195121951219512,29,6,1,2,3,0]
["QT1","RK5","SHERWOOD FOREST HOSPITALS NHS FOUNDATION TRUST","RK5XXX","Non-hospital site",0,"NA","NA",0,0,0,0,0,0]
["QT6","REF","ROYAL CORNWALL HOSPITALS NHS TRUST","REFXXX","Non-hospital site",0,"NA","NA",0,0,0,0,0,0]
["QT6","REF","ROYAL CORNWALL HOSPITALS NHS TRUST","REF12","Royal Cornwall Hospital (Treliske)",14,1,0,"*","*","*","*","*","*"]
["QU9","RXQ","BUCKINGHAMSHIRE HEALTHCARE NHS TRUST","RXQ02","Stoke Mandeville Hospital",30,0.93333333333333335,6.6666666666666666E-2,25,3,0,0,2,0]
["QU9","RTH","OXFORD UNIVERSITY HOSPITALS NHS FOUNDATION TRUST","RTH19","Chipping Norton Community Hospital",0,"NA","NA",0,0,0,0,0,0]
["QU9","RTH","OXFORD UNIVERSITY HOSPITALS NHS FOUNDATION TRUST","RTH05","Horton General Hospital",0,"NA","NA",0,0,0,0,0,0]
["QU9","RTH","OXFORD UNIVERSITY HOSPITALS NHS FOUNDATION TRUST","RTH08","John Radcliffe Hospital",13,0.92307692307692313,0,12,0,1,0,0,0]
["QU9","RTH","OXFORD UNIVERSITY HOSPITALS NHS FOUNDATION TRUST","RTH16","Wallingford Community Hospital",0,"NA","NA",0,0,0,0,0,0]
["QU9","RTH","OXFORD UNIVERSITY HOSPITALS NHS FOUNDATION TRUST","RTH21","Wantage Community Hospital",0,"NA","NA",0,0,0,0,0,0]
["QU9","RHW","ROYAL BERKSHIRE NHS FOUNDATION TRUST","RHW01","Royal Berkshire Hospital",5,1,0,5,0,0,0,0,0]
["QUA","RNA","THE DUDLEY GROUP NHS FOUNDATION TRUST","RNA01","Russells Hall Hospital",49,0.87755102040816324,0,34,9,0,0,0,6]
["QUA","RL4","THE ROYAL WOLVERHAMPTON NHS TRUST","RL403","New Cross Hospital",44,0.95454545454545459,2.2727272727272728E-2,41,1,1,0,1,0]
["QUA","RBK","WALSALL HEALTHCARE NHS TRUST","RBK02","Manor Hospital",81,0.93827160493827155,2.4691358024691357E-2,71,5,3,2,0,0]
["QUE","RGT","CAMBRIDGE UNIVERSITY HOSPITALS NHS FOUNDATION TRUST","RGT32","Rosie Hospital",35,0.88571428571428568,8.5714285714285715E-2,27,4,0,0,3,1]
["QUE","RGN","NORTH WEST ANGLIA NHS FOUNDATION TRUST","RGN90","Hinchingbrooke Hospital",17,0.94117647058823528,0,16,0,1,0,0,0]
["QUE","RGN","NORTH WEST ANGLIA NHS FOUNDATION TRUST","RGN80","Peterborough City Hospital",11,0.72727272727272729,0.27272727272727271,8,0,0,0,3,0]
["QUY","RVJ","NORTH BRISTOL NHS TRUST","RVJXXX","Non-hospital site",0,"NA","NA",0,0,0,0,0,0]
["QUY","RVJ","NORTH BRISTOL NHS TRUST","RVJ01","Southmead Hospital",76,0.97368421052631582,1.3157894736842105E-2,"*","*","*","*","*","*"]
["QUY","RA7","UNIVERSITY HOSPITALS BRISTOL AND WESTON NHS FOUNDATION TRUST","RA707","ST MICHAEL'S HOSPITAL",3,"*","*","*","*","*","*","*","*"]
["QVV","RBD","DORSET COUNTY HOSPITAL NHS FOUNDATION TRUST","RBD01","Dorset County Hospital",5,1,0,1,4,0,0,0,0]
["QVV","R0D","UNIVERSITY HOSPITALS DORSET NHS FOUNDATION TRUST","R0D01","Poole Hospital",25,0.92,0.08,21,2,0,0,2,0]
["QVV","R0D","UNIVERSITY HOSPITALS DORSET NHS FOUNDATION TRUST","R0D02","Royal Bournemouth Hospital",0,"NA","NA",0,0,0,0,0,0]
["QWE","RJ6","CROYDON HEALTH SERVICES NHS TRUST","RJ611","Croydon University Hospital",13,0.84615384615384615,7.6923076923076927E-2,"*","*","*","*","*","*"]
["QWE","RVR","EPSOM AND ST HELIER UNIVERSITY HOSPITALS NHS TRUST","RVR50","Epsom Hospital",2,"*","*","*","*","*","*","*","*"]
["QWE","RVR","EPSOM AND ST HELIER UNIVERSITY HOSPITALS NHS TRUST","RVRXXX","Non-hospital site",0,"NA","NA",0,0,0,0,0,0]
["QWE","RVR","EPSOM AND ST HELIER UNIVERSITY HOSPITALS NHS TRUST","RVR05","St Helier Hospital",0,"NA","NA",0,0,0,0,0,0]
["QWE","RAX","KINGSTON AND RICHMOND NHS FOUNDATION TRUST","RAX01","Kingston Hospital",52,1,0,51,1,0,0,0,0]
["QWE","RJ7","ST GEORGE'S UNIVERSITY HOSPITALS NHS FOUNDATION TRUST","RJ701","St George's Hospital (Tooting)",26,1,0,19,7,0,0,0,0]
["QWO","RCF","AIREDALE NHS FOUNDATION TRUST","RCF22","Airedale General Hospital",18,0.94444444444444442,5.5555555555555552E-2,15,2,0,1,0,0]
["QWO","RAE","BRADFORD TEACHING HOSPITALS NHS FOUNDATION TRUST","RAE01","Bradford Royal Infirmary",25,1,0,24,1,0,0,0,0]
["QWO","RWY","CALDERDALE AND HUDDERSFIELD NHS FOUNDATION TRUST","RWY02","Calderdale Royal Hospital",23,0.91304347826086951,8.6956521739130432E-2,21,0,0,0,2,0]
["QWO","RR8","LEEDS TEACHING HOSPITALS NHS TRUST","RR801","Leeds General Infirmary",68,0.98529411764705888,0,64,3,1,0,0,0]
["QWO","RR8","LEEDS TEACHING HOSPITALS NHS TRUST","RR8XXX","Non-hospital site",0,"NA","NA",0,0,0,0,0,0]
["QWO","RR8","LEEDS TEACHING HOSPITALS NHS TRUST","RR813","St James's University Hospital",60,0.98333333333333328,1.6666666666666666E-2,51,8,0,0,1,0]
["QWO","RXF","MID YORKSHIRE TEACHING NHS TRUST","RXF10","Dewsbury and District Hospital",7,1,0,"*","*","*","*","*","*"]
["QWO","RXF","MID YORKSHIRE TEACHING NHS TRUST","RXFXXX","Non-hospital site",2,"*","*","*","*","*","*","*","*"]
["QWO","RXF","MID YORKSHIRE TEACHING NHS TRUST","RXF05","Pinderfields General Hospital",58,0.98275862068965514,0,55,2,1,0,0,0]
["QWO","RXF","MID YORKSHIRE TEACHING NHS TRUST","RXF03","Pontefract General Infirmary",0,"NA","NA",0,0,0,0,0,0]
["QWU","RLT","GEORGE ELIOT HOSPITAL NHS TRUST","RLT01","George Eliot Hospital - Acute Services",23,0.95652173913043481,0,"*","*","*","*","*","*"]
["QWU","RJC","SOUTH WARWICKSHIRE UNIVERSITY NHS FOUNDATION TRUST","RJC02","Warwick Hospital",4,"*","*","*","*","*","*","*","*"]
["QWU","RKB","UNIVERSITY HOSPITALS COVENTRY AND WARWICKSHIRE NHS TRUST","RKB03","Hospital Of St Cross",0,"NA","NA",0,0,0,0,0,0]
["QWU","RKB","UNIVERSITY HOSPITALS COVENTRY AND WARWICKSHIRE NHS TRUST","RKBXXX","Non-hospital site",1,"*","*","*","*","*","*","*","*"]
["QWU","RKB","UNIVERSITY HOSPITALS COVENTRY AND WARWICKSHIRE NHS TRUST","RKB01","University Hospital (Coventry)",43,0.97674418604651159,2.3255813953488372E-2,"*","*","*","*","*","*"]
["QXU","RTK","ASHFORD AND ST PETER'S HOSPITALS NHS FOUNDATION TRUST","RTK01","St Peter's Hospital",158,0.79113924050632911,0.13291139240506328,112,13,3,4,17,9]
["QXU","RA2","ROYAL SURREY COUNTY HOSPITAL NHS FOUNDATION TRUST","RA201","Royal Surrey County Hospital",49,0.97959183673469385,2.0408163265306121E-2,44,4,0,1,0,0]
["QXU","RTP","SURREY AND SUSSEX HEALTHCARE NHS TRUST","RTP04","East Surrey Hospital",10,0.9,0,7,2,1,0,0,0]
["QYG","RJR","COUNTESS OF CHESTER HOSPITAL NHS FOUNDATION TRUST","RJR05","Countess Of Chester Hospital",14,1,0,9,5,0,0,0,0]
["QYG","RJN","EAST CHESHIRE NHS TRUST","RJN71","Macclesfield District General Hospital",19,1,0,18,1,0,0,0,0]
["QYG","REP","LIVERPOOL WOMEN'S NHS FOUNDATION TRUST","REP01","Liverpool Womens Hospital",49,0.93877551020408168,6.1224489795918366E-2,35,11,0,1,2,0]
["QYG","RBN","MERSEY AND WEST LANCASHIRE TEACHING HOSPITALS NHS TRUST","RBN52","Ormskirk and District General Hospital",11,1,0,8,3,0,0,0,0]
["QYG","RBN","MERSEY AND WEST LANCASHIRE TEACHING HOSPITALS NHS TRUST","RBN01","Whiston Hospital",49,0.89795918367346939,8.1632653061224483E-2,38,6,1,2,2,0]
["QYG","RBT","MID CHESHIRE HOSPITALS NHS FOUNDATION TRUST","RBT20","Leighton Hospital",17,0.82352941176470584,0.11764705882352941,14,0,1,2,0,0]
["QYG","RWW","WARRINGTON AND HALTON TEACHING HOSPITALS NHS FOUNDATION TRUST","RWWWH","Warrington Hospital",2,"*","*","*","*","*","*","*","*"]
["QYG","RBL","WIRRAL UNIVERSITY TEACHING HOSPITAL NHS FOUNDATION TRUST","RBL14","Arrowe Park Hospital",1,"*","*","*","*","*","*","*","*"]

{"sheet":"ICB Q3","index":8,"n_rows":55,"n_cols":29,"rows_kept":55,"cut":false,"hidden":false,"merged":[[8,0,9,0],[8,1,9,1],[8,2,9,2],[8,3,9,3],[8,4,9,4],[8,20,9,20],[8,21,9,21],[8,22,9,22],[8,23,8,28],[8,5,8,10],[8,11,9,11],[8,12,9,12],[8,13,9,13],[8,14,8,19]]}
[]
[]
[]
[]
[]
[null,"   Sort data by:           "]
[]
[]
["ICB Code","ICB Name","Total Responses","Percentage Positive","Percentage Negative","Breakdown of Responses",null,null,null,null,null,"Total Responses","Percentage Positive","Percentage Negative","Breakdown of Responses",null,null,null,null,null,"Total Responses","Percentage Positive","Percentage Negative","Breakdown of Responses"]
[null,null,null,null,null,"Very Good","Good","Neither Good nor Poor","Poor","Very Poor","Don't Know",null,null,null,"Very Good","Good","Neither Good nor Poor","Poor","Very Poor","Don't Know",null,null,null,"Very Good","Good","Neither Good nor Poor","Poor","Very Poor","Don't Know"]
[null,"England (including Independent Sector providers)",5616,0.91969373219373218,4.5049857549857547E-2,4024,1141,164,125,128,34,{"$f":"SUM(L14:L55)","v":5616},{"$f":"SUM(O11+P11)/SUM(O11:T11)","v":0.91969373219373218},{"$f":"SUM(R11+S11)/SUM(O11:T11)","v":4.5049857549857547E-2},{"$f":"SUM(O14:O55)","v":4024},1141,164,125,128,34,{"$f":"IFERROR(C11-L11,0)","v":0},{"$f":"IFERROR(D11-M11,0)","v":0},{"$f":"IFERROR(E11-N11,0)","v":0},{"$f":"IFERROR(F11-O11,0)","v":0},{"$f":"IFERROR(G11-P11,0)","v":0},{"$f":"IFERROR(H11-Q11,0)","v":0},{"$f":"IFERROR(I11-R11,0)","v":0},{"$f":"IFERROR(J11-S11,0)","v":0},{"$f":"IFERROR(K11-T11,0)","v":0}]
[null,"England (excluding Independent Sector providers)",5616,0.91969373219373218,4.5049857549857547E-2,4024,1141,164,125,128,34,{"$f":"SUM(L14:L55)","v":5616},0.91969373219373218,4.5049857549857547E-2,{"$f":"SUM(O14:O55)","v":4024},1141,164,125,128,34,0,0,0,0,0,0,0,0,0]
[null,"Selection (excluding suppressed data)",{"$f":"SUBTOTAL(9,C14:C55)","v":5616},{"$f":"IFERROR((F13+G13)/SUM(F13:K13), \"-\")","v":0.91970672389127328},{"$f":"IFERROR((I13+J13)/SUM(F13:K13), \"-\")","v":4.5064377682403435E-2},{"$f":"SUBTOTAL(9,F14:F55)","v":4006},1137,163,124,128,34,{"$f":"SUMIF(C14:C55,\"<>*\",L14:L55)","v":5616},0.91970672389127328,4.5064377682403435E-2,{"$f":"SUMIF(F14:F55,\"<>*\",O14:O55)","v":4006},1137,163,124,128,34,0,0,0,0,0,0,0,0,0]
["QE1","LANCASHIRE AND SOUTH CUMBRIA ICB",190,0.77894736842105261,0.1368421052631579,98,50,15,13,13,1,{"$f":"VLOOKUP($A14,[1]Sheet3!$A$49:$H$90,2,0)","v":190},{"$f":"SUM(O14+P14)/SUM(O14:T14)","v":0.77894736842105261},{"$f":"SUM(R14+S14)/SUM(O14:T14)","v":0.1368421052631579},{"$f":"VLOOKUP($A14,[1]Sheet3!$A$49:$H$90,3,0)","v":98},{"$f":"VLOOKUP($A14,[1]Sheet3!$A$49:$H$90,4,0)","v":50},{"$f":"VLOOKUP($A14,[1]Sheet3!$A$49:$H$90,5,0)","v":15},{"$f":"VLOOKUP($A14,[1]Sheet3!$A$49:$H$90,6,0)","v":13},{"$f":"VLOOKUP($A14,[1]Sheet3!$A$49:$H$90,7,0)","v":13},{"$f":"VLOOKUP($A14,[1]Sheet3!$A$49:$H$90,8,0)","v":1},{"$f":"IFERROR(C14-L14,0)","v":0},{"$f":"IFERROR(D14-M14,0)","v":0},0,0,0,0,0,0,0]
["QF7","SOUTH YORKSHIRE ICB",59,0.9152542372881356,6.7796610169491525E-2,47,7,1,3,1,0,{"$f":"VLOOKUP($A15,[1]Sheet3!$A$49:$H$90,2,0)","v":59},{"$f":"SUM(O15+P15)/SUM(O15:T15)","v":0.9152542372881356},{"$f":"SUM(R15+S15)/SUM(O15:T15)","v":6.7796610169491525E-2},{"$f":"VLOOKUP($A15,[1]Sheet3!$A$49:$H$90,3,0)","v":47},{"$f":"VLOOKUP($A15,[1]Sheet3!$A$49:$H$90,4,0)","v":7},{"$f":"VLOOKUP($A15,[1]Sheet3!$A$49:$H$90,5,0)","v":1},{"$f":"VLOOKUP($A15,[1]Sheet3!$A$49:$H$90,6,0)","v":3},{"$f":"VLOOKUP($A15,[1]Sheet3!$A$49:$H$90,7,0)","v":1},{"$f":"VLOOKUP($A15,[1]Sheet3!$A$49:$H$90,8,0)","v":0},{"$f":"IFERROR(C15-L15,0)","v":0},{"$f":"IFERROR(D15-M15,0)","v":0},{"$f":"IFERROR(E15-N15,0)","v":0},{"$f":"IFERROR(F15-O15,0)","v":0},{"$f":"IFERROR(G15-P15,0)","v":0},{"$f":"IFERROR(H15-Q15,0)","v":0},{"$f":"IFERROR(I15-R15,0)","v":0},{"$f":"IFERROR(J15-S15,0)","v":0},{"$f":"IFERROR(K15-T15,0)","v":0}]
["QGH","HEREFORDSHIRE AND WORCESTERSHIRE ICB",44,0.90909090909090906,2.2727272727272728E-2,31,9,3,1,0,0,{"$f":"VLOOKUP($A16,[1]Sheet3!$A$49:$H$90,2,0)","v":44},0.90909090909090906,2.2727272727272728E-2,{"$f":"VLOOKUP($A16,[1]Sheet3!$A$49:$H$90,3,0)","v":31},{"$f":"VLOOKUP($A16,[1]Sheet3!$A$49:$H$90,4,0)","v":9},{"$f":"VLOOKUP($A16,[1]Sheet3!$A$49:$H$90,5,0)","v":3},{"$f":"VLOOKUP($A16,[1]Sheet3!$A$49:$H$90,6,0)","v":1},{"$f":"VLOOKUP($A16,[1]Sheet3!$A$49:$H$90,7,0)","v":0},{"$f":"VLOOKUP($A16,[1]Sheet3!$A$49:$H$90,8,0)","v":0},0,0,0,0,0,0,0,0,0]
["QH8","MID AND SOUTH ESSEX ICB",75,0.76,0.16,50,7,5,3,9,1,{"$f":"VLOOKUP($A17,[1]Sheet3!$A$49:$H$90,2,0)","v":75},0.76,0.16,{"$f":"VLOOKUP($A17,[1]Sheet3!$A$49:$H$90,3,0)","v":50},{"$f":"VLOOKUP($A17,[1]Sheet3!$A$49:$H$90,4,0)","v":7},{"$f":"VLOOKUP($A17,[1]Sheet3!$A$49:$H$90,5,0)","v":5},{"$f":"VLOOKUP($A17,[1]Sheet3!$A$49:$H$90,6,0)","v":3},{"$f":"VLOOKUP($A17,[1]Sheet3!$A$49:$H$90,7,0)","v":9},{"$f":"VLOOKUP($A17,[1]Sheet3!$A$49:$H$90,8,0)","v":1},0,0,0,0,0,0,0,0,0]
["QHG","BEDFORDSHIRE, LUTON AND MILTON KEYNES ICB",202,0.9356435643564357,4.4554455445544552E-2,135,54,4,5,4,0,{"$f":"VLOOKUP($A18,[1]Sheet3!$A$49:$H$90,2,0)","v":202},0.9356435643564357,4.4554455445544552E-2,{"$f":"VLOOKUP($A18,[1]Sheet3!$A$49:$H$90,3,0)","v":135},{"$f":"VLOOKUP($A18,[1]Sheet3!$A$49:$H$90,4,0)","v":54},{"$f":"VLOOKUP($A18,[1]Sheet3!$A$49:$H$90,5,0)","v":4},{"$f":"VLOOKUP($A18,[1]Sheet3!$A$49:$H$90,6,0)","v":5},{"$f":"VLOOKUP($A18,[1]Sheet3!$A$49:$H$90,7,0)","v":4},{"$f":"VLOOKUP($A18,[1]Sheet3!$A$49:$H$90,8,0)","v":0},0,0,0,0,0,0,0,0,0]
["QHL","BIRMINGHAM AND SOLIHULL ICB",160,0.93125000000000002,4.3749999999999997E-2,125,24,4,3,4,0,{"$f":"VLOOKUP($A19,[1]Sheet3!$A$49:$H$90,2,0)","v":160},0.93125000000000002,4.3749999999999997E-2,{"$f":"VLOOKUP($A19,[1]Sheet3!$A$49:$H$90,3,0)","v":125},{"$f":"VLOOKUP($A19,[1]Sheet3!$A$49:$H$90,4,0)","v":24},{"$f":"VLOOKUP($A19,[1]Sheet3!$A$49:$H$90,5,0)","v":4},{"$f":"VLOOKUP($A19,[1]Sheet3!$A$49:$H$90,6,0)","v":3},{"$f":"VLOOKUP($A19,[1]Sheet3!$A$49:$H$90,7,0)","v":4},{"$f":"VLOOKUP($A19,[1]Sheet3!$A$49:$H$90,8,0)","v":0},0,0,0,0,0,0,0,0,0]
["QHM","NORTH EAST AND NORTH CUMBRIA ICB",274,0.96350364963503654,2.5547445255474453E-2,229,35,3,5,2,0,{"$f":"VLOOKUP($A20,[1]Sheet3!$A$49:$H$90,2,0)","v":274},0.96350364963503654,2.5547445255474453E-2,{"$f":"VLOOKUP($A20,[1]Sheet3!$A$49:$H$90,3,0)","v":229},{"$f":"VLOOKUP($A20,[1]Sheet3!$A$49:$H$90,4,0)","v":35},{"$f":"VLOOKUP($A20,[1]Sheet3!$A$49:$H$90,5,0)","v":3},{"$f":"VLOOKUP($A20,[1]Sheet3!$A$49:$H$90,6,0)","v":5},{"$f":"VLOOKUP($A20,[1]Sheet3!$A$49:$H$90,7,0)","v":2},{"$f":"VLOOKUP($A20,[1]Sheet3!$A$49:$H$90,8,0)","v":0},0,0,0,0,0,0,0,0,0]
["QJ2","DERBY AND DERBYSHIRE ICB",82,0.93902439024390238,4.878048780487805E-2,60,17,1,2,2,0,{"$f":"VLOOKUP($A21,[1]Sheet3!$A$49:$H$90,2,0)","v":82},0.93902439024390238,4.878048780487805E-2,{"$f":"VLOOKUP($A21,[1]Sheet3!$A$49:$H$90,3,0)","v":60},{"$f":"VLOOKUP($A21,[1]Sheet3!$A$49:$H$90,4,0)","v":17},{"$f":"VLOOKUP($A21,[1]Sheet3!$A$49:$H$90,5,0)","v":1},{"$f":"VLOOKUP($A21,[1]Sheet3!$A$49:$H$90,6,0)","v":2},{"$f":"VLOOKUP($A21,[1]Sheet3!$A$49:$H$90,7,0)","v":2},{"$f":"VLOOKUP($A21,[1]Sheet3!$A$49:$H$90,8,0)","v":0},0,0,0,0,0,0,0,0,0]
["QJG","SUFFOLK AND NORTH EAST ESSEX ICB",36,0.83333333333333337,0.1388888888888889,25,5,1,1,4,0,{"$f":"VLOOKUP($A22,[1]Sheet3!$A$49:$H$90,2,0)","v":36},0.83333333333333337,0.1388888888888889,{"$f":"VLOOKUP($A22,[1]Sheet3!$A$49:$H$90,3,0)","v":25},{"$f":"VLOOKUP($A22,[1]Sheet3!$A$49:$H$90,4,0)","v":5},{"$f":"VLOOKUP($A22,[1]Sheet3!$A$49:$H$90,5,0)","v":1},{"$f":"VLOOKUP($A22,[1]Sheet3!$A$49:$H$90,6,0)","v":1},{"$f":"VLOOKUP($A22,[1]Sheet3!$A$49:$H$90,7,0)","v":4},{"$f":"VLOOKUP($A22,[1]Sheet3!$A$49:$H$90,8,0)","v":0},0,0,0,0,0,0,0,0,0]
["QJK","DEVON ICB",13,0.92307692307692313,0,"*","*","*","*","*","*",{"$f":"VLOOKUP($A23,[1]Sheet3!$A$49:$H$90,2,0)","v":13},0.92307692307692313,0,{"$f":"VLOOKUP($A23,[1]Sheet3!$A$49:$H$90,3,0)","v":12},{"$f":"VLOOKUP($A23,[1]Sheet3!$A$49:$H$90,4,0)","v":0},{"$f":"VLOOKUP($A23,[1]Sheet3!$A$49:$H$90,5,0)","v":1},{"$f":"VLOOKUP($A23,[1]Sheet3!$A$49:$H$90,6,0)","v":0},{"$f":"VLOOKUP($A23,[1]Sheet3!$A$49:$H$90,7,0)","v":0},{"$f":"VLOOKUP($A23,[1]Sheet3!$A$49:$H$90,8,0)","v":0},0,0,0,0,0,0,0,0,0]
["QJM","LINCOLNSHIRE ICB",0,"NA","NA",0,0,0,0,0,0,{"$f":"VLOOKUP($A24,[1]Sheet3!$A$49:$H$90,2,0)","v":0},{"$error":"#DIV/0!"},{"$error":"#DIV/0!"},{"$f":"VLOOKUP($A24,[1]Sheet3!$A$49:$H$90,3,0)","v":0},{"$f":"VLOOKUP($A24,[1]Sheet3!$A$49:$H$90,4,0)","v":0},{"$f":"VLOOKUP($A24,[1]Sheet3!$A$49:$H$90,5,0)","v":0},{"$f":"VLOOKUP($A24,[1]Sheet3!$A$49:$H$90,6,0)","v":0},{"$f":"VLOOKUP($A24,[1]Sheet3!$A$49:$H$90,7,0)","v":0},{"$f":"VLOOKUP($A24,[1]Sheet3!$A$49:$H$90,8,0)","v":0},0,0,0,0,0,0,0,0,0]
["QK1","LEICESTER, LEICESTERSHIRE AND RUTLAND ICB",102,0.88235294117647056,5.8823529411764705E-2,62,28,6,5,1,0,{"$f":"VLOOKUP($A25,[1]Sheet3!$A$49:$H$90,2,0)","v":102},0.88235294117647056,5.8823529411764705E-2,{"$f":"VLOOKUP($A25,[1]Sheet3!$A$49:$H$90,3,0)","v":62},{"$f":"VLOOKUP($A25,[1]Sheet3!$A$49:$H$90,4,0)","v":28},{"$f":"VLOOKUP($A25,[1]Sheet3!$A$49:$H$90,5,0)","v":6},{"$f":"VLOOKUP($A25,[1]Sheet3!$A$49:$H$90,6,0)","v":5},{"$f":"VLOOKUP($A25,[1]Sheet3!$A$49:$H$90,7,0)","v":1},{"$f":"VLOOKUP($A25,[1]Sheet3!$A$49:$H$90,8,0)","v":0},0,0,0,0,0,0,0,0,0]
["QKK","SOUTH EAST LONDON ICB",147,0.891156462585034,5.4421768707482991E-2,75,56,7,7,1,1,{"$f":"VLOOKUP($A26,[1]Sheet3!$A$49:$H$90,2,0)","v":147},0.891156462585034,5.4421768707482991E-2,{"$f":"VLOOKUP($A26,[1]Sheet3!$A$49:$H$90,3,0)","v":75},{"$f":"VLOOKUP($A26,[1]Sheet3!$A$49:$H$90,4,0)","v":56},{"$f":"VLOOKUP($A26,[1]Sheet3!$A$49:$H$90,5,0)","v":7},{"$f":"VLOOKUP($A26,[1]Sheet3!$A$49:$H$90,6,0)","v":7},{"$f":"VLOOKUP($A26,[1]Sheet3!$A$49:$H$90,7,0)","v":1},{"$f":"VLOOKUP($A26,[1]Sheet3!$A$49:$H$90,8,0)","v":1},0,0,0,0,0,0,0,0,0]
["QKS","KENT AND MEDWAY ICB",225,0.93777777777777782,3.111111111111111E-2,178,33,7,5,2,0,{"$f":"VLOOKUP($A27,[1]Sheet3!$A$49:$H$90,2,0)","v":225},0.93777777777777782,3.111111111111111E-2,{"$f":"VLOOKUP($A27,[1]Sheet3!$A$49:$H$90,3,0)","v":178},{"$f":"VLOOKUP($A27,[1]Sheet3!$A$49:$H$90,4,0)","v":33},{"$f":"VLOOKUP($A27,[1]Sheet3!$A$49:$H$90,5,0)","v":7},{"$f":"VLOOKUP($A27,[1]Sheet3!$A$49:$H$90,6,0)","v":5},{"$f":"VLOOKUP($A27,[1]Sheet3!$A$49:$H$90,7,0)","v":2},{"$f":"VLOOKUP($A27,[1]Sheet3!$A$49:$H$90,8,0)","v":0},0,0,0,0,0,0,0,0,0]
["QM7","HERTFORDSHIRE AND WEST ESSEX ICB",85,0.95294117647058818,3.5294117647058823E-2,63,18,1,2,1,0,{"$f":"VLOOKUP($A28,[1]Sheet3!$A$49:$H$90,2,0)","v":85},0.95294117647058818,3.5294117647058823E-2,{"$f":"VLOOKUP($A28,[1]Sheet3!$A$49:$H$90,3,0)","v":63},{"$f":"VLOOKUP($A28,[1]Sheet3!$A$49:$H$90,4,0)","v":18},{"$f":"VLOOKUP($A28,[1]Sheet3!$A$49:$H$90,5,0)","v":1},{"$f":"VLOOKUP($A28,[1]Sheet3!$A$49:$H$90,6,0)","v":2},{"$f":"VLOOKUP($A28,[1]Sheet3!$A$49:$H$90,7,0)","v":1},{"$f":"VLOOKUP($A28,[1]Sheet3!$A$49:$H$90,8,0)","v":0},0,0,0,0,0,0,0,0,0]
["QMF","NORTH EAST LONDON ICB",235,0.93617021276595747,5.106382978723404E-2,182,38,2,3,9,1,{"$f":"VLOOKUP($A29,[1]Sheet3!$A$49:$H$90,2,0)","v":235},0.93617021276595747,5.106382978723404E-2,{"$f":"VLOOKUP($A29,[1]Sheet3!$A$49:$H$90,3,0)","v":182},{"$f":"VLOOKUP($A29,[1]Sheet3!$A$49:$H$90,4,0)","v":38},{"$f":"VLOOKUP($A29,[1]Sheet3!$A$49:$H$90,5,0)","v":2},{"$f":"VLOOKUP($A29,[1]Sheet3!$A$49:$H$90,6,0)","v":3},{"$f":"VLOOKUP($A29,[1]Sheet3!$A$49:$H$90,7,0)","v":9},{"$f":"VLOOKUP($A29,[1]Sheet3!$A$49:$H$90,8,0)","v":1},0,0,0,0,0,0,0,0,0]
["QMJ","NORTH CENTRAL LONDON ICB",261,0.93869731800766287,3.0651340996168581E-2,122,123,7,2,6,1,{"$f":"VLOOKUP($A30,[1]Sheet3!$A$49:$H$90,2,0)","v":261},0.93869731800766287,3.0651340996168581E-2,{"$f":"VLOOKUP($A30,[1]Sheet3!$A$49:$H$90,3,0)","v":122},{"$f":"VLOOKUP($A30,[1]Sheet3!$A$49:$H$90,4,0)","v":123},{"$f":"VLOOKUP($A30,[1]Sheet3!$A$49:$H$90,5,0)","v":7},{"$f":"VLOOKUP($A30,[1]Sheet3!$A$49:$H$90,6,0)","v":2},{"$f":"VLOOKUP($A30,[1]Sheet3!$A$49:$H$90,7,0)","v":6},{"$f":"VLOOKUP($A30,[1]Sheet3!$A$49:$H$90,8,0)","v":1},0,0,0,0,0,0,0,0,0]
["QMM","NORFOLK AND WAVENEY ICB",25,0.88,0.12,19,3,0,1,2,0,{"$f":"VLOOKUP($A31,[1]Sheet3!$A$49:$H$90,2,0)","v":25},0.88,0.12,{"$f":"VLOOKUP($A31,[1]Sheet3!$A$49:$H$90,3,0)","v":19},{"$f":"VLOOKUP($A31,[1]Sheet3!$A$49:$H$90,4,0)","v":3},{"$f":"VLOOKUP($A31,[1]Sheet3!$A$49:$H$90,5,0)","v":0},{"$f":"VLOOKUP($A31,[1]Sheet3!$A$49:$H$90,6,0)","v":1},{"$f":"VLOOKUP($A31,[1]Sheet3!$A$49:$H$90,7,0)","v":2},{"$f":"VLOOKUP($A31,[1]Sheet3!$A$49:$H$90,8,0)","v":0},0,0,0,0,0,0,0,0,0]
["QNC","STAFFORDSHIRE AND STOKE-ON-TRENT ICB",49,0.87755102040816324,8.1632653061224483E-2,40,3,2,2,2,0,{"$f":"VLOOKUP($A32,[1]Sheet3!$A$49:$H$90,2,0)","v":49},0.87755102040816324,8.1632653061224483E-2,{"$f":"VLOOKUP($A32,[1]Sheet3!$A$49:$H$90,3,0)","v":40},{"$f":"VLOOKUP($A32,[1]Sheet3!$A$49:$H$90,4,0)","v":3},{"$f":"VLOOKUP($A32,[1]Sheet3!$A$49:$H$90,5,0)","v":2},{"$f":"VLOOKUP($A32,[1]Sheet3!$A$49:$H$90,6,0)","v":2},{"$f":"VLOOKUP($A32,[1]Sheet3!$A$49:$H$90,7,0)","v":2},{"$f":"VLOOKUP($A32,[1]Sheet3!$A$49:$H$90,8,0)","v":0},0,0,0,0,0,0,0,0,0]
["QNQ","FRIMLEY ICB",83,0.98795180722891562,1.2048192771084338E-2,65,17,0,0,1,0,{"$f":"VLOOKUP($A33,[1]Sheet3!$A$49:$H$90,2,0)","v":83},0.98795180722891562,1.2048192771084338E-2,{"$f":"VLOOKUP($A33,[1]Sheet3!$A$49:$H$90,3,0)","v":65},{"$f":"VLOOKUP($A33,[1]Sheet3!$A$49:$H$90,4,0)","v":17},{"$f":"VLOOKUP($A33,[1]Sheet3!$A$49:$H$90,5,0)","v":0},{"$f":"VLOOKUP($A33,[1]Sheet3!$A$49:$H$90,6,0)","v":0},{"$f":"VLOOKUP($A33,[1]Sheet3!$A$49:$H$90,7,0)","v":1},{"$f":"VLOOKUP($A33,[1]Sheet3!$A$49:$H$90,8,0)","v":0},0,0,0,0,0,0,0,0,0]
["QNX","SUSSEX ICB",146,0.93835616438356162,3.4246575342465752E-2,118,19,4,1,4,0,{"$f":"VLOOKUP($A34,[1]Sheet3!$A$49:$H$90,2,0)","v":146},0.93835616438356162,3.4246575342465752E-2,{"$f":"VLOOKUP($A34,[1]Sheet3!$A$49:$H$90,3,0)","v":118},{"$f":"VLOOKUP($A34,[1]Sheet3!$A$49:$H$90,4,0)","v":19},{"$f":"VLOOKUP($A34,[1]Sheet3!$A$49:$H$90,5,0)","v":4},{"$f":"VLOOKUP($A34,[1]Sheet3!$A$49:$H$90,6,0)","v":1},{"$f":"VLOOKUP($A34,[1]Sheet3!$A$49:$H$90,7,0)","v":4},{"$f":"VLOOKUP($A34,[1]Sheet3!$A$49:$H$90,8,0)","v":0},0,0,0,0,0,0,0,0,0]
["QOC","SHROPSHIRE, TELFORD AND WREKIN ICB",4,"*","*","*","*","*","*","*","*",{"$f":"VLOOKUP($A35,[1]Sheet3!$A$49:$H$90,2,0)","v":4},1,0,{"$f":"VLOOKUP($A35,[1]Sheet3!$A$49:$H$90,3,0)","v":4},{"$f":"VLOOKUP($A35,[1]Sheet3!$A$49:$H$90,4,0)","v":0},{"$f":"VLOOKUP($A35,[1]Sheet3!$A$49:$H$90,5,0)","v":0},{"$f":"VLOOKUP($A35,[1]Sheet3!$A$49:$H$90,6,0)","v":0},{"$f":"VLOOKUP($A35,[1]Sheet3!$A$49:$H$90,7,0)","v":0},{"$f":"VLOOKUP($A35,[1]Sheet3!$A$49:$H$90,8,0)","v":0},0,0,0,0,0,0,0,0,0]
["QOP","GREATER MANCHESTER ICB",474,0.92616033755274263,3.1645569620253167E-2,362,77,19,8,7,1,{"$f":"VLOOKUP($A36,[1]Sheet3!$A$49:$H$90,2,0)","v":474},0.92616033755274263,3.1645569620253167E-2,{"$f":"VLOOKUP($A36,[1]Sheet3!$A$49:$H$90,3,0)","v":362},{"$f":"VLOOKUP($A36,[1]Sheet3!$A$49:$H$90,4,0)","v":77},{"$f":"VLOOKUP($A36,[1]Sheet3!$A$49:$H$90,5,0)","v":19},{"$f":"VLOOKUP($A36,[1]Sheet3!$A$49:$H$90,6,0)","v":8},{"$f":"VLOOKUP($A36,[1]Sheet3!$A$49:$H$90,7,0)","v":7},{"$f":"VLOOKUP($A36,[1]Sheet3!$A$49:$H$90,8,0)","v":1},0,0,0,0,0,0,0,0,0]
["QOQ","HUMBER AND NORTH YORKSHIRE ICB",65,0.93846153846153846,6.1538461538461542E-2,57,4,0,1,3,0,{"$f":"VLOOKUP($A37,[1]Sheet3!$A$49:$H$90,2,0)","v":65},0.93846153846153846,6.1538461538461542E-2,{"$f":"VLOOKUP($A37,[1]Sheet3!$A$49:$H$90,3,0)","v":57},{"$f":"VLOOKUP($A37,[1]Sheet3!$A$49:$H$90,4,0)","v":4},{"$f":"VLOOKUP($A37,[1]Sheet3!$A$49:$H$90,5,0)","v":0},{"$f":"VLOOKUP($A37,[1]Sheet3!$A$49:$H$90,6,0)","v":1},{"$f":"VLOOKUP($A37,[1]Sheet3!$A$49:$H$90,7,0)","v":3},{"$f":"VLOOKUP($A37,[1]Sheet3!$A$49:$H$90,8,0)","v":0},0,0,0,0,0,0,0,0,0]
["QOX","BATH AND NORTH EAST SOMERSET, SWINDON AND WILTSHIRE ICB",185,0.91891891891891897,5.4054054054054057E-2,151,19,3,8,2,2,{"$f":"VLOOKUP($A38,[1]Sheet3!$A$49:$H$90,2,0)","v":185},0.91891891891891897,5.4054054054054057E-2,{"$f":"VLOOKUP($A38,[1]Sheet3!$A$49:$H$90,3,0)","v":151},{"$f":"VLOOKUP($A38,[1]Sheet3!$A$49:$H$90,4,0)","v":19},{"$f":"VLOOKUP($A38,[1]Sheet3!$A$49:$H$90,5,0)","v":3},{"$f":"VLOOKUP($A38,[1]Sheet3!$A$49:$H$90,6,0)","v":8},{"$f":"VLOOKUP($A38,[1]Sheet3!$A$49:$H$90,7,0)","v":2},{"$f":"VLOOKUP($A38,[1]Sheet3!$A$49:$H$90,8,0)","v":2},0,0,0,0,0,0,0,0,0]
["QPM","NORTHAMPTONSHIRE ICB",133,0.94736842105263153,1.5037593984962405E-2,104,22,5,2,0,0,{"$f":"VLOOKUP($A39,[1]Sheet3!$A$49:$H$90,2,0)","v":133},0.94736842105263153,1.5037593984962405E-2,{"$f":"VLOOKUP($A39,[1]Sheet3!$A$49:$H$90,3,0)","v":104},{"$f":"VLOOKUP($A39,[1]Sheet3!$A$49:$H$90,4,0)","v":22},{"$f":"VLOOKUP($A39,[1]Sheet3!$A$49:$H$90,5,0)","v":5},{"$f":"VLOOKUP($A39,[1]Sheet3!$A$49:$H$90,6,0)","v":2},{"$f":"VLOOKUP($A39,[1]Sheet3!$A$49:$H$90,7,0)","v":0},{"$f":"VLOOKUP($A39,[1]Sheet3!$A$49:$H$90,8,0)","v":0},0,0,0,0,0,0,0,0,0]
["QR1","GLOUCESTERSHIRE ICB",51,0.90196078431372551,3.9215686274509803E-2,29,17,3,1,1,0,{"$f":"VLOOKUP($A40,[1]Sheet3!$A$49:$H$90,2,0)","v":51},0.90196078431372551,3.9215686274509803E-2,{"$f":"VLOOKUP($A40,[1]Sheet3!$A$49:$H$90,3,0)","v":29},{"$f":"VLOOKUP($A40,[1]Sheet3!$A$49:$H$90,4,0)","v":17},{"$f":"VLOOKUP($A40,[1]Sheet3!$A$49:$H$90,5,0)","v":3},{"$f":"VLOOKUP($A40,[1]Sheet3!$A$49:$H$90,6,0)","v":1},{"$f":"VLOOKUP($A40,[1]Sheet3!$A$49:$H$90,7,0)","v":1},{"$f":"VLOOKUP($A40,[1]Sheet3!$A$49:$H$90,8,0)","v":0},0,0,0,0,0,0,0,0,0]
["QRL","HAMPSHIRE AND ISLE OF WIGHT ICB",482,0.92323651452282163,3.9419087136929459E-2,334,111,15,11,8,3,{"$f":"VLOOKUP($A41,[1]Sheet3!$A$49:$H$90,2,0)","v":482},0.92323651452282163,3.9419087136929459E-2,{"$f":"VLOOKUP($A41,[1]Sheet3!$A$49:$H$90,3,0)","v":334},{"$f":"VLOOKUP($A41,[1]Sheet3!$A$49:$H$90,4,0)","v":111},{"$f":"VLOOKUP($A41,[1]Sheet3!$A$49:$H$90,5,0)","v":15},{"$f":"VLOOKUP($A41,[1]Sheet3!$A$49:$H$90,6,0)","v":11},{"$f":"VLOOKUP($A41,[1]Sheet3!$A$49:$H$90,7,0)","v":8},{"$f":"VLOOKUP($A41,[1]Sheet3!$A$49:$H$90,8,0)","v":3},0,0,0,0,0,0,0,0,0]
["QRV","NORTH WEST LONDON ICB",324,0.92901234567901236,3.0864197530864196E-2,205,96,12,3,7,1,{"$f":"VLOOKUP($A42,[1]Sheet3!$A$49:$H$90,2,0)","v":324},0.92901234567901236,3.0864197530864196E-2,{"$f":"VLOOKUP($A42,[1]Sheet3!$A$49:$H$90,3,0)","v":205},{"$f":"VLOOKUP($A42,[1]Sheet3!$A$49:$H$90,4,0)","v":96},{"$f":"VLOOKUP($A42,[1]Sheet3!$A$49:$H$90,5,0)","v":12},{"$f":"VLOOKUP($A42,[1]Sheet3!$A$49:$H$90,6,0)","v":3},{"$f":"VLOOKUP($A42,[1]Sheet3!$A$49:$H$90,7,0)","v":7},{"$f":"VLOOKUP($A42,[1]Sheet3!$A$49:$H$90,8,0)","v":1},0,0,0,0,0,0,0,0,0]
["QSL","SOMERSET ICB",4,"*","*","*","*","*","*","*","*",{"$f":"VLOOKUP($A43,[1]Sheet3!$A$49:$H$90,2,0)","v":4},1,0,{"$f":"VLOOKUP($A43,[1]Sheet3!$A$49:$H$90,3,0)","v":2},{"$f":"VLOOKUP($A43,[1]Sheet3!$A$49:$H$90,4,0)","v":2},{"$f":"VLOOKUP($A43,[1]Sheet3!$A$49:$H$90,5,0)","v":0},{"$f":"VLOOKUP($A43,[1]Sheet3!$A$49:$H$90,6,0)","v":0},{"$f":"VLOOKUP($A43,[1]Sheet3!$A$49:$H$90,7,0)","v":0},{"$f":"VLOOKUP($A43,[1]Sheet3!$A$49:$H$90,8,0)","v":0},0,0,0,0,0,0,0,0,0]
["QT1","NOTTINGHAM AND NOTTINGHAMSHIRE ICB",119,0.91596638655462181,5.0420168067226892E-2,82,27,3,2,4,1,{"$f":"VLOOKUP($A44,[1]Sheet3!$A$49:$H$90,2,0)","v":119},0.91596638655462181,5.0420168067226892E-2,{"$f":"VLOOKUP($A44,[1]Sheet3!$A$49:$H$90,3,0)","v":82},{"$f":"VLOOKUP($A44,[1]Sheet3!$A$49:$H$90,4,0)","v":27},{"$f":"VLOOKUP($A44,[1]Sheet3!$A$49:$H$90,5,0)","v":3},{"$f":"VLOOKUP($A44,[1]Sheet3!$A$49:$H$90,6,0)","v":2},{"$f":"VLOOKUP($A44,[1]Sheet3!$A$49:$H$90,7,0)","v":4},{"$f":"VLOOKUP($A44,[1]Sheet3!$A$49:$H$90,8,0)","v":1},0,0,0,0,0,0,0,0,0]
["QT6","CORNWALL AND THE ISLES OF SCILLY ICB",3,"*","*","*","*","*","*","*","*",{"$f":"VLOOKUP($A45,[1]Sheet3!$A$49:$H$90,2,0)","v":3},0.66666666666666663,0.33333333333333331,{"$f":"VLOOKUP($A45,[1]Sheet3!$A$49:$H$90,3,0)","v":0},{"$f":"VLOOKUP($A45,[1]Sheet3!$A$49:$H$90,4,0)","v":2},{"$f":"VLOOKUP($A45,[1]Sheet3!$A$49:$H$90,5,0)","v":0},{"$f":"VLOOKUP($A45,[1]Sheet3!$A$49:$H$90,6,0)","v":1},{"$f":"VLOOKUP($A45,[1]Sheet3!$A$49:$H$90,7,0)","v":0},{"$f":"VLOOKUP($A45,[1]Sheet3!$A$49:$H$90,8,0)","v":0},0,0,0,0,0,0,0,0,0]
["QU9","BUCKINGHAMSHIRE, OXFORDSHIRE AND BERKSHIRE WEST ICB",114,0.89473684210526316,5.2631578947368418E-2,84,18,6,3,3,0,{"$f":"VLOOKUP($A46,[1]Sheet3!$A$49:$H$90,2,0)","v":114},0.89473684210526316,5.2631578947368418E-2,{"$f":"VLOOKUP($A46,[1]Sheet3!$A$49:$H$90,3,0)","v":84},{"$f":"VLOOKUP($A46,[1]Sheet3!$A$49:$H$90,4,0)","v":18},{"$f":"VLOOKUP($A46,[1]Sheet3!$A$49:$H$90,5,0)","v":6},{"$f":"VLOOKUP($A46,[1]Sheet3!$A$49:$H$90,6,0)","v":3},{"$f":"VLOOKUP($A46,[1]Sheet3!$A$49:$H$90,7,0)","v":3},{"$f":"VLOOKUP($A46,[1]Sheet3!$A$49:$H$90,8,0)","v":0},0,0,0,0,0,0,0,0,0]
["QUA","BLACK COUNTRY ICB",169,0.84023668639053251,4.7337278106508875E-2,117,25,1,3,5,18,{"$f":"VLOOKUP($A47,[1]Sheet3!$A$49:$H$90,2,0)","v":169},0.84023668639053251,4.7337278106508875E-2,{"$f":"VLOOKUP($A47,[1]Sheet3!$A$49:$H$90,3,0)","v":117},{"$f":"VLOOKUP($A47,[1]Sheet3!$A$49:$H$90,4,0)","v":25},{"$f":"VLOOKUP($A47,[1]Sheet3!$A$49:$H$90,5,0)","v":1},{"$f":"VLOOKUP($A47,[1]Sheet3!$A$49:$H$90,6,0)","v":3},{"$f":"VLOOKUP($A47,[1]Sheet3!$A$49:$H$90,7,0)","v":5},{"$f":"VLOOKUP($A47,[1]Sheet3!$A$49:$H$90,8,0)","v":18},0,0,0,0,0,0,0,0,0]
["QUE","CAMBRIDGESHIRE AND PETERBOROUGH ICB",156,0.94230769230769229,1.9230769230769232E-2,121,26,3,0,3,3,{"$f":"VLOOKUP($A48,[1]Sheet3!$A$49:$H$90,2,0)","v":156},0.94230769230769229,1.9230769230769232E-2,{"$f":"VLOOKUP($A48,[1]Sheet3!$A$49:$H$90,3,0)","v":121},{"$f":"VLOOKUP($A48,[1]Sheet3!$A$49:$H$90,4,0)","v":26},{"$f":"VLOOKUP($A48,[1]Sheet3!$A$49:$H$90,5,0)","v":3},{"$f":"VLOOKUP($A48,[1]Sheet3!$A$49:$H$90,6,0)","v":0},{"$f":"VLOOKUP($A48,[1]Sheet3!$A$49:$H$90,7,0)","v":3},{"$f":"VLOOKUP($A48,[1]Sheet3!$A$49:$H$90,8,0)","v":3},0,0,0,0,0,0,0,0,0]
["QUY","BRISTOL, NORTH SOMERSET AND SOUTH GLOUCESTERSHIRE ICB",61,0.85245901639344257,9.8360655737704916E-2,44,8,3,4,2,0,{"$f":"VLOOKUP($A49,[1]Sheet3!$A$49:$H$90,2,0)","v":61},0.85245901639344257,9.8360655737704916E-2,{"$f":"VLOOKUP($A49,[1]Sheet3!$A$49:$H$90,3,0)","v":44},{"$f":"VLOOKUP($A49,[1]Sheet3!$A$49:$H$90,4,0)","v":8},{"$f":"VLOOKUP($A49,[1]Sheet3!$A$49:$H$90,5,0)","v":3},{"$f":"VLOOKUP($A49,[1]Sheet3!$A$49:$H$90,6,0)","v":4},{"$f":"VLOOKUP($A49,[1]Sheet3!$A$49:$H$90,7,0)","v":2},{"$f":"VLOOKUP($A49,[1]Sheet3!$A$49:$H$90,8,0)","v":0},0,0,0,0,0,0,0,0,0]
["QVV","DORSET ICB",13,0.69230769230769229,0.23076923076923078,8,1,1,1,2,0,{"$f":"VLOOKUP($A50,[1]Sheet3!$A$49:$H$90,2,0)","v":13},0.69230769230769229,0.23076923076923078,{"$f":"VLOOKUP($A50,[1]Sheet3!$A$49:$H$90,3,0)","v":8},{"$f":"VLOOKUP($A50,[1]Sheet3!$A$49:$H$90,4,0)","v":1},{"$f":"VLOOKUP($A50,[1]Sheet3!$A$49:$H$90,5,0)","v":1},{"$f":"VLOOKUP($A50,[1]Sheet3!$A$49:$H$90,6,0)","v":1},{"$f":"VLOOKUP($A50,[1]Sheet3!$A$49:$H$90,7,0)","v":2},{"$f":"VLOOKUP($A50,[1]Sheet3!$A$49:$H$90,8,0)","v":0},0,0,0,0,0,0,0,0,0]
["QWE","SOUTH WEST LONDON ICB",217,0.97695852534562211,4.608294930875576E-3,173,39,4,1,0,0,{"$f":"VLOOKUP($A51,[1]Sheet3!$A$49:$H$90,2,0)","v":217},0.97695852534562211,4.608294930875576E-3,{"$f":"VLOOKUP($A51,[1]Sheet3!$A$49:$H$90,3,0)","v":173},{"$f":"VLOOKUP($A51,[1]Sheet3!$A$49:$H$90,4,0)","v":39},{"$f":"VLOOKUP($A51,[1]Sheet3!$A$49:$H$90,5,0)","v":4},{"$f":"VLOOKUP($A51,[1]Sheet3!$A$49:$H$90,6,0)","v":1},{"$f":"VLOOKUP($A51,[1]Sheet3!$A$49:$H$90,7,0)","v":0},{"$f":"VLOOKUP($A51,[1]Sheet3!$A$49:$H$90,8,0)","v":0},0,0,0,0,0,0,0,0,0]
["QWO","WEST YORKSHIRE ICB",251,0.94422310756972117,4.3824701195219126E-2,186,51,3,7,4,0,{"$f":"VLOOKUP($A52,[1]Sheet3!$A$49:$H$90,2,0)","v":251},0.94422310756972117,4.3824701195219126E-2,{"$f":"VLOOKUP($A52,[1]Sheet3!$A$49:$H$90,3,0)","v":186},{"$f":"VLOOKUP($A52,[1]Sheet3!$A$49:$H$90,4,0)","v":51},{"$f":"VLOOKUP($A52,[1]Sheet3!$A$49:$H$90,5,0)","v":3},{"$f":"VLOOKUP($A52,[1]Sheet3!$A$49:$H$90,6,0)","v":7},{"$f":"VLOOKUP($A52,[1]Sheet3!$A$49:$H$90,7,0)","v":4},{"$f":"VLOOKUP($A52,[1]Sheet3!$A$49:$H$90,8,0)","v":0},0,0,0,0,0,0,0,0,0]
["QWU","COVENTRY AND WARWICKSHIRE ICB",78,0.97435897435897434,1.282051282051282E-2,65,11,1,1,0,0,{"$f":"VLOOKUP($A53,[1]Sheet3!$A$49:$H$90,2,0)","v":78},0.97435897435897434,1.282051282051282E-2,{"$f":"VLOOKUP($A53,[1]Sheet3!$A$49:$H$90,3,0)","v":65},{"$f":"VLOOKUP($A53,[1]Sheet3!$A$49:$H$90,4,0)","v":11},{"$f":"VLOOKUP($A53,[1]Sheet3!$A$49:$H$90,5,0)","v":1},{"$f":"VLOOKUP($A53,[1]Sheet3!$A$49:$H$90,6,0)","v":1},{"$f":"VLOOKUP($A53,[1]Sheet3!$A$49:$H$90,7,0)","v":0},{"$f":"VLOOKUP($A53,[1]Sheet3!$A$49:$H$90,8,0)","v":0},0,0,0,0,0,0,0,0,0]
["QXU","SURREY HEARTLANDS ICB",58,0.94827586206896552,3.4482758620689655E-2,42,13,1,1,1,0,{"$f":"VLOOKUP($A54,[1]Sheet3!$A$49:$H$90,2,0)","v":58},0.94827586206896552,3.4482758620689655E-2,{"$f":"VLOOKUP($A54,[1]Sheet3!$A$49:$H$90,3,0)","v":42},{"$f":"VLOOKUP($A54,[1]Sheet3!$A$49:$H$90,4,0)","v":13},{"$f":"VLOOKUP($A54,[1]Sheet3!$A$49:$H$90,5,0)","v":1},{"$f":"VLOOKUP($A54,[1]Sheet3!$A$49:$H$90,6,0)","v":1},{"$f":"VLOOKUP($A54,[1]Sheet3!$A$49:$H$90,7,0)","v":1},{"$f":"VLOOKUP($A54,[1]Sheet3!$A$49:$H$90,8,0)","v":0},0,0,0,0,0,0,0,0,0]
["QYG","CHESHIRE AND MERSEYSIDE ICB",162,0.88888888888888884,6.7901234567901231E-2,118,26,7,3,8,0,{"$f":"VLOOKUP($A55,[1]Sheet3!$A$49:$H$90,2,0)","v":162},0.88888888888888884,6.7901234567901231E-2,{"$f":"VLOOKUP($A55,[1]Sheet3!$A$49:$H$90,3,0)","v":118},{"$f":"VLOOKUP($A55,[1]Sheet3!$A$49:$H$90,4,0)","v":26},{"$f":"VLOOKUP($A55,[1]Sheet3!$A$49:$H$90,5,0)","v":7},{"$f":"VLOOKUP($A55,[1]Sheet3!$A$49:$H$90,6,0)","v":3},{"$f":"VLOOKUP($A55,[1]Sheet3!$A$49:$H$90,7,0)","v":8},{"$f":"VLOOKUP($A55,[1]Sheet3!$A$49:$H$90,8,0)","v":0},0,0,0,0,0,0,0,0,0]

{"sheet":"Trusts Q3","index":9,"n_rows":125,"n_cols":20,"rows_kept":125,"cut":false,"hidden":false,"merged":[[8,6,8,11],[8,12,8,19],[8,0,9,0],[8,1,9,1],[8,2,9,2],[8,3,9,3],[8,4,9,4],[8,5,9,5]]}
[]
[]
[]
[]
[]
[null,"   Sort data by:           "]
[]
[]
["ICB Code","Trust Code","Trust Name","Total Responses","Percentage Positive","Percentage Negative","Breakdown of Responses",null,null,null,null,null,"Mode of Collection"]
[null,null,null,null,null,null,"Very Good","Good","Neither Good nor Poor","Poor","Very Poor","Don't Know","Mode SMS","Mode Electronic Discharge","Mode Electronic Home","Mode Paper Discharge","Mode Paper Home","Mode Telephone","Mode Online","Mode Other"]
[null,null,"England (including Independent Sector providers)",5616,0.91969373219373218,4.5049857549857547E-2,4024,1141,164,125,128,34,1135,1514,85,1932,61,0,885,4]
[null,null,"England (excluding Independent Sector providers)",5616,0.91969373219373218,4.5049857549857547E-2,4024,1141,164,125,128,34,1135,1514,85,1932,61,0,885,4]
[null,null,"Selection (excluding suppressed data)",{"$f":"SUBTOTAL(9,D14:D299)","v":5616},{"$f":"IFERROR((G13+H13)/SUM(G13:L13), \"-\")","v":0.9209950248756219},{"$f":"IFERROR((J13+K13)/SUM(G13:L13), \"-\")","v":4.2189054726368157E-2},{"$f":"SUBTOTAL(9,G14:G299)","v":3573},1055,152,106,106,33,1008,1349,85,1746,61,0,773,{"$f":"SUBTOTAL(9,T14:T299)","v":3}]
["QE1","RXN","LANCASHIRE TEACHING HOSPITALS NHS FOUNDATION TRUST",13,0.76923076923076927,0.15384615384615385,8,2,1,0,2,0,13,0,0,0,0,0,0,0]
["QE1","RTX","UNIVERSITY HOSPITALS OF MORECAMBE BAY NHS FOUNDATION TRUST",21,1,0,18,3,0,0,0,0,0,0,0,0,0,0,21,0]
["QE1","RXR","EAST LANCASHIRE HOSPITALS NHS TRUST",58,0.74137931034482762,0.15517241379310345,30,13,6,5,4,0,49,0,0,9,0,0,0,0]
["QE1","RXL","BLACKPOOL TEACHING HOSPITALS NHS FOUNDATION TRUST",98,0.75510204081632648,0.15306122448979592,42,32,8,8,7,1,19,0,0,78,0,0,1,0]
["QF7","RP5","DONCASTER AND BASSETLAW TEACHING HOSPITALS NHS FOUNDATION TRUST",3,"*","*","*","*","*","*","*","*","*","*","*","*","*","*","*","*"]
["QF7","RFR","THE ROTHERHAM NHS FOUNDATION TRUST",4,"*","*","*","*","*","*","*","*","*","*","*","*","*","*","*","*"]
["QF7","RHQ","SHEFFIELD TEACHING HOSPITALS NHS FOUNDATION TRUST",22,0.90909090909090906,9.0909090909090912E-2,14,6,0,2,0,0,19,0,0,0,0,0,3,0]
["QF7","RFF","BARNSLEY HOSPITAL NHS FOUNDATION TRUST",30,1,0,29,1,0,0,0,0,4,24,0,0,0,0,2,0]
["QGH","RLQ","WYE VALLEY NHS TRUST",19,0.89473684210526316,5.2631578947368418E-2,13,4,1,1,0,0,19,0,0,0,0,0,0,0]
["QGH","RWP","WORCESTERSHIRE ACUTE HOSPITALS NHS TRUST",25,0.92,0,18,5,2,0,0,0,0,25,0,0,0,0,0,0]
["QH8","RAJ","MID AND SOUTH ESSEX NHS FOUNDATION TRUST",75,0.76,0.16,50,7,5,3,9,1,61,0,0,0,0,0,14,0]
["QHG","RD8","MILTON KEYNES UNIVERSITY HOSPITAL NHS FOUNDATION TRUST",30,0.93333333333333335,6.6666666666666666E-2,17,11,0,2,0,0,8,0,0,18,0,0,4,0]
["QHG","RC9","BEDFORDSHIRE HOSPITALS NHS FOUNDATION TRUST",172,0.93604651162790697,4.0697674418604654E-2,118,43,4,3,4,0,0,168,0,0,0,0,4,0]
["QHL","RXK","SANDWELL AND WEST BIRMINGHAM HOSPITALS NHS TRUST",1,"*","*","*","*","*","*","*","*","*","*","*","*","*","*","*","*"]
["QHL","RRK","UNIVERSITY HOSPITALS BIRMINGHAM NHS FOUNDATION TRUST",33,0.84848484848484851,0.15151515151515152,"*","*","*","*","*","*","*","*","*","*","*","*","*","*"]
["QHL","RQ3","BIRMINGHAM WOMEN'S AND CHILDREN'S NHS FOUNDATION TRUST",126,0.96031746031746035,7.9365079365079361E-3,101,20,4,0,1,0,0,0,0,0,0,0,126,0]
["QHM","RVW","NORTH TEES AND HARTLEPOOL NHS FOUNDATION TRUST",1,"*","*","*","*","*","*","*","*","*","*","*","*","*","*","*","*"]
["QHM","RR7","GATESHEAD HEALTH NHS FOUNDATION TRUST",8,1,0,"*","*","*","*","*","*","*","*","*","*","*","*","*","*"]
["QHM","RTR","SOUTH TEES HOSPITALS NHS FOUNDATION TRUST",9,0.77777777777777779,0.22222222222222221,7,0,0,1,1,0,7,2,0,0,0,0,0,0]
["QHM","RNN","NORTH CUMBRIA INTEGRATED CARE NHS FOUNDATION TRUST",15,1,0,13,2,0,0,0,0,0,0,0,0,15,0,0,0]
["QHM","R0B","SOUTH TYNESIDE AND SUNDERLAND NHS FOUNDATION TRUST",24,1,0,19,5,0,0,0,0,0,0,0,20,0,0,4,0]
["QHM","RTD","THE NEWCASTLE UPON TYNE HOSPITALS NHS FOUNDATION TRUST",55,0.87272727272727268,9.0909090909090912E-2,46,2,2,4,1,0,55,0,0,0,0,0,0,0]
["QHM","RXP","COUNTY DURHAM AND DARLINGTON NHS FOUNDATION TRUST",162,0.99382716049382713,0,135,26,1,0,0,0,0,0,0,162,0,0,0,0]
["QJ2","RTG","UNIVERSITY HOSPITALS OF DERBY AND BURTON NHS FOUNDATION TRUST",29,0.93103448275862066,6.8965517241379309E-2,21,6,0,1,1,0,25,0,0,4,0,0,0,0]
["QJ2","RFS","CHESTERFIELD ROYAL HOSPITAL NHS FOUNDATION TRUST",53,0.94339622641509435,3.7735849056603772E-2,39,11,1,1,1,0,11,4,38,0,0,0,0,0]
["QJG","RDE","EAST SUFFOLK AND NORTH ESSEX NHS FOUNDATION TRUST",4,"*","*","*","*","*","*","*","*","*","*","*","*","*","*","*","*"]
["QJG","RGR","WEST SUFFOLK NHS FOUNDATION TRUST",32,0.84375,0.125,"*","*","*","*","*","*","*","*","*","*","*","*","*","*"]
["QJK","RA9","TORBAY AND SOUTH DEVON NHS FOUNDATION TRUST",0,"NA","NA",0,0,0,0,0,0,0,0,0,0,0,0,0,0]
["QJK","RK9","UNIVERSITY HOSPITALS PLYMOUTH NHS TRUST",0,"NA","NA",0,0,0,0,0,0,0,0,0,0,0,0,0,0]
["QJK","RH8","ROYAL DEVON UNIVERSITY HEALTHCARE NHS FOUNDATION TRUST",13,0.92307692307692313,0,"*","*","*","*","*","*","*","*","*","*","*","*","*","*"]
["QJM","RWD","UNITED LINCOLNSHIRE TEACHING HOSPITALS NHS TRUST",0,"NA","NA",0,0,0,0,0,0,0,0,0,0,0,0,0,0]
["QK1","RWE","UNIVERSITY HOSPITALS OF LEICESTER NHS TRUST",102,0.88235294117647056,5.8823529411764705E-2,62,28,6,5,1,0,0,102,0,0,0,0,0,0]
["QKK","RJ2","LEWISHAM AND GREENWICH NHS TRUST",62,0.91935483870967738,4.8387096774193547E-2,33,24,2,3,0,0,0,59,0,3,0,0,0,0]
["QKK","RJ1","GUY'S AND ST THOMAS' NHS FOUNDATION TRUST",85,0.87058823529411766,5.8823529411764705E-2,42,32,5,4,1,1,0,0,0,82,0,0,3,0]
["QKS","RPA","MEDWAY NHS FOUNDATION TRUST",31,0.83870967741935487,6.4516129032258063E-2,23,3,3,2,0,0,0,0,0,0,0,0,31,0]
["QKS","RVV","EAST KENT HOSPITALS UNIVERSITY NHS FOUNDATION TRUST",32,0.875,3.125E-2,21,7,3,1,0,0,32,0,0,0,0,0,0,0]
["QKS","RWF","MAIDSTONE AND TUNBRIDGE WELLS NHS TRUST",73,0.93150684931506844,5.4794520547945202E-2,58,10,1,2,2,0,61,0,0,0,0,0,12,0]
["QKS","RN7","DARTFORD AND GRAVESHAM NHS TRUST",89,1,0,76,13,0,0,0,0,0,76,0,0,0,0,13,0]
["QM7","RWG","WEST HERTFORDSHIRE TEACHING HOSPITALS NHS TRUST",0,"NA","NA",0,0,0,0,0,0,0,0,0,0,0,0,0,0]
["QM7","RQW","THE PRINCESS ALEXANDRA HOSPITAL NHS TRUST",7,0.8571428571428571,0.14285714285714285,5,1,0,0,1,0,7,0,0,0,0,0,0,0]
["QM7","RWH","EAST AND NORTH HERTFORDSHIRE NHS TRUST",78,0.96153846153846156,2.564102564102564E-2,58,17,1,2,0,0,0,18,47,9,0,0,1,3]
["QMF","RQX","HOMERTON HEALTHCARE NHS FOUNDATION TRUST",4,"*","*","*","*","*","*","*","*","*","*","*","*","*","*","*","*"]
["QMF","RF4","BARKING, HAVERING AND REDBRIDGE UNIVERSITY HOSPITALS NHS TRUST",95,0.90526315789473688,7.3684210526315783E-2,"*","*","*","*","*","*","*","*","*","*","*","*","*","*"]
["QMF","R1H","BARTS HEALTH NHS TRUST",136,0.95588235294117652,3.6764705882352942E-2,117,13,1,1,4,0,1,0,0,118,0,0,17,0]
["QMJ","RRV","UNIVERSITY COLLEGE LONDON HOSPITALS NHS FOUNDATION TRUST",0,"NA","NA",0,0,0,0,0,0,0,0,0,0,0,0,0,0]
["QMJ","RKE","WHITTINGTON HEALTH NHS TRUST",126,0.99206349206349209,7.9365079365079361E-3,23,102,0,0,1,0,0,0,0,2,0,0,124,0]
["QMJ","RAL","ROYAL FREE LONDON NHS FOUNDATION TRUST",135,0.88888888888888884,5.185185185185185E-2,99,21,7,2,5,1,14,118,0,0,2,0,1,0]
["QMM","RGP","JAMES PAGET UNIVERSITY HOSPITALS NHS FOUNDATION TRUST",4,"*","*","*","*","*","*","*","*","*","*","*","*","*","*","*","*"]
["QMM","RM1","NORFOLK AND NORWICH UNIVERSITY HOSPITALS NHS FOUNDATION TRUST",5,0.6,0.4,"*","*","*","*","*","*","*","*","*","*","*","*","*","*"]
["QMM","RCX","THE QUEEN ELIZABETH HOSPITAL, KING'S LYNN, NHS FOUNDATION TRUST",16,1,0,14,2,0,0,0,0,0,0,0,15,0,0,1,0]
["QNC","RJE","UNIVERSITY HOSPITALS OF NORTH MIDLANDS NHS TRUST",49,0.87755102040816324,8.1632653061224483E-2,40,3,2,2,2,0,16,0,0,32,0,0,1,0]
["QNQ","RDU","FRIMLEY HEALTH NHS FOUNDATION TRUST",83,0.98795180722891562,1.2048192771084338E-2,65,17,0,0,1,0,0,0,0,0,0,0,83,0]
["QNX","RYR","UNIVERSITY HOSPITALS SUSSEX NHS FOUNDATION TRUST",146,0.93835616438356162,3.4246575342465752E-2,118,19,4,1,4,0,146,0,0,0,0,0,0,0]
["QOC","RXW","THE SHREWSBURY AND TELFORD HOSPITAL NHS TRUST",4,"*","*","*","*","*","*","*","*","*","*","*","*","*","*","*","*"]
["QOP","RRF","WRIGHTINGTON, WIGAN AND LEIGH NHS FOUNDATION TRUST",19,1,0,17,2,0,0,0,0,0,0,0,19,0,0,0,0]
["QOP","RMP","TAMESIDE AND GLOSSOP INTEGRATED CARE NHS FOUNDATION TRUST",36,0.83333333333333337,0.1111111111111111,26,4,2,2,2,0,0,17,0,19,0,0,0,0]
["QOP","RWJ","STOCKPORT NHS FOUNDATION TRUST",39,1,0,34,5,0,0,0,0,0,0,0,39,0,0,0,0]
["QOP","RMC","BOLTON NHS FOUNDATION TRUST",93,0.92473118279569888,0,71,15,7,0,0,0,46,27,0,20,0,0,0,0]
["QOP","R0A","MANCHESTER UNIVERSITY NHS FOUNDATION TRUST",287,0.9233449477351916,3.8327526132404179E-2,214,51,10,6,5,1,0,220,0,58,0,0,9,0]
["QOQ","RCD","HARROGATE AND DISTRICT NHS FOUNDATION TRUST",0,"NA","NA",0,0,0,0,0,0,0,0,0,0,0,0,0,0]
["QOQ","RJL","NORTHERN LINCOLNSHIRE AND GOOLE NHS FOUNDATION TRUST",3,"*","*","*","*","*","*","*","*","*","*","*","*","*","*","*","*"]
["QOQ","RCB","YORK AND SCARBOROUGH TEACHING HOSPITALS NHS FOUNDATION TRUST",11,1,0,"*","*","*","*","*","*","*","*","*","*","*","*","*","*"]
["QOQ","RWA","HULL UNIVERSITY TEACHING HOSPITALS NHS TRUST",51,0.92156862745098034,7.8431372549019607E-2,44,3,0,1,3,0,45,0,0,0,0,0,6,0]
["QOX","RNZ","SALISBURY NHS FOUNDATION TRUST",2,"*","*","*","*","*","*","*","*","*","*","*","*","*","*","*","*"]
["QOX","RD1","ROYAL UNITED HOSPITALS BATH NHS FOUNDATION TRUST",81,0.96296296296296291,2.4691358024691357E-2,"*","*","*","*","*","*","*","*","*","*","*","*","*","*"]
["QOX","RN3","GREAT WESTERN HOSPITALS NHS FOUNDATION TRUST",102,0.89215686274509809,6.8627450980392163E-2,79,12,2,5,2,2,0,99,0,0,0,0,3,0]
["QPM","RNQ","KETTERING GENERAL HOSPITAL NHS FOUNDATION TRUST",35,0.97142857142857142,0,31,3,1,0,0,0,0,0,0,0,21,0,14,0]
["QPM","RNS","NORTHAMPTON GENERAL HOSPITAL NHS TRUST",98,0.93877551020408168,2.0408163265306121E-2,73,19,4,2,0,0,17,0,0,80,0,0,1,0]
["QR1","RTE","GLOUCESTERSHIRE HOSPITALS NHS FOUNDATION TRUST",51,0.90196078431372551,3.9215686274509803E-2,29,17,3,1,1,0,40,9,0,0,0,0,2,0]
["QRL","R1F","ISLE OF WIGHT NHS TRUST",10,1,0,9,1,0,0,0,0,0,0,0,0,10,0,0,0]
["QRL","RHM","UNIVERSITY HOSPITAL SOUTHAMPTON NHS FOUNDATION TRUST",139,0.85611510791366907,9.3525179856115109E-2,82,37,7,8,5,0,0,0,0,0,0,0,139,0]
["QRL","RHU","PORTSMOUTH HOSPITALS UNIVERSITY NATIONAL HEALTH SERVICE TRUST",149,0.93288590604026844,2.0134228187919462E-2,103,36,6,1,2,1,0,0,0,149,0,0,0,0]
["QRL","RN5","HAMPSHIRE HOSPITALS NHS FOUNDATION TRUST",184,0.96195652173913049,1.6304347826086956E-2,140,37,2,2,1,2,0,0,0,182,0,0,2,0]
["QRV","RYJ","IMPERIAL COLLEGE HEALTHCARE NHS TRUST",79,0.84810126582278478,6.3291139240506333E-2,43,24,7,2,3,0,0,37,0,10,0,0,32,0]
["QRV","R1K","LONDON NORTH WEST UNIVERSITY HEALTHCARE NHS TRUST",99,0.97979797979797978,1.0101010101010102E-2,58,39,1,0,1,0,0,0,0,99,0,0,0,0]
["QRV","RAS","THE HILLINGDON HOSPITALS NHS FOUNDATION TRUST",146,0.93835616438356162,2.7397260273972601E-2,104,33,4,1,3,1,0,0,0,118,0,0,28,0]
["QSL","RH5","SOMERSET NHS FOUNDATION TRUST",4,"*","*","*","*","*","*","*","*","*","*","*","*","*","*","*","*"]
["QT1","RK5","SHERWOOD FOREST HOSPITALS NHS FOUNDATION TRUST",28,0.8571428571428571,7.1428571428571425E-2,15,9,2,0,2,0,0,0,0,0,0,0,28,0]
["QT1","RX1","NOTTINGHAM UNIVERSITY HOSPITALS NHS TRUST",91,0.93406593406593408,4.3956043956043959E-2,67,18,1,2,2,1,0,38,0,51,0,0,2,0]
["QT6","REF","ROYAL CORNWALL HOSPITALS NHS TRUST",3,"*","*","*","*","*","*","*","*","*","*","*","*","*","*","*","*"]
["QU9","RTH","OXFORD UNIVERSITY HOSPITALS NHS FOUNDATION TRUST",13,0.69230769230769229,0.15384615384615385,7,2,2,1,1,0,0,0,0,0,0,0,13,0]
["QU9","RXQ","BUCKINGHAMSHIRE HEALTHCARE NHS TRUST",30,0.83333333333333337,0.1,19,6,2,1,2,0,27,0,0,0,0,0,3,0]
["QU9","RHW","ROYAL BERKSHIRE NHS FOUNDATION TRUST",71,0.95774647887323938,1.4084507042253521E-2,58,10,2,1,0,0,0,0,0,71,0,0,0,0]
["QUA","RL4","THE ROYAL WOLVERHAMPTON NHS TRUST",32,0.875,9.375E-2,26,2,1,1,2,0,32,0,0,0,0,0,0,0]
["QUA","RNA","THE DUDLEY GROUP NHS FOUNDATION TRUST",49,0.61224489795918369,4.0816326530612242E-2,24,6,0,1,1,17,1,0,0,46,0,0,2,0]
["QUA","RBK","WALSALL HEALTHCARE NHS TRUST",88,0.95454545454545459,3.4090909090909088E-2,67,17,0,1,2,1,16,72,0,0,0,0,0,0]
["QUE","RGT","CAMBRIDGE UNIVERSITY HOSPITALS NHS FOUNDATION TRUST",31,0.87096774193548387,9.6774193548387094E-2,22,5,1,0,3,0,0,19,0,5,0,0,7,0]
["QUE","RGN","NORTH WEST ANGLIA NHS FOUNDATION TRUST",125,0.96,0,99,21,2,0,0,3,0,0,0,125,0,0,0,0]
["QUY","RA7","UNIVERSITY HOSPITALS BRISTOL AND WESTON NHS FOUNDATION TRUST",1,"*","*","*","*","*","*","*","*","*","*","*","*","*","*","*","*"]
["QUY","RVJ","NORTH BRISTOL NHS TRUST",60,0.8666666666666667,0.1,"*","*","*","*","*","*","*","*","*","*","*","*","*","*"]
["QVV","RBD","DORSET COUNTY HOSPITAL NHS FOUNDATION TRUST",3,"*","*","*","*","*","*","*","*","*","*","*","*","*","*","*","*"]
["QVV","R0D","UNIVERSITY HOSPITALS DORSET NHS FOUNDATION TRUST",10,0.6,0.3,"*","*","*","*","*","*","*","*","*","*","*","*","*","*"]
["QWE","RVR","EPSOM AND ST HELIER UNIVERSITY HOSPITALS NHS TRUST",3,"*","*","*","*","*","*","*","*","*","*","*","*","*","*","*","*"]
["QWE","RJ7","ST GEORGE'S UNIVERSITY HOSPITALS NHS FOUNDATION TRUST",37,0.97297297297297303,0,"*","*","*","*","*","*","*","*","*","*","*","*","*","*"]
["QWE","RAX","KINGSTON AND RICHMOND NHS FOUNDATION TRUST",177,0.98305084745762716,0,140,34,3,0,0,0,0,173,0,0,0,0,4,0]
["QWO","RAE","BRADFORD TEACHING HOSPITALS NHS FOUNDATION TRUST",2,"*","*","*","*","*","*","*","*","*","*","*","*","*","*","*","*"]
["QWO","RWY","CALDERDALE AND HUDDERSFIELD NHS FOUNDATION TRUST",69,0.98550724637681164,0,"*","*","*","*","*","*","*","*","*","*","*","*","*","*"]
["QWO","RR8","LEEDS TEACHING HOSPITALS NHS TRUST",78,0.91025641025641024,7.6923076923076927E-2,61,10,1,4,2,0,75,3,0,0,0,0,0,0]
["QWO","RXF","MID YORKSHIRE TEACHING NHS TRUST",102,0.94117647058823528,4.9019607843137254E-2,68,28,1,3,2,0,9,0,0,92,0,0,1,0]
["QWU","RLT","GEORGE ELIOT HOSPITAL NHS TRUST",0,"NA","NA",0,0,0,0,0,0,0,0,0,0,0,0,0,0]
["QWU","RJC","SOUTH WARWICKSHIRE UNIVERSITY NHS FOUNDATION TRUST",3,"*","*","*","*","*","*","*","*","*","*","*","*","*","*","*","*"]
["QWU","RKB","UNIVERSITY HOSPITALS COVENTRY AND WARWICKSHIRE NHS TRUST",75,0.97333333333333338,1.3333333333333334E-2,"*","*","*","*","*","*","*","*","*","*","*","*","*","*"]
["QXU","RTK","ASHFORD AND ST PETER'S HOSPITALS NHS FOUNDATION TRUST",0,"NA","NA",0,0,0,0,0,0,0,0,0,0,0,0,0,0]
["QXU","RA2","ROYAL SURREY COUNTY HOSPITAL NHS FOUNDATION TRUST",14,1,0,13,1,0,0,0,0,0,0,0,1,13,0,0,0]
["QXU","RTP","SURREY AND SUSSEX HEALTHCARE NHS TRUST",44,0.93181818181818177,4.5454545454545456E-2,29,12,1,1,1,0,17,22,0,3,0,0,2,0]
["QYG","RWW","WARRINGTON AND HALTON TEACHING HOSPITALS NHS FOUNDATION TRUST",1,"*","*","*","*","*","*","*","*","*","*","*","*","*","*","*","*"]
["QYG","RJR","COUNTESS OF CHESTER HOSPITAL NHS FOUNDATION TRUST",12,0.83333333333333337,0.16666666666666666,"*","*","*","*","*","*","*","*","*","*","*","*","*","*"]
["QYG","RJN","EAST CHESHIRE NHS TRUST",13,1,0,10,3,0,0,0,0,13,0,0,0,0,0,0,0]
["QYG","RBL","WIRRAL UNIVERSITY TEACHING HOSPITAL NHS FOUNDATION TRUST",24,0.95833333333333337,0,19,4,1,0,0,0,0,17,0,7,0,0,0,0]
["QYG","REP","LIVERPOOL WOMEN'S NHS FOUNDATION TRUST",28,0.8571428571428571,7.1428571428571425E-2,15,9,2,2,0,0,28,0,0,0,0,0,0,0]
["QYG","RBN","MERSEY AND WEST LANCASHIRE TEACHING HOSPITALS NHS TRUST",40,0.92500000000000004,0.05,33,4,1,1,1,0,38,0,0,0,0,0,2,0]
["QYG","RBT","MID CHESHIRE HOSPITALS NHS FOUNDATION TRUST",44,0.84090909090909094,9.0909090909090912E-2,32,5,3,0,4,0,37,0,0,0,0,0,7,0]

{"sheet":"Sites Q3","index":10,"n_rows":176,"n_cols":14,"rows_kept":176,"cut":false,"hidden":false,"merged":[[8,6,9,6],[8,7,9,7],[8,8,8,13],[8,0,9,0],[8,1,9,1],[8,2,9,2],[8,3,9,3],[8,4,9,4],[8,5,9,5]]}
[]
[]
[]
[]
[]
[null,"   Sort data by:           "]
[]
[]
["ICB Code","Trust Code","Trust Name","Site Code","Site Name","Total Responses","Percentage Positive","Percentage Negative","Breakdown of Responses"]
[null,null,null,null,null,null,null,null,"Very Good","Good","Neither Good nor Poor","Poor","Very Poor","Don't Know"]
[null,null,null,null,"England (including Independent Sector providers)",5616,0.91969373219373218,4.5049857549857547E-2,4024,1141,164,125,128,34]
[null,null,null,null,"England (excluding Independent Sector providers)",5616,0.91969373219373218,4.5049857549857547E-2,4024,1141,164,125,128,34]
[null,null,null,null,"Selection (excluding suppressed data)",{"$f":"SUBTOTAL(9,F14:F298)","v":5616},{"$f":"IFERROR((I13+J13)/SUM(I13:N13), \"-\")","v":0.92095102621418412},{"$f":"IFERROR((L13+M13)/SUM(I13:N13), \"-\")","v":4.1658199552936398E-2},{"$f":"SUBTOTAL(9,I14:I298)","v":3490},1042,151,104,101,33]
["QE1","RXL","BLACKPOOL TEACHING HOSPITALS NHS FOUNDATION TRUST","RXL01","Blackpool Victoria Hospital",98,0.75510204081632648,0.15306122448979592,42,32,8,8,7,1]
["QE1","RXR","EAST LANCASHIRE HOSPITALS NHS TRUST","RXR20","Royal Blackburn Hospital",58,0.74137931034482762,0.15517241379310345,30,13,6,5,4,0]
["QE1","RXN","LANCASHIRE TEACHING HOSPITALS NHS FOUNDATION TRUST","RXN01","Chorley and South Ribble Hospital",0,"NA","NA",0,0,0,0,0,0]
["QE1","RXN","LANCASHIRE TEACHING HOSPITALS NHS FOUNDATION TRUST","RXN02","Royal Preston Hospital",13,0.76923076923076927,0.15384615384615385,8,2,1,0,2,0]
["QE1","RTX","UNIVERSITY HOSPITALS OF MORECAMBE BAY NHS FOUNDATION TRUST","RTXBU","Furness General Hospital",10,1,0,9,1,0,0,0,0]
["QE1","RTX","UNIVERSITY HOSPITALS OF MORECAMBE BAY NHS FOUNDATION TRUST","RTX02","Royal Lancaster Infirmary",9,1,0,"*","*","*","*","*","*"]
["QE1","RTX","UNIVERSITY HOSPITALS OF MORECAMBE BAY NHS FOUNDATION TRUST","RTXBW","Westmorland General Hospital",2,"*","*","*","*","*","*","*","*"]
["QF7","RFF","BARNSLEY HOSPITAL NHS FOUNDATION TRUST","RFFAA","Barnsley Hospital NHS Foundation Trust HQ",30,1,0,29,1,0,0,0,0]
["QF7","RP5","DONCASTER AND BASSETLAW TEACHING HOSPITALS NHS FOUNDATION TRUST","RP5BA","Bassetlaw Hospital",3,"*","*","*","*","*","*","*","*"]
["QF7","RP5","DONCASTER AND BASSETLAW TEACHING HOSPITALS NHS FOUNDATION TRUST","RP5DR","Doncaster Royal Infirmary",0,"NA","NA",0,0,0,0,0,0]
["QF7","RHQ","SHEFFIELD TEACHING HOSPITALS NHS FOUNDATION TRUST","RHQHH","Royal Hallamshire Hospital",22,0.90909090909090906,9.0909090909090912E-2,14,6,0,2,0,0]
["QF7","RFR","THE ROTHERHAM NHS FOUNDATION TRUST","RFRPA","Rotherham District General Hospital",4,"*","*","*","*","*","*","*","*"]
["QGH","RWP","WORCESTERSHIRE ACUTE HOSPITALS NHS TRUST","RWP50","Worcestershire Royal Hospital",25,0.92,0,18,5,2,0,0,0]
["QGH","RLQ","WYE VALLEY NHS TRUST","RLQ01","Hereford County Hospital",19,0.89473684210526316,5.2631578947368418E-2,13,4,1,1,0,0]
["QH8","RAJ","MID AND SOUTH ESSEX NHS FOUNDATION TRUST","RAJ12","BASILDON HOSPITAL",23,0.60869565217391308,0.2608695652173913,13,1,2,2,4,1]
["QH8","RAJ","MID AND SOUTH ESSEX NHS FOUNDATION TRUST","RAJ32","MID ESSEX HOSPITAL",15,0.73333333333333328,0.2,7,4,1,0,3,0]
["QH8","RAJ","MID AND SOUTH ESSEX NHS FOUNDATION TRUST","RAJ01","Southend Hospital",37,0.86486486486486491,8.1081081081081086E-2,30,2,2,1,2,0]
["QHG","RC9","BEDFORDSHIRE HOSPITALS NHS FOUNDATION TRUST","RC979","BEDFORD HOSPITAL SOUTH WING",35,0.94285714285714284,5.7142857142857141E-2,27,6,0,1,1,0]
["QHG","RC9","BEDFORDSHIRE HOSPITALS NHS FOUNDATION TRUST","RC971","Luton and Dunstable Hospital",137,0.93430656934306566,3.6496350364963501E-2,91,37,4,2,3,0]
["QHG","RD8","MILTON KEYNES UNIVERSITY HOSPITAL NHS FOUNDATION TRUST","RD816","Milton Keynes Hospital",30,0.93333333333333335,6.6666666666666666E-2,17,11,0,2,0,0]
["QHL","RQ3","BIRMINGHAM WOMEN'S AND CHILDREN'S NHS FOUNDATION TRUST","RQ370","Birmingham Women's Hospital",126,0.96031746031746035,7.9365079365079361E-3,101,20,4,0,1,0]
["QHL","RXK","SANDWELL AND WEST BIRMINGHAM HOSPITALS NHS TRUST","RXKTC","Birmingham Treatment Centre",1,"*","*","*","*","*","*","*","*"]
["QHL","RRK","UNIVERSITY HOSPITALS BIRMINGHAM NHS FOUNDATION TRUST","RRK98","Good Hope Hospital",16,0.9375,6.25E-2,"*","*","*","*","*","*"]
["QHL","RRK","UNIVERSITY HOSPITALS BIRMINGHAM NHS FOUNDATION TRUST","RRK97","Heartlands Hospital",17,0.76470588235294112,0.23529411764705882,"*","*","*","*","*","*"]
["QHL","RRK","UNIVERSITY HOSPITALS BIRMINGHAM NHS FOUNDATION TRUST","RRK99","Solihull Hospital",0,"NA","NA",0,0,0,0,0,0]
["QHM","RXP","COUNTY DURHAM AND DARLINGTON NHS FOUNDATION TRUST","RXPDA","Darlington Memorial Hospital",101,0.99009900990099009,0,86,14,1,0,0,0]
["QHM","RXP","COUNTY DURHAM AND DARLINGTON NHS FOUNDATION TRUST","RXPCP","University Hospital Of North Durham",61,1,0,49,12,0,0,0,0]
["QHM","RR7","GATESHEAD HEALTH NHS FOUNDATION TRUST","RR7EN","Queen Elizabeth Hospital",8,1,0,"*","*","*","*","*","*"]
["QHM","RNN","NORTH CUMBRIA INTEGRATED CARE NHS FOUNDATION TRUST","RNN62","Cumberland Infirmary",7,1,0,6,1,0,0,0,0]
["QHM","RNN","NORTH CUMBRIA INTEGRATED CARE NHS FOUNDATION TRUST","RNNBX","West Cumberland Hospital",8,1,0,7,1,0,0,0,0]
["QHM","RVW","NORTH TEES AND HARTLEPOOL NHS FOUNDATION TRUST","RVWAE","University Hospital Of North Tees",1,"*","*","*","*","*","*","*","*"]
["QHM","RTR","SOUTH TEES HOSPITALS NHS FOUNDATION TRUST","RTR45","Friarage Hospital Site",0,"NA","NA",0,0,0,0,0,0]
["QHM","RTR","SOUTH TEES HOSPITALS NHS FOUNDATION TRUST","RTRAT","The James Cook University Hospital",9,0.77777777777777779,0.22222222222222221,7,0,0,1,1,0]
["QHM","R0B","SOUTH TYNESIDE AND SUNDERLAND NHS FOUNDATION TRUST","R0B01","Sunderland Royal Hospital",24,1,0,19,5,0,0,0,0]
["QHM","RTD","THE NEWCASTLE UPON TYNE HOSPITALS NHS FOUNDATION TRUST","RTD02","The Royal Victoria Infirmary",55,0.87272727272727268,9.0909090909090912E-2,46,2,2,4,1,0]
["QJ2","RFS","CHESTERFIELD ROYAL HOSPITAL NHS FOUNDATION TRUST","RFSDA","Chesterfield Royal Hospital",53,0.94339622641509435,3.7735849056603772E-2,39,11,1,1,1,0]
["QJ2","RTG","UNIVERSITY HOSPITALS OF DERBY AND BURTON NHS FOUNDATION TRUST","RTG02","Queens Hospital, Burton Upon Trent",29,0.93103448275862066,6.8965517241379309E-2,21,6,0,1,1,0]
["QJG","RDE","EAST SUFFOLK AND NORTH ESSEX NHS FOUNDATION TRUST","RDEE4","Colchester General Hospital",2,"*","*","*","*","*","*","*","*"]
["QJG","RDE","EAST SUFFOLK AND NORTH ESSEX NHS FOUNDATION TRUST","RDE03","Ipswich Hospital",2,"*","*","*","*","*","*","*","*"]
["QJG","RGR","WEST SUFFOLK NHS FOUNDATION TRUST","RGR50","West Suffolk Hospital",32,0.84375,0.125,"*","*","*","*","*","*"]
["QJK","RH8","ROYAL DEVON UNIVERSITY HEALTHCARE NHS FOUNDATION TRUST","RH880","North Devon District Hospital",13,0.92307692307692313,0,"*","*","*","*","*","*"]
["QJK","RH8","ROYAL DEVON UNIVERSITY HEALTHCARE NHS FOUNDATION TRUST","RH801","Royal Devon and Exeter Hospital (Wonford)",0,"NA","NA",0,0,0,0,0,0]
["QJK","RA9","TORBAY AND SOUTH DEVON NHS FOUNDATION TRUST","RA901","Torbay Hospital",0,"NA","NA",0,0,0,0,0,0]
["QJK","RK9","UNIVERSITY HOSPITALS PLYMOUTH NHS TRUST","RK950","Derriford Hospital",0,"NA","NA",0,0,0,0,0,0]
["QJM","RWD","UNITED LINCOLNSHIRE TEACHING HOSPITALS NHS TRUST","RWDLP","Grantham and District Hospital",0,"NA","NA",0,0,0,0,0,0]
["QJM","RWD","UNITED LINCOLNSHIRE TEACHING HOSPITALS NHS TRUST","RWDDA","Lincoln County Hospital",0,"NA","NA",0,0,0,0,0,0]
["QJM","RWD","UNITED LINCOLNSHIRE TEACHING HOSPITALS NHS TRUST","RWDLA","Pilgrim Hospital",0,"NA","NA",0,0,0,0,0,0]
["QK1","RWE","UNIVERSITY HOSPITALS OF LEICESTER NHS TRUST","RWEAK","Leicester General Hospital",22,0.77272727272727271,4.5454545454545456E-2,13,4,4,1,0,0]
["QK1","RWE","UNIVERSITY HOSPITALS OF LEICESTER NHS TRUST","RWEAA","Leicester Royal Infirmary",75,0.90666666666666662,6.6666666666666666E-2,44,24,2,4,1,0]
["QK1","RWE","UNIVERSITY HOSPITALS OF LEICESTER NHS TRUST","RWE10","St Mary's Hospital",5,1,0,5,0,0,0,0,0]
["QKK","RJ1","GUY'S AND ST THOMAS' NHS FOUNDATION TRUST","RJ122","St Thomas' Hospital",85,0.87058823529411766,5.8823529411764705E-2,42,32,5,4,1,1]
["QKK","RJ2","LEWISHAM AND GREENWICH NHS TRUST","RJ231","Queen Elizabeth Hospital",29,0.96551724137931039,3.4482758620689655E-2,17,11,0,1,0,0]
["QKK","RJ2","LEWISHAM AND GREENWICH NHS TRUST","RJ224","University Hospital Lewisham",33,0.87878787878787878,6.0606060606060608E-2,16,13,2,2,0,0]
["QKS","RN7","DARTFORD AND GRAVESHAM NHS TRUST","RN707","Darent Valley Hospital",89,1,0,76,13,0,0,0,0]
["QKS","RVV","EAST KENT HOSPITALS UNIVERSITY NHS FOUNDATION TRUST","RVV09","Queen Elizabeth The Queen Mother Hospital",15,0.93333333333333335,0,10,4,1,0,0,0]
["QKS","RVV","EAST KENT HOSPITALS UNIVERSITY NHS FOUNDATION TRUST","RVV01","William Harvey Hospital (Ashford)",17,0.82352941176470584,5.8823529411764705E-2,11,3,2,1,0,0]
["QKS","RWF","MAIDSTONE AND TUNBRIDGE WELLS NHS TRUST","RWF08","Crowborough Birthing Centre",1,"*","*","*","*","*","*","*","*"]
["QKS","RWF","MAIDSTONE AND TUNBRIDGE WELLS NHS TRUST","RWFTW","The Tunbridge Wells Hospital",72,0.93055555555555558,5.5555555555555552E-2,"*","*","*","*","*","*"]
["QKS","RPA","MEDWAY NHS FOUNDATION TRUST","RPA02","Medway Maritime Hospital",31,0.83870967741935487,6.4516129032258063E-2,23,3,3,2,0,0]
["QM7","RWH","EAST AND NORTH HERTFORDSHIRE NHS TRUST","RWH01","Lister Hospital",78,0.96153846153846156,2.564102564102564E-2,58,17,1,2,0,0]
["QM7","RQW","THE PRINCESS ALEXANDRA HOSPITAL NHS TRUST","RQWG0","Princess Alexandra Hospital",7,0.8571428571428571,0.14285714285714285,5,1,0,0,1,0]
["QM7","RWG","WEST HERTFORDSHIRE TEACHING HOSPITALS NHS TRUST","RWG02","Watford General Hospital",0,"NA","NA",0,0,0,0,0,0]
["QMF","RF4","BARKING, HAVERING AND REDBRIDGE UNIVERSITY HOSPITALS NHS TRUST","RF4QH","Queen's Hospital",95,0.90526315789473688,7.3684210526315783E-2,"*","*","*","*","*","*"]
["QMF","R1H","BARTS HEALTH NHS TRUST","R1HNH","Newham General Hospital",114,0.98245614035087714,1.7543859649122806E-2,102,10,0,0,2,0]
["QMF","R1H","BARTS HEALTH NHS TRUST","R1H12","The Royal London Hospital",16,0.75,0.1875,10,2,1,1,2,0]
["QMF","R1H","BARTS HEALTH NHS TRUST","R1HKH","Whipps Cross University Hospital",6,1,0,5,1,0,0,0,0]
["QMF","RQX","HOMERTON HEALTHCARE NHS FOUNDATION TRUST","RQXM1","Homerton University Hospital",4,"*","*","*","*","*","*","*","*"]
["QMJ","RAL","ROYAL FREE LONDON NHS FOUNDATION TRUST","RAL26","Barnet Hospital",83,0.89156626506024095,4.8192771084337352E-2,68,6,5,2,2,0]
["QMJ","RAL","ROYAL FREE LONDON NHS FOUNDATION TRUST","RALRA","Edgware Community Hospital",3,"*","*","*","*","*","*","*","*"]
["QMJ","RAL","ROYAL FREE LONDON NHS FOUNDATION TRUST","RAL27","North Middlesex University Hospital",17,0.82352941176470584,0.17647058823529413,"*","*","*","*","*","*"]
["QMJ","RAL","ROYAL FREE LONDON NHS FOUNDATION TRUST","RAL01","Royal Free Hospital",32,0.90625,0,15,14,2,0,0,1]
["QMJ","RRV","UNIVERSITY COLLEGE LONDON HOSPITALS NHS FOUNDATION TRUST","RRV11","University College Hospital Elizabeth Garrett Anderson Wing",0,"NA","NA",0,0,0,0,0,0]
["QMJ","RKE","WHITTINGTON HEALTH NHS TRUST","RKEQ4","The Whittington Hospital",126,0.99206349206349209,7.9365079365079361E-3,23,102,0,0,1,0]
["QMM","RGP","JAMES PAGET UNIVERSITY HOSPITALS NHS FOUNDATION TRUST","RGP75","James Paget University Hospital",4,"*","*","*","*","*","*","*","*"]
["QMM","RM1","NORFOLK AND NORWICH UNIVERSITY HOSPITALS NHS FOUNDATION TRUST","RM102","Norfolk and Norwich University Hospital",5,0.6,0.4,"*","*","*","*","*","*"]
["QMM","RCX","THE QUEEN ELIZABETH HOSPITAL, KING'S LYNN, NHS FOUNDATION TRUST","RCX70","The Queen Elizabeth Hospital",16,1,0,14,2,0,0,0,0]
["QNC","RJE","UNIVERSITY HOSPITALS OF NORTH MIDLANDS NHS TRUST","RJE01","Royal Stoke University Hospital",49,0.87755102040816324,8.1632653061224483E-2,40,3,2,2,2,0]
["QNQ","RDU","FRIMLEY HEALTH NHS FOUNDATION TRUST","RDU01","Frimley Park Hospital",58,1,0,44,14,0,0,0,0]
["QNQ","RDU","FRIMLEY HEALTH NHS FOUNDATION TRUST","RDU50","Wexham Park Hospital",25,0.96,0.04,21,3,0,0,1,0]
["QNX","RYR","UNIVERSITY HOSPITALS SUSSEX NHS FOUNDATION TRUST","N6J7V","Princess Royal Hospital",50,0.96,0.02,40,8,1,0,1,0]
["QNX","RYR","UNIVERSITY HOSPITALS SUSSEX NHS FOUNDATION TRUST","E0A3H","Royal Sussex County Hospital",32,0.9375,6.25E-2,25,5,0,0,2,0]
["QNX","RYR","UNIVERSITY HOSPITALS SUSSEX NHS FOUNDATION TRUST","RYR16","St Richard's Hospital",32,0.9375,3.125E-2,27,3,1,0,1,0]
["QNX","RYR","UNIVERSITY HOSPITALS SUSSEX NHS FOUNDATION TRUST","RYR18","Worthing Hospital",32,0.90625,3.125E-2,26,3,2,1,0,0]
["QOC","RXW","THE SHREWSBURY AND TELFORD HOSPITAL NHS TRUST","RXWMB","Bridgnorth Hospital (Maternity)",0,"NA","NA",0,0,0,0,0,0]
["QOC","RXW","THE SHREWSBURY AND TELFORD HOSPITAL NHS TRUST","RXWML","Ludlow Hospital (Maternity)",0,"NA","NA",0,0,0,0,0,0]
["QOC","RXW","THE SHREWSBURY AND TELFORD HOSPITAL NHS TRUST","RXWMJ","Robert Jones & Agnes Hunt Orthopaedic & District Hospital",0,"NA","NA",0,0,0,0,0,0]
["QOC","RXW","THE SHREWSBURY AND TELFORD HOSPITAL NHS TRUST","RXWAS","Royal Shrewsbury Hospital",0,"NA","NA",0,0,0,0,0,0]
["QOC","RXW","THE SHREWSBURY AND TELFORD HOSPITAL NHS TRUST","RXWAT","The Princess Royal Hospital",4,"*","*","*","*","*","*","*","*"]
["QOP","RMC","BOLTON NHS FOUNDATION TRUST","RMC01","Royal Bolton Hospital",93,0.92473118279569888,0,71,15,7,0,0,0]
["QOP","R0A","MANCHESTER UNIVERSITY NHS FOUNDATION TRUST","R0A05","St Mary's Hospital",287,0.9233449477351916,3.8327526132404179E-2,214,51,10,6,5,1]
["QOP","RWJ","STOCKPORT NHS FOUNDATION TRUST","RWJ09","Stepping Hill Hospital",39,1,0,34,5,0,0,0,0]
["QOP","RMP","TAMESIDE AND GLOSSOP INTEGRATED CARE NHS FOUNDATION TRUST","RMP01","Tameside General Hospital",36,0.83333333333333337,0.1111111111111111,26,4,2,2,2,0]
["QOP","RRF","WRIGHTINGTON, WIGAN AND LEIGH NHS FOUNDATION TRUST","RRF02","Royal Albert Edward Infirmary",19,1,0,17,2,0,0,0,0]
["QOQ","RCD","HARROGATE AND DISTRICT NHS FOUNDATION TRUST","RCD01","Harrogate District Hospital",0,"NA","NA",0,0,0,0,0,0]
["QOQ","RWA","HULL UNIVERSITY TEACHING HOSPITALS NHS TRUST","RWA01","Hull Royal Infirmary",51,0.92156862745098034,7.8431372549019607E-2,44,3,0,1,3,0]
["QOQ","RJL","NORTHERN LINCOLNSHIRE AND GOOLE NHS FOUNDATION TRUST","RJL32","Scunthorpe General Hospital",3,"*","*","*","*","*","*","*","*"]
["QOQ","RCB","YORK AND SCARBOROUGH TEACHING HOSPITALS NHS FOUNDATION TRUST","RCBCA","Scarborough General Hospital",7,1,0,"*","*","*","*","*","*"]
["QOQ","RCB","YORK AND SCARBOROUGH TEACHING HOSPITALS NHS FOUNDATION TRUST","RCB55","York Hospital",4,"*","*","*","*","*","*","*","*"]
["QOX","RN3","GREAT WESTERN HOSPITALS NHS FOUNDATION TRUST","RN325","The Great Western Hospital",102,0.89215686274509809,6.8627450980392163E-2,79,12,2,5,2,2]
["QOX","RD1","ROYAL UNITED HOSPITALS BATH NHS FOUNDATION TRUST","RD102","Chippenham Community Hospital",1,"*","*","*","*","*","*","*","*"]
["QOX","RD1","ROYAL UNITED HOSPITALS BATH NHS FOUNDATION TRUST","RD130","Princess Anne Wing RUH",80,0.96250000000000002,2.5000000000000001E-2,"*","*","*","*","*","*"]
["QOX","RNZ","SALISBURY NHS FOUNDATION TRUST","RNZ02","Salisbury District Hospital",2,"*","*","*","*","*","*","*","*"]
["QPM","RNQ","KETTERING GENERAL HOSPITAL NHS FOUNDATION TRUST","RNQ51","Kettering General Hospital",35,0.97142857142857142,0,31,3,1,0,0,0]
["QPM","RNS","NORTHAMPTON GENERAL HOSPITAL NHS TRUST","RNS01","Northampton General Hospital (Acute)",98,0.93877551020408168,2.0408163265306121E-2,73,19,4,2,0,0]
["QR1","RTE","GLOUCESTERSHIRE HOSPITALS NHS FOUNDATION TRUST","RTE03","Gloucestershire Royal Hospital",51,0.90196078431372551,3.9215686274509803E-2,29,17,3,1,1,0]
["QRL","RN5","HAMPSHIRE HOSPITALS NHS FOUNDATION TRUST","RN506","Basingstoke and North Hampshire Hospital",69,0.97101449275362317,1.4492753623188406E-2,55,12,0,0,1,1]
["QRL","RN5","HAMPSHIRE HOSPITALS NHS FOUNDATION TRUST","RN541","Royal Hampshire County Hospital",115,0.95652173913043481,1.7391304347826087E-2,85,25,2,2,0,1]
["QRL","R1F","ISLE OF WIGHT NHS TRUST","R1F01","St Mary's Hospital",10,1,0,9,1,0,0,0,0]
["QRL","RHU","PORTSMOUTH HOSPITALS UNIVERSITY NATIONAL HEALTH SERVICE TRUST","RHU03","Queen Alexandra Hospital",149,0.93288590604026844,2.0134228187919462E-2,103,36,6,1,2,1]
["QRL","RHM","UNIVERSITY HOSPITAL SOUTHAMPTON NHS FOUNDATION TRUST","RHM12","Princess Anne Hospital",139,0.85611510791366907,9.3525179856115109E-2,82,37,7,8,5,0]
["QRV","RYJ","IMPERIAL COLLEGE HEALTHCARE NHS TRUST","RYJ04","Queen Charlotte's Hospital",68,0.91176470588235292,1.4705882352941176E-2,40,22,5,1,0,0]
["QRV","RYJ","IMPERIAL COLLEGE HEALTHCARE NHS TRUST","RYJ01","St Mary's Hospital (HQ)",11,0.45454545454545453,0.36363636363636365,3,2,2,1,3,0]
["QRV","R1K","LONDON NORTH WEST UNIVERSITY HEALTHCARE NHS TRUST","R1K01","Northwick Park Hospital",99,0.97979797979797978,1.0101010101010102E-2,58,39,1,0,1,0]
["QRV","RAS","THE HILLINGDON HOSPITALS NHS FOUNDATION TRUST","RAS01","Hillingdon Hospital",146,0.93835616438356162,2.7397260273972601E-2,104,33,4,1,3,1]
["QSL","RH5","SOMERSET NHS FOUNDATION TRUST","RH5K6","Bridgwater Hospital",0,"NA","NA",0,0,0,0,0,0]
["QSL","RH5","SOMERSET NHS FOUNDATION TRUST","RH5A8","MUSGROVE PARK HOSPITAL",0,"NA","NA",0,0,0,0,0,0]
["QSL","RH5","SOMERSET NHS FOUNDATION TRUST","RH5XXXX","Non-hospital site home/in-transit births",0,"NA","NA",0,0,0,0,0,0]
["QSL","RH5","SOMERSET NHS FOUNDATION TRUST","RH5O4","Yeovil District Hospital",4,"*","*","*","*","*","*","*","*"]
["QT1","RX1","NOTTINGHAM UNIVERSITY HOSPITALS NHS TRUST","RX1CC","Nottingham University Hospitals NHS Trust - City Campus",9,0.88888888888888884,0,8,0,1,0,0,0]
["QT1","RX1","NOTTINGHAM UNIVERSITY HOSPITALS NHS TRUST","RX1RA","Nottingham University Hospitals NHS Trust - Queen's Medical Centre Campus",82,0.93902439024390238,4.878048780487805E-2,59,18,0,2,2,1]
["QT1","RK5","SHERWOOD FOREST HOSPITALS NHS FOUNDATION TRUST","RK5BC","King's Mill Hospital",28,0.8571428571428571,7.1428571428571425E-2,15,9,2,0,2,0]
["QT6","REF","ROYAL CORNWALL HOSPITALS NHS TRUST","REF12","Royal Cornwall Hospital (Treliske)",3,"*","*","*","*","*","*","*","*"]
["QU9","RXQ","BUCKINGHAMSHIRE HEALTHCARE NHS TRUST","RXQ02","Stoke Mandeville Hospital",30,0.83333333333333337,0.1,19,6,2,1,2,0]
["QU9","RTH","OXFORD UNIVERSITY HOSPITALS NHS FOUNDATION TRUST","RTH19","Chipping Norton Community Hospital",0,"NA","NA",0,0,0,0,0,0]
["QU9","RTH","OXFORD UNIVERSITY HOSPITALS NHS FOUNDATION TRUST","RTH05","Horton General Hospital",0,"NA","NA",0,0,0,0,0,0]
["QU9","RTH","OXFORD UNIVERSITY HOSPITALS NHS FOUNDATION TRUST","RTH08","John Radcliffe Hospital",13,0.69230769230769229,0.15384615384615385,7,2,2,1,1,0]
["QU9","RTH","OXFORD UNIVERSITY HOSPITALS NHS FOUNDATION TRUST","RTH16","Wallingford Community Hospital",0,"NA","NA",0,0,0,0,0,0]
["QU9","RTH","OXFORD UNIVERSITY HOSPITALS NHS FOUNDATION TRUST","RTH21","Wantage Community Hospital",0,"NA","NA",0,0,0,0,0,0]
["QU9","RHW","ROYAL BERKSHIRE NHS FOUNDATION TRUST","RHW01","Royal Berkshire Hospital",71,0.95774647887323938,1.4084507042253521E-2,58,10,2,1,0,0]
["QUA","RNA","THE DUDLEY GROUP NHS FOUNDATION TRUST","RNA01","Russells Hall Hospital",49,0.61224489795918369,4.0816326530612242E-2,24,6,0,1,1,17]
["QUA","RL4","THE ROYAL WOLVERHAMPTON NHS TRUST","RL403","New Cross Hospital",32,0.875,9.375E-2,26,2,1,1,2,0]
["QUA","RBK","WALSALL HEALTHCARE NHS TRUST","RBK02","Manor Hospital",88,0.95454545454545459,3.4090909090909088E-2,67,17,0,1,2,1]
["QUE","RGT","CAMBRIDGE UNIVERSITY HOSPITALS NHS FOUNDATION TRUST","RGT32","Rosie Hospital",31,0.87096774193548387,9.6774193548387094E-2,22,5,1,0,3,0]
["QUE","RGN","NORTH WEST ANGLIA NHS FOUNDATION TRUST","RGN90","Hinchingbrooke Hospital",68,0.98529411764705888,0,54,13,0,0,0,1]
["QUE","RGN","NORTH WEST ANGLIA NHS FOUNDATION TRUST","RGN80","Peterborough City Hospital",57,0.92982456140350878,0,45,8,2,0,0,2]
["QUY","RVJ","NORTH BRISTOL NHS TRUST","RVJ01","Southmead Hospital",60,0.8666666666666667,0.1,"*","*","*","*","*","*"]
["QUY","RA7","UNIVERSITY HOSPITALS BRISTOL AND WESTON NHS FOUNDATION TRUST","RA707","ST MICHAEL'S HOSPITAL",1,"*","*","*","*","*","*","*","*"]
["QVV","RBD","DORSET COUNTY HOSPITAL NHS FOUNDATION TRUST","RBD01","Dorset County Hospital",3,"*","*","*","*","*","*","*","*"]
["QVV","R0D","UNIVERSITY HOSPITALS DORSET NHS FOUNDATION TRUST","R0D01","Poole Hospital",10,0.6,0.3,"*","*","*","*","*","*"]
["QVV","R0D","UNIVERSITY HOSPITALS DORSET NHS FOUNDATION TRUST","R0D02","Royal Bournemouth Hospital",0,"NA","NA",0,0,0,0,0,0]
["QWE","RVR","EPSOM AND ST HELIER UNIVERSITY HOSPITALS NHS TRUST","RVR50","Epsom Hospital",0,"NA","NA",0,0,0,0,0,0]
["QWE","RVR","EPSOM AND ST HELIER UNIVERSITY HOSPITALS NHS TRUST","RVR05","St Helier Hospital",3,"*","*","*","*","*","*","*","*"]
["QWE","RAX","KINGSTON AND RICHMOND NHS FOUNDATION TRUST","RAX01","Kingston Hospital",177,0.98305084745762716,0,140,34,3,0,0,0]
["QWE","RJ7","ST GEORGE'S UNIVERSITY HOSPITALS NHS FOUNDATION TRUST","RJ701","St George's Hospital (Tooting)",37,0.97297297297297303,0,"*","*","*","*","*","*"]
["QWO","RAE","BRADFORD TEACHING HOSPITALS NHS FOUNDATION TRUST","RAE01","Bradford Royal Infirmary",2,"*","*","*","*","*","*","*","*"]
["QWO","RWY","CALDERDALE AND HUDDERSFIELD NHS FOUNDATION TRUST","RWY02","Calderdale Royal Hospital",69,0.98550724637681164,0,"*","*","*","*","*","*"]
["QWO","RR8","LEEDS TEACHING HOSPITALS NHS TRUST","RR801","Leeds General Infirmary",43,0.88372093023255816,9.3023255813953487E-2,33,5,1,2,2,0]
["QWO","RR8","LEEDS TEACHING HOSPITALS NHS TRUST","RR813","St James's University Hospital",35,0.94285714285714284,5.7142857142857141E-2,28,5,0,2,0,0]
["QWO","RXF","MID YORKSHIRE TEACHING NHS TRUST","RXF05","Pinderfields General Hospital",102,0.94117647058823528,4.9019607843137254E-2,68,28,1,3,2,0]
["QWU","RLT","GEORGE ELIOT HOSPITAL NHS TRUST","RLT01","George Eliot Hospital - Acute Services",0,"NA","NA",0,0,0,0,0,0]
["QWU","RJC","SOUTH WARWICKSHIRE UNIVERSITY NHS FOUNDATION TRUST","RJC02","Warwick Hospital",3,"*","*","*","*","*","*","*","*"]
["QWU","RKB","UNIVERSITY HOSPITALS COVENTRY AND WARWICKSHIRE NHS TRUST","RKB01","University Hospital (Coventry)",75,0.97333333333333338,1.3333333333333334E-2,"*","*","*","*","*","*"]
["QXU","RTK","ASHFORD AND ST PETER'S HOSPITALS NHS FOUNDATION TRUST","RTK02","Ashford Hospital",0,"NA","NA",0,0,0,0,0,0]
["QXU","RA2","ROYAL SURREY COUNTY HOSPITAL NHS FOUNDATION TRUST","RA201","Royal Surrey County Hospital",14,1,0,13,1,0,0,0,0]
["QXU","RTP","SURREY AND SUSSEX HEALTHCARE NHS TRUST","RTP04","East Surrey Hospital",44,0.93181818181818177,4.5454545454545456E-2,29,12,1,1,1,0]
["QYG","RJR","COUNTESS OF CHESTER HOSPITAL NHS FOUNDATION TRUST","RJR05","Countess Of Chester Hospital",12,0.83333333333333337,0.16666666666666666,"*","*","*","*","*","*"]
["QYG","RJN","EAST CHESHIRE NHS TRUST","RJN71","Macclesfield District General Hospital",13,1,0,10,3,0,0,0,0]
["QYG","REP","LIVERPOOL WOMEN'S NHS FOUNDATION TRUST","REP01","Liverpool Womens Hospital",28,0.8571428571428571,7.1428571428571425E-2,15,9,2,2,0,0]
["QYG","RBN","MERSEY AND WEST LANCASHIRE TEACHING HOSPITALS NHS TRUST","RBN52","Ormskirk and District General Hospital",19,0.89473684210526316,5.2631578947368418E-2,15,2,1,1,0,0]
["QYG","RBN","MERSEY AND WEST LANCASHIRE TEACHING HOSPITALS NHS TRUST","RBN01","Whiston Hospital",21,0.95238095238095233,4.7619047619047616E-2,18,2,0,0,1,0]
["QYG","RBT","MID CHESHIRE HOSPITALS NHS FOUNDATION TRUST","RBT20","Leighton Hospital",44,0.84090909090909094,9.0909090909090912E-2,32,5,3,0,4,0]
["QYG","RWW","WARRINGTON AND HALTON TEACHING HOSPITALS NHS FOUNDATION TRUST","RWWWH","Warrington Hospital",1,"*","*","*","*","*","*","*","*"]
["QYG","RBL","WIRRAL UNIVERSITY TEACHING HOSPITAL NHS FOUNDATION TRUST","RBL14","Arrowe Park Hospital",24,0.95833333333333337,0,19,4,1,0,0,0]

{"sheet":"ICB Q4","index":11,"n_rows":55,"n_cols":29,"rows_kept":55,"cut":false,"hidden":false,"merged":[[8,0,9,0],[8,1,9,1],[8,2,9,2],[8,3,9,3],[8,4,9,4],[8,20,9,20],[8,21,9,21],[8,22,9,22],[8,23,8,28],[8,5,8,10],[8,11,9,11],[8,12,9,12],[8,13,9,13],[8,14,8,19]]}
[]
[]
[]
[]
[]
[null,"   Sort data by:           "]
[]
[]
["ICB Code","ICB Name","Total Responses","Percentage Positive","Percentage Negative","Breakdown of Responses",null,null,null,null,null,"Total Responses","Percentage Positive","Percentage Negative","Breakdown of Responses",null,null,null,null,null,"Total Responses","Percentage Positive","Percentage Negative","Breakdown of Responses"]
[null,null,null,null,null,"Very Good","Good","Neither Good nor Poor","Poor","Very Poor","Don't Know",null,null,null,"Very Good","Good","Neither Good nor Poor","Poor","Very Poor","Don't Know",null,null,null,"Very Good","Good","Neither Good nor Poor","Poor","Very Poor","Don't Know"]
[null,"England (including Independent Sector providers)",1309,0.92055003819709702,4.1252864782276549E-2,1025,180,33,24,30,17,{"$f":"SUM(L14:L55)","v":1309},{"$f":"SUM(O11+P11)/SUM(O11:T11)","v":0.92055003819709702},{"$f":"SUM(R11+S11)/SUM(O11:T11)","v":4.1252864782276549E-2},{"$f":"SUM(O14:O55)","v":1025},180,33,24,30,17,{"$f":"IFERROR(C11-L11,0)","v":0},{"$f":"IFERROR(D11-M11,0)","v":0},{"$f":"IFERROR(E11-N11,0)","v":0},{"$f":"IFERROR(F11-O11,0)","v":0},{"$f":"IFERROR(G11-P11,0)","v":0},{"$f":"IFERROR(H11-Q11,0)","v":0},{"$f":"IFERROR(I11-R11,0)","v":0},{"$f":"IFERROR(J11-S11,0)","v":0},{"$f":"IFERROR(K11-T11,0)","v":0}]
[null,"England (excluding Independent Sector providers)",1309,0.92055003819709702,4.1252864782276549E-2,1025,180,33,24,30,17,{"$f":"SUM(L14:L55)","v":1309},0.92055003819709702,4.1252864782276549E-2,{"$f":"SUM(O14:O55)","v":1025},180,33,24,30,17,0,0,0,0,0,0,0,0,0]
[null,"Selection (excluding suppressed data)",{"$f":"SUBTOTAL(9,C14:C55)","v":1309},{"$f":"IFERROR((F13+G13)/SUM(F13:K13), \"-\")","v":0.92159877017678704},{"$f":"IFERROR((I13+J13)/SUM(F13:K13), \"-\")","v":4.073789392774789E-2},{"$f":"SUBTOTAL(9,F14:F55)","v":1019},180,32,23,30,17,{"$f":"SUMIF(C14:C55,\"<>*\",L14:L55)","v":1309},0.92159877017678704,4.073789392774789E-2,{"$f":"SUMIF(F14:F55,\"<>*\",O14:O55)","v":1019},180,32,23,30,17,0,0,0,0,0,0,0,0,0]
["QE1","LANCASHIRE AND SOUTH CUMBRIA ICB",124,0.87903225806451613,6.4516129032258063E-2,94,15,6,4,4,1,{"$f":"VLOOKUP($A14,[1]Sheet4!$A$49:$H$90,2,0)","v":124},{"$f":"SUM(O14+P14)/SUM(O14:T14)","v":0.87903225806451613},{"$f":"SUM(R14+S14)/SUM(O14:T14)","v":6.4516129032258063E-2},{"$f":"VLOOKUP($A14,[1]Sheet4!$A$49:$H$90,3,0)","v":94},{"$f":"VLOOKUP($A14,[1]Sheet4!$A$49:$H$90,4,0)","v":15},{"$f":"VLOOKUP($A14,[1]Sheet4!$A$49:$H$90,5,0)","v":6},{"$f":"VLOOKUP($A14,[1]Sheet4!$A$49:$H$90,6,0)","v":4},{"$f":"VLOOKUP($A14,[1]Sheet4!$A$49:$H$90,7,0)","v":4},{"$f":"VLOOKUP($A14,[1]Sheet4!$A$49:$H$90,8,0)","v":1},{"$f":"IFERROR(C14-L14,0)","v":0},{"$f":"IFERROR(D14-M14,0)","v":0},0,0,0,0,0,0,0]
["QF7","SOUTH YORKSHIRE ICB",22,1,0,17,5,0,0,0,0,{"$f":"VLOOKUP($A15,[1]Sheet4!$A$49:$H$90,2,0)","v":22},{"$f":"SUM(O15+P15)/SUM(O15:T15)","v":1},{"$f":"SUM(R15+S15)/SUM(O15:T15)","v":0},{"$f":"VLOOKUP($A15,[1]Sheet4!$A$49:$H$90,3,0)","v":17},{"$f":"VLOOKUP($A15,[1]Sheet4!$A$49:$H$90,4,0)","v":5},{"$f":"VLOOKUP($A15,[1]Sheet4!$A$49:$H$90,5,0)","v":0},{"$f":"VLOOKUP($A15,[1]Sheet4!$A$49:$H$90,6,0)","v":0},{"$f":"VLOOKUP($A15,[1]Sheet4!$A$49:$H$90,7,0)","v":0},{"$f":"VLOOKUP($A15,[1]Sheet4!$A$49:$H$90,8,0)","v":0},{"$f":"IFERROR(C15-L15,0)","v":0},{"$f":"IFERROR(D15-M15,0)","v":0},{"$f":"IFERROR(E15-N15,0)","v":0},{"$f":"IFERROR(F15-O15,0)","v":0},{"$f":"IFERROR(G15-P15,0)","v":0},{"$f":"IFERROR(H15-Q15,0)","v":0},{"$f":"IFERROR(I15-R15,0)","v":0},{"$f":"IFERROR(J15-S15,0)","v":0},{"$f":"IFERROR(K15-T15,0)","v":0}]
["QGH","HEREFORDSHIRE AND WORCESTERSHIRE ICB",0,"NA","NA",0,0,0,0,0,0,{"$f":"VLOOKUP($A16,[1]Sheet4!$A$49:$H$90,2,0)","v":0},{"$error":"#DIV/0!"},{"$error":"#DIV/0!"},{"$f":"VLOOKUP($A16,[1]Sheet4!$A$49:$H$90,3,0)","v":0},{"$f":"VLOOKUP($A16,[1]Sheet4!$A$49:$H$90,4,0)","v":0},{"$f":"VLOOKUP($A16,[1]Sheet4!$A$49:$H$90,5,0)","v":0},{"$f":"VLOOKUP($A16,[1]Sheet4!$A$49:$H$90,6,0)","v":0},{"$f":"VLOOKUP($A16,[1]Sheet4!$A$49:$H$90,7,0)","v":0},{"$f":"VLOOKUP($A16,[1]Sheet4!$A$49:$H$90,8,0)","v":0},0,0,0,0,0,0,0,0,0]
["QH8","MID AND SOUTH ESSEX ICB",0,"NA","NA",0,0,0,0,0,0,{"$f":"VLOOKUP($A17,[1]Sheet4!$A$49:$H$90,2,0)","v":0},{"$error":"#DIV/0!"},{"$error":"#DIV/0!"},{"$f":"VLOOKUP($A17,[1]Sheet4!$A$49:$H$90,3,0)","v":0},{"$f":"VLOOKUP($A17,[1]Sheet4!$A$49:$H$90,4,0)","v":0},{"$f":"VLOOKUP($A17,[1]Sheet4!$A$49:$H$90,5,0)","v":0},{"$f":"VLOOKUP($A17,[1]Sheet4!$A$49:$H$90,6,0)","v":0},{"$f":"VLOOKUP($A17,[1]Sheet4!$A$49:$H$90,7,0)","v":0},{"$f":"VLOOKUP($A17,[1]Sheet4!$A$49:$H$90,8,0)","v":0},0,0,0,0,0,0,0,0,0]
["QHG","BEDFORDSHIRE, LUTON AND MILTON KEYNES ICB",48,1,0,40,8,0,0,0,0,{"$f":"VLOOKUP($A18,[1]Sheet4!$A$49:$H$90,2,0)","v":48},1,0,{"$f":"VLOOKUP($A18,[1]Sheet4!$A$49:$H$90,3,0)","v":40},{"$f":"VLOOKUP($A18,[1]Sheet4!$A$49:$H$90,4,0)","v":8},{"$f":"VLOOKUP($A18,[1]Sheet4!$A$49:$H$90,5,0)","v":0},{"$f":"VLOOKUP($A18,[1]Sheet4!$A$49:$H$90,6,0)","v":0},{"$f":"VLOOKUP($A18,[1]Sheet4!$A$49:$H$90,7,0)","v":0},{"$f":"VLOOKUP($A18,[1]Sheet4!$A$49:$H$90,8,0)","v":0},0,0,0,0,0,0,0,0,0]
["QHL","BIRMINGHAM AND SOLIHULL ICB",31,1,0,26,5,0,0,0,0,{"$f":"VLOOKUP($A19,[1]Sheet4!$A$49:$H$90,2,0)","v":31},1,0,{"$f":"VLOOKUP($A19,[1]Sheet4!$A$49:$H$90,3,0)","v":26},{"$f":"VLOOKUP($A19,[1]Sheet4!$A$49:$H$90,4,0)","v":5},{"$f":"VLOOKUP($A19,[1]Sheet4!$A$49:$H$90,5,0)","v":0},{"$f":"VLOOKUP($A19,[1]Sheet4!$A$49:$H$90,6,0)","v":0},{"$f":"VLOOKUP($A19,[1]Sheet4!$A$49:$H$90,7,0)","v":0},{"$f":"VLOOKUP($A19,[1]Sheet4!$A$49:$H$90,8,0)","v":0},0,0,0,0,0,0,0,0,0]
["QHM","NORTH EAST AND NORTH CUMBRIA ICB",80,0.82499999999999996,8.7499999999999994E-2,46,20,6,5,2,1,{"$f":"VLOOKUP($A20,[1]Sheet4!$A$49:$H$90,2,0)","v":80},0.82499999999999996,8.7499999999999994E-2,{"$f":"VLOOKUP($A20,[1]Sheet4!$A$49:$H$90,3,0)","v":46},{"$f":"VLOOKUP($A20,[1]Sheet4!$A$49:$H$90,4,0)","v":20},{"$f":"VLOOKUP($A20,[1]Sheet4!$A$49:$H$90,5,0)","v":6},{"$f":"VLOOKUP($A20,[1]Sheet4!$A$49:$H$90,6,0)","v":5},{"$f":"VLOOKUP($A20,[1]Sheet4!$A$49:$H$90,7,0)","v":2},{"$f":"VLOOKUP($A20,[1]Sheet4!$A$49:$H$90,8,0)","v":1},0,0,0,0,0,0,0,0,0]
["QJ2","DERBY AND DERBYSHIRE ICB",1,"*","*","*","*","*","*","*","*",{"$f":"VLOOKUP($A21,[1]Sheet4!$A$49:$H$90,2,0)","v":1},1,0,{"$f":"VLOOKUP($A21,[1]Sheet4!$A$49:$H$90,3,0)","v":1},{"$f":"VLOOKUP($A21,[1]Sheet4!$A$49:$H$90,4,0)","v":0},{"$f":"VLOOKUP($A21,[1]Sheet4!$A$49:$H$90,5,0)","v":0},{"$f":"VLOOKUP($A21,[1]Sheet4!$A$49:$H$90,6,0)","v":0},{"$f":"VLOOKUP($A21,[1]Sheet4!$A$49:$H$90,7,0)","v":0},{"$f":"VLOOKUP($A21,[1]Sheet4!$A$49:$H$90,8,0)","v":0},0,0,0,0,0,0,0,0,0]
["QJG","SUFFOLK AND NORTH EAST ESSEX ICB",43,0.90697674418604646,2.3255813953488372E-2,35,4,3,1,0,0,{"$f":"VLOOKUP($A22,[1]Sheet4!$A$49:$H$90,2,0)","v":43},0.90697674418604646,2.3255813953488372E-2,{"$f":"VLOOKUP($A22,[1]Sheet4!$A$49:$H$90,3,0)","v":35},{"$f":"VLOOKUP($A22,[1]Sheet4!$A$49:$H$90,4,0)","v":4},{"$f":"VLOOKUP($A22,[1]Sheet4!$A$49:$H$90,5,0)","v":3},{"$f":"VLOOKUP($A22,[1]Sheet4!$A$49:$H$90,6,0)","v":1},{"$f":"VLOOKUP($A22,[1]Sheet4!$A$49:$H$90,7,0)","v":0},{"$f":"VLOOKUP($A22,[1]Sheet4!$A$49:$H$90,8,0)","v":0},0,0,0,0,0,0,0,0,0]
["QJK","DEVON ICB",5,1,0,"*","*","*","*","*","*",{"$f":"VLOOKUP($A23,[1]Sheet4!$A$49:$H$90,2,0)","v":5},1,0,{"$f":"VLOOKUP($A23,[1]Sheet4!$A$49:$H$90,3,0)","v":5},{"$f":"VLOOKUP($A23,[1]Sheet4!$A$49:$H$90,4,0)","v":0},{"$f":"VLOOKUP($A23,[1]Sheet4!$A$49:$H$90,5,0)","v":0},{"$f":"VLOOKUP($A23,[1]Sheet4!$A$49:$H$90,6,0)","v":0},{"$f":"VLOOKUP($A23,[1]Sheet4!$A$49:$H$90,7,0)","v":0},{"$f":"VLOOKUP($A23,[1]Sheet4!$A$49:$H$90,8,0)","v":0},0,0,0,0,0,0,0,0,0]
["QJM","LINCOLNSHIRE ICB",0,"NA","NA",0,0,0,0,0,0,{"$f":"VLOOKUP($A24,[1]Sheet4!$A$49:$H$90,2,0)","v":0},{"$error":"#DIV/0!"},{"$error":"#DIV/0!"},{"$f":"VLOOKUP($A24,[1]Sheet4!$A$49:$H$90,3,0)","v":0},{"$f":"VLOOKUP($A24,[1]Sheet4!$A$49:$H$90,4,0)","v":0},{"$f":"VLOOKUP($A24,[1]Sheet4!$A$49:$H$90,5,0)","v":0},{"$f":"VLOOKUP($A24,[1]Sheet4!$A$49:$H$90,6,0)","v":0},{"$f":"VLOOKUP($A24,[1]Sheet4!$A$49:$H$90,7,0)","v":0},{"$f":"VLOOKUP($A24,[1]Sheet4!$A$49:$H$90,8,0)","v":0},0,0,0,0,0,0,0,0,0]
["QK1","LEICESTER, LEICESTERSHIRE AND RUTLAND ICB",21,0.95238095238095233,4.7619047619047616E-2,19,1,0,0,1,0,{"$f":"VLOOKUP($A25,[1]Sheet4!$A$49:$H$90,2,0)","v":21},0.95238095238095233,4.7619047619047616E-2,{"$f":"VLOOKUP($A25,[1]Sheet4!$A$49:$H$90,3,0)","v":19},{"$f":"VLOOKUP($A25,[1]Sheet4!$A$49:$H$90,4,0)","v":1},{"$f":"VLOOKUP($A25,[1]Sheet4!$A$49:$H$90,5,0)","v":0},{"$f":"VLOOKUP($A25,[1]Sheet4!$A$49:$H$90,6,0)","v":0},{"$f":"VLOOKUP($A25,[1]Sheet4!$A$49:$H$90,7,0)","v":1},{"$f":"VLOOKUP($A25,[1]Sheet4!$A$49:$H$90,8,0)","v":0},0,0,0,0,0,0,0,0,0]
["QKK","SOUTH EAST LONDON ICB",6,1,0,6,0,0,0,0,0,{"$f":"VLOOKUP($A26,[1]Sheet4!$A$49:$H$90,2,0)","v":6},1,0,{"$f":"VLOOKUP($A26,[1]Sheet4!$A$49:$H$90,3,0)","v":6},{"$f":"VLOOKUP($A26,[1]Sheet4!$A$49:$H$90,4,0)","v":0},{"$f":"VLOOKUP($A26,[1]Sheet4!$A$49:$H$90,5,0)","v":0},{"$f":"VLOOKUP($A26,[1]Sheet4!$A$49:$H$90,6,0)","v":0},{"$f":"VLOOKUP($A26,[1]Sheet4!$A$49:$H$90,7,0)","v":0},{"$f":"VLOOKUP($A26,[1]Sheet4!$A$49:$H$90,8,0)","v":0},0,0,0,0,0,0,0,0,0]
["QKS","KENT AND MEDWAY ICB",11,1,0,11,0,0,0,0,0,{"$f":"VLOOKUP($A27,[1]Sheet4!$A$49:$H$90,2,0)","v":11},1,0,{"$f":"VLOOKUP($A27,[1]Sheet4!$A$49:$H$90,3,0)","v":11},{"$f":"VLOOKUP($A27,[1]Sheet4!$A$49:$H$90,4,0)","v":0},{"$f":"VLOOKUP($A27,[1]Sheet4!$A$49:$H$90,5,0)","v":0},{"$f":"VLOOKUP($A27,[1]Sheet4!$A$49:$H$90,6,0)","v":0},{"$f":"VLOOKUP($A27,[1]Sheet4!$A$49:$H$90,7,0)","v":0},{"$f":"VLOOKUP($A27,[1]Sheet4!$A$49:$H$90,8,0)","v":0},0,0,0,0,0,0,0,0,0]
["QM7","HERTFORDSHIRE AND WEST ESSEX ICB",42,0.97619047619047616,0,36,5,1,0,0,0,{"$f":"VLOOKUP($A28,[1]Sheet4!$A$49:$H$90,2,0)","v":42},0.97619047619047616,0,{"$f":"VLOOKUP($A28,[1]Sheet4!$A$49:$H$90,3,0)","v":36},{"$f":"VLOOKUP($A28,[1]Sheet4!$A$49:$H$90,4,0)","v":5},{"$f":"VLOOKUP($A28,[1]Sheet4!$A$49:$H$90,5,0)","v":1},{"$f":"VLOOKUP($A28,[1]Sheet4!$A$49:$H$90,6,0)","v":0},{"$f":"VLOOKUP($A28,[1]Sheet4!$A$49:$H$90,7,0)","v":0},{"$f":"VLOOKUP($A28,[1]Sheet4!$A$49:$H$90,8,0)","v":0},0,0,0,0,0,0,0,0,0]
["QMF","NORTH EAST LONDON ICB",17,0.94117647058823528,0,16,0,0,0,0,1,{"$f":"VLOOKUP($A29,[1]Sheet4!$A$49:$H$90,2,0)","v":17},0.94117647058823528,0,{"$f":"VLOOKUP($A29,[1]Sheet4!$A$49:$H$90,3,0)","v":16},{"$f":"VLOOKUP($A29,[1]Sheet4!$A$49:$H$90,4,0)","v":0},{"$f":"VLOOKUP($A29,[1]Sheet4!$A$49:$H$90,5,0)","v":0},{"$f":"VLOOKUP($A29,[1]Sheet4!$A$49:$H$90,6,0)","v":0},{"$f":"VLOOKUP($A29,[1]Sheet4!$A$49:$H$90,7,0)","v":0},{"$f":"VLOOKUP($A29,[1]Sheet4!$A$49:$H$90,8,0)","v":1},0,0,0,0,0,0,0,0,0]
["QMJ","NORTH CENTRAL LONDON ICB",61,0.95081967213114749,1.6393442622950821E-2,54,4,2,0,1,0,{"$f":"VLOOKUP($A30,[1]Sheet4!$A$49:$H$90,2,0)","v":61},0.95081967213114749,1.6393442622950821E-2,{"$f":"VLOOKUP($A30,[1]Sheet4!$A$49:$H$90,3,0)","v":54},{"$f":"VLOOKUP($A30,[1]Sheet4!$A$49:$H$90,4,0)","v":4},{"$f":"VLOOKUP($A30,[1]Sheet4!$A$49:$H$90,5,0)","v":2},{"$f":"VLOOKUP($A30,[1]Sheet4!$A$49:$H$90,6,0)","v":0},{"$f":"VLOOKUP($A30,[1]Sheet4!$A$49:$H$90,7,0)","v":1},{"$f":"VLOOKUP($A30,[1]Sheet4!$A$49:$H$90,8,0)","v":0},0,0,0,0,0,0,0,0,0]
["QMM","NORFOLK AND WAVENEY ICB",6,1,0,6,0,0,0,0,0,{"$f":"VLOOKUP($A31,[1]Sheet4!$A$49:$H$90,2,0)","v":6},1,0,{"$f":"VLOOKUP($A31,[1]Sheet4!$A$49:$H$90,3,0)","v":6},{"$f":"VLOOKUP($A31,[1]Sheet4!$A$49:$H$90,4,0)","v":0},{"$f":"VLOOKUP($A31,[1]Sheet4!$A$49:$H$90,5,0)","v":0},{"$f":"VLOOKUP($A31,[1]Sheet4!$A$49:$H$90,6,0)","v":0},{"$f":"VLOOKUP($A31,[1]Sheet4!$A$49:$H$90,7,0)","v":0},{"$f":"VLOOKUP($A31,[1]Sheet4!$A$49:$H$90,8,0)","v":0},0,0,0,0,0,0,0,0,0]
["QNC","STAFFORDSHIRE AND STOKE-ON-TRENT ICB",0,"NA","NA",0,0,0,0,0,0,{"$f":"VLOOKUP($A32,[1]Sheet4!$A$49:$H$90,2,0)","v":0},{"$error":"#DIV/0!"},{"$error":"#DIV/0!"},{"$f":"VLOOKUP($A32,[1]Sheet4!$A$49:$H$90,3,0)","v":0},{"$f":"VLOOKUP($A32,[1]Sheet4!$A$49:$H$90,4,0)","v":0},{"$f":"VLOOKUP($A32,[1]Sheet4!$A$49:$H$90,5,0)","v":0},{"$f":"VLOOKUP($A32,[1]Sheet4!$A$49:$H$90,6,0)","v":0},{"$f":"VLOOKUP($A32,[1]Sheet4!$A$49:$H$90,7,0)","v":0},{"$f":"VLOOKUP($A32,[1]Sheet4!$A$49:$H$90,8,0)","v":0},0,0,0,0,0,0,0,0,0]
["QNQ","FRIMLEY ICB",50,0.96,0.04,45,3,0,0,2,0,{"$f":"VLOOKUP($A33,[1]Sheet4!$A$49:$H$90,2,0)","v":50},0.96,0.04,{"$f":"VLOOKUP($A33,[1]Sheet4!$A$49:$H$90,3,0)","v":45},{"$f":"VLOOKUP($A33,[1]Sheet4!$A$49:$H$90,4,0)","v":3},{"$f":"VLOOKUP($A33,[1]Sheet4!$A$49:$H$90,5,0)","v":0},{"$f":"VLOOKUP($A33,[1]Sheet4!$A$49:$H$90,6,0)","v":0},{"$f":"VLOOKUP($A33,[1]Sheet4!$A$49:$H$90,7,0)","v":2},{"$f":"VLOOKUP($A33,[1]Sheet4!$A$49:$H$90,8,0)","v":0},0,0,0,0,0,0,0,0,0]
["QNX","SUSSEX ICB",12,0.75,0.25,8,1,0,2,1,0,{"$f":"VLOOKUP($A34,[1]Sheet4!$A$49:$H$90,2,0)","v":12},0.75,0.25,{"$f":"VLOOKUP($A34,[1]Sheet4!$A$49:$H$90,3,0)","v":8},{"$f":"VLOOKUP($A34,[1]Sheet4!$A$49:$H$90,4,0)","v":1},{"$f":"VLOOKUP($A34,[1]Sheet4!$A$49:$H$90,5,0)","v":0},{"$f":"VLOOKUP($A34,[1]Sheet4!$A$49:$H$90,6,0)","v":2},{"$f":"VLOOKUP($A34,[1]Sheet4!$A$49:$H$90,7,0)","v":1},{"$f":"VLOOKUP($A34,[1]Sheet4!$A$49:$H$90,8,0)","v":0},0,0,0,0,0,0,0,0,0]
["QOC","SHROPSHIRE, TELFORD AND WREKIN ICB",17,1,0,15,2,0,0,0,0,{"$f":"VLOOKUP($A35,[1]Sheet4!$A$49:$H$90,2,0)","v":17},1,0,{"$f":"VLOOKUP($A35,[1]Sheet4!$A$49:$H$90,3,0)","v":15},{"$f":"VLOOKUP($A35,[1]Sheet4!$A$49:$H$90,4,0)","v":2},{"$f":"VLOOKUP($A35,[1]Sheet4!$A$49:$H$90,5,0)","v":0},{"$f":"VLOOKUP($A35,[1]Sheet4!$A$49:$H$90,6,0)","v":0},{"$f":"VLOOKUP($A35,[1]Sheet4!$A$49:$H$90,7,0)","v":0},{"$f":"VLOOKUP($A35,[1]Sheet4!$A$49:$H$90,8,0)","v":0},0,0,0,0,0,0,0,0,0]
["QOP","GREATER MANCHESTER ICB",102,0.91176470588235292,4.9019607843137254E-2,80,13,1,1,4,3,{"$f":"VLOOKUP($A36,[1]Sheet4!$A$49:$H$90,2,0)","v":102},0.91176470588235292,4.9019607843137254E-2,{"$f":"VLOOKUP($A36,[1]Sheet4!$A$49:$H$90,3,0)","v":80},{"$f":"VLOOKUP($A36,[1]Sheet4!$A$49:$H$90,4,0)","v":13},{"$f":"VLOOKUP($A36,[1]Sheet4!$A$49:$H$90,5,0)","v":1},{"$f":"VLOOKUP($A36,[1]Sheet4!$A$49:$H$90,6,0)","v":1},{"$f":"VLOOKUP($A36,[1]Sheet4!$A$49:$H$90,7,0)","v":4},{"$f":"VLOOKUP($A36,[1]Sheet4!$A$49:$H$90,8,0)","v":3},0,0,0,0,0,0,0,0,0]
["QOQ","HUMBER AND NORTH YORKSHIRE ICB",48,1,0,46,2,0,0,0,0,{"$f":"VLOOKUP($A37,[1]Sheet4!$A$49:$H$90,2,0)","v":48},1,0,{"$f":"VLOOKUP($A37,[1]Sheet4!$A$49:$H$90,3,0)","v":46},{"$f":"VLOOKUP($A37,[1]Sheet4!$A$49:$H$90,4,0)","v":2},{"$f":"VLOOKUP($A37,[1]Sheet4!$A$49:$H$90,5,0)","v":0},{"$f":"VLOOKUP($A37,[1]Sheet4!$A$49:$H$90,6,0)","v":0},{"$f":"VLOOKUP($A37,[1]Sheet4!$A$49:$H$90,7,0)","v":0},{"$f":"VLOOKUP($A37,[1]Sheet4!$A$49:$H$90,8,0)","v":0},0,0,0,0,0,0,0,0,0]
["QOX","BATH AND NORTH EAST SOMERSET, SWINDON AND WILTSHIRE ICB",16,0.875,6.25E-2,13,1,1,0,1,0,{"$f":"VLOOKUP($A38,[1]Sheet4!$A$49:$H$90,2,0)","v":16},0.875,6.25E-2,{"$f":"VLOOKUP($A38,[1]Sheet4!$A$49:$H$90,3,0)","v":13},{"$f":"VLOOKUP($A38,[1]Sheet4!$A$49:$H$90,4,0)","v":1},{"$f":"VLOOKUP($A38,[1]Sheet4!$A$49:$H$90,5,0)","v":1},{"$f":"VLOOKUP($A38,[1]Sheet4!$A$49:$H$90,6,0)","v":0},{"$f":"VLOOKUP($A38,[1]Sheet4!$A$49:$H$90,7,0)","v":1},{"$f":"VLOOKUP($A38,[1]Sheet4!$A$49:$H$90,8,0)","v":0},0,0,0,0,0,0,0,0,0]
["QPM","NORTHAMPTONSHIRE ICB",18,1,0,18,0,0,0,0,0,{"$f":"VLOOKUP($A39,[1]Sheet4!$A$49:$H$90,2,0)","v":18},1,0,{"$f":"VLOOKUP($A39,[1]Sheet4!$A$49:$H$90,3,0)","v":18},{"$f":"VLOOKUP($A39,[1]Sheet4!$A$49:$H$90,4,0)","v":0},{"$f":"VLOOKUP($A39,[1]Sheet4!$A$49:$H$90,5,0)","v":0},{"$f":"VLOOKUP($A39,[1]Sheet4!$A$49:$H$90,6,0)","v":0},{"$f":"VLOOKUP($A39,[1]Sheet4!$A$49:$H$90,7,0)","v":0},{"$f":"VLOOKUP($A39,[1]Sheet4!$A$49:$H$90,8,0)","v":0},0,0,0,0,0,0,0,0,0]
["QR1","GLOUCESTERSHIRE ICB",0,"NA","NA",0,0,0,0,0,0,{"$f":"VLOOKUP($A40,[1]Sheet4!$A$49:$H$90,2,0)","v":0},{"$error":"#DIV/0!"},{"$error":"#DIV/0!"},{"$f":"VLOOKUP($A40,[1]Sheet4!$A$49:$H$90,3,0)","v":0},{"$f":"VLOOKUP($A40,[1]Sheet4!$A$49:$H$90,4,0)","v":0},{"$f":"VLOOKUP($A40,[1]Sheet4!$A$49:$H$90,5,0)","v":0},{"$f":"VLOOKUP($A40,[1]Sheet4!$A$49:$H$90,6,0)","v":0},{"$f":"VLOOKUP($A40,[1]Sheet4!$A$49:$H$90,7,0)","v":0},{"$f":"VLOOKUP($A40,[1]Sheet4!$A$49:$H$90,8,0)","v":0},0,0,0,0,0,0,0,0,0]
["QRL","HAMPSHIRE AND ISLE OF WIGHT ICB",147,0.91836734693877553,0,82,53,5,0,0,7,{"$f":"VLOOKUP($A41,[1]Sheet4!$A$49:$H$90,2,0)","v":147},0.91836734693877553,0,{"$f":"VLOOKUP($A41,[1]Sheet4!$A$49:$H$90,3,0)","v":82},{"$f":"VLOOKUP($A41,[1]Sheet4!$A$49:$H$90,4,0)","v":53},{"$f":"VLOOKUP($A41,[1]Sheet4!$A$49:$H$90,5,0)","v":5},{"$f":"VLOOKUP($A41,[1]Sheet4!$A$49:$H$90,6,0)","v":0},{"$f":"VLOOKUP($A41,[1]Sheet4!$A$49:$H$90,7,0)","v":0},{"$f":"VLOOKUP($A41,[1]Sheet4!$A$49:$H$90,8,0)","v":7},0,0,0,0,0,0,0,0,0]
["QRV","NORTH WEST LONDON ICB",30,1,0,24,6,0,0,0,0,{"$f":"VLOOKUP($A42,[1]Sheet4!$A$49:$H$90,2,0)","v":30},1,0,{"$f":"VLOOKUP($A42,[1]Sheet4!$A$49:$H$90,3,0)","v":24},{"$f":"VLOOKUP($A42,[1]Sheet4!$A$49:$H$90,4,0)","v":6},{"$f":"VLOOKUP($A42,[1]Sheet4!$A$49:$H$90,5,0)","v":0},{"$f":"VLOOKUP($A42,[1]Sheet4!$A$49:$H$90,6,0)","v":0},{"$f":"VLOOKUP($A42,[1]Sheet4!$A$49:$H$90,7,0)","v":0},{"$f":"VLOOKUP($A42,[1]Sheet4!$A$49:$H$90,8,0)","v":0},0,0,0,0,0,0,0,0,0]
["QSL","SOMERSET ICB",0,"NA","NA",0,0,0,0,0,0,{"$f":"VLOOKUP($A43,[1]Sheet4!$A$49:$H$90,2,0)","v":0},{"$error":"#DIV/0!"},{"$error":"#DIV/0!"},{"$f":"VLOOKUP($A43,[1]Sheet4!$A$49:$H$90,3,0)","v":0},{"$f":"VLOOKUP($A43,[1]Sheet4!$A$49:$H$90,4,0)","v":0},{"$f":"VLOOKUP($A43,[1]Sheet4!$A$49:$H$90,5,0)","v":0},{"$f":"VLOOKUP($A43,[1]Sheet4!$A$49:$H$90,6,0)","v":0},{"$f":"VLOOKUP($A43,[1]Sheet4!$A$49:$H$90,7,0)","v":0},{"$f":"VLOOKUP($A43,[1]Sheet4!$A$49:$H$90,8,0)","v":0},0,0,0,0,0,0,0,0,0]
["QT1","NOTTINGHAM AND NOTTINGHAMSHIRE ICB",12,0.91666666666666663,8.3333333333333329E-2,11,0,0,0,1,0,{"$f":"VLOOKUP($A44,[1]Sheet4!$A$49:$H$90,2,0)","v":12},0.91666666666666663,8.3333333333333329E-2,{"$f":"VLOOKUP($A44,[1]Sheet4!$A$49:$H$90,3,0)","v":11},{"$f":"VLOOKUP($A44,[1]Sheet4!$A$49:$H$90,4,0)","v":0},{"$f":"VLOOKUP($A44,[1]Sheet4!$A$49:$H$90,5,0)","v":0},{"$f":"VLOOKUP($A44,[1]Sheet4!$A$49:$H$90,6,0)","v":0},{"$f":"VLOOKUP($A44,[1]Sheet4!$A$49:$H$90,7,0)","v":1},{"$f":"VLOOKUP($A44,[1]Sheet4!$A$49:$H$90,8,0)","v":0},0,0,0,0,0,0,0,0,0]
["QT6","CORNWALL AND THE ISLES OF SCILLY ICB",0,"NA","NA",0,0,0,0,0,0,{"$f":"VLOOKUP($A45,[1]Sheet4!$A$49:$H$90,2,0)","v":0},{"$error":"#DIV/0!"},{"$error":"#DIV/0!"},{"$f":"VLOOKUP($A45,[1]Sheet4!$A$49:$H$90,3,0)","v":0},{"$f":"VLOOKUP($A45,[1]Sheet4!$A$49:$H$90,4,0)","v":0},{"$f":"VLOOKUP($A45,[1]Sheet4!$A$49:$H$90,5,0)","v":0},{"$f":"VLOOKUP($A45,[1]Sheet4!$A$49:$H$90,6,0)","v":0},{"$f":"VLOOKUP($A45,[1]Sheet4!$A$49:$H$90,7,0)","v":0},{"$f":"VLOOKUP($A45,[1]Sheet4!$A$49:$H$90,8,0)","v":0},0,0,0,0,0,0,0,0,0]
["QU9","BUCKINGHAMSHIRE, OXFORDSHIRE AND BERKSHIRE WEST ICB",13,0.84615384615384615,7.6923076923076927E-2,9,2,1,0,1,0,{"$f":"VLOOKUP($A46,[1]Sheet4!$A$49:$H$90,2,0)","v":13},0.84615384615384615,7.6923076923076927E-2,{"$f":"VLOOKUP($A46,[1]Sheet4!$A$49:$H$90,3,0)","v":9},{"$f":"VLOOKUP($A46,[1]Sheet4!$A$49:$H$90,4,0)","v":2},{"$f":"VLOOKUP($A46,[1]Sheet4!$A$49:$H$90,5,0)","v":1},{"$f":"VLOOKUP($A46,[1]Sheet4!$A$49:$H$90,6,0)","v":0},{"$f":"VLOOKUP($A46,[1]Sheet4!$A$49:$H$90,7,0)","v":1},{"$f":"VLOOKUP($A46,[1]Sheet4!$A$49:$H$90,8,0)","v":0},0,0,0,0,0,0,0,0,0]
["QUA","BLACK COUNTRY ICB",53,0.77358490566037741,0.13207547169811321,35,6,2,4,3,3,{"$f":"VLOOKUP($A47,[1]Sheet4!$A$49:$H$90,2,0)","v":53},0.77358490566037741,0.13207547169811321,{"$f":"VLOOKUP($A47,[1]Sheet4!$A$49:$H$90,3,0)","v":35},{"$f":"VLOOKUP($A47,[1]Sheet4!$A$49:$H$90,4,0)","v":6},{"$f":"VLOOKUP($A47,[1]Sheet4!$A$49:$H$90,5,0)","v":2},{"$f":"VLOOKUP($A47,[1]Sheet4!$A$49:$H$90,6,0)","v":4},{"$f":"VLOOKUP($A47,[1]Sheet4!$A$49:$H$90,7,0)","v":3},{"$f":"VLOOKUP($A47,[1]Sheet4!$A$49:$H$90,8,0)","v":3},0,0,0,0,0,0,0,0,0]
["QUE","CAMBRIDGESHIRE AND PETERBOROUGH ICB",25,1,0,25,0,0,0,0,0,{"$f":"VLOOKUP($A48,[1]Sheet4!$A$49:$H$90,2,0)","v":25},1,0,{"$f":"VLOOKUP($A48,[1]Sheet4!$A$49:$H$90,3,0)","v":25},{"$f":"VLOOKUP($A48,[1]Sheet4!$A$49:$H$90,4,0)","v":0},{"$f":"VLOOKUP($A48,[1]Sheet4!$A$49:$H$90,5,0)","v":0},{"$f":"VLOOKUP($A48,[1]Sheet4!$A$49:$H$90,6,0)","v":0},{"$f":"VLOOKUP($A48,[1]Sheet4!$A$49:$H$90,7,0)","v":0},{"$f":"VLOOKUP($A48,[1]Sheet4!$A$49:$H$90,8,0)","v":0},0,0,0,0,0,0,0,0,0]
["QUY","BRISTOL, NORTH SOMERSET AND SOUTH GLOUCESTERSHIRE ICB",78,0.97435897435897434,1.282051282051282E-2,62,14,1,0,1,0,{"$f":"VLOOKUP($A49,[1]Sheet4!$A$49:$H$90,2,0)","v":78},0.97435897435897434,1.282051282051282E-2,{"$f":"VLOOKUP($A49,[1]Sheet4!$A$49:$H$90,3,0)","v":62},{"$f":"VLOOKUP($A49,[1]Sheet4!$A$49:$H$90,4,0)","v":14},{"$f":"VLOOKUP($A49,[1]Sheet4!$A$49:$H$90,5,0)","v":1},{"$f":"VLOOKUP($A49,[1]Sheet4!$A$49:$H$90,6,0)","v":0},{"$f":"VLOOKUP($A49,[1]Sheet4!$A$49:$H$90,7,0)","v":1},{"$f":"VLOOKUP($A49,[1]Sheet4!$A$49:$H$90,8,0)","v":0},0,0,0,0,0,0,0,0,0]
["QVV","DORSET ICB",2,"*","*","*","*","*","*","*","*",{"$f":"VLOOKUP($A50,[1]Sheet4!$A$49:$H$90,2,0)","v":2},0,0.5,{"$f":"VLOOKUP($A50,[1]Sheet4!$A$49:$H$90,3,0)","v":0},{"$f":"VLOOKUP($A50,[1]Sheet4!$A$49:$H$90,4,0)","v":0},{"$f":"VLOOKUP($A50,[1]Sheet4!$A$49:$H$90,5,0)","v":1},{"$f":"VLOOKUP($A50,[1]Sheet4!$A$49:$H$90,6,0)","v":1},{"$f":"VLOOKUP($A50,[1]Sheet4!$A$49:$H$90,7,0)","v":0},{"$f":"VLOOKUP($A50,[1]Sheet4!$A$49:$H$90,8,0)","v":0},0,0,0,0,0,0,0,0,0]
["QWE","SOUTH WEST LONDON ICB",7,1,0,7,0,0,0,0,0,{"$f":"VLOOKUP($A51,[1]Sheet4!$A$49:$H$90,2,0)","v":7},1,0,{"$f":"VLOOKUP($A51,[1]Sheet4!$A$49:$H$90,3,0)","v":7},{"$f":"VLOOKUP($A51,[1]Sheet4!$A$49:$H$90,4,0)","v":0},{"$f":"VLOOKUP($A51,[1]Sheet4!$A$49:$H$90,5,0)","v":0},{"$f":"VLOOKUP($A51,[1]Sheet4!$A$49:$H$90,6,0)","v":0},{"$f":"VLOOKUP($A51,[1]Sheet4!$A$49:$H$90,7,0)","v":0},{"$f":"VLOOKUP($A51,[1]Sheet4!$A$49:$H$90,8,0)","v":0},0,0,0,0,0,0,0,0,0]
["QWO","WEST YORKSHIRE ICB",19,0.94736842105263153,5.2631578947368418E-2,17,1,0,1,0,0,{"$f":"VLOOKUP($A52,[1]Sheet4!$A$49:$H$90,2,0)","v":19},0.94736842105263153,5.2631578947368418E-2,{"$f":"VLOOKUP($A52,[1]Sheet4!$A$49:$H$90,3,0)","v":17},{"$f":"VLOOKUP($A52,[1]Sheet4!$A$49:$H$90,4,0)","v":1},{"$f":"VLOOKUP($A52,[1]Sheet4!$A$49:$H$90,5,0)","v":0},{"$f":"VLOOKUP($A52,[1]Sheet4!$A$49:$H$90,6,0)","v":1},{"$f":"VLOOKUP($A52,[1]Sheet4!$A$49:$H$90,7,0)","v":0},{"$f":"VLOOKUP($A52,[1]Sheet4!$A$49:$H$90,8,0)","v":0},0,0,0,0,0,0,0,0,0]
["QWU","COVENTRY AND WARWICKSHIRE ICB",29,0.82758620689655171,0.13793103448275862,23,1,1,1,3,0,{"$f":"VLOOKUP($A53,[1]Sheet4!$A$49:$H$90,2,0)","v":29},0.82758620689655171,0.13793103448275862,{"$f":"VLOOKUP($A53,[1]Sheet4!$A$49:$H$90,3,0)","v":23},{"$f":"VLOOKUP($A53,[1]Sheet4!$A$49:$H$90,4,0)","v":1},{"$f":"VLOOKUP($A53,[1]Sheet4!$A$49:$H$90,5,0)","v":1},{"$f":"VLOOKUP($A53,[1]Sheet4!$A$49:$H$90,6,0)","v":1},{"$f":"VLOOKUP($A53,[1]Sheet4!$A$49:$H$90,7,0)","v":3},{"$f":"VLOOKUP($A53,[1]Sheet4!$A$49:$H$90,8,0)","v":0},0,0,0,0,0,0,0,0,0]
["QXU","SURREY HEARTLANDS ICB",54,0.96296296296296291,1.8518518518518517E-2,49,3,1,1,0,0,{"$f":"VLOOKUP($A54,[1]Sheet4!$A$49:$H$90,2,0)","v":54},0.96296296296296291,1.8518518518518517E-2,{"$f":"VLOOKUP($A54,[1]Sheet4!$A$49:$H$90,3,0)","v":49},{"$f":"VLOOKUP($A54,[1]Sheet4!$A$49:$H$90,4,0)","v":3},{"$f":"VLOOKUP($A54,[1]Sheet4!$A$49:$H$90,5,0)","v":1},{"$f":"VLOOKUP($A54,[1]Sheet4!$A$49:$H$90,6,0)","v":1},{"$f":"VLOOKUP($A54,[1]Sheet4!$A$49:$H$90,7,0)","v":0},{"$f":"VLOOKUP($A54,[1]Sheet4!$A$49:$H$90,8,0)","v":0},0,0,0,0,0,0,0,0,0]
["QYG","CHESHIRE AND MERSEYSIDE ICB",59,0.83050847457627119,0.13559322033898305,44,5,1,3,5,1,{"$f":"VLOOKUP($A55,[1]Sheet4!$A$49:$H$90,2,0)","v":59},0.83050847457627119,0.13559322033898305,{"$f":"VLOOKUP($A55,[1]Sheet4!$A$49:$H$90,3,0)","v":44},{"$f":"VLOOKUP($A55,[1]Sheet4!$A$49:$H$90,4,0)","v":5},{"$f":"VLOOKUP($A55,[1]Sheet4!$A$49:$H$90,5,0)","v":1},{"$f":"VLOOKUP($A55,[1]Sheet4!$A$49:$H$90,6,0)","v":3},{"$f":"VLOOKUP($A55,[1]Sheet4!$A$49:$H$90,7,0)","v":5},{"$f":"VLOOKUP($A55,[1]Sheet4!$A$49:$H$90,8,0)","v":1},0,0,0,0,0,0,0,0,0]

{"sheet":"Trusts Q4","index":12,"n_rows":131,"n_cols":20,"rows_kept":131,"cut":false,"hidden":false,"merged":[[8,6,8,11],[8,12,8,19],[8,0,9,0],[8,1,9,1],[8,2,9,2],[8,3,9,3],[8,4,9,4],[8,5,9,5]]}
[]
[]
[]
[]
[]
[null,"   Sort data by:           "]
[]
[]
["ICB Code","Trust Code","Trust Name","Total Responses","Percentage Positive","Percentage Negative","Breakdown of Responses",null,null,null,null,null,"Mode of Collection"]
[null,null,null,null,null,null,"Very Good","Good","Neither Good nor Poor","Poor","Very Poor","Don't Know","Mode SMS","Mode Electronic Discharge","Mode Electronic Home","Mode Paper Discharge","Mode Paper Home","Mode Telephone","Mode Online","Mode Other"]
[null,null,"England (including Independent Sector providers)",1309,0.92055003819709702,4.1252864782276549E-2,1025,180,33,24,30,17,529,108,24,234,25,1,388,0]
[null,null,"England (excluding Independent Sector providers)",1309,0.92055003819709702,4.1252864782276549E-2,1025,180,33,24,30,17,529,108,24,234,25,1,388,0]
[null,null,"Selection (excluding suppressed data)",{"$f":"SUBTOTAL(9,D14:D299)","v":1309},{"$f":"IFERROR((G13+H13)/SUM(G13:L13), \"-\")","v":0.91840277777777779},{"$f":"IFERROR((J13+K13)/SUM(G13:L13), \"-\")","v":4.2534722222222224E-2},{"$f":"SUBTOTAL(9,G14:G299)","v":886},172,31,21,28,14,459,86,24,211,25,1,346,{"$f":"SUBTOTAL(9,T14:T299)","v":0}]
["QE1","RTX","UNIVERSITY HOSPITALS OF MORECAMBE BAY NHS FOUNDATION TRUST",13,1,0,13,0,0,0,0,0,0,0,0,0,0,0,13,0]
["QE1","RXN","LANCASHIRE TEACHING HOSPITALS NHS FOUNDATION TRUST",21,0.80952380952380953,0.19047619047619047,16,1,0,3,1,0,21,0,0,0,0,0,0,0]
["QE1","RXL","BLACKPOOL TEACHING HOSPITALS NHS FOUNDATION TRUST",43,0.90697674418604646,0,34,5,3,0,0,1,17,0,0,0,0,0,26,0]
["QE1","RXR","EAST LANCASHIRE HOSPITALS NHS TRUST",47,0.85106382978723405,8.5106382978723402E-2,31,9,3,1,3,0,47,0,0,0,0,0,0,0]
["QF7","RP5","DONCASTER AND BASSETLAW TEACHING HOSPITALS NHS FOUNDATION TRUST",0,"NA","NA",0,0,0,0,0,0,0,0,0,0,0,0,0,0]
["QF7","RFF","BARNSLEY HOSPITAL NHS FOUNDATION TRUST",3,"*","*","*","*","*","*","*","*","*","*","*","*","*","*","*","*"]
["QF7","RFR","THE ROTHERHAM NHS FOUNDATION TRUST",3,"*","*","*","*","*","*","*","*","*","*","*","*","*","*","*","*"]
["QF7","RHQ","SHEFFIELD TEACHING HOSPITALS NHS FOUNDATION TRUST",16,1,0,12,4,0,0,0,0,16,0,0,0,0,0,0,0]
["QGH","RLQ","WYE VALLEY NHS TRUST",0,"NA","NA",0,0,0,0,0,0,0,0,0,0,0,0,0,0]
["QGH","RWP","WORCESTERSHIRE ACUTE HOSPITALS NHS TRUST",0,"NA","NA",0,0,0,0,0,0,0,0,0,0,0,0,0,0]
["QH8","RAJ","MID AND SOUTH ESSEX NHS FOUNDATION TRUST",0,"NA","NA",0,0,0,0,0,0,0,0,0,0,0,0,0,0]
["QHG","RC9","BEDFORDSHIRE HOSPITALS NHS FOUNDATION TRUST",18,1,0,15,3,0,0,0,0,0,14,0,0,0,0,4,0]
["QHG","RD8","MILTON KEYNES UNIVERSITY HOSPITAL NHS FOUNDATION TRUST",30,1,0,25,5,0,0,0,0,30,0,0,0,0,0,0,0]
["QHL","RRK","UNIVERSITY HOSPITALS BIRMINGHAM NHS FOUNDATION TRUST",0,"NA","NA",0,0,0,0,0,0,0,0,0,0,0,0,0,0]
["QHL","RXK","SANDWELL AND WEST BIRMINGHAM HOSPITALS NHS TRUST",0,"NA","NA",0,0,0,0,0,0,0,0,0,0,0,0,0,0]
["QHL","RQ3","BIRMINGHAM WOMEN'S AND CHILDREN'S NHS FOUNDATION TRUST",31,1,0,26,5,0,0,0,0,0,0,0,0,0,0,31,0]
["QHM","RNN","NORTH CUMBRIA INTEGRATED CARE NHS FOUNDATION TRUST",0,"NA","NA",0,0,0,0,0,0,0,0,0,0,0,0,0,0]
["QHM","RR7","GATESHEAD HEALTH NHS FOUNDATION TRUST",0,"NA","NA",0,0,0,0,0,0,0,0,0,0,0,0,0,0]
["QHM","RVW","NORTH TEES AND HARTLEPOOL NHS FOUNDATION TRUST",0,"NA","NA",0,0,0,0,0,0,0,0,0,0,0,0,0,0]
["QHM","RXP","COUNTY DURHAM AND DARLINGTON NHS FOUNDATION TRUST",0,"NA","NA",0,0,0,0,0,0,0,0,0,0,0,0,0,0]
["QHM","R0B","SOUTH TYNESIDE AND SUNDERLAND NHS FOUNDATION TRUST",2,"*","*","*","*","*","*","*","*","*","*","*","*","*","*","*","*"]
["QHM","RTR","SOUTH TEES HOSPITALS NHS FOUNDATION TRUST",5,1,0,"*","*","*","*","*","*","*","*","*","*","*","*","*","*"]
["QHM","RTF","NORTHUMBRIA HEALTHCARE NHS FOUNDATION TRUST",15,0.8,0.2,6,6,0,1,2,0,15,0,0,0,0,0,0,0]
["QHM","RTD","THE NEWCASTLE UPON TYNE HOSPITALS NHS FOUNDATION TRUST",58,0.81034482758620685,6.8965517241379309E-2,34,13,6,4,0,1,58,0,0,0,0,0,0,0]
["QJ2","RTG","UNIVERSITY HOSPITALS OF DERBY AND BURTON NHS FOUNDATION TRUST",0,"NA","NA",0,0,0,0,0,0,0,0,0,0,0,0,0,0]
["QJ2","RFS","CHESTERFIELD ROYAL HOSPITAL NHS FOUNDATION TRUST",1,"*","*","*","*","*","*","*","*","*","*","*","*","*","*","*","*"]
["QJG","RDE","EAST SUFFOLK AND NORTH ESSEX NHS FOUNDATION TRUST",16,1,0,14,2,0,0,0,0,0,0,0,0,0,0,16,0]
["QJG","RGR","WEST SUFFOLK NHS FOUNDATION TRUST",27,0.85185185185185186,3.7037037037037035E-2,21,2,3,1,0,0,0,0,0,0,0,0,27,0]
["QJK","RA9","TORBAY AND SOUTH DEVON NHS FOUNDATION TRUST",0,"NA","NA",0,0,0,0,0,0,0,0,0,0,0,0,0,0]
["QJK","RH8","ROYAL DEVON UNIVERSITY HEALTHCARE NHS FOUNDATION TRUST",2,"*","*","*","*","*","*","*","*","*","*","*","*","*","*","*","*"]
["QJK","RK9","UNIVERSITY HOSPITALS PLYMOUTH NHS TRUST",3,"*","*","*","*","*","*","*","*","*","*","*","*","*","*","*","*"]
["QJM","RWD","UNITED LINCOLNSHIRE TEACHING HOSPITALS NHS TRUST",0,"NA","NA",0,0,0,0,0,0,0,0,0,0,0,0,0,0]
["QK1","RWE","UNIVERSITY HOSPITALS OF LEICESTER NHS TRUST",21,0.95238095238095233,4.7619047619047616E-2,19,1,0,0,1,0,14,7,0,0,0,0,0,0]
["QKK","RJZ","KING'S COLLEGE HOSPITAL NHS FOUNDATION TRUST",0,"NA","NA",0,0,0,0,0,0,0,0,0,0,0,0,0,0]
["QKK","RJ1","GUY'S AND ST THOMAS' NHS FOUNDATION TRUST",1,"*","*","*","*","*","*","*","*","*","*","*","*","*","*","*","*"]
["QKK","RJ2","LEWISHAM AND GREENWICH NHS TRUST",5,1,0,"*","*","*","*","*","*","*","*","*","*","*","*","*","*"]
["QKS","RVV","EAST KENT HOSPITALS UNIVERSITY NHS FOUNDATION TRUST",0,"NA","NA",0,0,0,0,0,0,0,0,0,0,0,0,0,0]
["QKS","RWF","MAIDSTONE AND TUNBRIDGE WELLS NHS TRUST",0,"NA","NA",0,0,0,0,0,0,0,0,0,0,0,0,0,0]
["QKS","RPA","MEDWAY NHS FOUNDATION TRUST",4,"*","*","*","*","*","*","*","*","*","*","*","*","*","*","*","*"]
["QKS","RN7","DARTFORD AND GRAVESHAM NHS TRUST",7,1,0,"*","*","*","*","*","*","*","*","*","*","*","*","*","*"]
["QM7","RQW","THE PRINCESS ALEXANDRA HOSPITAL NHS TRUST",0,"NA","NA",0,0,0,0,0,0,0,0,0,0,0,0,0,0]
["QM7","RWG","WEST HERTFORDSHIRE TEACHING HOSPITALS NHS TRUST",0,"NA","NA",0,0,0,0,0,0,0,0,0,0,0,0,0,0]
["QM7","RWH","EAST AND NORTH HERTFORDSHIRE NHS TRUST",42,0.97619047619047616,0,36,5,1,0,0,0,3,8,24,1,1,1,4,0]
["QMF","RQX","HOMERTON HEALTHCARE NHS FOUNDATION TRUST",2,"*","*","*","*","*","*","*","*","*","*","*","*","*","*","*","*"]
["QMF","R1H","BARTS HEALTH NHS TRUST",6,1,0,"*","*","*","*","*","*","*","*","*","*","*","*","*","*"]
["QMF","RF4","BARKING, HAVERING AND REDBRIDGE UNIVERSITY HOSPITALS NHS TRUST",9,0.88888888888888884,0,8,0,0,0,0,1,0,0,0,9,0,0,0,0]
["QMJ","RRV","UNIVERSITY COLLEGE LONDON HOSPITALS NHS FOUNDATION TRUST",0,"NA","NA",0,0,0,0,0,0,0,0,0,0,0,0,0,0]
["QMJ","RKE","WHITTINGTON HEALTH NHS TRUST",6,1,0,6,0,0,0,0,0,0,0,0,6,0,0,0,0]
["QMJ","RAL","ROYAL FREE LONDON NHS FOUNDATION TRUST",55,0.94545454545454544,1.8181818181818181E-2,48,4,2,0,1,0,0,55,0,0,0,0,0,0]
["QMM","RM1","NORFOLK AND NORWICH UNIVERSITY HOSPITALS NHS FOUNDATION TRUST",0,"NA","NA",0,0,0,0,0,0,0,0,0,0,0,0,0,0]
["QMM","RGP","JAMES PAGET UNIVERSITY HOSPITALS NHS FOUNDATION TRUST",1,"*","*","*","*","*","*","*","*","*","*","*","*","*","*","*","*"]
["QMM","RCX","THE QUEEN ELIZABETH HOSPITAL, KING'S LYNN, NHS FOUNDATION TRUST",5,1,0,"*","*","*","*","*","*","*","*","*","*","*","*","*","*"]
["QNC","RJE","UNIVERSITY HOSPITALS OF NORTH MIDLANDS NHS TRUST",0,"NA","NA",0,0,0,0,0,0,0,0,0,0,0,0,0,0]
["QNQ","RDU","FRIMLEY HEALTH NHS FOUNDATION TRUST",50,0.96,0.04,45,3,0,0,2,0,0,0,0,38,0,0,12,0]
["QNX","RXC","EAST SUSSEX HEALTHCARE NHS TRUST",0,"NA","NA",0,0,0,0,0,0,0,0,0,0,0,0,0,0]
["QNX","RYR","UNIVERSITY HOSPITALS SUSSEX NHS FOUNDATION TRUST",12,0.75,0.25,8,1,0,2,1,0,12,0,0,0,0,0,0,0]
["QOC","RXW","THE SHREWSBURY AND TELFORD HOSPITAL NHS TRUST",17,1,0,15,2,0,0,0,0,0,0,0,0,16,0,1,0]
["QOP","RM3","NORTHERN CARE ALLIANCE NHS FOUNDATION TRUST",0,"NA","NA",0,0,0,0,0,0,0,0,0,0,0,0,0,0]
["QOP","RMP","TAMESIDE AND GLOSSOP INTEGRATED CARE NHS FOUNDATION TRUST",0,"NA","NA",0,0,0,0,0,0,0,0,0,0,0,0,0,0]
["QOP","RWJ","STOCKPORT NHS FOUNDATION TRUST",0,"NA","NA",0,0,0,0,0,0,0,0,0,0,0,0,0,0]
["QOP","RRF","WRIGHTINGTON, WIGAN AND LEIGH NHS FOUNDATION TRUST",2,"*","*","*","*","*","*","*","*","*","*","*","*","*","*","*","*"]
["QOP","R0A","MANCHESTER UNIVERSITY NHS FOUNDATION TRUST",4,"*","*","*","*","*","*","*","*","*","*","*","*","*","*","*","*"]
["QOP","RMC","BOLTON NHS FOUNDATION TRUST",96,0.90625,5.2083333333333336E-2,75,12,1,1,4,3,44,1,0,51,0,0,0,0]
["QOQ","RCB","YORK AND SCARBOROUGH TEACHING HOSPITALS NHS FOUNDATION TRUST",0,"NA","NA",0,0,0,0,0,0,0,0,0,0,0,0,0,0]
["QOQ","RCD","HARROGATE AND DISTRICT NHS FOUNDATION TRUST",0,"NA","NA",0,0,0,0,0,0,0,0,0,0,0,0,0,0]
["QOQ","RWA","HULL UNIVERSITY TEACHING HOSPITALS NHS TRUST",0,"NA","NA",0,0,0,0,0,0,0,0,0,0,0,0,0,0]
["QOQ","RJL","NORTHERN LINCOLNSHIRE AND GOOLE NHS FOUNDATION TRUST",48,1,0,46,2,0,0,0,0,0,0,0,36,0,0,12,0]
["QOX","RN3","GREAT WESTERN HOSPITALS NHS FOUNDATION TRUST",0,"NA","NA",0,0,0,0,0,0,0,0,0,0,0,0,0,0]
["QOX","RNZ","SALISBURY NHS FOUNDATION TRUST",0,"NA","NA",0,0,0,0,0,0,0,0,0,0,0,0,0,0]
["QOX","RD1","ROYAL UNITED HOSPITALS BATH NHS FOUNDATION TRUST",16,0.875,6.25E-2,13,1,1,0,1,0,10,0,0,6,0,0,0,0]
["QPM","RNS","NORTHAMPTON GENERAL HOSPITAL NHS TRUST",8,1,0,8,0,0,0,0,0,0,0,0,3,0,0,5,0]
["QPM","RNQ","KETTERING GENERAL HOSPITAL NHS FOUNDATION TRUST",10,1,0,10,0,0,0,0,0,0,0,0,0,0,0,10,0]
["QR1","RTE","GLOUCESTERSHIRE HOSPITALS NHS FOUNDATION TRUST",0,"NA","NA",0,0,0,0,0,0,0,0,0,0,0,0,0,0]
["QRL","R1F","ISLE OF WIGHT NHS TRUST",0,"NA","NA",0,0,0,0,0,0,0,0,0,0,0,0,0,0]
["QRL","RHU","PORTSMOUTH HOSPITALS UNIVERSITY NATIONAL HEALTH SERVICE TRUST",5,1,0,4,1,0,0,0,0,0,0,0,0,5,0,0,0]
["QRL","RN5","HAMPSHIRE HOSPITALS NHS FOUNDATION TRUST",8,1,0,6,2,0,0,0,0,0,0,0,0,0,0,8,0]
["QRL","RHM","UNIVERSITY HOSPITAL SOUTHAMPTON NHS FOUNDATION TRUST",134,0.91044776119402981,0,72,50,5,0,0,7,0,0,0,0,0,0,134,0]
["QRV","R1K","LONDON NORTH WEST UNIVERSITY HEALTHCARE NHS TRUST",0,"NA","NA",0,0,0,0,0,0,0,0,0,0,0,0,0,0]
["QRV","RAS","THE HILLINGDON HOSPITALS NHS FOUNDATION TRUST",0,"NA","NA",0,0,0,0,0,0,0,0,0,0,0,0,0,0]
["QRV","RYJ","IMPERIAL COLLEGE HEALTHCARE NHS TRUST",30,1,0,24,6,0,0,0,0,0,0,0,0,3,0,27,0]
["QSL","RH5","SOMERSET NHS FOUNDATION TRUST",0,"NA","NA",0,0,0,0,0,0,0,0,0,0,0,0,0,0]
["QT1","RX1","NOTTINGHAM UNIVERSITY HOSPITALS NHS TRUST",3,"*","*","*","*","*","*","*","*","*","*","*","*","*","*","*","*"]
["QT1","RK5","SHERWOOD FOREST HOSPITALS NHS FOUNDATION TRUST",9,0.88888888888888884,0.1111111111111111,"*","*","*","*","*","*","*","*","*","*","*","*","*","*"]
["QT6","REF","ROYAL CORNWALL HOSPITALS NHS TRUST",0,"NA","NA",0,0,0,0,0,0,0,0,0,0,0,0,0,0]
["QU9","RHW","ROYAL BERKSHIRE NHS FOUNDATION TRUST",0,"NA","NA",0,0,0,0,0,0,0,0,0,0,0,0,0,0]
["QU9","RTH","OXFORD UNIVERSITY HOSPITALS NHS FOUNDATION TRUST",0,"NA","NA",0,0,0,0,0,0,0,0,0,0,0,0,0,0]
["QU9","RXQ","BUCKINGHAMSHIRE HEALTHCARE NHS TRUST",13,0.84615384615384615,7.6923076923076927E-2,9,2,1,0,1,0,12,0,0,0,0,0,1,0]
["QUA","RNA","THE DUDLEY GROUP NHS FOUNDATION TRUST",4,"*","*","*","*","*","*","*","*","*","*","*","*","*","*","*","*"]
["QUA","RBK","WALSALL HEALTHCARE NHS TRUST",22,0.90909090909090906,9.0909090909090912E-2,"*","*","*","*","*","*","*","*","*","*","*","*","*","*"]
["QUA","RL4","THE ROYAL WOLVERHAMPTON NHS TRUST",27,0.7407407407407407,0.18518518518518517,16,4,2,3,2,0,26,0,0,0,0,0,1,0]
["QUE","RGT","CAMBRIDGE UNIVERSITY HOSPITALS NHS FOUNDATION TRUST",0,"NA","NA",0,0,0,0,0,0,0,0,0,0,0,0,0,0]
["QUE","RGN","NORTH WEST ANGLIA NHS FOUNDATION TRUST",25,1,0,25,0,0,0,0,0,0,0,0,25,0,0,0,0]
["QUY","RA7","UNIVERSITY HOSPITALS BRISTOL AND WESTON NHS FOUNDATION TRUST",24,1,0,21,3,0,0,0,0,0,0,0,24,0,0,0,0]
["QUY","RVJ","NORTH BRISTOL NHS TRUST",54,0.96296296296296291,1.8518518518518517E-2,41,11,1,0,1,0,54,0,0,0,0,0,0,0]
["QVV","R0D","UNIVERSITY HOSPITALS DORSET NHS FOUNDATION TRUST",0,"NA","NA",0,0,0,0,0,0,0,0,0,0,0,0,0,0]
["QVV","RBD","DORSET COUNTY HOSPITAL NHS FOUNDATION TRUST",2,"*","*","*","*","*","*","*","*","*","*","*","*","*","*","*","*"]
["QWE","RJ6","CROYDON HEALTH SERVICES NHS TRUST",0,"NA","NA",0,0,0,0,0,0,0,0,0,0,0,0,0,0]
["QWE","RJ7","ST GEORGE'S UNIVERSITY HOSPITALS NHS FOUNDATION TRUST",0,"NA","NA",0,0,0,0,0,0,0,0,0,0,0,0,0,0]
["QWE","RVR","EPSOM AND ST HELIER UNIVERSITY HOSPITALS NHS TRUST",0,"NA","NA",0,0,0,0,0,0,0,0,0,0,0,0,0,0]
["QWE","RAX","KINGSTON AND RICHMOND NHS FOUNDATION TRUST",7,1,0,7,0,0,0,0,0,0,0,0,0,0,0,7,0]
["QWO","RAE","BRADFORD TEACHING HOSPITALS NHS FOUNDATION TRUST",0,"NA","NA",0,0,0,0,0,0,0,0,0,0,0,0,0,0]
["QWO","RCF","AIREDALE NHS FOUNDATION TRUST",0,"NA","NA",0,0,0,0,0,0,0,0,0,0,0,0,0,0]
["QWO","RR8","LEEDS TEACHING HOSPITALS NHS TRUST",0,"NA","NA",0,0,0,0,0,0,0,0,0,0,0,0,0,0]
["QWO","RWY","CALDERDALE AND HUDDERSFIELD NHS FOUNDATION TRUST",5,1,0,5,0,0,0,0,0,0,0,0,0,0,0,5,0]
["QWO","RXF","MID YORKSHIRE TEACHING NHS TRUST",14,0.9285714285714286,7.1428571428571425E-2,12,1,0,1,0,0,2,0,0,12,0,0,0,0]
["QWU","RJC","SOUTH WARWICKSHIRE UNIVERSITY NHS FOUNDATION TRUST",0,"NA","NA",0,0,0,0,0,0,0,0,0,0,0,0,0,0]
["QWU","RLT","GEORGE ELIOT HOSPITAL NHS TRUST",0,"NA","NA",0,0,0,0,0,0,0,0,0,0,0,0,0,0]
["QWU","RKB","UNIVERSITY HOSPITALS COVENTRY AND WARWICKSHIRE NHS TRUST",29,0.82758620689655171,0.13793103448275862,23,1,1,1,3,0,27,1,0,0,0,0,1,0]
["QXU","RTK","ASHFORD AND ST PETER'S HOSPITALS NHS FOUNDATION TRUST",0,"NA","NA",0,0,0,0,0,0,0,0,0,0,0,0,0,0]
["QXU","RTP","SURREY AND SUSSEX HEALTHCARE NHS TRUST",1,"*","*","*","*","*","*","*","*","*","*","*","*","*","*","*","*"]
["QXU","RA2","ROYAL SURREY COUNTY HOSPITAL NHS FOUNDATION TRUST",53,0.96226415094339623,1.8867924528301886E-2,"*","*","*","*","*","*","*","*","*","*","*","*","*","*"]
["QYG","RWW","WARRINGTON AND HALTON TEACHING HOSPITALS NHS FOUNDATION TRUST",0,"NA","NA",0,0,0,0,0,0,0,0,0,0,0,0,0,0]
["QYG","RBL","WIRRAL UNIVERSITY TEACHING HOSPITAL NHS FOUNDATION TRUST",2,"*","*","*","*","*","*","*","*","*","*","*","*","*","*","*","*"]
["QYG","RBN","MERSEY AND WEST LANCASHIRE TEACHING HOSPITALS NHS TRUST",5,1,0,"*","*","*","*","*","*","*","*","*","*","*","*","*","*"]
["QYG","RBT","MID CHESHIRE HOSPITALS NHS FOUNDATION TRUST",6,0.33333333333333331,0.33333333333333331,1,1,1,1,1,1,5,0,0,0,0,0,1,0]
["QYG","RJR","COUNTESS OF CHESTER HOSPITAL NHS FOUNDATION TRUST",9,0.55555555555555558,0.44444444444444442,5,0,0,0,4,0,9,0,0,0,0,0,0,0]
["QYG","REP","LIVERPOOL WOMEN'S NHS FOUNDATION TRUST",18,0.88888888888888884,0.1111111111111111,13,3,0,2,0,0,18,0,0,0,0,0,0,0]
["QYG","RJN","EAST CHESHIRE NHS TRUST",19,1,0,18,1,0,0,0,0,19,0,0,0,0,0,0,0]

{"sheet":"BSQ1","index":13,"n_rows":191,"n_cols":33,"rows_kept":191,"cut":false,"hidden":true,"merged":[]}
[null,"Sort","ICB","ICB","Trusts","Trusts","Sites","Sites",null,"Sort ranges:","Sort range…","Sort range…","Sort range…","Reference Region List:","Code…","Name…","Linked Region List:","Code…","Name…","Reference Lists:","Code…","Code…","Name…","Code…","Name…","Trusts Linked Lists:","Code…","Name…","Site Linked Lists:","Code…","Name…","Code…","Name…"]
["ICB",1,1,1,"-","-","-","-",null,null,"ICB Code","ICB Code","ICB Code",null,"QE1","LANCASHIRE AND SOUTH CUMBRIA ICB",null,"QE1","LANCASHIRE AND SOUTH CUMBRIA ICB",null,"QE1","RXL","BLACKPOOL TEACHING HOSPITALS NHS FOUNDATION TRUST","RXL01","Blackpool Victoria Hospital",null,"R0A","ASHFORD AND ST PETER'S HOSPITALS NHS FOUNDATION TRUST",null,"R0A","ASHFORD AND ST PETER'S HOSPITALS NHS FOUNDATION TRUST","R0A05","Alexandra Hospital"]
["Trusts",1,1,1,1,1,"-","-",null,null,"ICB Name","Trust Code","Trust Code",null,"QF7","SOUTH YORKSHIRE ICB",null,"QF7","SOUTH YORKSHIRE ICB",null,"QE1","RXR","EAST LANCASHIRE HOSPITALS NHS TRUST","RXR20","Royal Blackburn Hospital",null,"R0B","BARKING, HAVERING AND REDBRIDGE UNIVERSITY HOSPITALS NHS TRUST",null,"R0B","BARKING, HAVERING AND REDBRIDGE UNIVERSITY HOSPITALS NHS TRUST","R0B01","Andover War Memorial Hospital"]
["Sites",1,1,1,1,1,1,1,null,null,"Total Responses","Trust Name","Trust Name",null,"QGH","HEREFORDSHIRE AND WORCESTERSHIRE ICB",null,"QGH","HEREFORDSHIRE AND WORCESTERSHIRE ICB",null,"QE1","RXN","LANCASHIRE TEACHING HOSPITALS NHS FOUNDATION TRUST","RXN01","Chorley and South Ribble Hospital",null,"R0D","BARNSLEY HOSPITAL NHS FOUNDATION TRUST",null,"R0D","BARNSLEY HOSPITAL NHS FOUNDATION TRUST","R0B0Q","Arrowe Park Hospital"]
[null,null,null,null,null,null,null,null,null,null,"Percentage Positive","Total Responses","Site Code",null,"QH8","MID AND SOUTH ESSEX ICB",null,"QH8","MID AND SOUTH ESSEX ICB",null,"QE1","RXN","LANCASHIRE TEACHING HOSPITALS NHS FOUNDATION TRUST","RXN02","Royal Preston Hospital",null,"R1F","BARTS HEALTH NHS TRUST",null,"R1F","BARTS HEALTH NHS TRUST","R0BXXX","Ashford Hospital"]
[null,null,null,null,null,null,null,null,null,null,"Percentage Negative","Percentage Positive","Site Name",null,"QHG","BEDFORDSHIRE, LUTON AND MILTON KEYNES ICB",null,"QHG","BEDFORDSHIRE, LUTON AND MILTON KEYNES ICB",null,"QE1","RTX","UNIVERSITY HOSPITALS OF MORECAMBE BAY NHS FOUNDATION TRUST","RTXBU","Furness General Hospital",null,"R1H","BEDFORDSHIRE HOSPITALS NHS FOUNDATION TRUST",null,"R1H","BEDFORDSHIRE HOSPITALS NHS FOUNDATION TRUST","R0D01","Barnet Hospital"]
[null,null,null,null,null,null,null,null,null,null,"Very Good","Percentage Negative","Total Responses",null,"QHL","BIRMINGHAM AND SOLIHULL ICB",null,"QHL","BIRMINGHAM AND SOLIHULL ICB",null,"QE1","RTX","UNIVERSITY HOSPITALS OF MORECAMBE BAY NHS FOUNDATION TRUST","RTX02","Royal Lancaster Infirmary",null,"R1K","BIRMINGHAM WOMEN'S AND CHILDREN'S NHS FOUNDATION TRUST",null,"R1K","BIRMINGHAM WOMEN'S AND CHILDREN'S NHS FOUNDATION TRUST","R0D02","Barnsley Hospital NHS Foundation Trust HQ"]
[null,null,null,null,null,null,null,null,null,null,"Good","Very Good","Percentage Positive",null,"QHM","NORTH EAST AND NORTH CUMBRIA ICB",null,"QHM","NORTH EAST AND NORTH CUMBRIA ICB",null,"QE1","RTX","UNIVERSITY HOSPITALS OF MORECAMBE BAY NHS FOUNDATION TRUST","RTXBW","Westmorland General Hospital",null,"RA2","BLACKPOOL TEACHING HOSPITALS NHS FOUNDATION TRUST",null,"RA2","BLACKPOOL TEACHING HOSPITALS NHS FOUNDATION TRUST","R1F01","BASILDON HOSPITAL"]
[null,null,null,null,null,null,null,null,null,null,"Neither Good nor Poor","Good","Percentage Negative",null,"QJ2","DERBY AND DERBYSHIRE ICB",null,"QJ2","DERBY AND DERBYSHIRE ICB",null,"QF7","RFF","BARNSLEY HOSPITAL NHS FOUNDATION TRUST","RFFAA","Barnsley Hospital NHS Foundation Trust HQ",null,"RA7","BOLTON NHS FOUNDATION TRUST",null,"RA7","BOLTON NHS FOUNDATION TRUST","R1H12","Basingstoke and North Hampshire Hospital"]
[null,null,null,null,null,null,null,null,null,null,"Poor","Neither Good nor Poor","Very Good",null,"QJG","SUFFOLK AND NORTH EAST ESSEX ICB",null,"QJG","SUFFOLK AND NORTH EAST ESSEX ICB",null,"QF7","RP5","DONCASTER AND BASSETLAW TEACHING HOSPITALS NHS FOUNDATION TRUST","RP5BA","Bassetlaw Hospital",null,"RA9","BRADFORD TEACHING HOSPITALS NHS FOUNDATION TRUST",null,"RA9","BRADFORD TEACHING HOSPITALS NHS FOUNDATION TRUST","R1HKH","Bassetlaw Hospital"]
[null,null,null,null,null,null,null,null,null,null,"Very Poor","Poor","Good",null,"QJK","DEVON ICB",null,"QJK","DEVON ICB",null,"QF7","RP5","DONCASTER AND BASSETLAW TEACHING HOSPITALS NHS FOUNDATION TRUST","RP5DR","Doncaster Royal Infirmary",null,"RAE","BUCKINGHAMSHIRE HEALTHCARE NHS TRUST",null,"RAE","BUCKINGHAMSHIRE HEALTHCARE NHS TRUST","R1HNH","BEDFORD HOSPITAL SOUTH WING"]
[null,null,null,null,null,null,null,null,null,null,"Don't Know","Very Poor","Neither Good nor Poor",null,"QJM","LINCOLNSHIRE ICB",null,"QJM","LINCOLNSHIRE ICB",null,"QF7","RP5","DONCASTER AND BASSETLAW TEACHING HOSPITALS NHS FOUNDATION TRUST","RP5XXX","Non-hospital site",null,"RAJ","CALDERDALE AND HUDDERSFIELD NHS FOUNDATION TRUST",null,"RAJ","CALDERDALE AND HUDDERSFIELD NHS FOUNDATION TRUST","R1K01","Birmingham Women's Hospital"]
[null,null,null,null,null,null,null,null,null,null,null,"Don't Know","Poor",null,"QK1","LEICESTER, LEICESTERSHIRE AND RUTLAND ICB",null,"QK1","LEICESTER, LEICESTERSHIRE AND RUTLAND ICB",null,"QF7","RHQ","SHEFFIELD TEACHING HOSPITALS NHS FOUNDATION TRUST","RHQHH","Royal Hallamshire Hospital",null,"RAL","CAMBRIDGE UNIVERSITY HOSPITALS NHS FOUNDATION TRUST",null,"RAL","CAMBRIDGE UNIVERSITY HOSPITALS NHS FOUNDATION TRUST","RA201","Blackpool Victoria Hospital"]
[null,null,null,null,null,null,null,null,null,null,null,"Mode SMS","Very Poor",null,"QKK","SOUTH EAST LONDON ICB",null,"QKK","SOUTH EAST LONDON ICB",null,"QF7","RFR","THE ROTHERHAM NHS FOUNDATION TRUST","RFRPA","Rotherham District General Hospital",null,"RAS","CHESTERFIELD ROYAL HOSPITAL NHS FOUNDATION TRUST",null,"RAS","CHESTERFIELD ROYAL HOSPITAL NHS FOUNDATION TRUST","RA707","Bradford Royal Infirmary"]
[null,null,null,null,null,null,null,null,null,null,null,"Mode Electronic Discharge","Don't Know",null,"QKS","KENT AND MEDWAY ICB",null,"QKS","KENT AND MEDWAY ICB",null,"QGH","RWP","WORCESTERSHIRE ACUTE HOSPITALS NHS TRUST","RWP01","Alexandra Hospital",null,"RAX","COUNTESS OF CHESTER HOSPITAL NHS FOUNDATION TRUST",null,"RAX","COUNTESS OF CHESTER HOSPITAL NHS FOUNDATION TRUST","RA901","Bridgwater Hospital"]
[null,null,null,null,null,null,null,null,null,null,null,"Mode Electronic Home",null,null,"QM7","HERTFORDSHIRE AND WEST ESSEX ICB",null,"QM7","HERTFORDSHIRE AND WEST ESSEX ICB",null,"QGH","RWP","WORCESTERSHIRE ACUTE HOSPITALS NHS TRUST","RWP31","Kidderminster Hospital",null,"RBD","COUNTY DURHAM AND DARLINGTON NHS FOUNDATION TRUST",null,"RBD","COUNTY DURHAM AND DARLINGTON NHS FOUNDATION TRUST","RAE01","Buckland Hospital"]
[null,null,null,null,null,null,null,null,null,null,null,"Mode Paper Discharge",null,null,"QMF","NORTH EAST LONDON ICB",null,"QMF","NORTH EAST LONDON ICB",null,"QGH","RWP","WORCESTERSHIRE ACUTE HOSPITALS NHS TRUST","RWP50","Worcestershire Royal Hospital",null,"RBK","DARTFORD AND GRAVESHAM NHS TRUST",null,"RBK","DARTFORD AND GRAVESHAM NHS TRUST","RAJ01","Calderdale Royal Hospital"]
[null,null,null,null,null,null,null,null,null,null,null,"Mode Paper Home",null,null,"QMJ","NORTH CENTRAL LONDON ICB",null,"QMJ","NORTH CENTRAL LONDON ICB",null,"QGH","RLQ","WYE VALLEY NHS TRUST","RLQ01","Hereford County Hospital",null,"RBL","DONCASTER AND BASSETLAW TEACHING HOSPITALS NHS FOUNDATION TRUST",null,"RBL","DONCASTER AND BASSETLAW TEACHING HOSPITALS NHS FOUNDATION TRUST","RAJ12","Chase Farm Hospital"]
[null,null,null,null,null,null,null,null,null,null,null,"Mode Telephone",null,null,"QMM","NORFOLK AND WAVENEY ICB",null,"QMM","NORFOLK AND WAVENEY ICB",null,"QH8","RAJ","MID AND SOUTH ESSEX NHS FOUNDATION TRUST","RAJ12","BASILDON HOSPITAL",null,"RBN","DORSET COUNTY HOSPITAL NHS FOUNDATION TRUST",null,"RBN","DORSET COUNTY HOSPITAL NHS FOUNDATION TRUST","RAJ32","Chesterfield Royal Hospital"]
[null,null,null,null,null,null,null,null,null,null,null,"Mode Online",null,null,"QNC","STAFFORDSHIRE AND STOKE-ON-TRENT ICB",null,"QNC","STAFFORDSHIRE AND STOKE-ON-TRENT ICB",null,"QH8","RAJ","MID AND SOUTH ESSEX NHS FOUNDATION TRUST","RAJ32","MID ESSEX HOSPITAL",null,"RBT","EAST AND NORTH HERTFORDSHIRE NHS TRUST",null,"RBT","EAST AND NORTH HERTFORDSHIRE NHS TRUST","RAL01","Chippenham Community Hospital"]
[null,null,null,null,null,null,null,null,null,null,null,"Mode Other",null,null,"QNQ","FRIMLEY ICB",null,"QNQ","FRIMLEY ICB",null,"QH8","RAJ","MID AND SOUTH ESSEX NHS FOUNDATION TRUST","RAJ01","Southend Hospital",null,"RC9","EAST CHESHIRE NHS TRUST",null,"RC9","EAST CHESHIRE NHS TRUST","RAL22","Chorley and South Ribble Hospital"]
[null,null,null,null,null,null,null,null,null,null,null,null,null,null,"QNX","SUSSEX ICB",null,"QNX","SUSSEX ICB",null,"QHG","RC9","BEDFORDSHIRE HOSPITALS NHS FOUNDATION TRUST","RC979","BEDFORD HOSPITAL SOUTH WING",null,"RCD","EAST KENT HOSPITALS UNIVERSITY NHS FOUNDATION TRUST",null,"RCD","EAST KENT HOSPITALS UNIVERSITY NHS FOUNDATION TRUST","RAL26","City Hospital"]
[null,null,null,null,null,null,null,null,null,null,null,null,null,null,"QOC","SHROPSHIRE, TELFORD AND WREKIN ICB",null,"QOC","SHROPSHIRE, TELFORD AND WREKIN ICB",null,"QHG","RC9","BEDFORDSHIRE HOSPITALS NHS FOUNDATION TRUST","RC971","Luton and Dunstable Hospital",null,"RCX","EAST LANCASHIRE HOSPITALS NHS TRUST",null,"RCX","EAST LANCASHIRE HOSPITALS NHS TRUST","RAL27","Colchester General Hospital"]
[null,null,null,null,null,null,null,null,null,null,null,null,null,null,"QOP","GREATER MANCHESTER ICB",null,"QOP","GREATER MANCHESTER ICB",null,"QHG","RD8","MILTON KEYNES UNIVERSITY HOSPITAL NHS FOUNDATION TRUST","RD816","Milton Keynes Hospital",null,"RD1","EAST SUFFOLK AND NORTH ESSEX NHS FOUNDATION TRUST",null,"RD1","EAST SUFFOLK AND NORTH ESSEX NHS FOUNDATION TRUST","RALC7","Countess Of Chester Hospital"]
[null,null,null,null,null,null,null,null,null,null,null,null,null,null,"QOQ","HUMBER AND NORTH YORKSHIRE ICB",null,"QOQ","HUMBER AND NORTH YORKSHIRE ICB",null,"QHL","RQ3","BIRMINGHAM WOMEN'S AND CHILDREN'S NHS FOUNDATION TRUST","RQ370","Birmingham Women's Hospital",null,"RD8","EPSOM AND ST HELIER UNIVERSITY HOSPITALS NHS TRUST",null,"RD8","EPSOM AND ST HELIER UNIVERSITY HOSPITALS NHS TRUST","RALRA","County Hospital"]
[null,null,null,null,null,null,null,null,null,null,null,null,null,null,"QOX","BATH AND NORTH EAST SOMERSET, SWINDON AND WILTSHIRE ICB",null,"QOX","BATH AND NORTH EAST SOMERSET, SWINDON AND WILTSHIRE ICB",null,"QHL","RXK","SANDWELL AND WEST BIRMINGHAM HOSPITALS NHS TRUST","RXK02","City Hospital",null,"RDE","FRIMLEY HEALTH NHS FOUNDATION TRUST",null,"RDE","FRIMLEY HEALTH NHS FOUNDATION TRUST","RAS01","Cumberland Infirmary"]
[null,null,null,null,null,null,null,null,null,null,null,null,null,null,"QPM","NORTHAMPTONSHIRE ICB",null,"QPM","NORTHAMPTONSHIRE ICB",null,"QHL","RXK","SANDWELL AND WEST BIRMINGHAM HOSPITALS NHS TRUST","RXK01","Sandwell General Hospital",null,"RDU","GATESHEAD HEALTH NHS FOUNDATION TRUST",null,"RDU","GATESHEAD HEALTH NHS FOUNDATION TRUST","RAX01","Darent Valley Hospital"]
[null,null,null,null,null,null,null,null,null,null,null,null,null,null,"QR1","GLOUCESTERSHIRE ICB",null,"QR1","GLOUCESTERSHIRE ICB",null,"QHL","RRK","UNIVERSITY HOSPITALS BIRMINGHAM NHS FOUNDATION TRUST","RRK98","Good Hope Hospital",null,"REF","GEORGE ELIOT HOSPITAL NHS TRUST",null,"REF","GEORGE ELIOT HOSPITAL NHS TRUST","RBD01","Darlington Memorial Hospital"]
[null,null,null,null,null,null,null,null,null,null,null,null,null,null,"QRL","HAMPSHIRE AND ISLE OF WIGHT ICB",null,"QRL","HAMPSHIRE AND ISLE OF WIGHT ICB",null,"QHL","RRK","UNIVERSITY HOSPITALS BIRMINGHAM NHS FOUNDATION TRUST","RRK97","Heartlands Hospital",null,"REP","GREAT WESTERN HOSPITALS NHS FOUNDATION TRUST",null,"REP","GREAT WESTERN HOSPITALS NHS FOUNDATION TRUST","RBK02","Derriford Hospital"]
[null,null,null,null,null,null,null,null,null,null,null,null,null,null,"QRV","NORTH WEST LONDON ICB",null,"QRV","NORTH WEST LONDON ICB",null,"QHL","RRK","UNIVERSITY HOSPITALS BIRMINGHAM NHS FOUNDATION TRUST","RRK99","Solihull Hospital",null,"RF4","GUY'S AND ST THOMAS' NHS FOUNDATION TRUST",null,"RF4","GUY'S AND ST THOMAS' NHS FOUNDATION TRUST","RBL14","Dewsbury and District Hospital"]
[null,null,null,null,null,null,null,null,null,null,null,null,null,null,"QSL","SOMERSET ICB",null,"QSL","SOMERSET ICB",null,"QHM","RXP","COUNTY DURHAM AND DARLINGTON NHS FOUNDATION TRUST","RXPDA","Darlington Memorial Hospital",null,"RFF","HAMPSHIRE HOSPITALS NHS FOUNDATION TRUST",null,"RFF","HAMPSHIRE HOSPITALS NHS FOUNDATION TRUST","RBN01","Diana, Princess Of Wales Hospital"]
[null,null,null,null,null,null,null,null,null,null,null,null,null,null,"QT1","NOTTINGHAM AND NOTTINGHAMSHIRE ICB",null,"QT1","NOTTINGHAM AND NOTTINGHAMSHIRE ICB",null,"QHM","RXP","COUNTY DURHAM AND DARLINGTON NHS FOUNDATION TRUST","RXPCP","University Hospital Of North Durham",null,"RFR","HARROGATE AND DISTRICT NHS FOUNDATION TRUST",null,"RFR","HARROGATE AND DISTRICT NHS FOUNDATION TRUST","RBN52","Doncaster Royal Infirmary"]
[null,null,null,null,null,null,null,null,null,null,null,null,null,null,"QT6","CORNWALL AND THE ISLES OF SCILLY ICB",null,"QT6","CORNWALL AND THE ISLES OF SCILLY ICB",null,"QHM","RR7","GATESHEAD HEALTH NHS FOUNDATION TRUST","RR7EN","Queen Elizabeth Hospital",null,"RFS","HOMERTON HEALTHCARE NHS FOUNDATION TRUST",null,"RFS","HOMERTON HEALTHCARE NHS FOUNDATION TRUST","RBT20","Dorset County Hospital"]
[null,null,null,null,null,null,null,null,null,null,null,null,null,null,"QU9","BUCKINGHAMSHIRE, OXFORDSHIRE AND BERKSHIRE WEST ICB",null,"QU9","BUCKINGHAMSHIRE, OXFORDSHIRE AND BERKSHIRE WEST ICB",null,"QHM","RNN","NORTH CUMBRIA INTEGRATED CARE NHS FOUNDATION TRUST","RNN62","Cumberland Infirmary",null,"RGN","HULL UNIVERSITY TEACHING HOSPITALS NHS TRUST",null,"RGN","HULL UNIVERSITY TEACHING HOSPITALS NHS TRUST","RC971","East Surrey Hospital"]
[null,null,null,null,null,null,null,null,null,null,null,null,null,null,"QUA","BLACK COUNTRY ICB",null,"QUA","BLACK COUNTRY ICB",null,"QHM","RNN","NORTH CUMBRIA INTEGRATED CARE NHS FOUNDATION TRUST","RNNBX","West Cumberland Hospital",null,"RGP","IMPERIAL COLLEGE HEALTHCARE NHS TRUST",null,"RGP","IMPERIAL COLLEGE HEALTHCARE NHS TRUST","RC979","Edgware Community Hospital"]
[null,null,null,null,null,null,null,null,null,null,null,null,null,null,"QUE","CAMBRIDGESHIRE AND PETERBOROUGH ICB",null,"QUE","CAMBRIDGESHIRE AND PETERBOROUGH ICB",null,"QHM","RVW","NORTH TEES AND HARTLEPOOL NHS FOUNDATION TRUST","RVWAE","University Hospital Of North Tees",null,"RGR","ISLE OF WIGHT NHS TRUST",null,"RGR","ISLE OF WIGHT NHS TRUST","RCD01","Epsom Hospital"]
[null,null,null,null,null,null,null,null,null,null,null,null,null,null,"QUY","BRISTOL, NORTH SOMERSET AND SOUTH GLOUCESTERSHIRE ICB",null,"QUY","BRISTOL, NORTH SOMERSET AND SOUTH GLOUCESTERSHIRE ICB",null,"QHM","RTF","NORTHUMBRIA HEALTHCARE NHS FOUNDATION TRUST","RTFXXX","Non-hospital site",null,"RGT","JAMES PAGET UNIVERSITY HOSPITALS NHS FOUNDATION TRUST",null,"RGT","JAMES PAGET UNIVERSITY HOSPITALS NHS FOUNDATION TRUST","RCX66","Finchley Memorial Hospital"]
[null,null,null,null,null,null,null,null,null,null,null,null,null,null,"QVV","DORSET ICB",null,"QVV","DORSET ICB",null,"QHM","RTR","SOUTH TEES HOSPITALS NHS FOUNDATION TRUST","RTR45","Friarage Hospital Site",null,"RH5","KETTERING GENERAL HOSPITAL NHS FOUNDATION TRUST",null,"RH5","KETTERING GENERAL HOSPITAL NHS FOUNDATION TRUST","RCX70","Friarage Hospital Site"]
[null,null,null,null,null,null,null,null,null,null,null,null,null,null,"QWE","SOUTH WEST LONDON ICB",null,"QWE","SOUTH WEST LONDON ICB",null,"QHM","RTR","SOUTH TEES HOSPITALS NHS FOUNDATION TRUST","RTRAT","The James Cook University Hospital",null,"RH8","KINGSTON AND RICHMOND NHS FOUNDATION TRUST",null,"RH8","KINGSTON AND RICHMOND NHS FOUNDATION TRUST","RCXXXX","Frimley Park Hospital"]
[null,null,null,null,null,null,null,null,null,null,null,null,null,null,"QWO","WEST YORKSHIRE ICB",null,"QWO","WEST YORKSHIRE ICB",null,"QHM","R0B","SOUTH TYNESIDE AND SUNDERLAND NHS FOUNDATION TRUST","R0BXXX","Non-hospital site",null,"RHM","LANCASHIRE TEACHING HOSPITALS NHS FOUNDATION TRUST",null,"RHM","LANCASHIRE TEACHING HOSPITALS NHS FOUNDATION TRUST","RD102","Frome Community Hospital"]
[null,null,null,null,null,null,null,null,null,null,null,null,null,null,"QWU","COVENTRY AND WARWICKSHIRE ICB",null,"QWU","COVENTRY AND WARWICKSHIRE ICB",null,"QHM","R0B","SOUTH TYNESIDE AND SUNDERLAND NHS FOUNDATION TRUST","R0B0Q","South Tyneside District Hospital",null,"RHQ","LEEDS TEACHING HOSPITALS NHS TRUST",null,"RHQ","LEEDS TEACHING HOSPITALS NHS TRUST","RD108","Furness General Hospital"]
[null,null,null,null,null,null,null,null,null,null,null,null,null,null,"QXU","SURREY HEARTLANDS ICB",null,"QXU","SURREY HEARTLANDS ICB",null,"QHM","R0B","SOUTH TYNESIDE AND SUNDERLAND NHS FOUNDATION TRUST","R0B01","Sunderland Royal Hospital",null,"RHU","LEWISHAM AND GREENWICH NHS TRUST",null,"RHU","LEWISHAM AND GREENWICH NHS TRUST","RD121","George Eliot Hospital - Acute Services"]
[null,null,null,null,null,null,null,null,null,null,null,null,null,null,"QYG","CHESHIRE AND MERSEYSIDE ICB",null,"QYG","CHESHIRE AND MERSEYSIDE ICB",null,"QHM","RTD","THE NEWCASTLE UPON TYNE HOSPITALS NHS FOUNDATION TRUST","RTD02","The Royal Victoria Infirmary",null,"RHW","LIVERPOOL WOMEN'S NHS FOUNDATION TRUST",null,"RHW","LIVERPOOL WOMEN'S NHS FOUNDATION TRUST","RD130","Good Hope Hospital"]
[null,null,null,null,null,null,null,null,null,null,null,null,null,null,null,null,null,null,null,null,"QJ2","RFS","CHESTERFIELD ROYAL HOSPITAL NHS FOUNDATION TRUST","RFSDA","Chesterfield Royal Hospital",null,"RJ1","LONDON NORTH WEST UNIVERSITY HEALTHCARE NHS TRUST",null,"RJ1","LONDON NORTH WEST UNIVERSITY HEALTHCARE NHS TRUST","RD816","Goole and District Hospital (Acute)"]
[null,null,null,null,null,null,null,null,null,null,null,null,null,null,null,null,null,null,null,null,"QJ2","RTG","UNIVERSITY HOSPITALS OF DERBY AND BURTON NHS FOUNDATION TRUST","RTG02","Queens Hospital, Burton Upon Trent",null,"RJ2","MAIDSTONE AND TUNBRIDGE WELLS NHS TRUST",null,"RJ2","MAIDSTONE AND TUNBRIDGE WELLS NHS TRUST","RDE03","Grantham and District Hospital"]
[null,null,null,null,null,null,null,null,null,null,null,null,null,null,null,null,null,null,null,null,"QJ2","RTG","UNIVERSITY HOSPITALS OF DERBY AND BURTON NHS FOUNDATION TRUST","RTGFG","Royal Derby Hospital",null,"RJ7","MANCHESTER UNIVERSITY NHS FOUNDATION TRUST",null,"RJ7","MANCHESTER UNIVERSITY NHS FOUNDATION TRUST","RDEE4","Harrogate District Hospital"]
[null,null,null,null,null,null,null,null,null,null,null,null,null,null,null,null,null,null,null,null,"QJG","RDE","EAST SUFFOLK AND NORTH ESSEX NHS FOUNDATION TRUST","RDEE4","Colchester General Hospital",null,"RJC","MEDWAY NHS FOUNDATION TRUST",null,"RJC","MEDWAY NHS FOUNDATION TRUST","RDU01","Heartlands Hospital"]
[null,null,null,null,null,null,null,null,null,null,null,null,null,null,null,null,null,null,null,null,"QJG","RDE","EAST SUFFOLK AND NORTH ESSEX NHS FOUNDATION TRUST","RDE03","Ipswich Hospital",null,"RJE","MERSEY AND WEST LANCASHIRE TEACHING HOSPITALS NHS TRUST",null,"RJE","MERSEY AND WEST LANCASHIRE TEACHING HOSPITALS NHS TRUST","RDU50","Hereford County Hospital"]
[null,null,null,null,null,null,null,null,null,null,null,null,null,null,null,null,null,null,null,null,"QJG","RGR","WEST SUFFOLK NHS FOUNDATION TRUST","RGR50","West Suffolk Hospital",null,"RJL","MID AND SOUTH ESSEX NHS FOUNDATION TRUST",null,"RJL","MID AND SOUTH ESSEX NHS FOUNDATION TRUST","REF12","Hertford County Hospital"]
[null,null,null,null,null,null,null,null,null,null,null,null,null,null,null,null,null,null,null,null,"QJK","RH8","ROYAL DEVON UNIVERSITY HEALTHCARE NHS FOUNDATION TRUST","RH880","North Devon District Hospital",null,"RJN","MID CHESHIRE HOSPITALS NHS FOUNDATION TRUST",null,"RJN","MID CHESHIRE HOSPITALS NHS FOUNDATION TRUST","REFXXX","Hillingdon Hospital"]
[null,null,null,null,null,null,null,null,null,null,null,null,null,null,null,null,null,null,null,null,"QJK","RH8","ROYAL DEVON UNIVERSITY HEALTHCARE NHS FOUNDATION TRUST","RH801","Royal Devon and Exeter Hospital (Wonford)",null,"RJR","MID YORKSHIRE TEACHING NHS TRUST",null,"RJR","MID YORKSHIRE TEACHING NHS TRUST","REP01","Hinchingbrooke Hospital"]
[null,null,null,null,null,null,null,null,null,null,null,null,null,null,null,null,null,null,null,null,"QJK","RA9","TORBAY AND SOUTH DEVON NHS FOUNDATION TRUST","RA901","Torbay Hospital",null,"RK5","MILTON KEYNES UNIVERSITY HOSPITAL NHS FOUNDATION TRUST",null,"RK5","MILTON KEYNES UNIVERSITY HOSPITAL NHS FOUNDATION TRUST","RF4XXX","Homerton University Hospital"]
[null,null,null,null,null,null,null,null,null,null,null,null,null,null,null,null,null,null,null,null,"QJK","RK9","UNIVERSITY HOSPITALS PLYMOUTH NHS TRUST","RK950","Derriford Hospital",null,"RK9","NORFOLK AND NORWICH UNIVERSITY HOSPITALS NHS FOUNDATION TRUST",null,"RK9","NORFOLK AND NORWICH UNIVERSITY HOSPITALS NHS FOUNDATION TRUST","RFFAA","Hospital Of St Cross"]
[null,null,null,null,null,null,null,null,null,null,null,null,null,null,null,null,null,null,null,null,"QJK","RK9","UNIVERSITY HOSPITALS PLYMOUTH NHS TRUST","RK9XXX","Non-hospital site",null,"RKB","NORTH CUMBRIA INTEGRATED CARE NHS FOUNDATION TRUST",null,"RKB","NORTH CUMBRIA INTEGRATED CARE NHS FOUNDATION TRUST","RFRPA","Huddersfield Royal Infirmary"]
[null,null,null,null,null,null,null,null,null,null,null,null,null,null,null,null,null,null,null,null,"QJM","RWD","UNITED LINCOLNSHIRE TEACHING HOSPITALS NHS TRUST","RWDLP","Grantham and District Hospital",null,"RKE","NORTH TEES AND HARTLEPOOL NHS FOUNDATION TRUST",null,"RKE","NORTH TEES AND HARTLEPOOL NHS FOUNDATION TRUST","RFSDA","Hull Royal Infirmary"]
[null,null,null,null,null,null,null,null,null,null,null,null,null,null,null,null,null,null,null,null,"QJM","RWD","UNITED LINCOLNSHIRE TEACHING HOSPITALS NHS TRUST","RWDDA","Lincoln County Hospital",null,"RL4","NORTH WEST ANGLIA NHS FOUNDATION TRUST",null,"RL4","NORTH WEST ANGLIA NHS FOUNDATION TRUST","RGN80","Ipswich Hospital"]
[null,null,null,null,null,null,null,null,null,null,null,null,null,null,null,null,null,null,null,null,"QJM","RWD","UNITED LINCOLNSHIRE TEACHING HOSPITALS NHS TRUST","RWDLA","Pilgrim Hospital",null,"RLQ","NORTHAMPTON GENERAL HOSPITAL NHS TRUST",null,"RLQ","NORTHAMPTON GENERAL HOSPITAL NHS TRUST","RGN90","James Paget University Hospital"]
[null,null,null,null,null,null,null,null,null,null,null,null,null,null,null,null,null,null,null,null,"QK1","RWE","UNIVERSITY HOSPITALS OF LEICESTER NHS TRUST","RWEAK","Leicester General Hospital",null,"RLT","NORTHERN LINCOLNSHIRE AND GOOLE NHS FOUNDATION TRUST",null,"RLT","NORTHERN LINCOLNSHIRE AND GOOLE NHS FOUNDATION TRUST","RGP75","John Radcliffe Hospital"]
[null,null,null,null,null,null,null,null,null,null,null,null,null,null,null,null,null,null,null,null,"QK1","RWE","UNIVERSITY HOSPITALS OF LEICESTER NHS TRUST","RWEAA","Leicester Royal Infirmary",null,"RM1","NORTHUMBRIA HEALTHCARE NHS FOUNDATION TRUST",null,"RM1","NORTHUMBRIA HEALTHCARE NHS FOUNDATION TRUST","RGR50","Kettering General Hospital"]
[null,null,null,null,null,null,null,null,null,null,null,null,null,null,null,null,null,null,null,null,"QK1","RWE","UNIVERSITY HOSPITALS OF LEICESTER NHS TRUST","RWEXXX","Non-hospital site",null,"RMC","NOTTINGHAM UNIVERSITY HOSPITALS NHS TRUST",null,"RMC","NOTTINGHAM UNIVERSITY HOSPITALS NHS TRUST","RGT32","Kidderminster Hospital"]
[null,null,null,null,null,null,null,null,null,null,null,null,null,null,null,null,null,null,null,null,"QK1","RWE","UNIVERSITY HOSPITALS OF LEICESTER NHS TRUST","RWE10","St Mary's Hospital",null,"RMP","OXFORD UNIVERSITY HOSPITALS NHS FOUNDATION TRUST",null,"RMP","OXFORD UNIVERSITY HOSPITALS NHS FOUNDATION TRUST","RH5A8","King's Mill Hospital"]
[null,null,null,null,null,null,null,null,null,null,null,null,null,null,null,null,null,null,null,null,"QKK","RJ1","GUY'S AND ST THOMAS' NHS FOUNDATION TRUST","RJ122","St Thomas' Hospital",null,"RN3","PORTSMOUTH HOSPITALS UNIVERSITY NATIONAL HEALTH SERVICE TRUST",null,"RN3","PORTSMOUTH HOSPITALS UNIVERSITY NATIONAL HEALTH SERVICE TRUST","RH5K6","Kingston Hospital"]
[null,null,null,null,null,null,null,null,null,null,null,null,null,null,null,null,null,null,null,null,"QKK","RJ2","LEWISHAM AND GREENWICH NHS TRUST","RJ231","Queen Elizabeth Hospital",null,"RN5","ROYAL BERKSHIRE NHS FOUNDATION TRUST",null,"RN5","ROYAL BERKSHIRE NHS FOUNDATION TRUST","RH5O4","Leeds General Infirmary"]
[null,null,null,null,null,null,null,null,null,null,null,null,null,null,null,null,null,null,null,null,"QKK","RJ2","LEWISHAM AND GREENWICH NHS TRUST","RJ224","University Hospital Lewisham",null,"RN7","ROYAL CORNWALL HOSPITALS NHS TRUST",null,"RN7","ROYAL CORNWALL HOSPITALS NHS TRUST","RH5XXXX","Leicester General Hospital"]
[null,null,null,null,null,null,null,null,null,null,null,null,null,null,null,null,null,null,null,null,"QKS","RN7","DARTFORD AND GRAVESHAM NHS TRUST","RN707","Darent Valley Hospital",null,"RNA","ROYAL DEVON UNIVERSITY HEALTHCARE NHS FOUNDATION TRUST",null,"RNA","ROYAL DEVON UNIVERSITY HEALTHCARE NHS FOUNDATION TRUST","RH801","Leicester Royal Infirmary"]
[null,null,null,null,null,null,null,null,null,null,null,null,null,null,null,null,null,null,null,null,"QKS","RVV","EAST KENT HOSPITALS UNIVERSITY NHS FOUNDATION TRUST","RVV02","Buckland Hospital",null,"RNN","ROYAL FREE LONDON NHS FOUNDATION TRUST",null,"RNN","ROYAL FREE LONDON NHS FOUNDATION TRUST","RH880","Leighton Hospital"]
[null,null,null,null,null,null,null,null,null,null,null,null,null,null,null,null,null,null,null,null,"QKS","RVV","EAST KENT HOSPITALS UNIVERSITY NHS FOUNDATION TRUST","RVVXXX","Non-hospital site",null,"RNQ","ROYAL SURREY COUNTY HOSPITAL NHS FOUNDATION TRUST",null,"RNQ","ROYAL SURREY COUNTY HOSPITAL NHS FOUNDATION TRUST","RHM12","Lincoln County Hospital"]
[null,null,null,null,null,null,null,null,null,null,null,null,null,null,null,null,null,null,null,null,"QKS","RVV","EAST KENT HOSPITALS UNIVERSITY NHS FOUNDATION TRUST","RVV09","Queen Elizabeth The Queen Mother Hospital",null,"RNS","ROYAL UNITED HOSPITALS BATH NHS FOUNDATION TRUST",null,"RNS","ROYAL UNITED HOSPITALS BATH NHS FOUNDATION TRUST","RHQHH","Lister Hospital"]
[null,null,null,null,null,null,null,null,null,null,null,null,null,null,null,null,null,null,null,null,"QKS","RVV","EAST KENT HOSPITALS UNIVERSITY NHS FOUNDATION TRUST","RVV03","Royal Victoria Hospital (Folkestone)",null,"RNZ","SALISBURY NHS FOUNDATION TRUST",null,"RNZ","SALISBURY NHS FOUNDATION TRUST","RHU03","Liverpool Womens Hospital"]
[null,null,null,null,null,null,null,null,null,null,null,null,null,null,null,null,null,null,null,null,"QKS","RVV","EAST KENT HOSPITALS UNIVERSITY NHS FOUNDATION TRUST","RVV01","William Harvey Hospital (Ashford)",null,"RP5","SANDWELL AND WEST BIRMINGHAM HOSPITALS NHS TRUST",null,"RP5","SANDWELL AND WEST BIRMINGHAM HOSPITALS NHS TRUST","RHW01","Luton and Dunstable Hospital"]
[null,null,null,null,null,null,null,null,null,null,null,null,null,null,null,null,null,null,null,null,"QKS","RWF","MAIDSTONE AND TUNBRIDGE WELLS NHS TRUST","RWF03","Maidstone District General Hospital",null,"RPA","SHEFFIELD TEACHING HOSPITALS NHS FOUNDATION TRUST",null,"RPA","SHEFFIELD TEACHING HOSPITALS NHS FOUNDATION TRUST","RJ122","Macclesfield District General Hospital"]
[null,null,null,null,null,null,null,null,null,null,null,null,null,null,null,null,null,null,null,null,"QKS","RWF","MAIDSTONE AND TUNBRIDGE WELLS NHS TRUST","RWFXXX","Non-hospital site",null,"RQ3","SHERWOOD FOREST HOSPITALS NHS FOUNDATION TRUST",null,"RQ3","SHERWOOD FOREST HOSPITALS NHS FOUNDATION TRUST","RJ224","Maidstone District General Hospital"]
[null,null,null,null,null,null,null,null,null,null,null,null,null,null,null,null,null,null,null,null,"QKS","RWF","MAIDSTONE AND TUNBRIDGE WELLS NHS TRUST","RWFTW","The Tunbridge Wells Hospital",null,"RQW","SOMERSET NHS FOUNDATION TRUST",null,"RQW","SOMERSET NHS FOUNDATION TRUST","RJ231","Manor Hospital"]
[null,null,null,null,null,null,null,null,null,null,null,null,null,null,null,null,null,null,null,null,"QKS","RPA","MEDWAY NHS FOUNDATION TRUST","RPA02","Medway Maritime Hospital",null,"RQX","SOUTH TEES HOSPITALS NHS FOUNDATION TRUST",null,"RQX","SOUTH TEES HOSPITALS NHS FOUNDATION TRUST","RJ701","Medway Maritime Hospital"]
[null,null,null,null,null,null,null,null,null,null,null,null,null,null,null,null,null,null,null,null,"QM7","RWH","EAST AND NORTH HERTFORDSHIRE NHS TRUST","RWH23","Hertford County Hospital",null,"RR7","SOUTH TYNESIDE AND SUNDERLAND NHS FOUNDATION TRUST",null,"RR7","SOUTH TYNESIDE AND SUNDERLAND NHS FOUNDATION TRUST","RJC02","MID ESSEX HOSPITAL"]
[null,null,null,null,null,null,null,null,null,null,null,null,null,null,null,null,null,null,null,null,"QM7","RWH","EAST AND NORTH HERTFORDSHIRE NHS TRUST","RWH01","Lister Hospital",null,"RR8","SOUTH WARWICKSHIRE UNIVERSITY NHS FOUNDATION TRUST",null,"RR8","SOUTH WARWICKSHIRE UNIVERSITY NHS FOUNDATION TRUST","RJCXXX","Milton Keynes Hospital"]
[null,null,null,null,null,null,null,null,null,null,null,null,null,null,null,null,null,null,null,null,"QM7","RWH","EAST AND NORTH HERTFORDSHIRE NHS TRUST","RWHXXX","Non-hospital site",null,"RRF","ST GEORGE'S UNIVERSITY HOSPITALS NHS FOUNDATION TRUST",null,"RRF","ST GEORGE'S UNIVERSITY HOSPITALS NHS FOUNDATION TRUST","RJE01","MUSGROVE PARK HOSPITAL"]
[null,null,null,null,null,null,null,null,null,null,null,null,null,null,null,null,null,null,null,null,"QM7","RWH","EAST AND NORTH HERTFORDSHIRE NHS TRUST","RWH20","Queen Elizabeth I I Hospital",null,"RRK","STOCKPORT NHS FOUNDATION TRUST",null,"RRK","STOCKPORT NHS FOUNDATION TRUST","RJE09","New Cross Hospital"]
[null,null,null,null,null,null,null,null,null,null,null,null,null,null,null,null,null,null,null,null,"QM7","RQW","THE PRINCESS ALEXANDRA HOSPITAL NHS TRUST","RQWG0","Princess Alexandra Hospital",null,"RRV","SURREY AND SUSSEX HEALTHCARE NHS TRUST",null,"RRV","SURREY AND SUSSEX HEALTHCARE NHS TRUST","RJEXXX","Newham General Hospital"]
[null,null,null,null,null,null,null,null,null,null,null,null,null,null,null,null,null,null,null,null,"QM7","RWG","WEST HERTFORDSHIRE TEACHING HOSPITALS NHS TRUST","RWG02","Watford General Hospital",null,"RTD","TAMESIDE AND GLOSSOP INTEGRATED CARE NHS FOUNDATION TRUST",null,"RTD","TAMESIDE AND GLOSSOP INTEGRATED CARE NHS FOUNDATION TRUST","RJL30","Non-hospital site"]
[null,null,null,null,null,null,null,null,null,null,null,null,null,null,null,null,null,null,null,null,"QMF","RF4","BARKING, HAVERING AND REDBRIDGE UNIVERSITY HOSPITALS NHS TRUST","RF4XXX","Non-hospital site",null,"RTF","THE DUDLEY GROUP NHS FOUNDATION TRUST",null,"RTF","THE DUDLEY GROUP NHS FOUNDATION TRUST","RJL31","Non-hospital site"]
[null,null,null,null,null,null,null,null,null,null,null,null,null,null,null,null,null,null,null,null,"QMF","R1H","BARTS HEALTH NHS TRUST","R1HNH","Newham General Hospital",null,"RTG","THE HILLINGDON HOSPITALS NHS FOUNDATION TRUST",null,"RTG","THE HILLINGDON HOSPITALS NHS FOUNDATION TRUST","RJL32","Non-hospital site"]
[null,null,null,null,null,null,null,null,null,null,null,null,null,null,null,null,null,null,null,null,"QMF","R1H","BARTS HEALTH NHS TRUST","R1H12","The Royal London Hospital",null,"RTH","THE NEWCASTLE UPON TYNE HOSPITALS NHS FOUNDATION TRUST",null,"RTH","THE NEWCASTLE UPON TYNE HOSPITALS NHS FOUNDATION TRUST","RJN71","Non-hospital site"]
[null,null,null,null,null,null,null,null,null,null,null,null,null,null,null,null,null,null,null,null,"QMF","R1H","BARTS HEALTH NHS TRUST","R1HKH","Whipps Cross University Hospital",null,"RTK","THE PRINCESS ALEXANDRA HOSPITAL NHS TRUST",null,"RTK","THE PRINCESS ALEXANDRA HOSPITAL NHS TRUST","RJR05","Non-hospital site"]
[null,null,null,null,null,null,null,null,null,null,null,null,null,null,null,null,null,null,null,null,"QMF","RQX","HOMERTON HEALTHCARE NHS FOUNDATION TRUST","RQXM1","Homerton University Hospital",null,"RTP","THE QUEEN ELIZABETH HOSPITAL, KING'S LYNN, NHS FOUNDATION TRUST",null,"RTP","THE QUEEN ELIZABETH HOSPITAL, KING'S LYNN, NHS FOUNDATION TRUST","RK5BC","Non-hospital site"]
[null,null,null,null,null,null,null,null,null,null,null,null,null,null,null,null,null,null,null,null,"QMJ","RAL","ROYAL FREE LONDON NHS FOUNDATION TRUST","RAL26","Barnet Hospital",null,"RTR","THE ROTHERHAM NHS FOUNDATION TRUST",null,"RTR","THE ROTHERHAM NHS FOUNDATION TRUST","RK950","Non-hospital site"]
[null,null,null,null,null,null,null,null,null,null,null,null,null,null,null,null,null,null,null,null,"QMJ","RAL","ROYAL FREE LONDON NHS FOUNDATION TRUST","RALC7","Chase Farm Hospital",null,"RTX","THE ROYAL WOLVERHAMPTON NHS TRUST",null,"RTX","THE ROYAL WOLVERHAMPTON NHS TRUST","RK9XXX","Non-hospital site"]
[null,null,null,null,null,null,null,null,null,null,null,null,null,null,null,null,null,null,null,null,"QMJ","RAL","ROYAL FREE LONDON NHS FOUNDATION TRUST","RALRA","Edgware Community Hospital",null,"RVR","THE SHREWSBURY AND TELFORD HOSPITAL NHS TRUST",null,"RVR","THE SHREWSBURY AND TELFORD HOSPITAL NHS TRUST","RKB01","Non-hospital site"]
[null,null,null,null,null,null,null,null,null,null,null,null,null,null,null,null,null,null,null,null,"QMJ","RAL","ROYAL FREE LONDON NHS FOUNDATION TRUST","RAL22","Finchley Memorial Hospital",null,"RVV","TORBAY AND SOUTH DEVON NHS FOUNDATION TRUST",null,"RVV","TORBAY AND SOUTH DEVON NHS FOUNDATION TRUST","RKB03","Non-hospital site"]
[null,null,null,null,null,null,null,null,null,null,null,null,null,null,null,null,null,null,null,null,"QMJ","RAL","ROYAL FREE LONDON NHS FOUNDATION TRUST","RAL27","North Middlesex University Hospital",null,"RVW","UNITED LINCOLNSHIRE TEACHING HOSPITALS NHS TRUST",null,"RVW","UNITED LINCOLNSHIRE TEACHING HOSPITALS NHS TRUST","RKBXXX","Non-hospital site"]
[null,null,null,null,null,null,null,null,null,null,null,null,null,null,null,null,null,null,null,null,"QMJ","RAL","ROYAL FREE LONDON NHS FOUNDATION TRUST","RAL01","Royal Free Hospital",null,"RWA","UNIVERSITY COLLEGE LONDON HOSPITALS NHS FOUNDATION TRUST",null,"RWA","UNIVERSITY COLLEGE LONDON HOSPITALS NHS FOUNDATION TRUST","RKEQ4","Non-hospital site"]
[null,null,null,null,null,null,null,null,null,null,null,null,null,null,null,null,null,null,null,null,"QMJ","RRV","UNIVERSITY COLLEGE LONDON HOSPITALS NHS FOUNDATION TRUST","RRV11","University College Hospital Elizabeth Garrett Anderson Wing",null,"RWD","UNIVERSITY HOSPITAL SOUTHAMPTON NHS FOUNDATION TRUST",null,"RWD","UNIVERSITY HOSPITAL SOUTHAMPTON NHS FOUNDATION TRUST","RKEXXX","Non-hospital site"]
[null,null,null,null,null,null,null,null,null,null,null,null,null,null,null,null,null,null,null,null,"QMJ","RKE","WHITTINGTON HEALTH NHS TRUST","RKEXXX","Non-hospital site",null,"RWE","UNIVERSITY HOSPITALS BIRMINGHAM NHS FOUNDATION TRUST",null,"RWE","UNIVERSITY HOSPITALS BIRMINGHAM NHS FOUNDATION TRUST","RL403","Non-hospital site"]
[null,null,null,null,null,null,null,null,null,null,null,null,null,null,null,null,null,null,null,null,"QMJ","RKE","WHITTINGTON HEALTH NHS TRUST","RKEQ4","The Whittington Hospital",null,"RWF","UNIVERSITY HOSPITALS BRISTOL AND WESTON NHS FOUNDATION TRUST",null,"RWF","UNIVERSITY HOSPITALS BRISTOL AND WESTON NHS FOUNDATION TRUST","RLQ01","Non-hospital site"]
[null,null,null,null,null,null,null,null,null,null,null,null,null,null,null,null,null,null,null,null,"QMM","RGP","JAMES PAGET UNIVERSITY HOSPITALS NHS FOUNDATION TRUST","RGP75","James Paget University Hospital",null,"RWG","UNIVERSITY HOSPITALS COVENTRY AND WARWICKSHIRE NHS TRUST",null,"RWG","UNIVERSITY HOSPITALS COVENTRY AND WARWICKSHIRE NHS TRUST","RLT01","Non-hospital site"]
[null,null,null,null,null,null,null,null,null,null,null,null,null,null,null,null,null,null,null,null,"QMM","RM1","NORFOLK AND NORWICH UNIVERSITY HOSPITALS NHS FOUNDATION TRUST","RM102","Norfolk and Norwich University Hospital",null,"RWH","UNIVERSITY HOSPITALS DORSET NHS FOUNDATION TRUST",null,"RWH","UNIVERSITY HOSPITALS DORSET NHS FOUNDATION TRUST","RM102","Non-hospital site"]
[null,null,null,null,null,null,null,null,null,null,null,null,null,null,null,null,null,null,null,null,"QMM","RCX","THE QUEEN ELIZABETH HOSPITAL, KING'S LYNN, NHS FOUNDATION TRUST","RCXXXX","Non-hospital site",null,"RWJ","UNIVERSITY HOSPITALS OF DERBY AND BURTON NHS FOUNDATION TRUST",null,"RWJ","UNIVERSITY HOSPITALS OF DERBY AND BURTON NHS FOUNDATION TRUST","RMC01","Non-hospital site"]
[null,null,null,null,null,null,null,null,null,null,null,null,null,null,null,null,null,null,null,null,"QMM","RCX","THE QUEEN ELIZABETH HOSPITAL, KING'S LYNN, NHS FOUNDATION TRUST","RCX66","North Cambridgeshire Hospital",null,"RWP","UNIVERSITY HOSPITALS OF LEICESTER NHS TRUST",null,"RWP","UNIVERSITY HOSPITALS OF LEICESTER NHS TRUST","RMP01","Non-hospital site"]
[null,null,null,null,null,null,null,null,null,null,null,null,null,null,null,null,null,null,null,null,"QMM","RCX","THE QUEEN ELIZABETH HOSPITAL, KING'S LYNN, NHS FOUNDATION TRUST","RCX70","The Queen Elizabeth Hospital",null,"RWW","UNIVERSITY HOSPITALS OF MORECAMBE BAY NHS FOUNDATION TRUST",null,"RWW","UNIVERSITY HOSPITALS OF MORECAMBE BAY NHS FOUNDATION TRUST","RN325","Non-hospital site"]
[null,null,null,null,null,null,null,null,null,null,null,null,null,null,null,null,null,null,null,null,"QNC","RJE","UNIVERSITY HOSPITALS OF NORTH MIDLANDS NHS TRUST","RJE09","County Hospital",null,"RWY","UNIVERSITY HOSPITALS OF NORTH MIDLANDS NHS TRUST",null,"RWY","UNIVERSITY HOSPITALS OF NORTH MIDLANDS NHS TRUST","RN506","Non-hospital site home/in-transit births"]
[null,null,null,null,null,null,null,null,null,null,null,null,null,null,null,null,null,null,null,null,"QNC","RJE","UNIVERSITY HOSPITALS OF NORTH MIDLANDS NHS TRUST","RJEXXX","Non-hospital site",null,"RX1","UNIVERSITY HOSPITALS PLYMOUTH NHS TRUST",null,"RX1","UNIVERSITY HOSPITALS PLYMOUTH NHS TRUST","RN541","Norfolk and Norwich University Hospital"]
[null,null,null,null,null,null,null,null,null,null,null,null,null,null,null,null,null,null,null,null,"QNC","RJE","UNIVERSITY HOSPITALS OF NORTH MIDLANDS NHS TRUST","RJE01","Royal Stoke University Hospital",null,"RXF","WALSALL HEALTHCARE NHS TRUST",null,"RXF","WALSALL HEALTHCARE NHS TRUST","RN542","North Cambridgeshire Hospital"]
[null,null,null,null,null,null,null,null,null,null,null,null,null,null,null,null,null,null,null,null,"QNQ","RDU","FRIMLEY HEALTH NHS FOUNDATION TRUST","RDU01","Frimley Park Hospital",null,"RXK","WARRINGTON AND HALTON TEACHING HOSPITALS NHS FOUNDATION TRUST",null,"RXK","WARRINGTON AND HALTON TEACHING HOSPITALS NHS FOUNDATION TRUST","RN5XXX","North Devon District Hospital"]
[null,null,null,null,null,null,null,null,null,null,null,null,null,null,null,null,null,null,null,null,"QNQ","RDU","FRIMLEY HEALTH NHS FOUNDATION TRUST","RDU50","Wexham Park Hospital",null,"RXL","WEST HERTFORDSHIRE TEACHING HOSPITALS NHS TRUST",null,"RXL","WEST HERTFORDSHIRE TEACHING HOSPITALS NHS TRUST","RN707","North Middlesex University Hospital"]
[null,null,null,null,null,null,null,null,null,null,null,null,null,null,null,null,null,null,null,null,"QOC","RXW","THE SHREWSBURY AND TELFORD HOSPITAL NHS TRUST","RXWAS","Royal Shrewsbury Hospital",null,"RXN","WEST SUFFOLK NHS FOUNDATION TRUST",null,"RXN","WEST SUFFOLK NHS FOUNDATION TRUST","RNA01","Northampton General Hospital (Acute)"]
[null,null,null,null,null,null,null,null,null,null,null,null,null,null,null,null,null,null,null,null,"QOC","RXW","THE SHREWSBURY AND TELFORD HOSPITAL NHS TRUST","RXWAT","The Princess Royal Hospital",null,"RXP","WHITTINGTON HEALTH NHS TRUST",null,"RXP","WHITTINGTON HEALTH NHS TRUST","RNN62","Northwick Park Hospital"]
[null,null,null,null,null,null,null,null,null,null,null,null,null,null,null,null,null,null,null,null,"QOP","RMC","BOLTON NHS FOUNDATION TRUST","RMC01","Royal Bolton Hospital",null,"RXQ","WIRRAL UNIVERSITY TEACHING HOSPITAL NHS FOUNDATION TRUST",null,"RXQ","WIRRAL UNIVERSITY TEACHING HOSPITAL NHS FOUNDATION TRUST","RNNBX","Nottingham University Hospitals NHS Trust - City Campus"]
[null,null,null,null,null,null,null,null,null,null,null,null,null,null,null,null,null,null,null,null,"QOP","R0A","MANCHESTER UNIVERSITY NHS FOUNDATION TRUST","R0A05","St Mary's Hospital",null,"RXR","WORCESTERSHIRE ACUTE HOSPITALS NHS TRUST",null,"RXR","WORCESTERSHIRE ACUTE HOSPITALS NHS TRUST","RNQ51","Nottingham University Hospitals NHS Trust - Queen's Medical Centre Campus"]
[null,null,null,null,null,null,null,null,null,null,null,null,null,null,null,null,null,null,null,null,"QOP","RWJ","STOCKPORT NHS FOUNDATION TRUST","RWJ09","Stepping Hill Hospital",null,"RXW","WRIGHTINGTON, WIGAN AND LEIGH NHS FOUNDATION TRUST",null,"RXW","WRIGHTINGTON, WIGAN AND LEIGH NHS FOUNDATION TRUST","RNS01","Ormskirk and District General Hospital"]
[null,null,null,null,null,null,null,null,null,null,null,null,null,null,null,null,null,null,null,null,"QOP","RMP","TAMESIDE AND GLOSSOP INTEGRATED CARE NHS FOUNDATION TRUST","RMP01","Tameside General Hospital",null,"RYJ","WYE VALLEY NHS TRUST",null,"RYJ","WYE VALLEY NHS TRUST","RNZ02","Peterborough City Hospital"]
[null,null,null,null,null,null,null,null,null,null,null,null,null,null,null,null,null,null,null,null,"QOP","RRF","WRIGHTINGTON, WIGAN AND LEIGH NHS FOUNDATION TRUST","RRF02","Royal Albert Edward Infirmary",null,null,null,null,null,null,"RP5BA","Pilgrim Hospital"]
[null,null,null,null,null,null,null,null,null,null,null,null,null,null,null,null,null,null,null,null,"QOQ","RCD","HARROGATE AND DISTRICT NHS FOUNDATION TRUST","RCD01","Harrogate District Hospital",null,null,null,null,null,null,"RP5DR","Pinderfields General Hospital"]
[null,null,null,null,null,null,null,null,null,null,null,null,null,null,null,null,null,null,null,null,"QOQ","RWA","HULL UNIVERSITY TEACHING HOSPITALS NHS TRUST","RWA01","Hull Royal Infirmary",null,null,null,null,null,null,"RP5XXX","Pontefract General Infirmary"]
[null,null,null,null,null,null,null,null,null,null,null,null,null,null,null,null,null,null,null,null,"QOQ","RJL","NORTHERN LINCOLNSHIRE AND GOOLE NHS FOUNDATION TRUST","RJL30","Diana, Princess Of Wales Hospital",null,null,null,null,null,null,"RPA02","Poole Hospital"]
[null,null,null,null,null,null,null,null,null,null,null,null,null,null,null,null,null,null,null,null,"QOQ","RJL","NORTHERN LINCOLNSHIRE AND GOOLE NHS FOUNDATION TRUST","RJL31","Goole and District Hospital (Acute)",null,null,null,null,null,null,"RQ370","Princess Alexandra Hospital"]
[null,null,null,null,null,null,null,null,null,null,null,null,null,null,null,null,null,null,null,null,"QOQ","RJL","NORTHERN LINCOLNSHIRE AND GOOLE NHS FOUNDATION TRUST","RJL32","Scunthorpe General Hospital",null,null,null,null,null,null,"RQWG0","Princess Anne Hospital"]
[null,null,null,null,null,null,null,null,null,null,null,null,null,null,null,null,null,null,null,null,"QOX","RN3","GREAT WESTERN HOSPITALS NHS FOUNDATION TRUST","RN325","The Great Western Hospital",null,null,null,null,null,null,"RQXM1","Princess Anne Wing RUH"]
[null,null,null,null,null,null,null,null,null,null,null,null,null,null,null,null,null,null,null,null,"QOX","RD1","ROYAL UNITED HOSPITALS BATH NHS FOUNDATION TRUST","RD102","Chippenham Community Hospital",null,null,null,null,null,null,"RR7EN","Queen Alexandra Hospital"]
[null,null,null,null,null,null,null,null,null,null,null,null,null,null,null,null,null,null,null,null,"QOX","RD1","ROYAL UNITED HOSPITALS BATH NHS FOUNDATION TRUST","RD121","Frome Community Hospital",null,null,null,null,null,null,"RR801","Queen Charlotte's Hospital"]
[null,null,null,null,null,null,null,null,null,null,null,null,null,null,null,null,null,null,null,null,"QOX","RD1","ROYAL UNITED HOSPITALS BATH NHS FOUNDATION TRUST","RD130","Princess Anne Wing RUH",null,null,null,null,null,null,"RR813","Queen Elizabeth Hospital"]
[null,null,null,null,null,null,null,null,null,null,null,null,null,null,null,null,null,null,null,null,"QOX","RD1","ROYAL UNITED HOSPITALS BATH NHS FOUNDATION TRUST","RD108","Trowbridge Community Hospital",null,null,null,null,null,null,"RR8XXX","Queen Elizabeth Hospital"]
[null,null,null,null,null,null,null,null,null,null,null,null,null,null,null,null,null,null,null,null,"QOX","RNZ","SALISBURY NHS FOUNDATION TRUST","RNZ02","Salisbury District Hospital",null,null,null,null,null,null,"RRF02","Queen Elizabeth I I Hospital"]
[null,null,null,null,null,null,null,null,null,null,null,null,null,null,null,null,null,null,null,null,"QPM","RNQ","KETTERING GENERAL HOSPITAL NHS FOUNDATION TRUST","RNQ51","Kettering General Hospital",null,null,null,null,null,null,"RRK97","Queen Elizabeth The Queen Mother Hospital"]
[null,null,null,null,null,null,null,null,null,null,null,null,null,null,null,null,null,null,null,null,"QPM","RNS","NORTHAMPTON GENERAL HOSPITAL NHS TRUST","RNS01","Northampton General Hospital (Acute)",null,null,null,null,null,null,"RRK98","Queens Hospital, Burton Upon Trent"]
[null,null,null,null,null,null,null,null,null,null,null,null,null,null,null,null,null,null,null,null,"QRL","RN5","HAMPSHIRE HOSPITALS NHS FOUNDATION TRUST","RN542","Andover War Memorial Hospital",null,null,null,null,null,null,"RRK99","Rosie Hospital"]
[null,null,null,null,null,null,null,null,null,null,null,null,null,null,null,null,null,null,null,null,"QRL","RN5","HAMPSHIRE HOSPITALS NHS FOUNDATION TRUST","RN506","Basingstoke and North Hampshire Hospital",null,null,null,null,null,null,"RRV11","Rotherham District General Hospital"]
[null,null,null,null,null,null,null,null,null,null,null,null,null,null,null,null,null,null,null,null,"QRL","RN5","HAMPSHIRE HOSPITALS NHS FOUNDATION TRUST","RN5XXX","Non-hospital site",null,null,null,null,null,null,"RTD02","Royal Albert Edward Infirmary"]
[null,null,null,null,null,null,null,null,null,null,null,null,null,null,null,null,null,null,null,null,"QRL","RN5","HAMPSHIRE HOSPITALS NHS FOUNDATION TRUST","RN541","Royal Hampshire County Hospital",null,null,null,null,null,null,"RTFXXX","Royal Berkshire Hospital"]
[null,null,null,null,null,null,null,null,null,null,null,null,null,null,null,null,null,null,null,null,"QRL","R1F","ISLE OF WIGHT NHS TRUST","R1F01","St Mary's Hospital",null,null,null,null,null,null,"RTG02","Royal Blackburn Hospital"]
[null,null,null,null,null,null,null,null,null,null,null,null,null,null,null,null,null,null,null,null,"QRL","RHU","PORTSMOUTH HOSPITALS UNIVERSITY NATIONAL HEALTH SERVICE TRUST","RHU03","Queen Alexandra Hospital",null,null,null,null,null,null,"RTGFG","Royal Bolton Hospital"]
[null,null,null,null,null,null,null,null,null,null,null,null,null,null,null,null,null,null,null,null,"QRL","RHM","UNIVERSITY HOSPITAL SOUTHAMPTON NHS FOUNDATION TRUST","RHM12","Princess Anne Hospital",null,null,null,null,null,null,"RTH08","Royal Bournemouth Hospital"]
[null,null,null,null,null,null,null,null,null,null,null,null,null,null,null,null,null,null,null,null,"QRV","RYJ","IMPERIAL COLLEGE HEALTHCARE NHS TRUST","RYJ04","Queen Charlotte's Hospital",null,null,null,null,null,null,"RTK02","Royal Cornwall Hospital (Treliske)"]
[null,null,null,null,null,null,null,null,null,null,null,null,null,null,null,null,null,null,null,null,"QRV","RYJ","IMPERIAL COLLEGE HEALTHCARE NHS TRUST","RYJ01","St Mary's Hospital (HQ)",null,null,null,null,null,null,"RTP04","Royal Derby Hospital"]
[null,null,null,null,null,null,null,null,null,null,null,null,null,null,null,null,null,null,null,null,"QRV","R1K","LONDON NORTH WEST UNIVERSITY HEALTHCARE NHS TRUST","R1K01","Northwick Park Hospital",null,null,null,null,null,null,"RTR45","Royal Devon and Exeter Hospital (Wonford)"]
[null,null,null,null,null,null,null,null,null,null,null,null,null,null,null,null,null,null,null,null,"QRV","RAS","THE HILLINGDON HOSPITALS NHS FOUNDATION TRUST","RAS01","Hillingdon Hospital",null,null,null,null,null,null,"RTRAT","Royal Free Hospital"]
[null,null,null,null,null,null,null,null,null,null,null,null,null,null,null,null,null,null,null,null,"QSL","RH5","SOMERSET NHS FOUNDATION TRUST","RH5K6","Bridgwater Hospital",null,null,null,null,null,null,"RTX02","Royal Hallamshire Hospital"]
[null,null,null,null,null,null,null,null,null,null,null,null,null,null,null,null,null,null,null,null,"QSL","RH5","SOMERSET NHS FOUNDATION TRUST","RH5A8","MUSGROVE PARK HOSPITAL",null,null,null,null,null,null,"RTXBU","Royal Hampshire County Hospital"]
[null,null,null,null,null,null,null,null,null,null,null,null,null,null,null,null,null,null,null,null,"QSL","RH5","SOMERSET NHS FOUNDATION TRUST","RH5XXXX","Non-hospital site home/in-transit births",null,null,null,null,null,null,"RTXBW","Royal Lancaster Infirmary"]
[null,null,null,null,null,null,null,null,null,null,null,null,null,null,null,null,null,null,null,null,"QSL","RH5","SOMERSET NHS FOUNDATION TRUST","RH5O4","Yeovil District Hospital",null,null,null,null,null,null,"RVR05","Royal Preston Hospital"]
[null,null,null,null,null,null,null,null,null,null,null,null,null,null,null,null,null,null,null,null,"QT1","RX1","NOTTINGHAM UNIVERSITY HOSPITALS NHS TRUST","RX1XXX","Non-hospital site",null,null,null,null,null,null,"RVR50","Royal Shrewsbury Hospital"]
[null,null,null,null,null,null,null,null,null,null,null,null,null,null,null,null,null,null,null,null,"QT1","RX1","NOTTINGHAM UNIVERSITY HOSPITALS NHS TRUST","RX1CC","Nottingham University Hospitals NHS Trust - City Campus",null,null,null,null,null,null,"RVRXXX","Royal Stoke University Hospital"]
[null,null,null,null,null,null,null,null,null,null,null,null,null,null,null,null,null,null,null,null,"QT1","RX1","NOTTINGHAM UNIVERSITY HOSPITALS NHS TRUST","RX1RA","Nottingham University Hospitals NHS Trust - Queen's Medical Centre Campus",null,null,null,null,null,null,"RVV01","Royal Surrey County Hospital"]
[null,null,null,null,null,null,null,null,null,null,null,null,null,null,null,null,null,null,null,null,"QT1","RK5","SHERWOOD FOREST HOSPITALS NHS FOUNDATION TRUST","RK5BC","King's Mill Hospital",null,null,null,null,null,null,"RVV02","Royal Victoria Hospital (Folkestone)"]
[null,null,null,null,null,null,null,null,null,null,null,null,null,null,null,null,null,null,null,null,"QT6","REF","ROYAL CORNWALL HOSPITALS NHS TRUST","REFXXX","Non-hospital site",null,null,null,null,null,null,"RVV03","Russells Hall Hospital"]
[null,null,null,null,null,null,null,null,null,null,null,null,null,null,null,null,null,null,null,null,"QT6","REF","ROYAL CORNWALL HOSPITALS NHS TRUST","REF12","Royal Cornwall Hospital (Treliske)",null,null,null,null,null,null,"RVV09","Salisbury District Hospital"]
[null,null,null,null,null,null,null,null,null,null,null,null,null,null,null,null,null,null,null,null,"QU9","RXQ","BUCKINGHAMSHIRE HEALTHCARE NHS TRUST","RXQ02","Stoke Mandeville Hospital",null,null,null,null,null,null,"RVVXXX","Sandwell General Hospital"]
[null,null,null,null,null,null,null,null,null,null,null,null,null,null,null,null,null,null,null,null,"QU9","RXQ","BUCKINGHAMSHIRE HEALTHCARE NHS TRUST","RXQ50","Wycombe Hospital",null,null,null,null,null,null,"RVWAE","Scunthorpe General Hospital"]
[null,null,null,null,null,null,null,null,null,null,null,null,null,null,null,null,null,null,null,null,"QU9","RTH","OXFORD UNIVERSITY HOSPITALS NHS FOUNDATION TRUST","RTH08","John Radcliffe Hospital",null,null,null,null,null,null,"RWA01","Solihull Hospital"]
[null,null,null,null,null,null,null,null,null,null,null,null,null,null,null,null,null,null,null,null,"QU9","RHW","ROYAL BERKSHIRE NHS FOUNDATION TRUST","RHW01","Royal Berkshire Hospital",null,null,null,null,null,null,"RWDDA","South Tyneside District Hospital"]
[null,null,null,null,null,null,null,null,null,null,null,null,null,null,null,null,null,null,null,null,"QUA","RNA","THE DUDLEY GROUP NHS FOUNDATION TRUST","RNA01","Russells Hall Hospital",null,null,null,null,null,null,"RWDLA","Southend Hospital"]
[null,null,null,null,null,null,null,null,null,null,null,null,null,null,null,null,null,null,null,null,"QUA","RL4","THE ROYAL WOLVERHAMPTON NHS TRUST","RL403","New Cross Hospital",null,null,null,null,null,null,"RWDLP","St George's Hospital (Tooting)"]
[null,null,null,null,null,null,null,null,null,null,null,null,null,null,null,null,null,null,null,null,"QUA","RBK","WALSALL HEALTHCARE NHS TRUST","RBK02","Manor Hospital",null,null,null,null,null,null,"RWE10","St Helier Hospital"]
[null,null,null,null,null,null,null,null,null,null,null,null,null,null,null,null,null,null,null,null,"QUE","RGT","CAMBRIDGE UNIVERSITY HOSPITALS NHS FOUNDATION TRUST","RGT32","Rosie Hospital",null,null,null,null,null,null,"RWEAA","St James's University Hospital"]
[null,null,null,null,null,null,null,null,null,null,null,null,null,null,null,null,null,null,null,null,"QUE","RGN","NORTH WEST ANGLIA NHS FOUNDATION TRUST","RGN90","Hinchingbrooke Hospital",null,null,null,null,null,null,"RWEAK","St Mary's Hospital"]
[null,null,null,null,null,null,null,null,null,null,null,null,null,null,null,null,null,null,null,null,"QUE","RGN","NORTH WEST ANGLIA NHS FOUNDATION TRUST","RGN80","Peterborough City Hospital",null,null,null,null,null,null,"RWEXXX","St Mary's Hospital"]
[null,null,null,null,null,null,null,null,null,null,null,null,null,null,null,null,null,null,null,null,"QUY","RA7","UNIVERSITY HOSPITALS BRISTOL AND WESTON NHS FOUNDATION TRUST","RA707","ST MICHAEL'S HOSPITAL",null,null,null,null,null,null,"RWF03","St Mary's Hospital"]
[null,null,null,null,null,null,null,null,null,null,null,null,null,null,null,null,null,null,null,null,"QVV","RBD","DORSET COUNTY HOSPITAL NHS FOUNDATION TRUST","RBD01","Dorset County Hospital",null,null,null,null,null,null,"RWFTW","St Mary's Hospital (HQ)"]
[null,null,null,null,null,null,null,null,null,null,null,null,null,null,null,null,null,null,null,null,"QVV","R0D","UNIVERSITY HOSPITALS DORSET NHS FOUNDATION TRUST","R0D01","Poole Hospital",null,null,null,null,null,null,"RWFXXX","ST MICHAEL'S HOSPITAL"]
[null,null,null,null,null,null,null,null,null,null,null,null,null,null,null,null,null,null,null,null,"QVV","R0D","UNIVERSITY HOSPITALS DORSET NHS FOUNDATION TRUST","R0D02","Royal Bournemouth Hospital",null,null,null,null,null,null,"RWG02","St Thomas' Hospital"]
[null,null,null,null,null,null,null,null,null,null,null,null,null,null,null,null,null,null,null,null,"QWE","RVR","EPSOM AND ST HELIER UNIVERSITY HOSPITALS NHS TRUST","RVR50","Epsom Hospital",null,null,null,null,null,null,"RWH01","Stepping Hill Hospital"]
[null,null,null,null,null,null,null,null,null,null,null,null,null,null,null,null,null,null,null,null,"QWE","RVR","EPSOM AND ST HELIER UNIVERSITY HOSPITALS NHS TRUST","RVRXXX","Non-hospital site",null,null,null,null,null,null,"RWH20","Stoke Mandeville Hospital"]
[null,null,null,null,null,null,null,null,null,null,null,null,null,null,null,null,null,null,null,null,"QWE","RVR","EPSOM AND ST HELIER UNIVERSITY HOSPITALS NHS TRUST","RVR05","St Helier Hospital",null,null,null,null,null,null,"RWH23","Sunderland Royal Hospital"]
[null,null,null,null,null,null,null,null,null,null,null,null,null,null,null,null,null,null,null,null,"QWE","RAX","KINGSTON AND RICHMOND NHS FOUNDATION TRUST","RAX01","Kingston Hospital",null,null,null,null,null,null,"RWHXXX","Tameside General Hospital"]
[null,null,null,null,null,null,null,null,null,null,null,null,null,null,null,null,null,null,null,null,"QWE","RJ7","ST GEORGE'S UNIVERSITY HOSPITALS NHS FOUNDATION TRUST","RJ701","St George's Hospital (Tooting)",null,null,null,null,null,null,"RWJ09","The Great Western Hospital"]
[null,null,null,null,null,null,null,null,null,null,null,null,null,null,null,null,null,null,null,null,"QWO","RAE","BRADFORD TEACHING HOSPITALS NHS FOUNDATION TRUST","RAE01","Bradford Royal Infirmary",null,null,null,null,null,null,"RWP01","The James Cook University Hospital"]
[null,null,null,null,null,null,null,null,null,null,null,null,null,null,null,null,null,null,null,null,"QWO","RWY","CALDERDALE AND HUDDERSFIELD NHS FOUNDATION TRUST","RWY02","Calderdale Royal Hospital",null,null,null,null,null,null,"RWP31","The Princess Royal Hospital"]
[null,null,null,null,null,null,null,null,null,null,null,null,null,null,null,null,null,null,null,null,"QWO","RWY","CALDERDALE AND HUDDERSFIELD NHS FOUNDATION TRUST","RWY01","Huddersfield Royal Infirmary",null,null,null,null,null,null,"RWP50","The Queen Elizabeth Hospital"]
[null,null,null,null,null,null,null,null,null,null,null,null,null,null,null,null,null,null,null,null,"QWO","RWY","CALDERDALE AND HUDDERSFIELD NHS FOUNDATION TRUST","RWYXXX","Non-hospital site",null,null,null,null,null,null,"RWWWH","The Royal London Hospital"]
[null,null,null,null,null,null,null,null,null,null,null,null,null,null,null,null,null,null,null,null,"QWO","RR8","LEEDS TEACHING HOSPITALS NHS TRUST","RR801","Leeds General Infirmary",null,null,null,null,null,null,"RWY01","The Royal Victoria Infirmary"]
[null,null,null,null,null,null,null,null,null,null,null,null,null,null,null,null,null,null,null,null,"QWO","RR8","LEEDS TEACHING HOSPITALS NHS TRUST","RR8XXX","Non-hospital site",null,null,null,null,null,null,"RWY02","The Tunbridge Wells Hospital"]
[null,null,null,null,null,null,null,null,null,null,null,null,null,null,null,null,null,null,null,null,"QWO","RR8","LEEDS TEACHING HOSPITALS NHS TRUST","RR813","St James's University Hospital",null,null,null,null,null,null,"RWYXXX","The Whittington Hospital"]
[null,null,null,null,null,null,null,null,null,null,null,null,null,null,null,null,null,null,null,null,"QWO","RXF","MID YORKSHIRE TEACHING NHS TRUST","RXF10","Dewsbury and District Hospital",null,null,null,null,null,null,"RX1CC","Torbay Hospital"]
[null,null,null,null,null,null,null,null,null,null,null,null,null,null,null,null,null,null,null,null,"QWO","RXF","MID YORKSHIRE TEACHING NHS TRUST","RXF05","Pinderfields General Hospital",null,null,null,null,null,null,"RX1RA","Trowbridge Community Hospital"]
[null,null,null,null,null,null,null,null,null,null,null,null,null,null,null,null,null,null,null,null,"QWO","RXF","MID YORKSHIRE TEACHING NHS TRUST","RXF03","Pontefract General Infirmary",null,null,null,null,null,null,"RX1XXX","University College Hospital Elizabeth Garrett Anderson Wing"]
[null,null,null,null,null,null,null,null,null,null,null,null,null,null,null,null,null,null,null,null,"QWU","RLT","GEORGE ELIOT HOSPITAL NHS TRUST","RLT01","George Eliot Hospital - Acute Services",null,null,null,null,null,null,"RXF03","University Hospital (Coventry)"]
[null,null,null,null,null,null,null,null,null,null,null,null,null,null,null,null,null,null,null,null,"QWU","RJC","SOUTH WARWICKSHIRE UNIVERSITY NHS FOUNDATION TRUST","RJCXXX","Non-hospital site",null,null,null,null,null,null,"RXF05","University Hospital Lewisham"]
[null,null,null,null,null,null,null,null,null,null,null,null,null,null,null,null,null,null,null,null,"QWU","RJC","SOUTH WARWICKSHIRE UNIVERSITY NHS FOUNDATION TRUST","RJC02","Warwick Hospital",null,null,null,null,null,null,"RXF10","University Hospital Of North Durham"]
[null,null,null,null,null,null,null,null,null,null,null,null,null,null,null,null,null,null,null,null,"QWU","RKB","UNIVERSITY HOSPITALS COVENTRY AND WARWICKSHIRE NHS TRUST","RKB03","Hospital Of St Cross",null,null,null,null,null,null,"RXK01","University Hospital Of North Tees"]
[null,null,null,null,null,null,null,null,null,null,null,null,null,null,null,null,null,null,null,null,"QWU","RKB","UNIVERSITY HOSPITALS COVENTRY AND WARWICKSHIRE NHS TRUST","RKBXXX","Non-hospital site",null,null,null,null,null,null,"RXK02","Warrington Hospital"]
[null,null,null,null,null,null,null,null,null,null,null,null,null,null,null,null,null,null,null,null,"QWU","RKB","UNIVERSITY HOSPITALS COVENTRY AND WARWICKSHIRE NHS TRUST","RKB01","University Hospital (Coventry)",null,null,null,null,null,null,"RXL01","Warwick Hospital"]
[null,null,null,null,null,null,null,null,null,null,null,null,null,null,null,null,null,null,null,null,"QXU","RTK","ASHFORD AND ST PETER'S HOSPITALS NHS FOUNDATION TRUST","RTK02","Ashford Hospital",null,null,null,null,null,null,"RXN01","Watford General Hospital"]
[null,null,null,null,null,null,null,null,null,null,null,null,null,null,null,null,null,null,null,null,"QXU","RA2","ROYAL SURREY COUNTY HOSPITAL NHS FOUNDATION TRUST","RA201","Royal Surrey County Hospital",null,null,null,null,null,null,"RXN02","West Cumberland Hospital"]
[null,null,null,null,null,null,null,null,null,null,null,null,null,null,null,null,null,null,null,null,"QXU","RTP","SURREY AND SUSSEX HEALTHCARE NHS TRUST","RTP04","East Surrey Hospital",null,null,null,null,null,null,"RXPCP","West Suffolk Hospital"]
[null,null,null,null,null,null,null,null,null,null,null,null,null,null,null,null,null,null,null,null,"QYG","RJR","COUNTESS OF CHESTER HOSPITAL NHS FOUNDATION TRUST","RJR05","Countess Of Chester Hospital",null,null,null,null,null,null,"RXPDA","Westmorland General Hospital"]
[null,null,null,null,null,null,null,null,null,null,null,null,null,null,null,null,null,null,null,null,"QYG","RJN","EAST CHESHIRE NHS TRUST","RJN71","Macclesfield District General Hospital",null,null,null,null,null,null,"RXQ02","Wexham Park Hospital"]
[null,null,null,null,null,null,null,null,null,null,null,null,null,null,null,null,null,null,null,null,"QYG","REP","LIVERPOOL WOMEN'S NHS FOUNDATION TRUST","REP01","Liverpool Womens Hospital",null,null,null,null,null,null,"RXQ50","Whipps Cross University Hospital"]
[null,null,null,null,null,null,null,null,null,null,null,null,null,null,null,null,null,null,null,null,"QYG","RBN","MERSEY AND WEST LANCASHIRE TEACHING HOSPITALS NHS TRUST","RBN52","Ormskirk and District General Hospital",null,null,null,null,null,null,"RXR20","Whiston Hospital"]
[null,null,null,null,null,null,null,null,null,null,null,null,null,null,null,null,null,null,null,null,"QYG","RBN","MERSEY AND WEST LANCASHIRE TEACHING HOSPITALS NHS TRUST","RBN01","Whiston Hospital",null,null,null,null,null,null,"RXWAS","William Harvey Hospital (Ashford)"]
[null,null,null,null,null,null,null,null,null,null,null,null,null,null,null,null,null,null,null,null,"QYG","RBT","MID CHESHIRE HOSPITALS NHS FOUNDATION TRUST","RBT20","Leighton Hospital",null,null,null,null,null,null,"RXWAT","Worcestershire Royal Hospital"]
[null,null,null,null,null,null,null,null,null,null,null,null,null,null,null,null,null,null,null,null,"QYG","RWW","WARRINGTON AND HALTON TEACHING HOSPITALS NHS FOUNDATION TRUST","RWWWH","Warrington Hospital",null,null,null,null,null,null,"RYJ01","Wycombe Hospital"]
[null,null,null,null,null,null,null,null,null,null,null,null,null,null,null,null,null,null,null,null,"QYG","RBL","WIRRAL UNIVERSITY TEACHING HOSPITAL NHS FOUNDATION TRUST","RBL14","Arrowe Park Hospital",null,null,null,null,null,null,"RYJ04","Yeovil District Hospital"]

{"sheet":"BSQ2","index":14,"n_rows":208,"n_cols":33,"rows_kept":208,"cut":false,"hidden":true,"merged":[]}
[null,"Sort","ICB","ICB","Trusts","Trusts","Sites","Sites",null,"Sort ranges:","Sort range…","Sort range…","Sort range…","Reference Region List:","Code…","Name…","Linked Region List:","Code…","Name…","Reference Lists:","Code…","Code…","Name…","Code…","Name…","Trusts Linked Lists:","Code…","Name…","Site Linked Lists:","Code…","Name…","Code…","Name…"]
["ICB",1,1,1,"-","-","-","-",null,null,"ICB Code","ICB Code","ICB Code",null,"QE1","LANCASHIRE AND SOUTH CUMBRIA ICB",null,"QE1","LANCASHIRE AND SOUTH CUMBRIA ICB",null,"QE1","RXL","BLACKPOOL TEACHING HOSPITALS NHS FOUNDATION TRUST","RXL01","Blackpool Victoria Hospital",null,"R0A","AIREDALE NHS FOUNDATION TRUST",null,"R0A","AIREDALE NHS FOUNDATION TRUST","E0A3H","Airedale General Hospital"]
["Trusts",1,1,1,1,1,"-","-",null,null,"ICB Name","Trust Code","Trust Code",null,"QF7","SOUTH YORKSHIRE ICB",null,"QF7","SOUTH YORKSHIRE ICB",null,"QE1","RXR","EAST LANCASHIRE HOSPITALS NHS TRUST","RXR20","Royal Blackburn Hospital",null,"R0B","ASHFORD AND ST PETER'S HOSPITALS NHS FOUNDATION TRUST",null,"R0B","ASHFORD AND ST PETER'S HOSPITALS NHS FOUNDATION TRUST","I3W1A","Alnwick Infirmary"]
["Sites",1,1,1,1,1,1,1,null,null,"Total Responses","Trust Name","Trust Name",null,"QGH","HEREFORDSHIRE AND WORCESTERSHIRE ICB",null,"QGH","HEREFORDSHIRE AND WORCESTERSHIRE ICB",null,"QE1","RXN","LANCASHIRE TEACHING HOSPITALS NHS FOUNDATION TRUST","RXN01","Chorley and South Ribble Hospital",null,"R0D","BARKING, HAVERING AND REDBRIDGE UNIVERSITY HOSPITALS NHS TRUST",null,"R0D","BARKING, HAVERING AND REDBRIDGE UNIVERSITY HOSPITALS NHS TRUST","N6J7V","Arrowe Park Hospital"]
[null,null,null,null,null,null,null,null,null,null,"Total Eligible","Total Responses","Site Code",null,"QH8","MID AND SOUTH ESSEX ICB",null,"QH8","MID AND SOUTH ESSEX ICB",null,"QE1","RXN","LANCASHIRE TEACHING HOSPITALS NHS FOUNDATION TRUST","RXN02","Royal Preston Hospital",null,"R1F","BARNSLEY HOSPITAL NHS FOUNDATION TRUST",null,"R1F","BARNSLEY HOSPITAL NHS FOUNDATION TRUST","R0A05","Barnet Hospital"]
[null,null,null,null,null,null,null,null,null,null,"Percentage Positive","Total Eligible","Site Name",null,"QHG","BEDFORDSHIRE, LUTON AND MILTON KEYNES ICB",null,"QHG","BEDFORDSHIRE, LUTON AND MILTON KEYNES ICB",null,"QE1","RTX","UNIVERSITY HOSPITALS OF MORECAMBE BAY NHS FOUNDATION TRUST","RTXBU","Furness General Hospital",null,"R1H","BARTS HEALTH NHS TRUST",null,"R1H","BARTS HEALTH NHS TRUST","R0B01","Barnsley Hospital NHS Foundation Trust HQ"]
[null,null,null,null,null,null,null,null,null,null,"Percentage Negative","Percentage Positive","Total Responses",null,"QHL","BIRMINGHAM AND SOLIHULL ICB",null,"QHL","BIRMINGHAM AND SOLIHULL ICB",null,"QE1","RTX","UNIVERSITY HOSPITALS OF MORECAMBE BAY NHS FOUNDATION TRUST","RTX02","Royal Lancaster Infirmary",null,"R1K","BEDFORDSHIRE HOSPITALS NHS FOUNDATION TRUST",null,"R1K","BEDFORDSHIRE HOSPITALS NHS FOUNDATION TRUST","R0B0Q","BASILDON HOSPITAL"]
[null,null,null,null,null,null,null,null,null,null,"Very Good","Percentage Negative","Percentage Positive",null,"QHM","NORTH EAST AND NORTH CUMBRIA ICB",null,"QHM","NORTH EAST AND NORTH CUMBRIA ICB",null,"QE1","RTX","UNIVERSITY HOSPITALS OF MORECAMBE BAY NHS FOUNDATION TRUST","RTXBW","Westmorland General Hospital",null,"RA2","BIRMINGHAM WOMEN'S AND CHILDREN'S NHS FOUNDATION TRUST",null,"RA2","BIRMINGHAM WOMEN'S AND CHILDREN'S NHS FOUNDATION TRUST","R0D01","Basingstoke and North Hampshire Hospital"]
[null,null,null,null,null,null,null,null,null,null,"Good","Very Good","Percentage Negative",null,"QJ2","DERBY AND DERBYSHIRE ICB",null,"QJ2","DERBY AND DERBYSHIRE ICB",null,"QF7","RFF","BARNSLEY HOSPITAL NHS FOUNDATION TRUST","RFFAA","Barnsley Hospital NHS Foundation Trust HQ",null,"RA7","BLACKPOOL TEACHING HOSPITALS NHS FOUNDATION TRUST",null,"RA7","BLACKPOOL TEACHING HOSPITALS NHS FOUNDATION TRUST","R0D02","Bassetlaw Hospital"]
[null,null,null,null,null,null,null,null,null,null,"Neither Good nor Poor","Good","Very Good",null,"QJG","SUFFOLK AND NORTH EAST ESSEX ICB",null,"QJG","SUFFOLK AND NORTH EAST ESSEX ICB",null,"QF7","RP5","DONCASTER AND BASSETLAW TEACHING HOSPITALS NHS FOUNDATION TRUST","RP5BA","Bassetlaw Hospital",null,"RA9","BOLTON NHS FOUNDATION TRUST",null,"RA9","BOLTON NHS FOUNDATION TRUST","R1F01","BEDFORD HOSPITAL SOUTH WING"]
[null,null,null,null,null,null,null,null,null,null,"Poor","Neither Good nor Poor","Good",null,"QJK","DEVON ICB",null,"QJK","DEVON ICB",null,"QF7","RP5","DONCASTER AND BASSETLAW TEACHING HOSPITALS NHS FOUNDATION TRUST","RP5DR","Doncaster Royal Infirmary",null,"RAE","BRADFORD TEACHING HOSPITALS NHS FOUNDATION TRUST",null,"RAE","BRADFORD TEACHING HOSPITALS NHS FOUNDATION TRUST","R1H12","Berwick Infirmary"]
[null,null,null,null,null,null,null,null,null,null,"Very Poor","Poor","Neither Good nor Poor",null,"QJM","LINCOLNSHIRE ICB",null,"QJM","LINCOLNSHIRE ICB",null,"QF7","RP5","DONCASTER AND BASSETLAW TEACHING HOSPITALS NHS FOUNDATION TRUST","RP5XXX","Non-hospital site",null,"RAJ","BUCKINGHAMSHIRE HEALTHCARE NHS TRUST",null,"RAJ","BUCKINGHAMSHIRE HEALTHCARE NHS TRUST","R1HKH","Birmingham Women's Hospital"]
[null,null,null,null,null,null,null,null,null,null,"Don't Know","Very Poor","Poor",null,"QK1","LEICESTER, LEICESTERSHIRE AND RUTLAND ICB",null,"QK1","LEICESTER, LEICESTERSHIRE AND RUTLAND ICB",null,"QF7","RHQ","SHEFFIELD TEACHING HOSPITALS NHS FOUNDATION TRUST","RHQHH","Royal Hallamshire Hospital",null,"RAL","CALDERDALE AND HUDDERSFIELD NHS FOUNDATION TRUST",null,"RAL","CALDERDALE AND HUDDERSFIELD NHS FOUNDATION TRUST","R1HNH","Blackpool Victoria Hospital"]
[null,null,null,null,null,null,null,null,null,null,null,"Don't Know","Very Poor",null,"QKK","SOUTH EAST LONDON ICB",null,"QKK","SOUTH EAST LONDON ICB",null,"QF7","RFR","THE ROTHERHAM NHS FOUNDATION TRUST","RFRPA","Rotherham District General Hospital",null,"RAS","CAMBRIDGE UNIVERSITY HOSPITALS NHS FOUNDATION TRUST",null,"RAS","CAMBRIDGE UNIVERSITY HOSPITALS NHS FOUNDATION TRUST","R1K01","Bradford Royal Infirmary"]
[null,null,null,null,null,null,null,null,null,null,null,"Mode SMS","Don't Know",null,"QKS","KENT AND MEDWAY ICB",null,"QKS","KENT AND MEDWAY ICB",null,"QGH","RWP","WORCESTERSHIRE ACUTE HOSPITALS NHS TRUST","RWP50","Worcestershire Royal Hospital",null,"RAX","CHESTERFIELD ROYAL HOSPITAL NHS FOUNDATION TRUST",null,"RAX","CHESTERFIELD ROYAL HOSPITAL NHS FOUNDATION TRUST","RA201","Bridgnorth Hospital (Maternity)"]
[null,null,null,null,null,null,null,null,null,null,null,"Mode Electronic Discharge",null,null,"QM7","HERTFORDSHIRE AND WEST ESSEX ICB",null,"QM7","HERTFORDSHIRE AND WEST ESSEX ICB",null,"QGH","RLQ","WYE VALLEY NHS TRUST","RLQ01","Hereford County Hospital",null,"RBD","COUNTESS OF CHESTER HOSPITAL NHS FOUNDATION TRUST",null,"RBD","COUNTESS OF CHESTER HOSPITAL NHS FOUNDATION TRUST","RA707","Bridgwater Hospital"]
[null,null,null,null,null,null,null,null,null,null,null,"Mode Electronic Home",null,null,"QMF","NORTH EAST LONDON ICB",null,"QMF","NORTH EAST LONDON ICB",null,"QH8","RAJ","MID AND SOUTH ESSEX NHS FOUNDATION TRUST","RAJ12","BASILDON HOSPITAL",null,"RBK","COUNTY DURHAM AND DARLINGTON NHS FOUNDATION TRUST",null,"RBK","COUNTY DURHAM AND DARLINGTON NHS FOUNDATION TRUST","RA901","Calderdale Royal Hospital"]
[null,null,null,null,null,null,null,null,null,null,null,"Mode Paper Discharge",null,null,"QMJ","NORTH CENTRAL LONDON ICB",null,"QMJ","NORTH CENTRAL LONDON ICB",null,"QH8","RAJ","MID AND SOUTH ESSEX NHS FOUNDATION TRUST","RAJ32","MID ESSEX HOSPITAL",null,"RBL","CROYDON HEALTH SERVICES NHS TRUST",null,"RBL","CROYDON HEALTH SERVICES NHS TRUST","RAE01","Chesterfield Royal Hospital"]
[null,null,null,null,null,null,null,null,null,null,null,"Mode Paper Home",null,null,"QMM","NORFOLK AND WAVENEY ICB",null,"QMM","NORFOLK AND WAVENEY ICB",null,"QH8","RAJ","MID AND SOUTH ESSEX NHS FOUNDATION TRUST","RAJ01","Southend Hospital",null,"RBN","DARTFORD AND GRAVESHAM NHS TRUST",null,"RBN","DARTFORD AND GRAVESHAM NHS TRUST","RAJ01","Chipping Norton Community Hospital"]
[null,null,null,null,null,null,null,null,null,null,null,"Mode Telephone",null,null,"QNC","STAFFORDSHIRE AND STOKE-ON-TRENT ICB",null,"QNC","STAFFORDSHIRE AND STOKE-ON-TRENT ICB",null,"QHG","RC9","BEDFORDSHIRE HOSPITALS NHS FOUNDATION TRUST","RC979","BEDFORD HOSPITAL SOUTH WING",null,"RBT","DONCASTER AND BASSETLAW TEACHING HOSPITALS NHS FOUNDATION TRUST",null,"RBT","DONCASTER AND BASSETLAW TEACHING HOSPITALS NHS FOUNDATION TRUST","RAJ12","Chorley and South Ribble Hospital"]
[null,null,null,null,null,null,null,null,null,null,null,"Mode Online",null,null,"QNQ","FRIMLEY ICB",null,"QNQ","FRIMLEY ICB",null,"QHG","RC9","BEDFORDSHIRE HOSPITALS NHS FOUNDATION TRUST","RC971","Luton and Dunstable Hospital",null,"RC9","DORSET COUNTY HOSPITAL NHS FOUNDATION TRUST",null,"RC9","DORSET COUNTY HOSPITAL NHS FOUNDATION TRUST","RAJ32","City Hospital"]
[null,null,null,null,null,null,null,null,null,null,null,"Mode Other",null,null,"QNX","SUSSEX ICB",null,"QNX","SUSSEX ICB",null,"QHG","RD8","MILTON KEYNES UNIVERSITY HOSPITAL NHS FOUNDATION TRUST","RD816","Milton Keynes Hospital",null,"RCB","EAST AND NORTH HERTFORDSHIRE NHS TRUST",null,"RCB","EAST AND NORTH HERTFORDSHIRE NHS TRUST","RAL01","Clacton and District Hospital"]
[null,null,null,null,null,null,null,null,null,null,null,null,null,null,"QOC","SHROPSHIRE, TELFORD AND WREKIN ICB",null,"QOC","SHROPSHIRE, TELFORD AND WREKIN ICB",null,"QHL","RQ3","BIRMINGHAM WOMEN'S AND CHILDREN'S NHS FOUNDATION TRUST","RQ370","Birmingham Women's Hospital",null,"RCD","EAST CHESHIRE NHS TRUST",null,"RCD","EAST CHESHIRE NHS TRUST","RAL26","Colchester General Hospital"]
[null,null,null,null,null,null,null,null,null,null,null,null,null,null,"QOP","GREATER MANCHESTER ICB",null,"QOP","GREATER MANCHESTER ICB",null,"QHL","RXK","SANDWELL AND WEST BIRMINGHAM HOSPITALS NHS TRUST","RXK02","City Hospital",null,"RCF","EAST KENT HOSPITALS UNIVERSITY NHS FOUNDATION TRUST",null,"RCF","EAST KENT HOSPITALS UNIVERSITY NHS FOUNDATION TRUST","RAL27","Conquest Hospital"]
[null,null,null,null,null,null,null,null,null,null,null,null,null,null,"QOQ","HUMBER AND NORTH YORKSHIRE ICB",null,"QOQ","HUMBER AND NORTH YORKSHIRE ICB",null,"QHL","RXK","SANDWELL AND WEST BIRMINGHAM HOSPITALS NHS TRUST","I3W1A","MIDLAND METROPOLITAN UNIVERSITY HOSPITAL",null,"RCX","EAST LANCASHIRE HOSPITALS NHS TRUST",null,"RCX","EAST LANCASHIRE HOSPITALS NHS TRUST","RAS01","Countess Of Chester Hospital"]
[null,null,null,null,null,null,null,null,null,null,null,null,null,null,"QOX","BATH AND NORTH EAST SOMERSET, SWINDON AND WILTSHIRE ICB",null,"QOX","BATH AND NORTH EAST SOMERSET, SWINDON AND WILTSHIRE ICB",null,"QHL","RRK","UNIVERSITY HOSPITALS BIRMINGHAM NHS FOUNDATION TRUST","RRK98","Good Hope Hospital",null,"RD1","EAST SUFFOLK AND NORTH ESSEX NHS FOUNDATION TRUST",null,"RD1","EAST SUFFOLK AND NORTH ESSEX NHS FOUNDATION TRUST","RAX01","Crowborough Birthing Centre"]
[null,null,null,null,null,null,null,null,null,null,null,null,null,null,"QPM","NORTHAMPTONSHIRE ICB",null,"QPM","NORTHAMPTONSHIRE ICB",null,"QHL","RRK","UNIVERSITY HOSPITALS BIRMINGHAM NHS FOUNDATION TRUST","RRK97","Heartlands Hospital",null,"RD8","EAST SUSSEX HEALTHCARE NHS TRUST",null,"RD8","EAST SUSSEX HEALTHCARE NHS TRUST","RBD01","Croydon University Hospital"]
[null,null,null,null,null,null,null,null,null,null,null,null,null,null,"QR1","GLOUCESTERSHIRE ICB",null,"QR1","GLOUCESTERSHIRE ICB",null,"QHL","RRK","UNIVERSITY HOSPITALS BIRMINGHAM NHS FOUNDATION TRUST","RRK99","Solihull Hospital",null,"RDE","EPSOM AND ST HELIER UNIVERSITY HOSPITALS NHS TRUST",null,"RDE","EPSOM AND ST HELIER UNIVERSITY HOSPITALS NHS TRUST","RBK02","Cumberland Infirmary"]
[null,null,null,null,null,null,null,null,null,null,null,null,null,null,"QRL","HAMPSHIRE AND ISLE OF WIGHT ICB",null,"QRL","HAMPSHIRE AND ISLE OF WIGHT ICB",null,"QHM","RXP","COUNTY DURHAM AND DARLINGTON NHS FOUNDATION TRUST","RXPDA","Darlington Memorial Hospital",null,"RDU","FRIMLEY HEALTH NHS FOUNDATION TRUST",null,"RDU","FRIMLEY HEALTH NHS FOUNDATION TRUST","RBL14","Darent Valley Hospital"]
[null,null,null,null,null,null,null,null,null,null,null,null,null,null,"QRV","NORTH WEST LONDON ICB",null,"QRV","NORTH WEST LONDON ICB",null,"QHM","RXP","COUNTY DURHAM AND DARLINGTON NHS FOUNDATION TRUST","RXPCP","University Hospital Of North Durham",null,"REF","GATESHEAD HEALTH NHS FOUNDATION TRUST",null,"REF","GATESHEAD HEALTH NHS FOUNDATION TRUST","RBN01","Darlington Memorial Hospital"]
[null,null,null,null,null,null,null,null,null,null,null,null,null,null,"QSL","SOMERSET ICB",null,"QSL","SOMERSET ICB",null,"QHM","RR7","GATESHEAD HEALTH NHS FOUNDATION TRUST","RR7EN","Queen Elizabeth Hospital",null,"REP","GEORGE ELIOT HOSPITAL NHS TRUST",null,"REP","GEORGE ELIOT HOSPITAL NHS TRUST","RBN52","Derriford Hospital"]
[null,null,null,null,null,null,null,null,null,null,null,null,null,null,"QT1","NOTTINGHAM AND NOTTINGHAMSHIRE ICB",null,"QT1","NOTTINGHAM AND NOTTINGHAMSHIRE ICB",null,"QHM","RNN","NORTH CUMBRIA INTEGRATED CARE NHS FOUNDATION TRUST","RNN62","Cumberland Infirmary",null,"RF4","GLOUCESTERSHIRE HOSPITALS NHS FOUNDATION TRUST",null,"RF4","GLOUCESTERSHIRE HOSPITALS NHS FOUNDATION TRUST","RBT20","Dewsbury and District Hospital"]
[null,null,null,null,null,null,null,null,null,null,null,null,null,null,"QT6","CORNWALL AND THE ISLES OF SCILLY ICB",null,"QT6","CORNWALL AND THE ISLES OF SCILLY ICB",null,"QHM","RNN","NORTH CUMBRIA INTEGRATED CARE NHS FOUNDATION TRUST","RNNBX","West Cumberland Hospital",null,"RFF","GREAT WESTERN HOSPITALS NHS FOUNDATION TRUST",null,"RFF","GREAT WESTERN HOSPITALS NHS FOUNDATION TRUST","RC971","Diana, Princess Of Wales Hospital"]
[null,null,null,null,null,null,null,null,null,null,null,null,null,null,"QU9","BUCKINGHAMSHIRE, OXFORDSHIRE AND BERKSHIRE WEST ICB",null,"QU9","BUCKINGHAMSHIRE, OXFORDSHIRE AND BERKSHIRE WEST ICB",null,"QHM","RVW","NORTH TEES AND HARTLEPOOL NHS FOUNDATION TRUST","RVWAE","University Hospital Of North Tees",null,"RFR","GUY'S AND ST THOMAS' NHS FOUNDATION TRUST",null,"RFR","GUY'S AND ST THOMAS' NHS FOUNDATION TRUST","RC979","Doncaster Royal Infirmary"]
[null,null,null,null,null,null,null,null,null,null,null,null,null,null,"QUA","BLACK COUNTRY ICB",null,"QUA","BLACK COUNTRY ICB",null,"QHM","RTF","NORTHUMBRIA HEALTHCARE NHS FOUNDATION TRUST","RTFDJ","Alnwick Infirmary",null,"RFS","HAMPSHIRE HOSPITALS NHS FOUNDATION TRUST",null,"RFS","HAMPSHIRE HOSPITALS NHS FOUNDATION TRUST","RCB55","Dorset County Hospital"]
[null,null,null,null,null,null,null,null,null,null,null,null,null,null,"QUE","CAMBRIDGESHIRE AND PETERBOROUGH ICB",null,"QUE","CAMBRIDGESHIRE AND PETERBOROUGH ICB",null,"QHM","RTF","NORTHUMBRIA HEALTHCARE NHS FOUNDATION TRUST","RTFDH","Berwick Infirmary",null,"RGN","HARROGATE AND DISTRICT NHS FOUNDATION TRUST",null,"RGN","HARROGATE AND DISTRICT NHS FOUNDATION TRUST","RCBCA","East Surrey Hospital"]
[null,null,null,null,null,null,null,null,null,null,null,null,null,null,"QUY","BRISTOL, NORTH SOMERSET AND SOUTH GLOUCESTERSHIRE ICB",null,"QUY","BRISTOL, NORTH SOMERSET AND SOUTH GLOUCESTERSHIRE ICB",null,"QHM","RTF","NORTHUMBRIA HEALTHCARE NHS FOUNDATION TRUST","RTFDR","Hexham General Hospital",null,"RGP","HOMERTON HEALTHCARE NHS FOUNDATION TRUST",null,"RGP","HOMERTON HEALTHCARE NHS FOUNDATION TRUST","RCD01","Eastbourne District General Hospital"]
[null,null,null,null,null,null,null,null,null,null,null,null,null,null,"QVV","DORSET ICB",null,"QVV","DORSET ICB",null,"QHM","RTF","NORTHUMBRIA HEALTHCARE NHS FOUNDATION TRUST","RTFXXX","Non-hospital site",null,"RGR","HULL UNIVERSITY TEACHING HOSPITALS NHS TRUST",null,"RGR","HULL UNIVERSITY TEACHING HOSPITALS NHS TRUST","RCF22","Epsom Hospital"]
[null,null,null,null,null,null,null,null,null,null,null,null,null,null,"QWE","SOUTH WEST LONDON ICB",null,"QWE","SOUTH WEST LONDON ICB",null,"QHM","RTF","NORTHUMBRIA HEALTHCARE NHS FOUNDATION TRUST","RTF86","The Northumbria",null,"RGT","IMPERIAL COLLEGE HEALTHCARE NHS TRUST",null,"RGT","IMPERIAL COLLEGE HEALTHCARE NHS TRUST","RCX70","Friarage Hospital Site"]
[null,null,null,null,null,null,null,null,null,null,null,null,null,null,"QWO","WEST YORKSHIRE ICB",null,"QWO","WEST YORKSHIRE ICB",null,"QHM","RTR","SOUTH TEES HOSPITALS NHS FOUNDATION TRUST","RTR45","Friarage Hospital Site",null,"RH5","ISLE OF WIGHT NHS TRUST",null,"RH5","ISLE OF WIGHT NHS TRUST","RCXXXX","Frimley Park Hospital"]
[null,null,null,null,null,null,null,null,null,null,null,null,null,null,"QWU","COVENTRY AND WARWICKSHIRE ICB",null,"QWU","COVENTRY AND WARWICKSHIRE ICB",null,"QHM","RTR","SOUTH TEES HOSPITALS NHS FOUNDATION TRUST","RTRAT","The James Cook University Hospital",null,"RH8","JAMES PAGET UNIVERSITY HOSPITALS NHS FOUNDATION TRUST",null,"RH8","JAMES PAGET UNIVERSITY HOSPITALS NHS FOUNDATION TRUST","RD130","Furness General Hospital"]
[null,null,null,null,null,null,null,null,null,null,null,null,null,null,"QXU","SURREY HEARTLANDS ICB",null,"QXU","SURREY HEARTLANDS ICB",null,"QHM","R0B","SOUTH TYNESIDE AND SUNDERLAND NHS FOUNDATION TRUST","R0B0Q","South Tyneside District Hospital",null,"RHM","KETTERING GENERAL HOSPITAL NHS FOUNDATION TRUST",null,"RHM","KETTERING GENERAL HOSPITAL NHS FOUNDATION TRUST","RD816","George Eliot Hospital - Acute Services"]
[null,null,null,null,null,null,null,null,null,null,null,null,null,null,"QYG","CHESHIRE AND MERSEYSIDE ICB",null,"QYG","CHESHIRE AND MERSEYSIDE ICB",null,"QHM","R0B","SOUTH TYNESIDE AND SUNDERLAND NHS FOUNDATION TRUST","R0B01","Sunderland Royal Hospital",null,"RHQ","KING'S COLLEGE HOSPITAL NHS FOUNDATION TRUST",null,"RHQ","KING'S COLLEGE HOSPITAL NHS FOUNDATION TRUST","RDE03","Gloucestershire Royal Hospital"]
[null,null,null,null,null,null,null,null,null,null,null,null,null,null,null,null,null,null,null,null,"QHM","RTD","THE NEWCASTLE UPON TYNE HOSPITALS NHS FOUNDATION TRUST","RTD02","The Royal Victoria Infirmary",null,"RHU","KINGSTON AND RICHMOND NHS FOUNDATION TRUST",null,"RHU","KINGSTON AND RICHMOND NHS FOUNDATION TRUST","RDEE2","Good Hope Hospital"]
[null,null,null,null,null,null,null,null,null,null,null,null,null,null,null,null,null,null,null,null,"QJ2","RFS","CHESTERFIELD ROYAL HOSPITAL NHS FOUNDATION TRUST","RFSDA","Chesterfield Royal Hospital",null,"RHW","LANCASHIRE TEACHING HOSPITALS NHS FOUNDATION TRUST",null,"RHW","LANCASHIRE TEACHING HOSPITALS NHS FOUNDATION TRUST","RDEE4","Grantham and District Hospital"]
[null,null,null,null,null,null,null,null,null,null,null,null,null,null,null,null,null,null,null,null,"QJ2","RTG","UNIVERSITY HOSPITALS OF DERBY AND BURTON NHS FOUNDATION TRUST","RTG02","Queens Hospital, Burton Upon Trent",null,"RJ1","LEEDS TEACHING HOSPITALS NHS TRUST",null,"RJ1","LEEDS TEACHING HOSPITALS NHS TRUST","RDEXXX","Harrogate District Hospital"]
[null,null,null,null,null,null,null,null,null,null,null,null,null,null,null,null,null,null,null,null,"QJ2","RTG","UNIVERSITY HOSPITALS OF DERBY AND BURTON NHS FOUNDATION TRUST","RTGFG","Royal Derby Hospital",null,"RJ2","LEWISHAM AND GREENWICH NHS TRUST",null,"RJ2","LEWISHAM AND GREENWICH NHS TRUST","RDU01","Heartlands Hospital"]
[null,null,null,null,null,null,null,null,null,null,null,null,null,null,null,null,null,null,null,null,"QJG","RDE","EAST SUFFOLK AND NORTH ESSEX NHS FOUNDATION TRUST","RDEE2","Clacton and District Hospital",null,"RJ6","LIVERPOOL WOMEN'S NHS FOUNDATION TRUST",null,"RJ6","LIVERPOOL WOMEN'S NHS FOUNDATION TRUST","RDU50","Hereford County Hospital"]
[null,null,null,null,null,null,null,null,null,null,null,null,null,null,null,null,null,null,null,null,"QJG","RDE","EAST SUFFOLK AND NORTH ESSEX NHS FOUNDATION TRUST","RDEE4","Colchester General Hospital",null,"RJ7","LONDON NORTH WEST UNIVERSITY HEALTHCARE NHS TRUST",null,"RJ7","LONDON NORTH WEST UNIVERSITY HEALTHCARE NHS TRUST","REF12","Hexham General Hospital"]
[null,null,null,null,null,null,null,null,null,null,null,null,null,null,null,null,null,null,null,null,"QJG","RDE","EAST SUFFOLK AND NORTH ESSEX NHS FOUNDATION TRUST","RDE03","Ipswich Hospital",null,"RJC","MAIDSTONE AND TUNBRIDGE WELLS NHS TRUST",null,"RJC","MAIDSTONE AND TUNBRIDGE WELLS NHS TRUST","REFXXX","Hillingdon Hospital"]
[null,null,null,null,null,null,null,null,null,null,null,null,null,null,null,null,null,null,null,null,"QJG","RDE","EAST SUFFOLK AND NORTH ESSEX NHS FOUNDATION TRUST","RDEXXX","Non-hospital site",null,"RJE","MANCHESTER UNIVERSITY NHS FOUNDATION TRUST",null,"RJE","MANCHESTER UNIVERSITY NHS FOUNDATION TRUST","REP01","Hinchingbrooke Hospital"]
[null,null,null,null,null,null,null,null,null,null,null,null,null,null,null,null,null,null,null,null,"QJG","RGR","WEST SUFFOLK NHS FOUNDATION TRUST","RGR50","West Suffolk Hospital",null,"RJL","MEDWAY NHS FOUNDATION TRUST",null,"RJL","MEDWAY NHS FOUNDATION TRUST","RF4QH","Homerton University Hospital"]
[null,null,null,null,null,null,null,null,null,null,null,null,null,null,null,null,null,null,null,null,"QJK","RH8","ROYAL DEVON UNIVERSITY HEALTHCARE NHS FOUNDATION TRUST","RH8XXX","Non-hospital site",null,"RJN","MERSEY AND WEST LANCASHIRE TEACHING HOSPITALS NHS TRUST",null,"RJN","MERSEY AND WEST LANCASHIRE TEACHING HOSPITALS NHS TRUST","RFFAA","Horton General Hospital"]
[null,null,null,null,null,null,null,null,null,null,null,null,null,null,null,null,null,null,null,null,"QJK","RH8","ROYAL DEVON UNIVERSITY HEALTHCARE NHS FOUNDATION TRUST","RH880","North Devon District Hospital",null,"RJR","MID AND SOUTH ESSEX NHS FOUNDATION TRUST",null,"RJR","MID AND SOUTH ESSEX NHS FOUNDATION TRUST","RFRPA","Hospital Of St Cross"]
[null,null,null,null,null,null,null,null,null,null,null,null,null,null,null,null,null,null,null,null,"QJK","RH8","ROYAL DEVON UNIVERSITY HEALTHCARE NHS FOUNDATION TRUST","RH801","Royal Devon and Exeter Hospital (Wonford)",null,"RJZ","MID CHESHIRE HOSPITALS NHS FOUNDATION TRUST",null,"RJZ","MID CHESHIRE HOSPITALS NHS FOUNDATION TRUST","RFSDA","Hull Royal Infirmary"]
[null,null,null,null,null,null,null,null,null,null,null,null,null,null,null,null,null,null,null,null,"QJK","RH8","ROYAL DEVON UNIVERSITY HEALTHCARE NHS FOUNDATION TRUST","RH853","Tiverton and District Hospital",null,"RK5","MID YORKSHIRE TEACHING NHS TRUST",null,"RK5","MID YORKSHIRE TEACHING NHS TRUST","RGN80","Ipswich Hospital"]
[null,null,null,null,null,null,null,null,null,null,null,null,null,null,null,null,null,null,null,null,"QJK","RA9","TORBAY AND SOUTH DEVON NHS FOUNDATION TRUST","RA901","Torbay Hospital",null,"RK9","MILTON KEYNES UNIVERSITY HOSPITAL NHS FOUNDATION TRUST",null,"RK9","MILTON KEYNES UNIVERSITY HOSPITAL NHS FOUNDATION TRUST","RGN90","James Paget University Hospital"]
[null,null,null,null,null,null,null,null,null,null,null,null,null,null,null,null,null,null,null,null,"QJK","RK9","UNIVERSITY HOSPITALS PLYMOUTH NHS TRUST","RK950","Derriford Hospital",null,"RKB","NORFOLK AND NORWICH UNIVERSITY HOSPITALS NHS FOUNDATION TRUST",null,"RKB","NORFOLK AND NORWICH UNIVERSITY HOSPITALS NHS FOUNDATION TRUST","RGP75","John Radcliffe Hospital"]
[null,null,null,null,null,null,null,null,null,null,null,null,null,null,null,null,null,null,null,null,"QJK","RK9","UNIVERSITY HOSPITALS PLYMOUTH NHS TRUST","RK9XXX","Non-hospital site",null,"RKE","NORTH BRISTOL NHS TRUST",null,"RKE","NORTH BRISTOL NHS TRUST","RGR50","Kettering General Hospital"]
[null,null,null,null,null,null,null,null,null,null,null,null,null,null,null,null,null,null,null,null,"QJM","RWD","UNITED LINCOLNSHIRE TEACHING HOSPITALS NHS TRUST","RWDLP","Grantham and District Hospital",null,"RL4","NORTH CUMBRIA INTEGRATED CARE NHS FOUNDATION TRUST",null,"RL4","NORTH CUMBRIA INTEGRATED CARE NHS FOUNDATION TRUST","RGT32","King's College Hospital (Denmark Hill)"]
[null,null,null,null,null,null,null,null,null,null,null,null,null,null,null,null,null,null,null,null,"QJM","RWD","UNITED LINCOLNSHIRE TEACHING HOSPITALS NHS TRUST","RWDDA","Lincoln County Hospital",null,"RLQ","NORTH TEES AND HARTLEPOOL NHS FOUNDATION TRUST",null,"RLQ","NORTH TEES AND HARTLEPOOL NHS FOUNDATION TRUST","RH5A8","King's Mill Hospital"]
[null,null,null,null,null,null,null,null,null,null,null,null,null,null,null,null,null,null,null,null,"QJM","RWD","UNITED LINCOLNSHIRE TEACHING HOSPITALS NHS TRUST","RWDLA","Pilgrim Hospital",null,"RLT","NORTH WEST ANGLIA NHS FOUNDATION TRUST",null,"RLT","NORTH WEST ANGLIA NHS FOUNDATION TRUST","RH5K6","Kingston Hospital"]
[null,null,null,null,null,null,null,null,null,null,null,null,null,null,null,null,null,null,null,null,"QK1","RWE","UNIVERSITY HOSPITALS OF LEICESTER NHS TRUST","RWEAK","Leicester General Hospital",null,"RM1","NORTHAMPTON GENERAL HOSPITAL NHS TRUST",null,"RM1","NORTHAMPTON GENERAL HOSPITAL NHS TRUST","RH5O4","Leeds General Infirmary"]
[null,null,null,null,null,null,null,null,null,null,null,null,null,null,null,null,null,null,null,null,"QK1","RWE","UNIVERSITY HOSPITALS OF LEICESTER NHS TRUST","RWEAA","Leicester Royal Infirmary",null,"RM3","NORTHERN CARE ALLIANCE NHS FOUNDATION TRUST",null,"RM3","NORTHERN CARE ALLIANCE NHS FOUNDATION TRUST","RH5XXXX","Leicester General Hospital"]
[null,null,null,null,null,null,null,null,null,null,null,null,null,null,null,null,null,null,null,null,"QK1","RWE","UNIVERSITY HOSPITALS OF LEICESTER NHS TRUST","RWEXXX","Non-hospital site",null,"RMC","NORTHERN LINCOLNSHIRE AND GOOLE NHS FOUNDATION TRUST",null,"RMC","NORTHERN LINCOLNSHIRE AND GOOLE NHS FOUNDATION TRUST","RH801","Leicester Royal Infirmary"]
[null,null,null,null,null,null,null,null,null,null,null,null,null,null,null,null,null,null,null,null,"QK1","RWE","UNIVERSITY HOSPITALS OF LEICESTER NHS TRUST","RWE10","St Mary's Hospital",null,"RMP","NORTHUMBRIA HEALTHCARE NHS FOUNDATION TRUST",null,"RMP","NORTHUMBRIA HEALTHCARE NHS FOUNDATION TRUST","RH853","Leighton Hospital"]
[null,null,null,null,null,null,null,null,null,null,null,null,null,null,null,null,null,null,null,null,"QKK","RJ1","GUY'S AND ST THOMAS' NHS FOUNDATION TRUST","RJ1XXX","Non-hospital site",null,"RN3","NOTTINGHAM UNIVERSITY HOSPITALS NHS TRUST",null,"RN3","NOTTINGHAM UNIVERSITY HOSPITALS NHS TRUST","RH880","Lincoln County Hospital"]
[null,null,null,null,null,null,null,null,null,null,null,null,null,null,null,null,null,null,null,null,"QKK","RJ1","GUY'S AND ST THOMAS' NHS FOUNDATION TRUST","RJ122","St Thomas' Hospital",null,"RN5","OXFORD UNIVERSITY HOSPITALS NHS FOUNDATION TRUST",null,"RN5","OXFORD UNIVERSITY HOSPITALS NHS FOUNDATION TRUST","RH8XXX","Lister Hospital"]
[null,null,null,null,null,null,null,null,null,null,null,null,null,null,null,null,null,null,null,null,"QKK","RJZ","KING'S COLLEGE HOSPITAL NHS FOUNDATION TRUST","RJZ01","King's College Hospital (Denmark Hill)",null,"RN7","PORTSMOUTH HOSPITALS UNIVERSITY NATIONAL HEALTH SERVICE TRUST",null,"RN7","PORTSMOUTH HOSPITALS UNIVERSITY NATIONAL HEALTH SERVICE TRUST","RHM12","Liverpool Womens Hospital"]
[null,null,null,null,null,null,null,null,null,null,null,null,null,null,null,null,null,null,null,null,"QKK","RJZ","KING'S COLLEGE HOSPITAL NHS FOUNDATION TRUST","RJZ30","Princess Royal University Hospital",null,"RNA","ROYAL BERKSHIRE NHS FOUNDATION TRUST",null,"RNA","ROYAL BERKSHIRE NHS FOUNDATION TRUST","RHQHH","Ludlow Hospital (Maternity)"]
[null,null,null,null,null,null,null,null,null,null,null,null,null,null,null,null,null,null,null,null,"QKK","RJ2","LEWISHAM AND GREENWICH NHS TRUST","RJ231","Queen Elizabeth Hospital",null,"RNN","ROYAL CORNWALL HOSPITALS NHS TRUST",null,"RNN","ROYAL CORNWALL HOSPITALS NHS TRUST","RHU03","Luton and Dunstable Hospital"]
[null,null,null,null,null,null,null,null,null,null,null,null,null,null,null,null,null,null,null,null,"QKK","RJ2","LEWISHAM AND GREENWICH NHS TRUST","RJ224","University Hospital Lewisham",null,"RNQ","ROYAL DEVON UNIVERSITY HEALTHCARE NHS FOUNDATION TRUST",null,"RNQ","ROYAL DEVON UNIVERSITY HEALTHCARE NHS FOUNDATION TRUST","RHW01","Macclesfield District General Hospital"]
[null,null,null,null,null,null,null,null,null,null,null,null,null,null,null,null,null,null,null,null,"QKS","RN7","DARTFORD AND GRAVESHAM NHS TRUST","RN707","Darent Valley Hospital",null,"RNS","ROYAL FREE LONDON NHS FOUNDATION TRUST",null,"RNS","ROYAL FREE LONDON NHS FOUNDATION TRUST","RJ122","Maidstone District General Hospital"]
[null,null,null,null,null,null,null,null,null,null,null,null,null,null,null,null,null,null,null,null,"QKS","RVV","EAST KENT HOSPITALS UNIVERSITY NHS FOUNDATION TRUST","RVV09","Queen Elizabeth The Queen Mother Hospital",null,"RNZ","ROYAL SURREY COUNTY HOSPITAL NHS FOUNDATION TRUST",null,"RNZ","ROYAL SURREY COUNTY HOSPITAL NHS FOUNDATION TRUST","RJ1XXX","Manor Hospital"]
[null,null,null,null,null,null,null,null,null,null,null,null,null,null,null,null,null,null,null,null,"QKS","RVV","EAST KENT HOSPITALS UNIVERSITY NHS FOUNDATION TRUST","RVV01","William Harvey Hospital (Ashford)",null,"RP5","ROYAL UNITED HOSPITALS BATH NHS FOUNDATION TRUST",null,"RP5","ROYAL UNITED HOSPITALS BATH NHS FOUNDATION TRUST","RJ224","Medway Maritime Hospital"]
[null,null,null,null,null,null,null,null,null,null,null,null,null,null,null,null,null,null,null,null,"QKS","RWF","MAIDSTONE AND TUNBRIDGE WELLS NHS TRUST","RWF08","Crowborough Birthing Centre",null,"RPA","SALISBURY NHS FOUNDATION TRUST",null,"RPA","SALISBURY NHS FOUNDATION TRUST","RJ231","MID ESSEX HOSPITAL"]
[null,null,null,null,null,null,null,null,null,null,null,null,null,null,null,null,null,null,null,null,"QKS","RWF","MAIDSTONE AND TUNBRIDGE WELLS NHS TRUST","RWF03","Maidstone District General Hospital",null,"RQ3","SANDWELL AND WEST BIRMINGHAM HOSPITALS NHS TRUST",null,"RQ3","SANDWELL AND WEST BIRMINGHAM HOSPITALS NHS TRUST","RJ611","MIDLAND METROPOLITAN UNIVERSITY HOSPITAL"]
[null,null,null,null,null,null,null,null,null,null,null,null,null,null,null,null,null,null,null,null,"QKS","RWF","MAIDSTONE AND TUNBRIDGE WELLS NHS TRUST","RWFXXX","Non-hospital site",null,"RQW","SHEFFIELD TEACHING HOSPITALS NHS FOUNDATION TRUST",null,"RQW","SHEFFIELD TEACHING HOSPITALS NHS FOUNDATION TRUST","RJ701","Milton Keynes Hospital"]
[null,null,null,null,null,null,null,null,null,null,null,null,null,null,null,null,null,null,null,null,"QKS","RWF","MAIDSTONE AND TUNBRIDGE WELLS NHS TRUST","RWFTW","The Tunbridge Wells Hospital",null,"RQX","SHERWOOD FOREST HOSPITALS NHS FOUNDATION TRUST",null,"RQX","SHERWOOD FOREST HOSPITALS NHS FOUNDATION TRUST","RJC02","MUSGROVE PARK HOSPITAL"]
[null,null,null,null,null,null,null,null,null,null,null,null,null,null,null,null,null,null,null,null,"QKS","RPA","MEDWAY NHS FOUNDATION TRUST","RPA02","Medway Maritime Hospital",null,"RR7","SOMERSET NHS FOUNDATION TRUST",null,"RR7","SOMERSET NHS FOUNDATION TRUST","RJE01","New Cross Hospital"]
[null,null,null,null,null,null,null,null,null,null,null,null,null,null,null,null,null,null,null,null,"QM7","RWH","EAST AND NORTH HERTFORDSHIRE NHS TRUST","RWH01","Lister Hospital",null,"RR8","SOUTH TEES HOSPITALS NHS FOUNDATION TRUST",null,"RR8","SOUTH TEES HOSPITALS NHS FOUNDATION TRUST","RJL30","Newham General Hospital"]
[null,null,null,null,null,null,null,null,null,null,null,null,null,null,null,null,null,null,null,null,"QM7","RWH","EAST AND NORTH HERTFORDSHIRE NHS TRUST","RWHXXX","Non-hospital site",null,"RRF","SOUTH TYNESIDE AND SUNDERLAND NHS FOUNDATION TRUST",null,"RRF","SOUTH TYNESIDE AND SUNDERLAND NHS FOUNDATION TRUST","RJL32","Non-hospital site"]
[null,null,null,null,null,null,null,null,null,null,null,null,null,null,null,null,null,null,null,null,"QM7","RQW","THE PRINCESS ALEXANDRA HOSPITAL NHS TRUST","RQWG0","Princess Alexandra Hospital",null,"RRK","SOUTH WARWICKSHIRE UNIVERSITY NHS FOUNDATION TRUST",null,"RRK","SOUTH WARWICKSHIRE UNIVERSITY NHS FOUNDATION TRUST","RJN71","Non-hospital site"]
[null,null,null,null,null,null,null,null,null,null,null,null,null,null,null,null,null,null,null,null,"QM7","RWG","WEST HERTFORDSHIRE TEACHING HOSPITALS NHS TRUST","RWG02","Watford General Hospital",null,"RRV","ST GEORGE'S UNIVERSITY HOSPITALS NHS FOUNDATION TRUST",null,"RRV","ST GEORGE'S UNIVERSITY HOSPITALS NHS FOUNDATION TRUST","RJR05","Non-hospital site"]
[null,null,null,null,null,null,null,null,null,null,null,null,null,null,null,null,null,null,null,null,"QMF","RF4","BARKING, HAVERING AND REDBRIDGE UNIVERSITY HOSPITALS NHS TRUST","RF4QH","Queen's Hospital",null,"RTD","STOCKPORT NHS FOUNDATION TRUST",null,"RTD","STOCKPORT NHS FOUNDATION TRUST","RJZ01","Non-hospital site"]
[null,null,null,null,null,null,null,null,null,null,null,null,null,null,null,null,null,null,null,null,"QMF","R1H","BARTS HEALTH NHS TRUST","R1HNH","Newham General Hospital",null,"RTE","SURREY AND SUSSEX HEALTHCARE NHS TRUST",null,"RTE","SURREY AND SUSSEX HEALTHCARE NHS TRUST","RJZ30","Non-hospital site"]
[null,null,null,null,null,null,null,null,null,null,null,null,null,null,null,null,null,null,null,null,"QMF","R1H","BARTS HEALTH NHS TRUST","R1H12","The Royal London Hospital",null,"RTF","TAMESIDE AND GLOSSOP INTEGRATED CARE NHS FOUNDATION TRUST",null,"RTF","TAMESIDE AND GLOSSOP INTEGRATED CARE NHS FOUNDATION TRUST","RK5BC","Non-hospital site"]
[null,null,null,null,null,null,null,null,null,null,null,null,null,null,null,null,null,null,null,null,"QMF","R1H","BARTS HEALTH NHS TRUST","R1HKH","Whipps Cross University Hospital",null,"RTG","THE DUDLEY GROUP NHS FOUNDATION TRUST",null,"RTG","THE DUDLEY GROUP NHS FOUNDATION TRUST","RK5XXX","Non-hospital site"]
[null,null,null,null,null,null,null,null,null,null,null,null,null,null,null,null,null,null,null,null,"QMF","RQX","HOMERTON HEALTHCARE NHS FOUNDATION TRUST","RQXM1","Homerton University Hospital",null,"RTH","THE HILLINGDON HOSPITALS NHS FOUNDATION TRUST",null,"RTH","THE HILLINGDON HOSPITALS NHS FOUNDATION TRUST","RK950","Non-hospital site"]
[null,null,null,null,null,null,null,null,null,null,null,null,null,null,null,null,null,null,null,null,"QMJ","RAL","ROYAL FREE LONDON NHS FOUNDATION TRUST","RAL26","Barnet Hospital",null,"RTK","THE NEWCASTLE UPON TYNE HOSPITALS NHS FOUNDATION TRUST",null,"RTK","THE NEWCASTLE UPON TYNE HOSPITALS NHS FOUNDATION TRUST","RK9XXX","Non-hospital site"]
[null,null,null,null,null,null,null,null,null,null,null,null,null,null,null,null,null,null,null,null,"QMJ","RAL","ROYAL FREE LONDON NHS FOUNDATION TRUST","RAL27","North Middlesex University Hospital",null,"RTP","THE PRINCESS ALEXANDRA HOSPITAL NHS TRUST",null,"RTP","THE PRINCESS ALEXANDRA HOSPITAL NHS TRUST","RKB01","Non-hospital site"]
[null,null,null,null,null,null,null,null,null,null,null,null,null,null,null,null,null,null,null,null,"QMJ","RAL","ROYAL FREE LONDON NHS FOUNDATION TRUST","RAL01","Royal Free Hospital",null,"RTR","THE QUEEN ELIZABETH HOSPITAL, KING'S LYNN, NHS FOUNDATION TRUST",null,"RTR","THE QUEEN ELIZABETH HOSPITAL, KING'S LYNN, NHS FOUNDATION TRUST","RKB03","Non-hospital site"]
[null,null,null,null,null,null,null,null,null,null,null,null,null,null,null,null,null,null,null,null,"QMJ","RRV","UNIVERSITY COLLEGE LONDON HOSPITALS NHS FOUNDATION TRUST","RRV11","University College Hospital Elizabeth Garrett Anderson Wing",null,"RTX","THE ROTHERHAM NHS FOUNDATION TRUST",null,"RTX","THE ROTHERHAM NHS FOUNDATION TRUST","RKBXXX","Non-hospital site"]
[null,null,null,null,null,null,null,null,null,null,null,null,null,null,null,null,null,null,null,null,"QMJ","RKE","WHITTINGTON HEALTH NHS TRUST","RKEXXX","Non-hospital site",null,"RVJ","THE ROYAL WOLVERHAMPTON NHS TRUST",null,"RVJ","THE ROYAL WOLVERHAMPTON NHS TRUST","RKEQ4","Non-hospital site"]
[null,null,null,null,null,null,null,null,null,null,null,null,null,null,null,null,null,null,null,null,"QMJ","RKE","WHITTINGTON HEALTH NHS TRUST","RKEQ4","The Whittington Hospital",null,"RVR","THE SHREWSBURY AND TELFORD HOSPITAL NHS TRUST",null,"RVR","THE SHREWSBURY AND TELFORD HOSPITAL NHS TRUST","RKEXXX","Non-hospital site"]
[null,null,null,null,null,null,null,null,null,null,null,null,null,null,null,null,null,null,null,null,"QMM","RGP","JAMES PAGET UNIVERSITY HOSPITALS NHS FOUNDATION TRUST","RGP75","James Paget University Hospital",null,"RVV","TORBAY AND SOUTH DEVON NHS FOUNDATION TRUST",null,"RVV","TORBAY AND SOUTH DEVON NHS FOUNDATION TRUST","RL403","Non-hospital site"]
[null,null,null,null,null,null,null,null,null,null,null,null,null,null,null,null,null,null,null,null,"QMM","RM1","NORFOLK AND NORWICH UNIVERSITY HOSPITALS NHS FOUNDATION TRUST","RM102","Norfolk and Norwich University Hospital",null,"RVW","UNITED LINCOLNSHIRE TEACHING HOSPITALS NHS TRUST",null,"RVW","UNITED LINCOLNSHIRE TEACHING HOSPITALS NHS TRUST","RLQ01","Non-hospital site"]
[null,null,null,null,null,null,null,null,null,null,null,null,null,null,null,null,null,null,null,null,"QMM","RCX","THE QUEEN ELIZABETH HOSPITAL, KING'S LYNN, NHS FOUNDATION TRUST","RCXXXX","Non-hospital site",null,"RWA","UNIVERSITY COLLEGE LONDON HOSPITALS NHS FOUNDATION TRUST",null,"RWA","UNIVERSITY COLLEGE LONDON HOSPITALS NHS FOUNDATION TRUST","RLT01","Non-hospital site"]
[null,null,null,null,null,null,null,null,null,null,null,null,null,null,null,null,null,null,null,null,"QMM","RCX","THE QUEEN ELIZABETH HOSPITAL, KING'S LYNN, NHS FOUNDATION TRUST","RCX70","The Queen Elizabeth Hospital",null,"RWD","UNIVERSITY HOSPITAL SOUTHAMPTON NHS FOUNDATION TRUST",null,"RWD","UNIVERSITY HOSPITAL SOUTHAMPTON NHS FOUNDATION TRUST","RM102","Non-hospital site"]
[null,null,null,null,null,null,null,null,null,null,null,null,null,null,null,null,null,null,null,null,"QNC","RJE","UNIVERSITY HOSPITALS OF NORTH MIDLANDS NHS TRUST","RJE01","Royal Stoke University Hospital",null,"RWE","UNIVERSITY HOSPITALS BIRMINGHAM NHS FOUNDATION TRUST",null,"RWE","UNIVERSITY HOSPITALS BIRMINGHAM NHS FOUNDATION TRUST","RM317","Non-hospital site"]
[null,null,null,null,null,null,null,null,null,null,null,null,null,null,null,null,null,null,null,null,"QNQ","RDU","FRIMLEY HEALTH NHS FOUNDATION TRUST","RDU01","Frimley Park Hospital",null,"RWF","UNIVERSITY HOSPITALS BRISTOL AND WESTON NHS FOUNDATION TRUST",null,"RWF","UNIVERSITY HOSPITALS BRISTOL AND WESTON NHS FOUNDATION TRUST","RMC01","Non-hospital site"]
[null,null,null,null,null,null,null,null,null,null,null,null,null,null,null,null,null,null,null,null,"QNQ","RDU","FRIMLEY HEALTH NHS FOUNDATION TRUST","RDU50","Wexham Park Hospital",null,"RWG","UNIVERSITY HOSPITALS COVENTRY AND WARWICKSHIRE NHS TRUST",null,"RWG","UNIVERSITY HOSPITALS COVENTRY AND WARWICKSHIRE NHS TRUST","RMP01","Non-hospital site"]
[null,null,null,null,null,null,null,null,null,null,null,null,null,null,null,null,null,null,null,null,"QNX","RXC","EAST SUSSEX HEALTHCARE NHS TRUST","RXC01","Conquest Hospital",null,"RWH","UNIVERSITY HOSPITALS DORSET NHS FOUNDATION TRUST",null,"RWH","UNIVERSITY HOSPITALS DORSET NHS FOUNDATION TRUST","RN325","Non-hospital site"]
[null,null,null,null,null,null,null,null,null,null,null,null,null,null,null,null,null,null,null,null,"QNX","RXC","EAST SUSSEX HEALTHCARE NHS TRUST","RXC02","Eastbourne District General Hospital",null,"RWJ","UNIVERSITY HOSPITALS OF DERBY AND BURTON NHS FOUNDATION TRUST",null,"RWJ","UNIVERSITY HOSPITALS OF DERBY AND BURTON NHS FOUNDATION TRUST","RN3XXX","Non-hospital site"]
[null,null,null,null,null,null,null,null,null,null,null,null,null,null,null,null,null,null,null,null,"QNX","RXC","EAST SUSSEX HEALTHCARE NHS TRUST","RXCXXX","Non-hospital site",null,"RWP","UNIVERSITY HOSPITALS OF LEICESTER NHS TRUST",null,"RWP","UNIVERSITY HOSPITALS OF LEICESTER NHS TRUST","RN506","Non-hospital site"]
[null,null,null,null,null,null,null,null,null,null,null,null,null,null,null,null,null,null,null,null,"QNX","RYR","UNIVERSITY HOSPITALS SUSSEX NHS FOUNDATION TRUST","N6J7V","Princess Royal Hospital",null,"RWW","UNIVERSITY HOSPITALS OF MORECAMBE BAY NHS FOUNDATION TRUST",null,"RWW","UNIVERSITY HOSPITALS OF MORECAMBE BAY NHS FOUNDATION TRUST","RN541","Non-hospital site"]
[null,null,null,null,null,null,null,null,null,null,null,null,null,null,null,null,null,null,null,null,"QNX","RYR","UNIVERSITY HOSPITALS SUSSEX NHS FOUNDATION TRUST","E0A3H","Royal Sussex County Hospital",null,"RWY","UNIVERSITY HOSPITALS OF NORTH MIDLANDS NHS TRUST",null,"RWY","UNIVERSITY HOSPITALS OF NORTH MIDLANDS NHS TRUST","RN707","Non-hospital site home/in-transit births"]
[null,null,null,null,null,null,null,null,null,null,null,null,null,null,null,null,null,null,null,null,"QNX","RYR","UNIVERSITY HOSPITALS SUSSEX NHS FOUNDATION TRUST","RYR16","St Richard's Hospital",null,"RX1","UNIVERSITY HOSPITALS PLYMOUTH NHS TRUST",null,"RX1","UNIVERSITY HOSPITALS PLYMOUTH NHS TRUST","RNA01","Norfolk and Norwich University Hospital"]
[null,null,null,null,null,null,null,null,null,null,null,null,null,null,null,null,null,null,null,null,"QNX","RYR","UNIVERSITY HOSPITALS SUSSEX NHS FOUNDATION TRUST","RYR18","Worthing Hospital",null,"RXC","UNIVERSITY HOSPITALS SUSSEX NHS FOUNDATION TRUST",null,"RXC","UNIVERSITY HOSPITALS SUSSEX NHS FOUNDATION TRUST","RNN62","North Devon District Hospital"]
[null,null,null,null,null,null,null,null,null,null,null,null,null,null,null,null,null,null,null,null,"QOC","RXW","THE SHREWSBURY AND TELFORD HOSPITAL NHS TRUST","RXWMB","Bridgnorth Hospital (Maternity)",null,"RXF","WALSALL HEALTHCARE NHS TRUST",null,"RXF","WALSALL HEALTHCARE NHS TRUST","RNNBX","North Middlesex University Hospital"]
[null,null,null,null,null,null,null,null,null,null,null,null,null,null,null,null,null,null,null,null,"QOC","RXW","THE SHREWSBURY AND TELFORD HOSPITAL NHS TRUST","RXWML","Ludlow Hospital (Maternity)",null,"RXK","WARRINGTON AND HALTON TEACHING HOSPITALS NHS FOUNDATION TRUST",null,"RXK","WARRINGTON AND HALTON TEACHING HOSPITALS NHS FOUNDATION TRUST","RNQ51","Northampton General Hospital (Acute)"]
[null,null,null,null,null,null,null,null,null,null,null,null,null,null,null,null,null,null,null,null,"QOC","RXW","THE SHREWSBURY AND TELFORD HOSPITAL NHS TRUST","RXWXXX","Non-hospital site",null,"RXL","WEST HERTFORDSHIRE TEACHING HOSPITALS NHS TRUST",null,"RXL","WEST HERTFORDSHIRE TEACHING HOSPITALS NHS TRUST","RNS01","Northwick Park Hospital"]
[null,null,null,null,null,null,null,null,null,null,null,null,null,null,null,null,null,null,null,null,"QOC","RXW","THE SHREWSBURY AND TELFORD HOSPITAL NHS TRUST","RXWMJ","Robert Jones & Agnes Hunt Orthopaedic & District Hospital",null,"RXN","WEST SUFFOLK NHS FOUNDATION TRUST",null,"RXN","WEST SUFFOLK NHS FOUNDATION TRUST","RNZ02","Nottingham University Hospitals NHS Trust - City Campus"]
[null,null,null,null,null,null,null,null,null,null,null,null,null,null,null,null,null,null,null,null,"QOC","RXW","THE SHREWSBURY AND TELFORD HOSPITAL NHS TRUST","RXWAS","Royal Shrewsbury Hospital",null,"RXP","WHITTINGTON HEALTH NHS TRUST",null,"RXP","WHITTINGTON HEALTH NHS TRUST","RNZXXX","Nottingham University Hospitals NHS Trust - Queen's Medical Centre Campus"]
[null,null,null,null,null,null,null,null,null,null,null,null,null,null,null,null,null,null,null,null,"QOC","RXW","THE SHREWSBURY AND TELFORD HOSPITAL NHS TRUST","RXWAT","The Princess Royal Hospital",null,"RXQ","WIRRAL UNIVERSITY TEACHING HOSPITAL NHS FOUNDATION TRUST",null,"RXQ","WIRRAL UNIVERSITY TEACHING HOSPITAL NHS FOUNDATION TRUST","RP5BA","Ormskirk and District General Hospital"]
[null,null,null,null,null,null,null,null,null,null,null,null,null,null,null,null,null,null,null,null,"QOP","RMC","BOLTON NHS FOUNDATION TRUST","RMC01","Royal Bolton Hospital",null,"RXR","WORCESTERSHIRE ACUTE HOSPITALS NHS TRUST",null,"RXR","WORCESTERSHIRE ACUTE HOSPITALS NHS TRUST","RP5DR","Peterborough City Hospital"]
[null,null,null,null,null,null,null,null,null,null,null,null,null,null,null,null,null,null,null,null,"QOP","R0A","MANCHESTER UNIVERSITY NHS FOUNDATION TRUST","R0A05","St Mary's Hospital",null,"RXW","WRIGHTINGTON, WIGAN AND LEIGH NHS FOUNDATION TRUST",null,"RXW","WRIGHTINGTON, WIGAN AND LEIGH NHS FOUNDATION TRUST","RP5XXX","Pilgrim Hospital"]
[null,null,null,null,null,null,null,null,null,null,null,null,null,null,null,null,null,null,null,null,"QOP","RM3","NORTHERN CARE ALLIANCE NHS FOUNDATION TRUST","RM317","Royal Oldham Hospital",null,"RYJ","WYE VALLEY NHS TRUST",null,"RYJ","WYE VALLEY NHS TRUST","RPA02","Pinderfields General Hospital"]
[null,null,null,null,null,null,null,null,null,null,null,null,null,null,null,null,null,null,null,null,"QOP","RWJ","STOCKPORT NHS FOUNDATION TRUST","RWJXXX","Non-hospital site",null,"RYR","YORK AND SCARBOROUGH TEACHING HOSPITALS NHS FOUNDATION TRUST",null,"RYR","YORK AND SCARBOROUGH TEACHING HOSPITALS NHS FOUNDATION TRUST","RQ370","Pontefract General Infirmary"]
[null,null,null,null,null,null,null,null,null,null,null,null,null,null,null,null,null,null,null,null,"QOP","RWJ","STOCKPORT NHS FOUNDATION TRUST","RWJ09","Stepping Hill Hospital",null,null,null,null,null,null,"RQWG0","Poole Hospital"]
[null,null,null,null,null,null,null,null,null,null,null,null,null,null,null,null,null,null,null,null,"QOP","RMP","TAMESIDE AND GLOSSOP INTEGRATED CARE NHS FOUNDATION TRUST","RMP01","Tameside General Hospital",null,null,null,null,null,null,"RQXM1","Princess Alexandra Hospital"]
[null,null,null,null,null,null,null,null,null,null,null,null,null,null,null,null,null,null,null,null,"QOP","RRF","WRIGHTINGTON, WIGAN AND LEIGH NHS FOUNDATION TRUST","RRF02","Royal Albert Edward Infirmary",null,null,null,null,null,null,"RR7EN","Princess Anne Hospital"]
[null,null,null,null,null,null,null,null,null,null,null,null,null,null,null,null,null,null,null,null,"QOQ","RCD","HARROGATE AND DISTRICT NHS FOUNDATION TRUST","RCD01","Harrogate District Hospital",null,null,null,null,null,null,"RR801","Princess Anne Wing RUH"]
[null,null,null,null,null,null,null,null,null,null,null,null,null,null,null,null,null,null,null,null,"QOQ","RWA","HULL UNIVERSITY TEACHING HOSPITALS NHS TRUST","RWA01","Hull Royal Infirmary",null,null,null,null,null,null,"RR813","Princess Royal Hospital"]
[null,null,null,null,null,null,null,null,null,null,null,null,null,null,null,null,null,null,null,null,"QOQ","RJL","NORTHERN LINCOLNSHIRE AND GOOLE NHS FOUNDATION TRUST","RJL30","Diana, Princess Of Wales Hospital",null,null,null,null,null,null,"RR8XXX","Princess Royal University Hospital"]
[null,null,null,null,null,null,null,null,null,null,null,null,null,null,null,null,null,null,null,null,"QOQ","RJL","NORTHERN LINCOLNSHIRE AND GOOLE NHS FOUNDATION TRUST","RJL32","Scunthorpe General Hospital",null,null,null,null,null,null,"RRF02","Queen Alexandra Hospital"]
[null,null,null,null,null,null,null,null,null,null,null,null,null,null,null,null,null,null,null,null,"QOQ","RCB","YORK AND SCARBOROUGH TEACHING HOSPITALS NHS FOUNDATION TRUST","RCBCA","Scarborough General Hospital",null,null,null,null,null,null,"RRK97","Queen Charlotte's Hospital"]
[null,null,null,null,null,null,null,null,null,null,null,null,null,null,null,null,null,null,null,null,"QOQ","RCB","YORK AND SCARBOROUGH TEACHING HOSPITALS NHS FOUNDATION TRUST","RCB55","York Hospital",null,null,null,null,null,null,"RRK98","Queen Elizabeth Hospital"]
[null,null,null,null,null,null,null,null,null,null,null,null,null,null,null,null,null,null,null,null,"QOX","RN3","GREAT WESTERN HOSPITALS NHS FOUNDATION TRUST","RN3XXX","Non-hospital site",null,null,null,null,null,null,"RRK99","Queen Elizabeth Hospital"]
[null,null,null,null,null,null,null,null,null,null,null,null,null,null,null,null,null,null,null,null,"QOX","RN3","GREAT WESTERN HOSPITALS NHS FOUNDATION TRUST","RN325","The Great Western Hospital",null,null,null,null,null,null,"RRV11","Queen Elizabeth The Queen Mother Hospital"]
[null,null,null,null,null,null,null,null,null,null,null,null,null,null,null,null,null,null,null,null,"QOX","RD1","ROYAL UNITED HOSPITALS BATH NHS FOUNDATION TRUST","RD130","Princess Anne Wing RUH",null,null,null,null,null,null,"RTD02","Queen's Hospital"]
[null,null,null,null,null,null,null,null,null,null,null,null,null,null,null,null,null,null,null,null,"QOX","RNZ","SALISBURY NHS FOUNDATION TRUST","RNZXXX","Non-hospital site",null,null,null,null,null,null,"RTE03","Queens Hospital, Burton Upon Trent"]
[null,null,null,null,null,null,null,null,null,null,null,null,null,null,null,null,null,null,null,null,"QOX","RNZ","SALISBURY NHS FOUNDATION TRUST","RNZ02","Salisbury District Hospital",null,null,null,null,null,null,"RTEXXX","Robert Jones & Agnes Hunt Orthopaedic & District Hospital"]
[null,null,null,null,null,null,null,null,null,null,null,null,null,null,null,null,null,null,null,null,"QPM","RNQ","KETTERING GENERAL HOSPITAL NHS FOUNDATION TRUST","RNQ51","Kettering General Hospital",null,null,null,null,null,null,"RTF86","Rosie Hospital"]
[null,null,null,null,null,null,null,null,null,null,null,null,null,null,null,null,null,null,null,null,"QPM","RNS","NORTHAMPTON GENERAL HOSPITAL NHS TRUST","RNS01","Northampton General Hospital (Acute)",null,null,null,null,null,null,"RTFDH","Rotherham District General Hospital"]
[null,null,null,null,null,null,null,null,null,null,null,null,null,null,null,null,null,null,null,null,"QR1","RTE","GLOUCESTERSHIRE HOSPITALS NHS FOUNDATION TRUST","RTE03","Gloucestershire Royal Hospital",null,null,null,null,null,null,"RTFDJ","Royal Albert Edward Infirmary"]
[null,null,null,null,null,null,null,null,null,null,null,null,null,null,null,null,null,null,null,null,"QR1","RTE","GLOUCESTERSHIRE HOSPITALS NHS FOUNDATION TRUST","RTEXXX","Non-hospital site",null,null,null,null,null,null,"RTFDR","Royal Berkshire Hospital"]
[null,null,null,null,null,null,null,null,null,null,null,null,null,null,null,null,null,null,null,null,"QRL","RN5","HAMPSHIRE HOSPITALS NHS FOUNDATION TRUST","RN506","Basingstoke and North Hampshire Hospital",null,null,null,null,null,null,"RTFXXX","Royal Blackburn Hospital"]
[null,null,null,null,null,null,null,null,null,null,null,null,null,null,null,null,null,null,null,null,"QRL","RN5","HAMPSHIRE HOSPITALS NHS FOUNDATION TRUST","RN541","Royal Hampshire County Hospital",null,null,null,null,null,null,"RTG02","Royal Bolton Hospital"]
[null,null,null,null,null,null,null,null,null,null,null,null,null,null,null,null,null,null,null,null,"QRL","R1F","ISLE OF WIGHT NHS TRUST","R1F01","St Mary's Hospital",null,null,null,null,null,null,"RTGFG","Royal Bournemouth Hospital"]
[null,null,null,null,null,null,null,null,null,null,null,null,null,null,null,null,null,null,null,null,"QRL","RHU","PORTSMOUTH HOSPITALS UNIVERSITY NATIONAL HEALTH SERVICE TRUST","RHU03","Queen Alexandra Hospital",null,null,null,null,null,null,"RTH05","Royal Cornwall Hospital (Treliske)"]
[null,null,null,null,null,null,null,null,null,null,null,null,null,null,null,null,null,null,null,null,"QRL","RHM","UNIVERSITY HOSPITAL SOUTHAMPTON NHS FOUNDATION TRUST","RHM12","Princess Anne Hospital",null,null,null,null,null,null,"RTH08","Royal Derby Hospital"]
[null,null,null,null,null,null,null,null,null,null,null,null,null,null,null,null,null,null,null,null,"QRV","RYJ","IMPERIAL COLLEGE HEALTHCARE NHS TRUST","RYJ04","Queen Charlotte's Hospital",null,null,null,null,null,null,"RTH16","Royal Devon and Exeter Hospital (Wonford)"]
[null,null,null,null,null,null,null,null,null,null,null,null,null,null,null,null,null,null,null,null,"QRV","RYJ","IMPERIAL COLLEGE HEALTHCARE NHS TRUST","RYJ01","St Mary's Hospital (HQ)",null,null,null,null,null,null,"RTH19","Royal Free Hospital"]
[null,null,null,null,null,null,null,null,null,null,null,null,null,null,null,null,null,null,null,null,"QRV","R1K","LONDON NORTH WEST UNIVERSITY HEALTHCARE NHS TRUST","R1K01","Northwick Park Hospital",null,null,null,null,null,null,"RTH21","Royal Hallamshire Hospital"]
[null,null,null,null,null,null,null,null,null,null,null,null,null,null,null,null,null,null,null,null,"QRV","RAS","THE HILLINGDON HOSPITALS NHS FOUNDATION TRUST","RAS01","Hillingdon Hospital",null,null,null,null,null,null,"RTK01","Royal Hampshire County Hospital"]
[null,null,null,null,null,null,null,null,null,null,null,null,null,null,null,null,null,null,null,null,"QSL","RH5","SOMERSET NHS FOUNDATION TRUST","RH5K6","Bridgwater Hospital",null,null,null,null,null,null,"RTP04","Royal Lancaster Infirmary"]
[null,null,null,null,null,null,null,null,null,null,null,null,null,null,null,null,null,null,null,null,"QSL","RH5","SOMERSET NHS FOUNDATION TRUST","RH5A8","MUSGROVE PARK HOSPITAL",null,null,null,null,null,null,"RTR45","Royal Oldham Hospital"]
[null,null,null,null,null,null,null,null,null,null,null,null,null,null,null,null,null,null,null,null,"QSL","RH5","SOMERSET NHS FOUNDATION TRUST","RH5XXXX","Non-hospital site home/in-transit births",null,null,null,null,null,null,"RTRAT","Royal Preston Hospital"]
[null,null,null,null,null,null,null,null,null,null,null,null,null,null,null,null,null,null,null,null,"QSL","RH5","SOMERSET NHS FOUNDATION TRUST","RH5O4","Yeovil District Hospital",null,null,null,null,null,null,"RTX02","Royal Shrewsbury Hospital"]
[null,null,null,null,null,null,null,null,null,null,null,null,null,null,null,null,null,null,null,null,"QT1","RX1","NOTTINGHAM UNIVERSITY HOSPITALS NHS TRUST","RX1XXX","Non-hospital site",null,null,null,null,null,null,"RTXBU","Royal Stoke University Hospital"]
[null,null,null,null,null,null,null,null,null,null,null,null,null,null,null,null,null,null,null,null,"QT1","RX1","NOTTINGHAM UNIVERSITY HOSPITALS NHS TRUST","RX1CC","Nottingham University Hospitals NHS Trust - City Campus",null,null,null,null,null,null,"RTXBW","Royal Surrey County Hospital"]
[null,null,null,null,null,null,null,null,null,null,null,null,null,null,null,null,null,null,null,null,"QT1","RX1","NOTTINGHAM UNIVERSITY HOSPITALS NHS TRUST","RX1RA","Nottingham University Hospitals NHS Trust - Queen's Medical Centre Campus",null,null,null,null,null,null,"RVJ01","Royal Sussex County Hospital"]
[null,null,null,null,null,null,null,null,null,null,null,null,null,null,null,null,null,null,null,null,"QT1","RK5","SHERWOOD FOREST HOSPITALS NHS FOUNDATION TRUST","RK5BC","King's Mill Hospital",null,null,null,null,null,null,"RVJXXX","Russells Hall Hospital"]
[null,null,null,null,null,null,null,null,null,null,null,null,null,null,null,null,null,null,null,null,"QT1","RK5","SHERWOOD FOREST HOSPITALS NHS FOUNDATION TRUST","RK5XXX","Non-hospital site",null,null,null,null,null,null,"RVR05","Salisbury District Hospital"]
[null,null,null,null,null,null,null,null,null,null,null,null,null,null,null,null,null,null,null,null,"QT6","REF","ROYAL CORNWALL HOSPITALS NHS TRUST","REFXXX","Non-hospital site",null,null,null,null,null,null,"RVR50","Scarborough General Hospital"]
[null,null,null,null,null,null,null,null,null,null,null,null,null,null,null,null,null,null,null,null,"QT6","REF","ROYAL CORNWALL HOSPITALS NHS TRUST","REF12","Royal Cornwall Hospital (Treliske)",null,null,null,null,null,null,"RVRXXX","Scunthorpe General Hospital"]
[null,null,null,null,null,null,null,null,null,null,null,null,null,null,null,null,null,null,null,null,"QU9","RXQ","BUCKINGHAMSHIRE HEALTHCARE NHS TRUST","RXQ02","Stoke Mandeville Hospital",null,null,null,null,null,null,"RVV01","Solihull Hospital"]
[null,null,null,null,null,null,null,null,null,null,null,null,null,null,null,null,null,null,null,null,"QU9","RTH","OXFORD UNIVERSITY HOSPITALS NHS FOUNDATION TRUST","RTH19","Chipping Norton Community Hospital",null,null,null,null,null,null,"RVV09","South Tyneside District Hospital"]
[null,null,null,null,null,null,null,null,null,null,null,null,null,null,null,null,null,null,null,null,"QU9","RTH","OXFORD UNIVERSITY HOSPITALS NHS FOUNDATION TRUST","RTH05","Horton General Hospital",null,null,null,null,null,null,"RVWAE","Southend Hospital"]
[null,null,null,null,null,null,null,null,null,null,null,null,null,null,null,null,null,null,null,null,"QU9","RTH","OXFORD UNIVERSITY HOSPITALS NHS FOUNDATION TRUST","RTH08","John Radcliffe Hospital",null,null,null,null,null,null,"RWA01","Southmead Hospital"]
[null,null,null,null,null,null,null,null,null,null,null,null,null,null,null,null,null,null,null,null,"QU9","RTH","OXFORD UNIVERSITY HOSPITALS NHS FOUNDATION TRUST","RTH16","Wallingford Community Hospital",null,null,null,null,null,null,"RWDDA","St George's Hospital (Tooting)"]
[null,null,null,null,null,null,null,null,null,null,null,null,null,null,null,null,null,null,null,null,"QU9","RTH","OXFORD UNIVERSITY HOSPITALS NHS FOUNDATION TRUST","RTH21","Wantage Community Hospital",null,null,null,null,null,null,"RWDLA","St Helier Hospital"]
[null,null,null,null,null,null,null,null,null,null,null,null,null,null,null,null,null,null,null,null,"QU9","RHW","ROYAL BERKSHIRE NHS FOUNDATION TRUST","RHW01","Royal Berkshire Hospital",null,null,null,null,null,null,"RWDLP","St James's University Hospital"]
[null,null,null,null,null,null,null,null,null,null,null,null,null,null,null,null,null,null,null,null,"QUA","RNA","THE DUDLEY GROUP NHS FOUNDATION TRUST","RNA01","Russells Hall Hospital",null,null,null,null,null,null,"RWE10","St Mary's Hospital"]
[null,null,null,null,null,null,null,null,null,null,null,null,null,null,null,null,null,null,null,null,"QUA","RL4","THE ROYAL WOLVERHAMPTON NHS TRUST","RL403","New Cross Hospital",null,null,null,null,null,null,"RWEAA","St Mary's Hospital"]
[null,null,null,null,null,null,null,null,null,null,null,null,null,null,null,null,null,null,null,null,"QUA","RBK","WALSALL HEALTHCARE NHS TRUST","RBK02","Manor Hospital",null,null,null,null,null,null,"RWEAK","St Mary's Hospital"]
[null,null,null,null,null,null,null,null,null,null,null,null,null,null,null,null,null,null,null,null,"QUE","RGT","CAMBRIDGE UNIVERSITY HOSPITALS NHS FOUNDATION TRUST","RGT32","Rosie Hospital",null,null,null,null,null,null,"RWEXXX","St Mary's Hospital (HQ)"]
[null,null,null,null,null,null,null,null,null,null,null,null,null,null,null,null,null,null,null,null,"QUE","RGN","NORTH WEST ANGLIA NHS FOUNDATION TRUST","RGN90","Hinchingbrooke Hospital",null,null,null,null,null,null,"RWF03","ST MICHAEL'S HOSPITAL"]
[null,null,null,null,null,null,null,null,null,null,null,null,null,null,null,null,null,null,null,null,"QUE","RGN","NORTH WEST ANGLIA NHS FOUNDATION TRUST","RGN80","Peterborough City Hospital",null,null,null,null,null,null,"RWF08","St Peter's Hospital"]
[null,null,null,null,null,null,null,null,null,null,null,null,null,null,null,null,null,null,null,null,"QUY","RVJ","NORTH BRISTOL NHS TRUST","RVJXXX","Non-hospital site",null,null,null,null,null,null,"RWFTW","St Richard's Hospital"]
[null,null,null,null,null,null,null,null,null,null,null,null,null,null,null,null,null,null,null,null,"QUY","RVJ","NORTH BRISTOL NHS TRUST","RVJ01","Southmead Hospital",null,null,null,null,null,null,"RWFXXX","St Thomas' Hospital"]
[null,null,null,null,null,null,null,null,null,null,null,null,null,null,null,null,null,null,null,null,"QUY","RA7","UNIVERSITY HOSPITALS BRISTOL AND WESTON NHS FOUNDATION TRUST","RA707","ST MICHAEL'S HOSPITAL",null,null,null,null,null,null,"RWG02","Stepping Hill Hospital"]
[null,null,null,null,null,null,null,null,null,null,null,null,null,null,null,null,null,null,null,null,"QVV","RBD","DORSET COUNTY HOSPITAL NHS FOUNDATION TRUST","RBD01","Dorset County Hospital",null,null,null,null,null,null,"RWH01","Stoke Mandeville Hospital"]
[null,null,null,null,null,null,null,null,null,null,null,null,null,null,null,null,null,null,null,null,"QVV","R0D","UNIVERSITY HOSPITALS DORSET NHS FOUNDATION TRUST","R0D01","Poole Hospital",null,null,null,null,null,null,"RWHXXX","Sunderland Royal Hospital"]
[null,null,null,null,null,null,null,null,null,null,null,null,null,null,null,null,null,null,null,null,"QVV","R0D","UNIVERSITY HOSPITALS DORSET NHS FOUNDATION TRUST","R0D02","Royal Bournemouth Hospital",null,null,null,null,null,null,"RWJ09","Tameside General Hospital"]
[null,null,null,null,null,null,null,null,null,null,null,null,null,null,null,null,null,null,null,null,"QWE","RJ6","CROYDON HEALTH SERVICES NHS TRUST","RJ611","Croydon University Hospital",null,null,null,null,null,null,"RWJXXX","The Great Western Hospital"]
[null,null,null,null,null,null,null,null,null,null,null,null,null,null,null,null,null,null,null,null,"QWE","RVR","EPSOM AND ST HELIER UNIVERSITY HOSPITALS NHS TRUST","RVR50","Epsom Hospital",null,null,null,null,null,null,"RWP50","The James Cook University Hospital"]
[null,null,null,null,null,null,null,null,null,null,null,null,null,null,null,null,null,null,null,null,"QWE","RVR","EPSOM AND ST HELIER UNIVERSITY HOSPITALS NHS TRUST","RVRXXX","Non-hospital site",null,null,null,null,null,null,"RWWWH","The Northumbria"]
[null,null,null,null,null,null,null,null,null,null,null,null,null,null,null,null,null,null,null,null,"QWE","RVR","EPSOM AND ST HELIER UNIVERSITY HOSPITALS NHS TRUST","RVR05","St Helier Hospital",null,null,null,null,null,null,"RWY02","The Princess Royal Hospital"]
[null,null,null,null,null,null,null,null,null,null,null,null,null,null,null,null,null,null,null,null,"QWE","RAX","KINGSTON AND RICHMOND NHS FOUNDATION TRUST","RAX01","Kingston Hospital",null,null,null,null,null,null,"RX1CC","The Queen Elizabeth Hospital"]
[null,null,null,null,null,null,null,null,null,null,null,null,null,null,null,null,null,null,null,null,"QWE","RJ7","ST GEORGE'S UNIVERSITY HOSPITALS NHS FOUNDATION TRUST","RJ701","St George's Hospital (Tooting)",null,null,null,null,null,null,"RX1RA","The Royal London Hospital"]
[null,null,null,null,null,null,null,null,null,null,null,null,null,null,null,null,null,null,null,null,"QWO","RCF","AIREDALE NHS FOUNDATION TRUST","RCF22","Airedale General Hospital",null,null,null,null,null,null,"RX1XXX","The Royal Victoria Infirmary"]
[null,null,null,null,null,null,null,null,null,null,null,null,null,null,null,null,null,null,null,null,"QWO","RAE","BRADFORD TEACHING HOSPITALS NHS FOUNDATION TRUST","RAE01","Bradford Royal Infirmary",null,null,null,null,null,null,"RXC01","The Tunbridge Wells Hospital"]
[null,null,null,null,null,null,null,null,null,null,null,null,null,null,null,null,null,null,null,null,"QWO","RWY","CALDERDALE AND HUDDERSFIELD NHS FOUNDATION TRUST","RWY02","Calderdale Royal Hospital",null,null,null,null,null,null,"RXC02","The Whittington Hospital"]
[null,null,null,null,null,null,null,null,null,null,null,null,null,null,null,null,null,null,null,null,"QWO","RR8","LEEDS TEACHING HOSPITALS NHS TRUST","RR801","Leeds General Infirmary",null,null,null,null,null,null,"RXCXXX","Tiverton and District Hospital"]
[null,null,null,null,null,null,null,null,null,null,null,null,null,null,null,null,null,null,null,null,"QWO","RR8","LEEDS TEACHING HOSPITALS NHS TRUST","RR8XXX","Non-hospital site",null,null,null,null,null,null,"RXF03","Torbay Hospital"]
[null,null,null,null,null,null,null,null,null,null,null,null,null,null,null,null,null,null,null,null,"QWO","RR8","LEEDS TEACHING HOSPITALS NHS TRUST","RR813","St James's University Hospital",null,null,null,null,null,null,"RXF05","University College Hospital Elizabeth Garrett Anderson Wing"]
[null,null,null,null,null,null,null,null,null,null,null,null,null,null,null,null,null,null,null,null,"QWO","RXF","MID YORKSHIRE TEACHING NHS TRUST","RXF10","Dewsbury and District Hospital",null,null,null,null,null,null,"RXF10","University Hospital (Coventry)"]
[null,null,null,null,null,null,null,null,null,null,null,null,null,null,null,null,null,null,null,null,"QWO","RXF","MID YORKSHIRE TEACHING NHS TRUST","RXFXXX","Non-hospital site",null,null,null,null,null,null,"RXFXXX","University Hospital Lewisham"]
[null,null,null,null,null,null,null,null,null,null,null,null,null,null,null,null,null,null,null,null,"QWO","RXF","MID YORKSHIRE TEACHING NHS TRUST","RXF05","Pinderfields General Hospital",null,null,null,null,null,null,"RXK02","University Hospital Of North Durham"]
[null,null,null,null,null,null,null,null,null,null,null,null,null,null,null,null,null,null,null,null,"QWO","RXF","MID YORKSHIRE TEACHING NHS TRUST","RXF03","Pontefract General Infirmary",null,null,null,null,null,null,"RXL01","University Hospital Of North Tees"]
[null,null,null,null,null,null,null,null,null,null,null,null,null,null,null,null,null,null,null,null,"QWU","RLT","GEORGE ELIOT HOSPITAL NHS TRUST","RLT01","George Eliot Hospital - Acute Services",null,null,null,null,null,null,"RXN01","Wallingford Community Hospital"]
[null,null,null,null,null,null,null,null,null,null,null,null,null,null,null,null,null,null,null,null,"QWU","RJC","SOUTH WARWICKSHIRE UNIVERSITY NHS FOUNDATION TRUST","RJC02","Warwick Hospital",null,null,null,null,null,null,"RXN02","Wantage Community Hospital"]
[null,null,null,null,null,null,null,null,null,null,null,null,null,null,null,null,null,null,null,null,"QWU","RKB","UNIVERSITY HOSPITALS COVENTRY AND WARWICKSHIRE NHS TRUST","RKB03","Hospital Of St Cross",null,null,null,null,null,null,"RXPCP","Warrington Hospital"]
[null,null,null,null,null,null,null,null,null,null,null,null,null,null,null,null,null,null,null,null,"QWU","RKB","UNIVERSITY HOSPITALS COVENTRY AND WARWICKSHIRE NHS TRUST","RKBXXX","Non-hospital site",null,null,null,null,null,null,"RXPDA","Warwick Hospital"]
[null,null,null,null,null,null,null,null,null,null,null,null,null,null,null,null,null,null,null,null,"QWU","RKB","UNIVERSITY HOSPITALS COVENTRY AND WARWICKSHIRE NHS TRUST","RKB01","University Hospital (Coventry)",null,null,null,null,null,null,"RXQ02","Watford General Hospital"]
[null,null,null,null,null,null,null,null,null,null,null,null,null,null,null,null,null,null,null,null,"QXU","RTK","ASHFORD AND ST PETER'S HOSPITALS NHS FOUNDATION TRUST","RTK01","St Peter's Hospital",null,null,null,null,null,null,"RXR20","West Cumberland Hospital"]
[null,null,null,null,null,null,null,null,null,null,null,null,null,null,null,null,null,null,null,null,"QXU","RA2","ROYAL SURREY COUNTY HOSPITAL NHS FOUNDATION TRUST","RA201","Royal Surrey County Hospital",null,null,null,null,null,null,"RXWAS","West Suffolk Hospital"]
[null,null,null,null,null,null,null,null,null,null,null,null,null,null,null,null,null,null,null,null,"QXU","RTP","SURREY AND SUSSEX HEALTHCARE NHS TRUST","RTP04","East Surrey Hospital",null,null,null,null,null,null,"RXWAT","Westmorland General Hospital"]
[null,null,null,null,null,null,null,null,null,null,null,null,null,null,null,null,null,null,null,null,"QYG","RJR","COUNTESS OF CHESTER HOSPITAL NHS FOUNDATION TRUST","RJR05","Countess Of Chester Hospital",null,null,null,null,null,null,"RXWMB","Wexham Park Hospital"]
[null,null,null,null,null,null,null,null,null,null,null,null,null,null,null,null,null,null,null,null,"QYG","RJN","EAST CHESHIRE NHS TRUST","RJN71","Macclesfield District General Hospital",null,null,null,null,null,null,"RXWMJ","Whipps Cross University Hospital"]
[null,null,null,null,null,null,null,null,null,null,null,null,null,null,null,null,null,null,null,null,"QYG","REP","LIVERPOOL WOMEN'S NHS FOUNDATION TRUST","REP01","Liverpool Womens Hospital",null,null,null,null,null,null,"RXWML","Whiston Hospital"]
[null,null,null,null,null,null,null,null,null,null,null,null,null,null,null,null,null,null,null,null,"QYG","RBN","MERSEY AND WEST LANCASHIRE TEACHING HOSPITALS NHS TRUST","RBN52","Ormskirk and District General Hospital",null,null,null,null,null,null,"RXWXXX","William Harvey Hospital (Ashford)"]
[null,null,null,null,null,null,null,null,null,null,null,null,null,null,null,null,null,null,null,null,"QYG","RBN","MERSEY AND WEST LANCASHIRE TEACHING HOSPITALS NHS TRUST","RBN01","Whiston Hospital",null,null,null,null,null,null,"RYJ01","Worcestershire Royal Hospital"]
[null,null,null,null,null,null,null,null,null,null,null,null,null,null,null,null,null,null,null,null,"QYG","RBT","MID CHESHIRE HOSPITALS NHS FOUNDATION TRUST","RBT20","Leighton Hospital",null,null,null,null,null,null,"RYJ04","Worthing Hospital"]
[null,null,null,null,null,null,null,null,null,null,null,null,null,null,null,null,null,null,null,null,"QYG","RWW","WARRINGTON AND HALTON TEACHING HOSPITALS NHS FOUNDATION TRUST","RWWWH","Warrington Hospital",null,null,null,null,null,null,"RYR16","Yeovil District Hospital"]
[null,null,null,null,null,null,null,null,null,null,null,null,null,null,null,null,null,null,null,null,"QYG","RBL","WIRRAL UNIVERSITY TEACHING HOSPITAL NHS FOUNDATION TRUST","RBL14","Arrowe Park Hospital",null,null,null,null,null,null,"RYR18","York Hospital"]

{"sheet":"BSQ3","index":15,"n_rows":164,"n_cols":33,"rows_kept":164,"cut":false,"hidden":true,"merged":[]}
[null,"Sort","ICB","ICB","Trusts","Trusts","Sites","Sites",null,"Sort ranges:","Sort range…","Sort range…","Sort range…","Reference Region List:","Code…","Name…","Linked Region List:","Code…","Name…","Reference Lists:","Code…","Code…","Name…","Code…","Name…","Trusts Linked Lists:","Code…","Name…","Site Linked Lists:","Code…","Name…","Code…","Name…"]
["ICB",1,1,1,"-","-","-","-",null,null,"ICB Code","ICB Code","ICB Code",null,"QE1","LANCASHIRE AND SOUTH CUMBRIA ICB",null,"QE1","LANCASHIRE AND SOUTH CUMBRIA ICB",null,"QE1","RXL","BLACKPOOL TEACHING HOSPITALS NHS FOUNDATION TRUST","RXL01","Blackpool Victoria Hospital",null,"R0A","ASHFORD AND ST PETER'S HOSPITALS NHS FOUNDATION TRUST",null,"R0A","ASHFORD AND ST PETER'S HOSPITALS NHS FOUNDATION TRUST","E0A3H","Arrowe Park Hospital"]
["Trusts",1,1,1,1,1,"-","-",null,null,"ICB Name","Trust Code","Trust Code",null,"QF7","SOUTH YORKSHIRE ICB",null,"QF7","SOUTH YORKSHIRE ICB",null,"QE1","RXR","EAST LANCASHIRE HOSPITALS NHS TRUST","RXR20","Royal Blackburn Hospital",null,"R0B","BARKING, HAVERING AND REDBRIDGE UNIVERSITY HOSPITALS NHS TRUST",null,"R0B","BARKING, HAVERING AND REDBRIDGE UNIVERSITY HOSPITALS NHS TRUST","N6J7V","Ashford Hospital"]
["Sites",1,1,1,1,1,1,1,null,null,"Total Responses","Trust Name","Trust Name",null,"QGH","HEREFORDSHIRE AND WORCESTERSHIRE ICB",null,"QGH","HEREFORDSHIRE AND WORCESTERSHIRE ICB",null,"QE1","RXN","LANCASHIRE TEACHING HOSPITALS NHS FOUNDATION TRUST","RXN01","Chorley and South Ribble Hospital",null,"R0D","BARNSLEY HOSPITAL NHS FOUNDATION TRUST",null,"R0D","BARNSLEY HOSPITAL NHS FOUNDATION TRUST","R0A05","Barnet Hospital"]
[null,null,null,null,null,null,null,null,null,null,"Percentage Positive","Total Responses","Site Code",null,"QH8","MID AND SOUTH ESSEX ICB",null,"QH8","MID AND SOUTH ESSEX ICB",null,"QE1","RXN","LANCASHIRE TEACHING HOSPITALS NHS FOUNDATION TRUST","RXN02","Royal Preston Hospital",null,"R1F","BARTS HEALTH NHS TRUST",null,"R1F","BARTS HEALTH NHS TRUST","R0B01","Barnsley Hospital NHS Foundation Trust HQ"]
[null,null,null,null,null,null,null,null,null,null,"Percentage Negative","Percentage Positive","Site Name",null,"QHG","BEDFORDSHIRE, LUTON AND MILTON KEYNES ICB",null,"QHG","BEDFORDSHIRE, LUTON AND MILTON KEYNES ICB",null,"QE1","RTX","UNIVERSITY HOSPITALS OF MORECAMBE BAY NHS FOUNDATION TRUST","RTXBU","Furness General Hospital",null,"R1H","BEDFORDSHIRE HOSPITALS NHS FOUNDATION TRUST",null,"R1H","BEDFORDSHIRE HOSPITALS NHS FOUNDATION TRUST","R0D01","BASILDON HOSPITAL"]
[null,null,null,null,null,null,null,null,null,null,"Very Good","Percentage Negative","Total Responses",null,"QHL","BIRMINGHAM AND SOLIHULL ICB",null,"QHL","BIRMINGHAM AND SOLIHULL ICB",null,"QE1","RTX","UNIVERSITY HOSPITALS OF MORECAMBE BAY NHS FOUNDATION TRUST","RTX02","Royal Lancaster Infirmary",null,"R1K","BIRMINGHAM WOMEN'S AND CHILDREN'S NHS FOUNDATION TRUST",null,"R1K","BIRMINGHAM WOMEN'S AND CHILDREN'S NHS FOUNDATION TRUST","R0D02","Basingstoke and North Hampshire Hospital"]
[null,null,null,null,null,null,null,null,null,null,"Good","Very Good","Percentage Positive",null,"QHM","NORTH EAST AND NORTH CUMBRIA ICB",null,"QHM","NORTH EAST AND NORTH CUMBRIA ICB",null,"QE1","RTX","UNIVERSITY HOSPITALS OF MORECAMBE BAY NHS FOUNDATION TRUST","RTXBW","Westmorland General Hospital",null,"RA2","BLACKPOOL TEACHING HOSPITALS NHS FOUNDATION TRUST",null,"RA2","BLACKPOOL TEACHING HOSPITALS NHS FOUNDATION TRUST","R1F01","Bassetlaw Hospital"]
[null,null,null,null,null,null,null,null,null,null,"Neither Good nor Poor","Good","Percentage Negative",null,"QJ2","DERBY AND DERBYSHIRE ICB",null,"QJ2","DERBY AND DERBYSHIRE ICB",null,"QF7","RFF","BARNSLEY HOSPITAL NHS FOUNDATION TRUST","RFFAA","Barnsley Hospital NHS Foundation Trust HQ",null,"RA7","BOLTON NHS FOUNDATION TRUST",null,"RA7","BOLTON NHS FOUNDATION TRUST","R1H12","BEDFORD HOSPITAL SOUTH WING"]
[null,null,null,null,null,null,null,null,null,null,"Poor","Neither Good nor Poor","Very Good",null,"QJG","SUFFOLK AND NORTH EAST ESSEX ICB",null,"QJG","SUFFOLK AND NORTH EAST ESSEX ICB",null,"QF7","RP5","DONCASTER AND BASSETLAW TEACHING HOSPITALS NHS FOUNDATION TRUST","RP5BA","Bassetlaw Hospital",null,"RA9","BRADFORD TEACHING HOSPITALS NHS FOUNDATION TRUST",null,"RA9","BRADFORD TEACHING HOSPITALS NHS FOUNDATION TRUST","R1HKH","Birmingham Treatment Centre"]
[null,null,null,null,null,null,null,null,null,null,"Very Poor","Poor","Good",null,"QJK","DEVON ICB",null,"QJK","DEVON ICB",null,"QF7","RP5","DONCASTER AND BASSETLAW TEACHING HOSPITALS NHS FOUNDATION TRUST","RP5DR","Doncaster Royal Infirmary",null,"RAE","BUCKINGHAMSHIRE HEALTHCARE NHS TRUST",null,"RAE","BUCKINGHAMSHIRE HEALTHCARE NHS TRUST","R1HNH","Birmingham Women's Hospital"]
[null,null,null,null,null,null,null,null,null,null,"Don't Know","Very Poor","Neither Good nor Poor",null,"QJM","LINCOLNSHIRE ICB",null,"QJM","LINCOLNSHIRE ICB",null,"QF7","RHQ","SHEFFIELD TEACHING HOSPITALS NHS FOUNDATION TRUST","RHQHH","Royal Hallamshire Hospital",null,"RAJ","CALDERDALE AND HUDDERSFIELD NHS FOUNDATION TRUST",null,"RAJ","CALDERDALE AND HUDDERSFIELD NHS FOUNDATION TRUST","R1K01","Blackpool Victoria Hospital"]
[null,null,null,null,null,null,null,null,null,null,null,"Don't Know","Poor",null,"QK1","LEICESTER, LEICESTERSHIRE AND RUTLAND ICB",null,"QK1","LEICESTER, LEICESTERSHIRE AND RUTLAND ICB",null,"QF7","RFR","THE ROTHERHAM NHS FOUNDATION TRUST","RFRPA","Rotherham District General Hospital",null,"RAL","CAMBRIDGE UNIVERSITY HOSPITALS NHS FOUNDATION TRUST",null,"RAL","CAMBRIDGE UNIVERSITY HOSPITALS NHS FOUNDATION TRUST","RA201","Bradford Royal Infirmary"]
[null,null,null,null,null,null,null,null,null,null,null,"Mode SMS","Very Poor",null,"QKK","SOUTH EAST LONDON ICB",null,"QKK","SOUTH EAST LONDON ICB",null,"QGH","RWP","WORCESTERSHIRE ACUTE HOSPITALS NHS TRUST","RWP50","Worcestershire Royal Hospital",null,"RAS","CHESTERFIELD ROYAL HOSPITAL NHS FOUNDATION TRUST",null,"RAS","CHESTERFIELD ROYAL HOSPITAL NHS FOUNDATION TRUST","RA707","Bridgnorth Hospital (Maternity)"]
[null,null,null,null,null,null,null,null,null,null,null,"Mode Electronic Discharge","Don't Know",null,"QKS","KENT AND MEDWAY ICB",null,"QKS","KENT AND MEDWAY ICB",null,"QGH","RLQ","WYE VALLEY NHS TRUST","RLQ01","Hereford County Hospital",null,"RAX","COUNTESS OF CHESTER HOSPITAL NHS FOUNDATION TRUST",null,"RAX","COUNTESS OF CHESTER HOSPITAL NHS FOUNDATION TRUST","RA901","Bridgwater Hospital"]
[null,null,null,null,null,null,null,null,null,null,null,"Mode Electronic Home",null,null,"QM7","HERTFORDSHIRE AND WEST ESSEX ICB",null,"QM7","HERTFORDSHIRE AND WEST ESSEX ICB",null,"QH8","RAJ","MID AND SOUTH ESSEX NHS FOUNDATION TRUST","RAJ12","BASILDON HOSPITAL",null,"RBD","COUNTY DURHAM AND DARLINGTON NHS FOUNDATION TRUST",null,"RBD","COUNTY DURHAM AND DARLINGTON NHS FOUNDATION TRUST","RAE01","Calderdale Royal Hospital"]
[null,null,null,null,null,null,null,null,null,null,null,"Mode Paper Discharge",null,null,"QMF","NORTH EAST LONDON ICB",null,"QMF","NORTH EAST LONDON ICB",null,"QH8","RAJ","MID AND SOUTH ESSEX NHS FOUNDATION TRUST","RAJ32","MID ESSEX HOSPITAL",null,"RBK","DARTFORD AND GRAVESHAM NHS TRUST",null,"RBK","DARTFORD AND GRAVESHAM NHS TRUST","RAJ01","Chesterfield Royal Hospital"]
[null,null,null,null,null,null,null,null,null,null,null,"Mode Paper Home",null,null,"QMJ","NORTH CENTRAL LONDON ICB",null,"QMJ","NORTH CENTRAL LONDON ICB",null,"QH8","RAJ","MID AND SOUTH ESSEX NHS FOUNDATION TRUST","RAJ01","Southend Hospital",null,"RBL","DONCASTER AND BASSETLAW TEACHING HOSPITALS NHS FOUNDATION TRUST",null,"RBL","DONCASTER AND BASSETLAW TEACHING HOSPITALS NHS FOUNDATION TRUST","RAJ12","Chippenham Community Hospital"]
[null,null,null,null,null,null,null,null,null,null,null,"Mode Telephone",null,null,"QMM","NORFOLK AND WAVENEY ICB",null,"QMM","NORFOLK AND WAVENEY ICB",null,"QHG","RC9","BEDFORDSHIRE HOSPITALS NHS FOUNDATION TRUST","RC979","BEDFORD HOSPITAL SOUTH WING",null,"RBN","DORSET COUNTY HOSPITAL NHS FOUNDATION TRUST",null,"RBN","DORSET COUNTY HOSPITAL NHS FOUNDATION TRUST","RAJ32","Chipping Norton Community Hospital"]
[null,null,null,null,null,null,null,null,null,null,null,"Mode Online",null,null,"QNC","STAFFORDSHIRE AND STOKE-ON-TRENT ICB",null,"QNC","STAFFORDSHIRE AND STOKE-ON-TRENT ICB",null,"QHG","RC9","BEDFORDSHIRE HOSPITALS NHS FOUNDATION TRUST","RC971","Luton and Dunstable Hospital",null,"RBT","EAST AND NORTH HERTFORDSHIRE NHS TRUST",null,"RBT","EAST AND NORTH HERTFORDSHIRE NHS TRUST","RAL01","Chorley and South Ribble Hospital"]
[null,null,null,null,null,null,null,null,null,null,null,"Mode Other",null,null,"QNQ","FRIMLEY ICB",null,"QNQ","FRIMLEY ICB",null,"QHG","RD8","MILTON KEYNES UNIVERSITY HOSPITAL NHS FOUNDATION TRUST","RD816","Milton Keynes Hospital",null,"RC9","EAST CHESHIRE NHS TRUST",null,"RC9","EAST CHESHIRE NHS TRUST","RAL26","Colchester General Hospital"]
[null,null,null,null,null,null,null,null,null,null,null,null,null,null,"QNX","SUSSEX ICB",null,"QNX","SUSSEX ICB",null,"QHL","RQ3","BIRMINGHAM WOMEN'S AND CHILDREN'S NHS FOUNDATION TRUST","RQ370","Birmingham Women's Hospital",null,"RCB","EAST KENT HOSPITALS UNIVERSITY NHS FOUNDATION TRUST",null,"RCB","EAST KENT HOSPITALS UNIVERSITY NHS FOUNDATION TRUST","RAL27","Countess Of Chester Hospital"]
[null,null,null,null,null,null,null,null,null,null,null,null,null,null,"QOC","SHROPSHIRE, TELFORD AND WREKIN ICB",null,"QOC","SHROPSHIRE, TELFORD AND WREKIN ICB",null,"QHL","RXK","SANDWELL AND WEST BIRMINGHAM HOSPITALS NHS TRUST","RXKTC","Birmingham Treatment Centre",null,"RCD","EAST LANCASHIRE HOSPITALS NHS TRUST",null,"RCD","EAST LANCASHIRE HOSPITALS NHS TRUST","RALRA","Crowborough Birthing Centre"]
[null,null,null,null,null,null,null,null,null,null,null,null,null,null,"QOP","GREATER MANCHESTER ICB",null,"QOP","GREATER MANCHESTER ICB",null,"QHL","RRK","UNIVERSITY HOSPITALS BIRMINGHAM NHS FOUNDATION TRUST","RRK98","Good Hope Hospital",null,"RCX","EAST SUFFOLK AND NORTH ESSEX NHS FOUNDATION TRUST",null,"RCX","EAST SUFFOLK AND NORTH ESSEX NHS FOUNDATION TRUST","RAS01","Cumberland Infirmary"]
[null,null,null,null,null,null,null,null,null,null,null,null,null,null,"QOQ","HUMBER AND NORTH YORKSHIRE ICB",null,"QOQ","HUMBER AND NORTH YORKSHIRE ICB",null,"QHL","RRK","UNIVERSITY HOSPITALS BIRMINGHAM NHS FOUNDATION TRUST","RRK97","Heartlands Hospital",null,"RD1","EPSOM AND ST HELIER UNIVERSITY HOSPITALS NHS TRUST",null,"RD1","EPSOM AND ST HELIER UNIVERSITY HOSPITALS NHS TRUST","RAX01","Darent Valley Hospital"]
[null,null,null,null,null,null,null,null,null,null,null,null,null,null,"QOX","BATH AND NORTH EAST SOMERSET, SWINDON AND WILTSHIRE ICB",null,"QOX","BATH AND NORTH EAST SOMERSET, SWINDON AND WILTSHIRE ICB",null,"QHL","RRK","UNIVERSITY HOSPITALS BIRMINGHAM NHS FOUNDATION TRUST","RRK99","Solihull Hospital",null,"RD8","FRIMLEY HEALTH NHS FOUNDATION TRUST",null,"RD8","FRIMLEY HEALTH NHS FOUNDATION TRUST","RBD01","Darlington Memorial Hospital"]
[null,null,null,null,null,null,null,null,null,null,null,null,null,null,"QPM","NORTHAMPTONSHIRE ICB",null,"QPM","NORTHAMPTONSHIRE ICB",null,"QHM","RXP","COUNTY DURHAM AND DARLINGTON NHS FOUNDATION TRUST","RXPDA","Darlington Memorial Hospital",null,"RDE","GATESHEAD HEALTH NHS FOUNDATION TRUST",null,"RDE","GATESHEAD HEALTH NHS FOUNDATION TRUST","RBK02","Derriford Hospital"]
[null,null,null,null,null,null,null,null,null,null,null,null,null,null,"QR1","GLOUCESTERSHIRE ICB",null,"QR1","GLOUCESTERSHIRE ICB",null,"QHM","RXP","COUNTY DURHAM AND DARLINGTON NHS FOUNDATION TRUST","RXPCP","University Hospital Of North Durham",null,"RDU","GEORGE ELIOT HOSPITAL NHS TRUST",null,"RDU","GEORGE ELIOT HOSPITAL NHS TRUST","RBL14","Doncaster Royal Infirmary"]
[null,null,null,null,null,null,null,null,null,null,null,null,null,null,"QRL","HAMPSHIRE AND ISLE OF WIGHT ICB",null,"QRL","HAMPSHIRE AND ISLE OF WIGHT ICB",null,"QHM","RR7","GATESHEAD HEALTH NHS FOUNDATION TRUST","RR7EN","Queen Elizabeth Hospital",null,"REF","GLOUCESTERSHIRE HOSPITALS NHS FOUNDATION TRUST",null,"REF","GLOUCESTERSHIRE HOSPITALS NHS FOUNDATION TRUST","RBN01","Dorset County Hospital"]
[null,null,null,null,null,null,null,null,null,null,null,null,null,null,"QRV","NORTH WEST LONDON ICB",null,"QRV","NORTH WEST LONDON ICB",null,"QHM","RNN","NORTH CUMBRIA INTEGRATED CARE NHS FOUNDATION TRUST","RNN62","Cumberland Infirmary",null,"REP","GREAT WESTERN HOSPITALS NHS FOUNDATION TRUST",null,"REP","GREAT WESTERN HOSPITALS NHS FOUNDATION TRUST","RBN52","East Surrey Hospital"]
[null,null,null,null,null,null,null,null,null,null,null,null,null,null,"QSL","SOMERSET ICB",null,"QSL","SOMERSET ICB",null,"QHM","RNN","NORTH CUMBRIA INTEGRATED CARE NHS FOUNDATION TRUST","RNNBX","West Cumberland Hospital",null,"RF4","GUY'S AND ST THOMAS' NHS FOUNDATION TRUST",null,"RF4","GUY'S AND ST THOMAS' NHS FOUNDATION TRUST","RBT20","Edgware Community Hospital"]
[null,null,null,null,null,null,null,null,null,null,null,null,null,null,"QT1","NOTTINGHAM AND NOTTINGHAMSHIRE ICB",null,"QT1","NOTTINGHAM AND NOTTINGHAMSHIRE ICB",null,"QHM","RVW","NORTH TEES AND HARTLEPOOL NHS FOUNDATION TRUST","RVWAE","University Hospital Of North Tees",null,"RFF","HAMPSHIRE HOSPITALS NHS FOUNDATION TRUST",null,"RFF","HAMPSHIRE HOSPITALS NHS FOUNDATION TRUST","RC971","Epsom Hospital"]
[null,null,null,null,null,null,null,null,null,null,null,null,null,null,"QT6","CORNWALL AND THE ISLES OF SCILLY ICB",null,"QT6","CORNWALL AND THE ISLES OF SCILLY ICB",null,"QHM","RTR","SOUTH TEES HOSPITALS NHS FOUNDATION TRUST","RTR45","Friarage Hospital Site",null,"RFR","HARROGATE AND DISTRICT NHS FOUNDATION TRUST",null,"RFR","HARROGATE AND DISTRICT NHS FOUNDATION TRUST","RC979","Friarage Hospital Site"]
[null,null,null,null,null,null,null,null,null,null,null,null,null,null,"QU9","BUCKINGHAMSHIRE, OXFORDSHIRE AND BERKSHIRE WEST ICB",null,"QU9","BUCKINGHAMSHIRE, OXFORDSHIRE AND BERKSHIRE WEST ICB",null,"QHM","RTR","SOUTH TEES HOSPITALS NHS FOUNDATION TRUST","RTRAT","The James Cook University Hospital",null,"RFS","HOMERTON HEALTHCARE NHS FOUNDATION TRUST",null,"RFS","HOMERTON HEALTHCARE NHS FOUNDATION TRUST","RCB55","Frimley Park Hospital"]
[null,null,null,null,null,null,null,null,null,null,null,null,null,null,"QUA","BLACK COUNTRY ICB",null,"QUA","BLACK COUNTRY ICB",null,"QHM","R0B","SOUTH TYNESIDE AND SUNDERLAND NHS FOUNDATION TRUST","R0B01","Sunderland Royal Hospital",null,"RGN","HULL UNIVERSITY TEACHING HOSPITALS NHS TRUST",null,"RGN","HULL UNIVERSITY TEACHING HOSPITALS NHS TRUST","RCBCA","Furness General Hospital"]
[null,null,null,null,null,null,null,null,null,null,null,null,null,null,"QUE","CAMBRIDGESHIRE AND PETERBOROUGH ICB",null,"QUE","CAMBRIDGESHIRE AND PETERBOROUGH ICB",null,"QHM","RTD","THE NEWCASTLE UPON TYNE HOSPITALS NHS FOUNDATION TRUST","RTD02","The Royal Victoria Infirmary",null,"RGP","IMPERIAL COLLEGE HEALTHCARE NHS TRUST",null,"RGP","IMPERIAL COLLEGE HEALTHCARE NHS TRUST","RCD01","George Eliot Hospital - Acute Services"]
[null,null,null,null,null,null,null,null,null,null,null,null,null,null,"QUY","BRISTOL, NORTH SOMERSET AND SOUTH GLOUCESTERSHIRE ICB",null,"QUY","BRISTOL, NORTH SOMERSET AND SOUTH GLOUCESTERSHIRE ICB",null,"QJ2","RFS","CHESTERFIELD ROYAL HOSPITAL NHS FOUNDATION TRUST","RFSDA","Chesterfield Royal Hospital",null,"RGR","ISLE OF WIGHT NHS TRUST",null,"RGR","ISLE OF WIGHT NHS TRUST","RCX70","Gloucestershire Royal Hospital"]
[null,null,null,null,null,null,null,null,null,null,null,null,null,null,"QVV","DORSET ICB",null,"QVV","DORSET ICB",null,"QJ2","RTG","UNIVERSITY HOSPITALS OF DERBY AND BURTON NHS FOUNDATION TRUST","RTG02","Queens Hospital, Burton Upon Trent",null,"RGT","JAMES PAGET UNIVERSITY HOSPITALS NHS FOUNDATION TRUST",null,"RGT","JAMES PAGET UNIVERSITY HOSPITALS NHS FOUNDATION TRUST","RD102","Good Hope Hospital"]
[null,null,null,null,null,null,null,null,null,null,null,null,null,null,"QWE","SOUTH WEST LONDON ICB",null,"QWE","SOUTH WEST LONDON ICB",null,"QJG","RDE","EAST SUFFOLK AND NORTH ESSEX NHS FOUNDATION TRUST","RDEE4","Colchester General Hospital",null,"RH5","KETTERING GENERAL HOSPITAL NHS FOUNDATION TRUST",null,"RH5","KETTERING GENERAL HOSPITAL NHS FOUNDATION TRUST","RD130","Grantham and District Hospital"]
[null,null,null,null,null,null,null,null,null,null,null,null,null,null,"QWO","WEST YORKSHIRE ICB",null,"QWO","WEST YORKSHIRE ICB",null,"QJG","RDE","EAST SUFFOLK AND NORTH ESSEX NHS FOUNDATION TRUST","RDE03","Ipswich Hospital",null,"RH8","KINGSTON AND RICHMOND NHS FOUNDATION TRUST",null,"RH8","KINGSTON AND RICHMOND NHS FOUNDATION TRUST","RD816","Harrogate District Hospital"]
[null,null,null,null,null,null,null,null,null,null,null,null,null,null,"QWU","COVENTRY AND WARWICKSHIRE ICB",null,"QWU","COVENTRY AND WARWICKSHIRE ICB",null,"QJG","RGR","WEST SUFFOLK NHS FOUNDATION TRUST","RGR50","West Suffolk Hospital",null,"RHM","LANCASHIRE TEACHING HOSPITALS NHS FOUNDATION TRUST",null,"RHM","LANCASHIRE TEACHING HOSPITALS NHS FOUNDATION TRUST","RDE03","Heartlands Hospital"]
[null,null,null,null,null,null,null,null,null,null,null,null,null,null,"QXU","SURREY HEARTLANDS ICB",null,"QXU","SURREY HEARTLANDS ICB",null,"QJK","RH8","ROYAL DEVON UNIVERSITY HEALTHCARE NHS FOUNDATION TRUST","RH880","North Devon District Hospital",null,"RHQ","LEEDS TEACHING HOSPITALS NHS TRUST",null,"RHQ","LEEDS TEACHING HOSPITALS NHS TRUST","RDEE4","Hereford County Hospital"]
[null,null,null,null,null,null,null,null,null,null,null,null,null,null,"QYG","CHESHIRE AND MERSEYSIDE ICB",null,"QYG","CHESHIRE AND MERSEYSIDE ICB",null,"QJK","RH8","ROYAL DEVON UNIVERSITY HEALTHCARE NHS FOUNDATION TRUST","RH801","Royal Devon and Exeter Hospital (Wonford)",null,"RHU","LEWISHAM AND GREENWICH NHS TRUST",null,"RHU","LEWISHAM AND GREENWICH NHS TRUST","RDU01","Hillingdon Hospital"]
[null,null,null,null,null,null,null,null,null,null,null,null,null,null,null,null,null,null,null,null,"QJK","RA9","TORBAY AND SOUTH DEVON NHS FOUNDATION TRUST","RA901","Torbay Hospital",null,"RHW","LIVERPOOL WOMEN'S NHS FOUNDATION TRUST",null,"RHW","LIVERPOOL WOMEN'S NHS FOUNDATION TRUST","RDU50","Hinchingbrooke Hospital"]
[null,null,null,null,null,null,null,null,null,null,null,null,null,null,null,null,null,null,null,null,"QJK","RK9","UNIVERSITY HOSPITALS PLYMOUTH NHS TRUST","RK950","Derriford Hospital",null,"RJ1","LONDON NORTH WEST UNIVERSITY HEALTHCARE NHS TRUST",null,"RJ1","LONDON NORTH WEST UNIVERSITY HEALTHCARE NHS TRUST","REF12","Homerton University Hospital"]
[null,null,null,null,null,null,null,null,null,null,null,null,null,null,null,null,null,null,null,null,"QJM","RWD","UNITED LINCOLNSHIRE TEACHING HOSPITALS NHS TRUST","RWDLP","Grantham and District Hospital",null,"RJ2","MAIDSTONE AND TUNBRIDGE WELLS NHS TRUST",null,"RJ2","MAIDSTONE AND TUNBRIDGE WELLS NHS TRUST","REP01","Horton General Hospital"]
[null,null,null,null,null,null,null,null,null,null,null,null,null,null,null,null,null,null,null,null,"QJM","RWD","UNITED LINCOLNSHIRE TEACHING HOSPITALS NHS TRUST","RWDDA","Lincoln County Hospital",null,"RJ7","MANCHESTER UNIVERSITY NHS FOUNDATION TRUST",null,"RJ7","MANCHESTER UNIVERSITY NHS FOUNDATION TRUST","RF4QH","Hull Royal Infirmary"]
[null,null,null,null,null,null,null,null,null,null,null,null,null,null,null,null,null,null,null,null,"QJM","RWD","UNITED LINCOLNSHIRE TEACHING HOSPITALS NHS TRUST","RWDLA","Pilgrim Hospital",null,"RJC","MEDWAY NHS FOUNDATION TRUST",null,"RJC","MEDWAY NHS FOUNDATION TRUST","RFFAA","Ipswich Hospital"]
[null,null,null,null,null,null,null,null,null,null,null,null,null,null,null,null,null,null,null,null,"QK1","RWE","UNIVERSITY HOSPITALS OF LEICESTER NHS TRUST","RWEAK","Leicester General Hospital",null,"RJE","MERSEY AND WEST LANCASHIRE TEACHING HOSPITALS NHS TRUST",null,"RJE","MERSEY AND WEST LANCASHIRE TEACHING HOSPITALS NHS TRUST","RFRPA","James Paget University Hospital"]
[null,null,null,null,null,null,null,null,null,null,null,null,null,null,null,null,null,null,null,null,"QK1","RWE","UNIVERSITY HOSPITALS OF LEICESTER NHS TRUST","RWEAA","Leicester Royal Infirmary",null,"RJL","MID AND SOUTH ESSEX NHS FOUNDATION TRUST",null,"RJL","MID AND SOUTH ESSEX NHS FOUNDATION TRUST","RFSDA","John Radcliffe Hospital"]
[null,null,null,null,null,null,null,null,null,null,null,null,null,null,null,null,null,null,null,null,"QK1","RWE","UNIVERSITY HOSPITALS OF LEICESTER NHS TRUST","RWE10","St Mary's Hospital",null,"RJN","MID CHESHIRE HOSPITALS NHS FOUNDATION TRUST",null,"RJN","MID CHESHIRE HOSPITALS NHS FOUNDATION TRUST","RGN80","Kettering General Hospital"]
[null,null,null,null,null,null,null,null,null,null,null,null,null,null,null,null,null,null,null,null,"QKK","RJ1","GUY'S AND ST THOMAS' NHS FOUNDATION TRUST","RJ122","St Thomas' Hospital",null,"RJR","MID YORKSHIRE TEACHING NHS TRUST",null,"RJR","MID YORKSHIRE TEACHING NHS TRUST","RGN90","King's Mill Hospital"]
[null,null,null,null,null,null,null,null,null,null,null,null,null,null,null,null,null,null,null,null,"QKK","RJ2","LEWISHAM AND GREENWICH NHS TRUST","RJ231","Queen Elizabeth Hospital",null,"RK5","MILTON KEYNES UNIVERSITY HOSPITAL NHS FOUNDATION TRUST",null,"RK5","MILTON KEYNES UNIVERSITY HOSPITAL NHS FOUNDATION TRUST","RGP75","Kingston Hospital"]
[null,null,null,null,null,null,null,null,null,null,null,null,null,null,null,null,null,null,null,null,"QKK","RJ2","LEWISHAM AND GREENWICH NHS TRUST","RJ224","University Hospital Lewisham",null,"RK9","NORFOLK AND NORWICH UNIVERSITY HOSPITALS NHS FOUNDATION TRUST",null,"RK9","NORFOLK AND NORWICH UNIVERSITY HOSPITALS NHS FOUNDATION TRUST","RGR50","Leeds General Infirmary"]
[null,null,null,null,null,null,null,null,null,null,null,null,null,null,null,null,null,null,null,null,"QKS","RN7","DARTFORD AND GRAVESHAM NHS TRUST","RN707","Darent Valley Hospital",null,"RKB","NORTH BRISTOL NHS TRUST",null,"RKB","NORTH BRISTOL NHS TRUST","RGT32","Leicester General Hospital"]
[null,null,null,null,null,null,null,null,null,null,null,null,null,null,null,null,null,null,null,null,"QKS","RVV","EAST KENT HOSPITALS UNIVERSITY NHS FOUNDATION TRUST","RVV09","Queen Elizabeth The Queen Mother Hospital",null,"RKE","NORTH CUMBRIA INTEGRATED CARE NHS FOUNDATION TRUST",null,"RKE","NORTH CUMBRIA INTEGRATED CARE NHS FOUNDATION TRUST","RH5A8","Leicester Royal Infirmary"]
[null,null,null,null,null,null,null,null,null,null,null,null,null,null,null,null,null,null,null,null,"QKS","RVV","EAST KENT HOSPITALS UNIVERSITY NHS FOUNDATION TRUST","RVV01","William Harvey Hospital (Ashford)",null,"RL4","NORTH TEES AND HARTLEPOOL NHS FOUNDATION TRUST",null,"RL4","NORTH TEES AND HARTLEPOOL NHS FOUNDATION TRUST","RH5K6","Leighton Hospital"]
[null,null,null,null,null,null,null,null,null,null,null,null,null,null,null,null,null,null,null,null,"QKS","RWF","MAIDSTONE AND TUNBRIDGE WELLS NHS TRUST","RWF08","Crowborough Birthing Centre",null,"RLQ","NORTH WEST ANGLIA NHS FOUNDATION TRUST",null,"RLQ","NORTH WEST ANGLIA NHS FOUNDATION TRUST","RH5O4","Lincoln County Hospital"]
[null,null,null,null,null,null,null,null,null,null,null,null,null,null,null,null,null,null,null,null,"QKS","RWF","MAIDSTONE AND TUNBRIDGE WELLS NHS TRUST","RWFTW","The Tunbridge Wells Hospital",null,"RLT","NORTHAMPTON GENERAL HOSPITAL NHS TRUST",null,"RLT","NORTHAMPTON GENERAL HOSPITAL NHS TRUST","RH5XXXX","Lister Hospital"]
[null,null,null,null,null,null,null,null,null,null,null,null,null,null,null,null,null,null,null,null,"QKS","RPA","MEDWAY NHS FOUNDATION TRUST","RPA02","Medway Maritime Hospital",null,"RM1","NORTHERN LINCOLNSHIRE AND GOOLE NHS FOUNDATION TRUST",null,"RM1","NORTHERN LINCOLNSHIRE AND GOOLE NHS FOUNDATION TRUST","RH801","Liverpool Womens Hospital"]
[null,null,null,null,null,null,null,null,null,null,null,null,null,null,null,null,null,null,null,null,"QM7","RWH","EAST AND NORTH HERTFORDSHIRE NHS TRUST","RWH01","Lister Hospital",null,"RMC","NOTTINGHAM UNIVERSITY HOSPITALS NHS TRUST",null,"RMC","NOTTINGHAM UNIVERSITY HOSPITALS NHS TRUST","RH880","Ludlow Hospital (Maternity)"]
[null,null,null,null,null,null,null,null,null,null,null,null,null,null,null,null,null,null,null,null,"QM7","RQW","THE PRINCESS ALEXANDRA HOSPITAL NHS TRUST","RQWG0","Princess Alexandra Hospital",null,"RMP","OXFORD UNIVERSITY HOSPITALS NHS FOUNDATION TRUST",null,"RMP","OXFORD UNIVERSITY HOSPITALS NHS FOUNDATION TRUST","RHM12","Luton and Dunstable Hospital"]
[null,null,null,null,null,null,null,null,null,null,null,null,null,null,null,null,null,null,null,null,"QM7","RWG","WEST HERTFORDSHIRE TEACHING HOSPITALS NHS TRUST","RWG02","Watford General Hospital",null,"RN3","PORTSMOUTH HOSPITALS UNIVERSITY NATIONAL HEALTH SERVICE TRUST",null,"RN3","PORTSMOUTH HOSPITALS UNIVERSITY NATIONAL HEALTH SERVICE TRUST","RHQHH","Macclesfield District General Hospital"]
[null,null,null,null,null,null,null,null,null,null,null,null,null,null,null,null,null,null,null,null,"QMF","RF4","BARKING, HAVERING AND REDBRIDGE UNIVERSITY HOSPITALS NHS TRUST","RF4QH","Queen's Hospital",null,"RN5","ROYAL BERKSHIRE NHS FOUNDATION TRUST",null,"RN5","ROYAL BERKSHIRE NHS FOUNDATION TRUST","RHU03","Manor Hospital"]
[null,null,null,null,null,null,null,null,null,null,null,null,null,null,null,null,null,null,null,null,"QMF","R1H","BARTS HEALTH NHS TRUST","R1HNH","Newham General Hospital",null,"RN7","ROYAL CORNWALL HOSPITALS NHS TRUST",null,"RN7","ROYAL CORNWALL HOSPITALS NHS TRUST","RHW01","Medway Maritime Hospital"]
[null,null,null,null,null,null,null,null,null,null,null,null,null,null,null,null,null,null,null,null,"QMF","R1H","BARTS HEALTH NHS TRUST","R1H12","The Royal London Hospital",null,"RNA","ROYAL DEVON UNIVERSITY HEALTHCARE NHS FOUNDATION TRUST",null,"RNA","ROYAL DEVON UNIVERSITY HEALTHCARE NHS FOUNDATION TRUST","RJ122","MID ESSEX HOSPITAL"]
[null,null,null,null,null,null,null,null,null,null,null,null,null,null,null,null,null,null,null,null,"QMF","R1H","BARTS HEALTH NHS TRUST","R1HKH","Whipps Cross University Hospital",null,"RNN","ROYAL FREE LONDON NHS FOUNDATION TRUST",null,"RNN","ROYAL FREE LONDON NHS FOUNDATION TRUST","RJ224","Milton Keynes Hospital"]
[null,null,null,null,null,null,null,null,null,null,null,null,null,null,null,null,null,null,null,null,"QMF","RQX","HOMERTON HEALTHCARE NHS FOUNDATION TRUST","RQXM1","Homerton University Hospital",null,"RNQ","ROYAL SURREY COUNTY HOSPITAL NHS FOUNDATION TRUST",null,"RNQ","ROYAL SURREY COUNTY HOSPITAL NHS FOUNDATION TRUST","RJ231","MUSGROVE PARK HOSPITAL"]
[null,null,null,null,null,null,null,null,null,null,null,null,null,null,null,null,null,null,null,null,"QMJ","RAL","ROYAL FREE LONDON NHS FOUNDATION TRUST","RAL26","Barnet Hospital",null,"RNS","ROYAL UNITED HOSPITALS BATH NHS FOUNDATION TRUST",null,"RNS","ROYAL UNITED HOSPITALS BATH NHS FOUNDATION TRUST","RJ701","New Cross Hospital"]
[null,null,null,null,null,null,null,null,null,null,null,null,null,null,null,null,null,null,null,null,"QMJ","RAL","ROYAL FREE LONDON NHS FOUNDATION TRUST","RALRA","Edgware Community Hospital",null,"RNZ","SALISBURY NHS FOUNDATION TRUST",null,"RNZ","SALISBURY NHS FOUNDATION TRUST","RJC02","Newham General Hospital"]
[null,null,null,null,null,null,null,null,null,null,null,null,null,null,null,null,null,null,null,null,"QMJ","RAL","ROYAL FREE LONDON NHS FOUNDATION TRUST","RAL27","North Middlesex University Hospital",null,"RP5","SANDWELL AND WEST BIRMINGHAM HOSPITALS NHS TRUST",null,"RP5","SANDWELL AND WEST BIRMINGHAM HOSPITALS NHS TRUST","RJE01","Non-hospital site home/in-transit births"]
[null,null,null,null,null,null,null,null,null,null,null,null,null,null,null,null,null,null,null,null,"QMJ","RAL","ROYAL FREE LONDON NHS FOUNDATION TRUST","RAL01","Royal Free Hospital",null,"RPA","SHEFFIELD TEACHING HOSPITALS NHS FOUNDATION TRUST",null,"RPA","SHEFFIELD TEACHING HOSPITALS NHS FOUNDATION TRUST","RJL32","Norfolk and Norwich University Hospital"]
[null,null,null,null,null,null,null,null,null,null,null,null,null,null,null,null,null,null,null,null,"QMJ","RRV","UNIVERSITY COLLEGE LONDON HOSPITALS NHS FOUNDATION TRUST","RRV11","University College Hospital Elizabeth Garrett Anderson Wing",null,"RQ3","SHERWOOD FOREST HOSPITALS NHS FOUNDATION TRUST",null,"RQ3","SHERWOOD FOREST HOSPITALS NHS FOUNDATION TRUST","RJN71","North Devon District Hospital"]
[null,null,null,null,null,null,null,null,null,null,null,null,null,null,null,null,null,null,null,null,"QMJ","RKE","WHITTINGTON HEALTH NHS TRUST","RKEQ4","The Whittington Hospital",null,"RQW","SOMERSET NHS FOUNDATION TRUST",null,"RQW","SOMERSET NHS FOUNDATION TRUST","RJR05","North Middlesex University Hospital"]
[null,null,null,null,null,null,null,null,null,null,null,null,null,null,null,null,null,null,null,null,"QMM","RGP","JAMES PAGET UNIVERSITY HOSPITALS NHS FOUNDATION TRUST","RGP75","James Paget University Hospital",null,"RQX","SOUTH TEES HOSPITALS NHS FOUNDATION TRUST",null,"RQX","SOUTH TEES HOSPITALS NHS FOUNDATION TRUST","RK5BC","Northampton General Hospital (Acute)"]
[null,null,null,null,null,null,null,null,null,null,null,null,null,null,null,null,null,null,null,null,"QMM","RM1","NORFOLK AND NORWICH UNIVERSITY HOSPITALS NHS FOUNDATION TRUST","RM102","Norfolk and Norwich University Hospital",null,"RR7","SOUTH TYNESIDE AND SUNDERLAND NHS FOUNDATION TRUST",null,"RR7","SOUTH TYNESIDE AND SUNDERLAND NHS FOUNDATION TRUST","RK950","Northwick Park Hospital"]
[null,null,null,null,null,null,null,null,null,null,null,null,null,null,null,null,null,null,null,null,"QMM","RCX","THE QUEEN ELIZABETH HOSPITAL, KING'S LYNN, NHS FOUNDATION TRUST","RCX70","The Queen Elizabeth Hospital",null,"RR8","SOUTH WARWICKSHIRE UNIVERSITY NHS FOUNDATION TRUST",null,"RR8","SOUTH WARWICKSHIRE UNIVERSITY NHS FOUNDATION TRUST","RKB01","Nottingham University Hospitals NHS Trust - City Campus"]
[null,null,null,null,null,null,null,null,null,null,null,null,null,null,null,null,null,null,null,null,"QNC","RJE","UNIVERSITY HOSPITALS OF NORTH MIDLANDS NHS TRUST","RJE01","Royal Stoke University Hospital",null,"RRF","ST GEORGE'S UNIVERSITY HOSPITALS NHS FOUNDATION TRUST",null,"RRF","ST GEORGE'S UNIVERSITY HOSPITALS NHS FOUNDATION TRUST","RKEQ4","Nottingham University Hospitals NHS Trust - Queen's Medical Centre Campus"]
[null,null,null,null,null,null,null,null,null,null,null,null,null,null,null,null,null,null,null,null,"QNQ","RDU","FRIMLEY HEALTH NHS FOUNDATION TRUST","RDU01","Frimley Park Hospital",null,"RRK","STOCKPORT NHS FOUNDATION TRUST",null,"RRK","STOCKPORT NHS FOUNDATION TRUST","RL403","Ormskirk and District General Hospital"]
[null,null,null,null,null,null,null,null,null,null,null,null,null,null,null,null,null,null,null,null,"QNQ","RDU","FRIMLEY HEALTH NHS FOUNDATION TRUST","RDU50","Wexham Park Hospital",null,"RRV","SURREY AND SUSSEX HEALTHCARE NHS TRUST",null,"RRV","SURREY AND SUSSEX HEALTHCARE NHS TRUST","RLQ01","Peterborough City Hospital"]
[null,null,null,null,null,null,null,null,null,null,null,null,null,null,null,null,null,null,null,null,"QNX","RYR","UNIVERSITY HOSPITALS SUSSEX NHS FOUNDATION TRUST","N6J7V","Princess Royal Hospital",null,"RTD","TAMESIDE AND GLOSSOP INTEGRATED CARE NHS FOUNDATION TRUST",null,"RTD","TAMESIDE AND GLOSSOP INTEGRATED CARE NHS FOUNDATION TRUST","RLT01","Pilgrim Hospital"]
[null,null,null,null,null,null,null,null,null,null,null,null,null,null,null,null,null,null,null,null,"QNX","RYR","UNIVERSITY HOSPITALS SUSSEX NHS FOUNDATION TRUST","E0A3H","Royal Sussex County Hospital",null,"RTE","THE DUDLEY GROUP NHS FOUNDATION TRUST",null,"RTE","THE DUDLEY GROUP NHS FOUNDATION TRUST","RM102","Pinderfields General Hospital"]
[null,null,null,null,null,null,null,null,null,null,null,null,null,null,null,null,null,null,null,null,"QNX","RYR","UNIVERSITY HOSPITALS SUSSEX NHS FOUNDATION TRUST","RYR16","St Richard's Hospital",null,"RTG","THE HILLINGDON HOSPITALS NHS FOUNDATION TRUST",null,"RTG","THE HILLINGDON HOSPITALS NHS FOUNDATION TRUST","RMC01","Poole Hospital"]
[null,null,null,null,null,null,null,null,null,null,null,null,null,null,null,null,null,null,null,null,"QNX","RYR","UNIVERSITY HOSPITALS SUSSEX NHS FOUNDATION TRUST","RYR18","Worthing Hospital",null,"RTH","THE NEWCASTLE UPON TYNE HOSPITALS NHS FOUNDATION TRUST",null,"RTH","THE NEWCASTLE UPON TYNE HOSPITALS NHS FOUNDATION TRUST","RMP01","Princess Alexandra Hospital"]
[null,null,null,null,null,null,null,null,null,null,null,null,null,null,null,null,null,null,null,null,"QOC","RXW","THE SHREWSBURY AND TELFORD HOSPITAL NHS TRUST","RXWMB","Bridgnorth Hospital (Maternity)",null,"RTK","THE PRINCESS ALEXANDRA HOSPITAL NHS TRUST",null,"RTK","THE PRINCESS ALEXANDRA HOSPITAL NHS TRUST","RN325","Princess Anne Hospital"]
[null,null,null,null,null,null,null,null,null,null,null,null,null,null,null,null,null,null,null,null,"QOC","RXW","THE SHREWSBURY AND TELFORD HOSPITAL NHS TRUST","RXWML","Ludlow Hospital (Maternity)",null,"RTP","THE QUEEN ELIZABETH HOSPITAL, KING'S LYNN, NHS FOUNDATION TRUST",null,"RTP","THE QUEEN ELIZABETH HOSPITAL, KING'S LYNN, NHS FOUNDATION TRUST","RN506","Princess Anne Wing RUH"]
[null,null,null,null,null,null,null,null,null,null,null,null,null,null,null,null,null,null,null,null,"QOC","RXW","THE SHREWSBURY AND TELFORD HOSPITAL NHS TRUST","RXWMJ","Robert Jones & Agnes Hunt Orthopaedic & District Hospital",null,"RTR","THE ROTHERHAM NHS FOUNDATION TRUST",null,"RTR","THE ROTHERHAM NHS FOUNDATION TRUST","RN541","Princess Royal Hospital"]
[null,null,null,null,null,null,null,null,null,null,null,null,null,null,null,null,null,null,null,null,"QOC","RXW","THE SHREWSBURY AND TELFORD HOSPITAL NHS TRUST","RXWAS","Royal Shrewsbury Hospital",null,"RTX","THE ROYAL WOLVERHAMPTON NHS TRUST",null,"RTX","THE ROYAL WOLVERHAMPTON NHS TRUST","RN707","Queen Alexandra Hospital"]
[null,null,null,null,null,null,null,null,null,null,null,null,null,null,null,null,null,null,null,null,"QOC","RXW","THE SHREWSBURY AND TELFORD HOSPITAL NHS TRUST","RXWAT","The Princess Royal Hospital",null,"RVJ","THE SHREWSBURY AND TELFORD HOSPITAL NHS TRUST",null,"RVJ","THE SHREWSBURY AND TELFORD HOSPITAL NHS TRUST","RNA01","Queen Charlotte's Hospital"]
[null,null,null,null,null,null,null,null,null,null,null,null,null,null,null,null,null,null,null,null,"QOP","RMC","BOLTON NHS FOUNDATION TRUST","RMC01","Royal Bolton Hospital",null,"RVR","TORBAY AND SOUTH DEVON NHS FOUNDATION TRUST",null,"RVR","TORBAY AND SOUTH DEVON NHS FOUNDATION TRUST","RNN62","Queen Elizabeth Hospital"]
[null,null,null,null,null,null,null,null,null,null,null,null,null,null,null,null,null,null,null,null,"QOP","R0A","MANCHESTER UNIVERSITY NHS FOUNDATION TRUST","R0A05","St Mary's Hospital",null,"RVV","UNITED LINCOLNSHIRE TEACHING HOSPITALS NHS TRUST",null,"RVV","UNITED LINCOLNSHIRE TEACHING HOSPITALS NHS TRUST","RNNBX","Queen Elizabeth Hospital"]
[null,null,null,null,null,null,null,null,null,null,null,null,null,null,null,null,null,null,null,null,"QOP","RWJ","STOCKPORT NHS FOUNDATION TRUST","RWJ09","Stepping Hill Hospital",null,"RVW","UNIVERSITY COLLEGE LONDON HOSPITALS NHS FOUNDATION TRUST",null,"RVW","UNIVERSITY COLLEGE LONDON HOSPITALS NHS FOUNDATION TRUST","RNQ51","Queen Elizabeth The Queen Mother Hospital"]
[null,null,null,null,null,null,null,null,null,null,null,null,null,null,null,null,null,null,null,null,"QOP","RMP","TAMESIDE AND GLOSSOP INTEGRATED CARE NHS FOUNDATION TRUST","RMP01","Tameside General Hospital",null,"RWA","UNIVERSITY HOSPITAL SOUTHAMPTON NHS FOUNDATION TRUST",null,"RWA","UNIVERSITY HOSPITAL SOUTHAMPTON NHS FOUNDATION TRUST","RNS01","Queen's Hospital"]
[null,null,null,null,null,null,null,null,null,null,null,null,null,null,null,null,null,null,null,null,"QOP","RRF","WRIGHTINGTON, WIGAN AND LEIGH NHS FOUNDATION TRUST","RRF02","Royal Albert Edward Infirmary",null,"RWD","UNIVERSITY HOSPITALS BIRMINGHAM NHS FOUNDATION TRUST",null,"RWD","UNIVERSITY HOSPITALS BIRMINGHAM NHS FOUNDATION TRUST","RNZ02","Queens Hospital, Burton Upon Trent"]
[null,null,null,null,null,null,null,null,null,null,null,null,null,null,null,null,null,null,null,null,"QOQ","RCD","HARROGATE AND DISTRICT NHS FOUNDATION TRUST","RCD01","Harrogate District Hospital",null,"RWE","UNIVERSITY HOSPITALS BRISTOL AND WESTON NHS FOUNDATION TRUST",null,"RWE","UNIVERSITY HOSPITALS BRISTOL AND WESTON NHS FOUNDATION TRUST","RP5BA","Robert Jones & Agnes Hunt Orthopaedic & District Hospital"]
[null,null,null,null,null,null,null,null,null,null,null,null,null,null,null,null,null,null,null,null,"QOQ","RWA","HULL UNIVERSITY TEACHING HOSPITALS NHS TRUST","RWA01","Hull Royal Infirmary",null,"RWF","UNIVERSITY HOSPITALS COVENTRY AND WARWICKSHIRE NHS TRUST",null,"RWF","UNIVERSITY HOSPITALS COVENTRY AND WARWICKSHIRE NHS TRUST","RP5DR","Rosie Hospital"]
[null,null,null,null,null,null,null,null,null,null,null,null,null,null,null,null,null,null,null,null,"QOQ","RJL","NORTHERN LINCOLNSHIRE AND GOOLE NHS FOUNDATION TRUST","RJL32","Scunthorpe General Hospital",null,"RWG","UNIVERSITY HOSPITALS DORSET NHS FOUNDATION TRUST",null,"RWG","UNIVERSITY HOSPITALS DORSET NHS FOUNDATION TRUST","RPA02","Rotherham District General Hospital"]
[null,null,null,null,null,null,null,null,null,null,null,null,null,null,null,null,null,null,null,null,"QOQ","RCB","YORK AND SCARBOROUGH TEACHING HOSPITALS NHS FOUNDATION TRUST","RCBCA","Scarborough General Hospital",null,"RWH","UNIVERSITY HOSPITALS OF DERBY AND BURTON NHS FOUNDATION TRUST",null,"RWH","UNIVERSITY HOSPITALS OF DERBY AND BURTON NHS FOUNDATION TRUST","RQ370","Royal Albert Edward Infirmary"]
[null,null,null,null,null,null,null,null,null,null,null,null,null,null,null,null,null,null,null,null,"QOQ","RCB","YORK AND SCARBOROUGH TEACHING HOSPITALS NHS FOUNDATION TRUST","RCB55","York Hospital",null,"RWJ","UNIVERSITY HOSPITALS OF LEICESTER NHS TRUST",null,"RWJ","UNIVERSITY HOSPITALS OF LEICESTER NHS TRUST","RQWG0","Royal Berkshire Hospital"]
[null,null,null,null,null,null,null,null,null,null,null,null,null,null,null,null,null,null,null,null,"QOX","RN3","GREAT WESTERN HOSPITALS NHS FOUNDATION TRUST","RN325","The Great Western Hospital",null,"RWP","UNIVERSITY HOSPITALS OF MORECAMBE BAY NHS FOUNDATION TRUST",null,"RWP","UNIVERSITY HOSPITALS OF MORECAMBE BAY NHS FOUNDATION TRUST","RQXM1","Royal Blackburn Hospital"]
[null,null,null,null,null,null,null,null,null,null,null,null,null,null,null,null,null,null,null,null,"QOX","RD1","ROYAL UNITED HOSPITALS BATH NHS FOUNDATION TRUST","RD102","Chippenham Community Hospital",null,"RWW","UNIVERSITY HOSPITALS OF NORTH MIDLANDS NHS TRUST",null,"RWW","UNIVERSITY HOSPITALS OF NORTH MIDLANDS NHS TRUST","RR7EN","Royal Bolton Hospital"]
[null,null,null,null,null,null,null,null,null,null,null,null,null,null,null,null,null,null,null,null,"QOX","RD1","ROYAL UNITED HOSPITALS BATH NHS FOUNDATION TRUST","RD130","Princess Anne Wing RUH",null,"RWY","UNIVERSITY HOSPITALS PLYMOUTH NHS TRUST",null,"RWY","UNIVERSITY HOSPITALS PLYMOUTH NHS TRUST","RR801","Royal Bournemouth Hospital"]
[null,null,null,null,null,null,null,null,null,null,null,null,null,null,null,null,null,null,null,null,"QOX","RNZ","SALISBURY NHS FOUNDATION TRUST","RNZ02","Salisbury District Hospital",null,"RX1","UNIVERSITY HOSPITALS SUSSEX NHS FOUNDATION TRUST",null,"RX1","UNIVERSITY HOSPITALS SUSSEX NHS FOUNDATION TRUST","RR813","Royal Cornwall Hospital (Treliske)"]
[null,null,null,null,null,null,null,null,null,null,null,null,null,null,null,null,null,null,null,null,"QPM","RNQ","KETTERING GENERAL HOSPITAL NHS FOUNDATION TRUST","RNQ51","Kettering General Hospital",null,"RXF","WALSALL HEALTHCARE NHS TRUST",null,"RXF","WALSALL HEALTHCARE NHS TRUST","RRF02","Royal Devon and Exeter Hospital (Wonford)"]
[null,null,null,null,null,null,null,null,null,null,null,null,null,null,null,null,null,null,null,null,"QPM","RNS","NORTHAMPTON GENERAL HOSPITAL NHS TRUST","RNS01","Northampton General Hospital (Acute)",null,"RXK","WARRINGTON AND HALTON TEACHING HOSPITALS NHS FOUNDATION TRUST",null,"RXK","WARRINGTON AND HALTON TEACHING HOSPITALS NHS FOUNDATION TRUST","RRK97","Royal Free Hospital"]
[null,null,null,null,null,null,null,null,null,null,null,null,null,null,null,null,null,null,null,null,"QR1","RTE","GLOUCESTERSHIRE HOSPITALS NHS FOUNDATION TRUST","RTE03","Gloucestershire Royal Hospital",null,"RXL","WEST HERTFORDSHIRE TEACHING HOSPITALS NHS TRUST",null,"RXL","WEST HERTFORDSHIRE TEACHING HOSPITALS NHS TRUST","RRK98","Royal Hallamshire Hospital"]
[null,null,null,null,null,null,null,null,null,null,null,null,null,null,null,null,null,null,null,null,"QRL","RN5","HAMPSHIRE HOSPITALS NHS FOUNDATION TRUST","RN506","Basingstoke and North Hampshire Hospital",null,"RXN","WEST SUFFOLK NHS FOUNDATION TRUST",null,"RXN","WEST SUFFOLK NHS FOUNDATION TRUST","RRK99","Royal Hampshire County Hospital"]
[null,null,null,null,null,null,null,null,null,null,null,null,null,null,null,null,null,null,null,null,"QRL","RN5","HAMPSHIRE HOSPITALS NHS FOUNDATION TRUST","RN541","Royal Hampshire County Hospital",null,"RXP","WHITTINGTON HEALTH NHS TRUST",null,"RXP","WHITTINGTON HEALTH NHS TRUST","RRV11","Royal Lancaster Infirmary"]
[null,null,null,null,null,null,null,null,null,null,null,null,null,null,null,null,null,null,null,null,"QRL","R1F","ISLE OF WIGHT NHS TRUST","R1F01","St Mary's Hospital",null,"RXQ","WIRRAL UNIVERSITY TEACHING HOSPITAL NHS FOUNDATION TRUST",null,"RXQ","WIRRAL UNIVERSITY TEACHING HOSPITAL NHS FOUNDATION TRUST","RTD02","Royal Preston Hospital"]
[null,null,null,null,null,null,null,null,null,null,null,null,null,null,null,null,null,null,null,null,"QRL","RHU","PORTSMOUTH HOSPITALS UNIVERSITY NATIONAL HEALTH SERVICE TRUST","RHU03","Queen Alexandra Hospital",null,"RXR","WORCESTERSHIRE ACUTE HOSPITALS NHS TRUST",null,"RXR","WORCESTERSHIRE ACUTE HOSPITALS NHS TRUST","RTE03","Royal Shrewsbury Hospital"]
[null,null,null,null,null,null,null,null,null,null,null,null,null,null,null,null,null,null,null,null,"QRL","RHM","UNIVERSITY HOSPITAL SOUTHAMPTON NHS FOUNDATION TRUST","RHM12","Princess Anne Hospital",null,"RXW","WRIGHTINGTON, WIGAN AND LEIGH NHS FOUNDATION TRUST",null,"RXW","WRIGHTINGTON, WIGAN AND LEIGH NHS FOUNDATION TRUST","RTG02","Royal Stoke University Hospital"]
[null,null,null,null,null,null,null,null,null,null,null,null,null,null,null,null,null,null,null,null,"QRV","RYJ","IMPERIAL COLLEGE HEALTHCARE NHS TRUST","RYJ04","Queen Charlotte's Hospital",null,"RYJ","WYE VALLEY NHS TRUST",null,"RYJ","WYE VALLEY NHS TRUST","RTH05","Royal Surrey County Hospital"]
[null,null,null,null,null,null,null,null,null,null,null,null,null,null,null,null,null,null,null,null,"QRV","RYJ","IMPERIAL COLLEGE HEALTHCARE NHS TRUST","RYJ01","St Mary's Hospital (HQ)",null,"RYR","YORK AND SCARBOROUGH TEACHING HOSPITALS NHS FOUNDATION TRUST",null,"RYR","YORK AND SCARBOROUGH TEACHING HOSPITALS NHS FOUNDATION TRUST","RTH08","Royal Sussex County Hospital"]
[null,null,null,null,null,null,null,null,null,null,null,null,null,null,null,null,null,null,null,null,"QRV","R1K","LONDON NORTH WEST UNIVERSITY HEALTHCARE NHS TRUST","R1K01","Northwick Park Hospital",null,null,null,null,null,null,"RTH16","Russells Hall Hospital"]
[null,null,null,null,null,null,null,null,null,null,null,null,null,null,null,null,null,null,null,null,"QRV","RAS","THE HILLINGDON HOSPITALS NHS FOUNDATION TRUST","RAS01","Hillingdon Hospital",null,null,null,null,null,null,"RTH19","Salisbury District Hospital"]
[null,null,null,null,null,null,null,null,null,null,null,null,null,null,null,null,null,null,null,null,"QSL","RH5","SOMERSET NHS FOUNDATION TRUST","RH5K6","Bridgwater Hospital",null,null,null,null,null,null,"RTH21","Scarborough General Hospital"]
[null,null,null,null,null,null,null,null,null,null,null,null,null,null,null,null,null,null,null,null,"QSL","RH5","SOMERSET NHS FOUNDATION TRUST","RH5A8","MUSGROVE PARK HOSPITAL",null,null,null,null,null,null,"RTK02","Scunthorpe General Hospital"]
[null,null,null,null,null,null,null,null,null,null,null,null,null,null,null,null,null,null,null,null,"QSL","RH5","SOMERSET NHS FOUNDATION TRUST","RH5XXXX","Non-hospital site home/in-transit births",null,null,null,null,null,null,"RTP04","Solihull Hospital"]
[null,null,null,null,null,null,null,null,null,null,null,null,null,null,null,null,null,null,null,null,"QSL","RH5","SOMERSET NHS FOUNDATION TRUST","RH5O4","Yeovil District Hospital",null,null,null,null,null,null,"RTR45","Southend Hospital"]
[null,null,null,null,null,null,null,null,null,null,null,null,null,null,null,null,null,null,null,null,"QT1","RX1","NOTTINGHAM UNIVERSITY HOSPITALS NHS TRUST","RX1CC","Nottingham University Hospitals NHS Trust - City Campus",null,null,null,null,null,null,"RTRAT","Southmead Hospital"]
[null,null,null,null,null,null,null,null,null,null,null,null,null,null,null,null,null,null,null,null,"QT1","RX1","NOTTINGHAM UNIVERSITY HOSPITALS NHS TRUST","RX1RA","Nottingham University Hospitals NHS Trust - Queen's Medical Centre Campus",null,null,null,null,null,null,"RTX02","St George's Hospital (Tooting)"]
[null,null,null,null,null,null,null,null,null,null,null,null,null,null,null,null,null,null,null,null,"QT1","RK5","SHERWOOD FOREST HOSPITALS NHS FOUNDATION TRUST","RK5BC","King's Mill Hospital",null,null,null,null,null,null,"RTXBU","St Helier Hospital"]
[null,null,null,null,null,null,null,null,null,null,null,null,null,null,null,null,null,null,null,null,"QT6","REF","ROYAL CORNWALL HOSPITALS NHS TRUST","REF12","Royal Cornwall Hospital (Treliske)",null,null,null,null,null,null,"RTXBW","St James's University Hospital"]
[null,null,null,null,null,null,null,null,null,null,null,null,null,null,null,null,null,null,null,null,"QU9","RXQ","BUCKINGHAMSHIRE HEALTHCARE NHS TRUST","RXQ02","Stoke Mandeville Hospital",null,null,null,null,null,null,"RVJ01","St Mary's Hospital"]
[null,null,null,null,null,null,null,null,null,null,null,null,null,null,null,null,null,null,null,null,"QU9","RTH","OXFORD UNIVERSITY HOSPITALS NHS FOUNDATION TRUST","RTH19","Chipping Norton Community Hospital",null,null,null,null,null,null,"RVR05","St Mary's Hospital"]
[null,null,null,null,null,null,null,null,null,null,null,null,null,null,null,null,null,null,null,null,"QU9","RTH","OXFORD UNIVERSITY HOSPITALS NHS FOUNDATION TRUST","RTH05","Horton General Hospital",null,null,null,null,null,null,"RVR50","St Mary's Hospital"]
[null,null,null,null,null,null,null,null,null,null,null,null,null,null,null,null,null,null,null,null,"QU9","RTH","OXFORD UNIVERSITY HOSPITALS NHS FOUNDATION TRUST","RTH08","John Radcliffe Hospital",null,null,null,null,null,null,"RVV01","St Mary's Hospital (HQ)"]
[null,null,null,null,null,null,null,null,null,null,null,null,null,null,null,null,null,null,null,null,"QU9","RTH","OXFORD UNIVERSITY HOSPITALS NHS FOUNDATION TRUST","RTH16","Wallingford Community Hospital",null,null,null,null,null,null,"RVV09","ST MICHAEL'S HOSPITAL"]
[null,null,null,null,null,null,null,null,null,null,null,null,null,null,null,null,null,null,null,null,"QU9","RTH","OXFORD UNIVERSITY HOSPITALS NHS FOUNDATION TRUST","RTH21","Wantage Community Hospital",null,null,null,null,null,null,"RVWAE","St Richard's Hospital"]
[null,null,null,null,null,null,null,null,null,null,null,null,null,null,null,null,null,null,null,null,"QU9","RHW","ROYAL BERKSHIRE NHS FOUNDATION TRUST","RHW01","Royal Berkshire Hospital",null,null,null,null,null,null,"RWA01","St Thomas' Hospital"]
[null,null,null,null,null,null,null,null,null,null,null,null,null,null,null,null,null,null,null,null,"QUA","RNA","THE DUDLEY GROUP NHS FOUNDATION TRUST","RNA01","Russells Hall Hospital",null,null,null,null,null,null,"RWDDA","Stepping Hill Hospital"]
[null,null,null,null,null,null,null,null,null,null,null,null,null,null,null,null,null,null,null,null,"QUA","RL4","THE ROYAL WOLVERHAMPTON NHS TRUST","RL403","New Cross Hospital",null,null,null,null,null,null,"RWDLA","Stoke Mandeville Hospital"]
[null,null,null,null,null,null,null,null,null,null,null,null,null,null,null,null,null,null,null,null,"QUA","RBK","WALSALL HEALTHCARE NHS TRUST","RBK02","Manor Hospital",null,null,null,null,null,null,"RWDLP","Sunderland Royal Hospital"]
[null,null,null,null,null,null,null,null,null,null,null,null,null,null,null,null,null,null,null,null,"QUE","RGT","CAMBRIDGE UNIVERSITY HOSPITALS NHS FOUNDATION TRUST","RGT32","Rosie Hospital",null,null,null,null,null,null,"RWE10","Tameside General Hospital"]
[null,null,null,null,null,null,null,null,null,null,null,null,null,null,null,null,null,null,null,null,"QUE","RGN","NORTH WEST ANGLIA NHS FOUNDATION TRUST","RGN90","Hinchingbrooke Hospital",null,null,null,null,null,null,"RWEAA","The Great Western Hospital"]
[null,null,null,null,null,null,null,null,null,null,null,null,null,null,null,null,null,null,null,null,"QUE","RGN","NORTH WEST ANGLIA NHS FOUNDATION TRUST","RGN80","Peterborough City Hospital",null,null,null,null,null,null,"RWEAK","The James Cook University Hospital"]
[null,null,null,null,null,null,null,null,null,null,null,null,null,null,null,null,null,null,null,null,"QUY","RVJ","NORTH BRISTOL NHS TRUST","RVJ01","Southmead Hospital",null,null,null,null,null,null,"RWF08","The Princess Royal Hospital"]
[null,null,null,null,null,null,null,null,null,null,null,null,null,null,null,null,null,null,null,null,"QUY","RA7","UNIVERSITY HOSPITALS BRISTOL AND WESTON NHS FOUNDATION TRUST","RA707","ST MICHAEL'S HOSPITAL",null,null,null,null,null,null,"RWFTW","The Queen Elizabeth Hospital"]
[null,null,null,null,null,null,null,null,null,null,null,null,null,null,null,null,null,null,null,null,"QVV","RBD","DORSET COUNTY HOSPITAL NHS FOUNDATION TRUST","RBD01","Dorset County Hospital",null,null,null,null,null,null,"RWG02","The Royal London Hospital"]
[null,null,null,null,null,null,null,null,null,null,null,null,null,null,null,null,null,null,null,null,"QVV","R0D","UNIVERSITY HOSPITALS DORSET NHS FOUNDATION TRUST","R0D01","Poole Hospital",null,null,null,null,null,null,"RWH01","The Royal Victoria Infirmary"]
[null,null,null,null,null,null,null,null,null,null,null,null,null,null,null,null,null,null,null,null,"QVV","R0D","UNIVERSITY HOSPITALS DORSET NHS FOUNDATION TRUST","R0D02","Royal Bournemouth Hospital",null,null,null,null,null,null,"RWJ09","The Tunbridge Wells Hospital"]
[null,null,null,null,null,null,null,null,null,null,null,null,null,null,null,null,null,null,null,null,"QWE","RVR","EPSOM AND ST HELIER UNIVERSITY HOSPITALS NHS TRUST","RVR50","Epsom Hospital",null,null,null,null,null,null,"RWP50","The Whittington Hospital"]
[null,null,null,null,null,null,null,null,null,null,null,null,null,null,null,null,null,null,null,null,"QWE","RVR","EPSOM AND ST HELIER UNIVERSITY HOSPITALS NHS TRUST","RVR05","St Helier Hospital",null,null,null,null,null,null,"RWWWH","Torbay Hospital"]
[null,null,null,null,null,null,null,null,null,null,null,null,null,null,null,null,null,null,null,null,"QWE","RAX","KINGSTON AND RICHMOND NHS FOUNDATION TRUST","RAX01","Kingston Hospital",null,null,null,null,null,null,"RWY02","University College Hospital Elizabeth Garrett Anderson Wing"]
[null,null,null,null,null,null,null,null,null,null,null,null,null,null,null,null,null,null,null,null,"QWE","RJ7","ST GEORGE'S UNIVERSITY HOSPITALS NHS FOUNDATION TRUST","RJ701","St George's Hospital (Tooting)",null,null,null,null,null,null,"RX1CC","University Hospital (Coventry)"]
[null,null,null,null,null,null,null,null,null,null,null,null,null,null,null,null,null,null,null,null,"QWO","RAE","BRADFORD TEACHING HOSPITALS NHS FOUNDATION TRUST","RAE01","Bradford Royal Infirmary",null,null,null,null,null,null,"RX1RA","University Hospital Lewisham"]
[null,null,null,null,null,null,null,null,null,null,null,null,null,null,null,null,null,null,null,null,"QWO","RWY","CALDERDALE AND HUDDERSFIELD NHS FOUNDATION TRUST","RWY02","Calderdale Royal Hospital",null,null,null,null,null,null,"RXF05","University Hospital Of North Durham"]
[null,null,null,null,null,null,null,null,null,null,null,null,null,null,null,null,null,null,null,null,"QWO","RR8","LEEDS TEACHING HOSPITALS NHS TRUST","RR801","Leeds General Infirmary",null,null,null,null,null,null,"RXKTC","University Hospital Of North Tees"]
[null,null,null,null,null,null,null,null,null,null,null,null,null,null,null,null,null,null,null,null,"QWO","RR8","LEEDS TEACHING HOSPITALS NHS TRUST","RR813","St James's University Hospital",null,null,null,null,null,null,"RXL01","Wallingford Community Hospital"]
[null,null,null,null,null,null,null,null,null,null,null,null,null,null,null,null,null,null,null,null,"QWO","RXF","MID YORKSHIRE TEACHING NHS TRUST","RXF05","Pinderfields General Hospital",null,null,null,null,null,null,"RXN01","Wantage Community Hospital"]
[null,null,null,null,null,null,null,null,null,null,null,null,null,null,null,null,null,null,null,null,"QWU","RLT","GEORGE ELIOT HOSPITAL NHS TRUST","RLT01","George Eliot Hospital - Acute Services",null,null,null,null,null,null,"RXN02","Warrington Hospital"]
[null,null,null,null,null,null,null,null,null,null,null,null,null,null,null,null,null,null,null,null,"QWU","RJC","SOUTH WARWICKSHIRE UNIVERSITY NHS FOUNDATION TRUST","RJC02","Warwick Hospital",null,null,null,null,null,null,"RXPCP","Warwick Hospital"]
[null,null,null,null,null,null,null,null,null,null,null,null,null,null,null,null,null,null,null,null,"QWU","RKB","UNIVERSITY HOSPITALS COVENTRY AND WARWICKSHIRE NHS TRUST","RKB01","University Hospital (Coventry)",null,null,null,null,null,null,"RXPDA","Watford General Hospital"]
[null,null,null,null,null,null,null,null,null,null,null,null,null,null,null,null,null,null,null,null,"QXU","RTK","ASHFORD AND ST PETER'S HOSPITALS NHS FOUNDATION TRUST","RTK02","Ashford Hospital",null,null,null,null,null,null,"RXQ02","West Cumberland Hospital"]
[null,null,null,null,null,null,null,null,null,null,null,null,null,null,null,null,null,null,null,null,"QXU","RA2","ROYAL SURREY COUNTY HOSPITAL NHS FOUNDATION TRUST","RA201","Royal Surrey County Hospital",null,null,null,null,null,null,"RXR20","West Suffolk Hospital"]
[null,null,null,null,null,null,null,null,null,null,null,null,null,null,null,null,null,null,null,null,"QXU","RTP","SURREY AND SUSSEX HEALTHCARE NHS TRUST","RTP04","East Surrey Hospital",null,null,null,null,null,null,"RXWAS","Westmorland General Hospital"]
[null,null,null,null,null,null,null,null,null,null,null,null,null,null,null,null,null,null,null,null,"QYG","RJR","COUNTESS OF CHESTER HOSPITAL NHS FOUNDATION TRUST","RJR05","Countess Of Chester Hospital",null,null,null,null,null,null,"RXWAT","Wexham Park Hospital"]
[null,null,null,null,null,null,null,null,null,null,null,null,null,null,null,null,null,null,null,null,"QYG","RJN","EAST CHESHIRE NHS TRUST","RJN71","Macclesfield District General Hospital",null,null,null,null,null,null,"RXWMB","Whipps Cross University Hospital"]
[null,null,null,null,null,null,null,null,null,null,null,null,null,null,null,null,null,null,null,null,"QYG","REP","LIVERPOOL WOMEN'S NHS FOUNDATION TRUST","REP01","Liverpool Womens Hospital",null,null,null,null,null,null,"RXWMJ","Whiston Hospital"]
[null,null,null,null,null,null,null,null,null,null,null,null,null,null,null,null,null,null,null,null,"QYG","RBN","MERSEY AND WEST LANCASHIRE TEACHING HOSPITALS NHS TRUST","RBN52","Ormskirk and District General Hospital",null,null,null,null,null,null,"RXWML","William Harvey Hospital (Ashford)"]
[null,null,null,null,null,null,null,null,null,null,null,null,null,null,null,null,null,null,null,null,"QYG","RBN","MERSEY AND WEST LANCASHIRE TEACHING HOSPITALS NHS TRUST","RBN01","Whiston Hospital",null,null,null,null,null,null,"RYJ01","Worcestershire Royal Hospital"]
[null,null,null,null,null,null,null,null,null,null,null,null,null,null,null,null,null,null,null,null,"QYG","RBT","MID CHESHIRE HOSPITALS NHS FOUNDATION TRUST","RBT20","Leighton Hospital",null,null,null,null,null,null,"RYJ04","Worthing Hospital"]
[null,null,null,null,null,null,null,null,null,null,null,null,null,null,null,null,null,null,null,null,"QYG","RWW","WARRINGTON AND HALTON TEACHING HOSPITALS NHS FOUNDATION TRUST","RWWWH","Warrington Hospital",null,null,null,null,null,null,"RYR16","Yeovil District Hospital"]
[null,null,null,null,null,null,null,null,null,null,null,null,null,null,null,null,null,null,null,null,"QYG","RBL","WIRRAL UNIVERSITY TEACHING HOSPITAL NHS FOUNDATION TRUST","RBL14","Arrowe Park Hospital",null,null,null,null,null,null,"RYR18","York Hospital"]

{"sheet":"BSQ4","index":16,"n_rows":119,"n_cols":28,"rows_kept":119,"cut":false,"hidden":true,"merged":[]}
[null,"Sort","ICB","ICB","Trusts","Trusts",null,null,null,"Sort ranges:","Sort range…","Sort range…",null,"Reference Region List:","Code…","Name…","Linked Region List:","Code…","Name…","Reference Lists:","Code…","Code…","Name…",null,null,"Trusts Linked Lists:","Code…","Name…"]
["ICB",1,1,1,"-","-",null,null,null,null,"ICB Code","ICB Code",null,null,"QE1","LANCASHIRE AND SOUTH CUMBRIA ICB",null,"QE1","LANCASHIRE AND SOUTH CUMBRIA ICB",null,"QE1","RTX","UNIVERSITY HOSPITALS OF MORECAMBE BAY NHS FOUNDATION TRUST",null,null,null,"R0A","AIREDALE NHS FOUNDATION TRUST"]
["Trusts",1,1,1,1,1,null,null,null,null,"ICB Name","Trust Code",null,null,"QF7","SOUTH YORKSHIRE ICB",null,"QF7","SOUTH YORKSHIRE ICB",null,"QE1","RXN","LANCASHIRE TEACHING HOSPITALS NHS FOUNDATION TRUST",null,null,null,"R0B","ASHFORD AND ST PETER'S HOSPITALS NHS FOUNDATION TRUST"]
[null,null,null,null,null,null,null,null,null,null,"Total Responses","Trust Name",null,null,"QGH","HEREFORDSHIRE AND WORCESTERSHIRE ICB",null,"QGH","HEREFORDSHIRE AND WORCESTERSHIRE ICB",null,"QE1","RXL","BLACKPOOL TEACHING HOSPITALS NHS FOUNDATION TRUST",null,null,null,"R0D","BARKING, HAVERING AND REDBRIDGE UNIVERSITY HOSPITALS NHS TRUST"]
[null,null,null,null,null,null,null,null,null,null,"Percentage Positive","Total Responses",null,null,"QH8","MID AND SOUTH ESSEX ICB",null,"QH8","MID AND SOUTH ESSEX ICB",null,"QE1","RXR","EAST LANCASHIRE HOSPITALS NHS TRUST",null,null,null,"R1F","BARNSLEY HOSPITAL NHS FOUNDATION TRUST"]
[null,null,null,null,null,null,null,null,null,null,"Percentage Negative","Percentage Positive",null,null,"QHG","BEDFORDSHIRE, LUTON AND MILTON KEYNES ICB",null,"QHG","BEDFORDSHIRE, LUTON AND MILTON KEYNES ICB",null,"QF7","RP5","DONCASTER AND BASSETLAW TEACHING HOSPITALS NHS FOUNDATION TRUST",null,null,null,"R1H","BARTS HEALTH NHS TRUST"]
[null,null,null,null,null,null,null,null,null,null,"Very Good","Percentage Negative",null,null,"QHL","BIRMINGHAM AND SOLIHULL ICB",null,"QHL","BIRMINGHAM AND SOLIHULL ICB",null,"QF7","RFF","BARNSLEY HOSPITAL NHS FOUNDATION TRUST",null,null,null,"R1K","BEDFORDSHIRE HOSPITALS NHS FOUNDATION TRUST"]
[null,null,null,null,null,null,null,null,null,null,"Good","Very Good",null,null,"QHM","NORTH EAST AND NORTH CUMBRIA ICB",null,"QHM","NORTH EAST AND NORTH CUMBRIA ICB",null,"QF7","RFR","THE ROTHERHAM NHS FOUNDATION TRUST",null,null,null,"RA2","BIRMINGHAM WOMEN'S AND CHILDREN'S NHS FOUNDATION TRUST"]
[null,null,null,null,null,null,null,null,null,null,"Neither Good nor Poor","Good",null,null,"QJ2","DERBY AND DERBYSHIRE ICB",null,"QJ2","DERBY AND DERBYSHIRE ICB",null,"QF7","RHQ","SHEFFIELD TEACHING HOSPITALS NHS FOUNDATION TRUST",null,null,null,"RA7","BLACKPOOL TEACHING HOSPITALS NHS FOUNDATION TRUST"]
[null,null,null,null,null,null,null,null,null,null,"Poor","Neither Good nor Poor",null,null,"QJG","SUFFOLK AND NORTH EAST ESSEX ICB",null,"QJG","SUFFOLK AND NORTH EAST ESSEX ICB",null,"QGH","RLQ","WYE VALLEY NHS TRUST",null,null,null,"RA9","BOLTON NHS FOUNDATION TRUST"]
[null,null,null,null,null,null,null,null,null,null,"Very Poor","Poor",null,null,"QJK","DEVON ICB",null,"QJK","DEVON ICB",null,"QGH","RWP","WORCESTERSHIRE ACUTE HOSPITALS NHS TRUST",null,null,null,"RAE","BRADFORD TEACHING HOSPITALS NHS FOUNDATION TRUST"]
[null,null,null,null,null,null,null,null,null,null,"Don't Know","Very Poor",null,null,"QJM","LINCOLNSHIRE ICB",null,"QJM","LINCOLNSHIRE ICB",null,"QH8","RAJ","MID AND SOUTH ESSEX NHS FOUNDATION TRUST",null,null,null,"RAJ","BUCKINGHAMSHIRE HEALTHCARE NHS TRUST"]
[null,null,null,null,null,null,null,null,null,null,null,"Don't Know",null,null,"QK1","LEICESTER, LEICESTERSHIRE AND RUTLAND ICB",null,"QK1","LEICESTER, LEICESTERSHIRE AND RUTLAND ICB",null,"QHG","RC9","BEDFORDSHIRE HOSPITALS NHS FOUNDATION TRUST",null,null,null,"RAL","CALDERDALE AND HUDDERSFIELD NHS FOUNDATION TRUST"]
[null,null,null,null,null,null,null,null,null,null,null,"Mode SMS",null,null,"QKK","SOUTH EAST LONDON ICB",null,"QKK","SOUTH EAST LONDON ICB",null,"QHG","RD8","MILTON KEYNES UNIVERSITY HOSPITAL NHS FOUNDATION TRUST",null,null,null,"RAS","CAMBRIDGE UNIVERSITY HOSPITALS NHS FOUNDATION TRUST"]
[null,null,null,null,null,null,null,null,null,null,null,"Mode Electronic Discharge",null,null,"QKS","KENT AND MEDWAY ICB",null,"QKS","KENT AND MEDWAY ICB",null,"QHL","RRK","UNIVERSITY HOSPITALS BIRMINGHAM NHS FOUNDATION TRUST",null,null,null,"RAX","CHESTERFIELD ROYAL HOSPITAL NHS FOUNDATION TRUST"]
[null,null,null,null,null,null,null,null,null,null,null,"Mode Electronic Home",null,null,"QM7","HERTFORDSHIRE AND WEST ESSEX ICB",null,"QM7","HERTFORDSHIRE AND WEST ESSEX ICB",null,"QHL","RXK","SANDWELL AND WEST BIRMINGHAM HOSPITALS NHS TRUST",null,null,null,"RBD","COUNTESS OF CHESTER HOSPITAL NHS FOUNDATION TRUST"]
[null,null,null,null,null,null,null,null,null,null,null,"Mode Paper Discharge",null,null,"QMF","NORTH EAST LONDON ICB",null,"QMF","NORTH EAST LONDON ICB",null,"QHL","RQ3","BIRMINGHAM WOMEN'S AND CHILDREN'S NHS FOUNDATION TRUST",null,null,null,"RBK","COUNTY DURHAM AND DARLINGTON NHS FOUNDATION TRUST"]
[null,null,null,null,null,null,null,null,null,null,null,"Mode Paper Home",null,null,"QMJ","NORTH CENTRAL LONDON ICB",null,"QMJ","NORTH CENTRAL LONDON ICB",null,"QHM","RNN","NORTH CUMBRIA INTEGRATED CARE NHS FOUNDATION TRUST",null,null,null,"RBL","CROYDON HEALTH SERVICES NHS TRUST"]
[null,null,null,null,null,null,null,null,null,null,null,"Mode Telephone",null,null,"QMM","NORFOLK AND WAVENEY ICB",null,"QMM","NORFOLK AND WAVENEY ICB",null,"QHM","RR7","GATESHEAD HEALTH NHS FOUNDATION TRUST",null,null,null,"RBN","DARTFORD AND GRAVESHAM NHS TRUST"]
[null,null,null,null,null,null,null,null,null,null,null,"Mode Online",null,null,"QNC","STAFFORDSHIRE AND STOKE-ON-TRENT ICB",null,"QNC","STAFFORDSHIRE AND STOKE-ON-TRENT ICB",null,"QHM","RVW","NORTH TEES AND HARTLEPOOL NHS FOUNDATION TRUST",null,null,null,"RBT","DONCASTER AND BASSETLAW TEACHING HOSPITALS NHS FOUNDATION TRUST"]
[null,null,null,null,null,null,null,null,null,null,null,"Mode Other",null,null,"QNQ","FRIMLEY ICB",null,"QNQ","FRIMLEY ICB",null,"QHM","RXP","COUNTY DURHAM AND DARLINGTON NHS FOUNDATION TRUST",null,null,null,"RC9","DORSET COUNTY HOSPITAL NHS FOUNDATION TRUST"]
[null,null,null,null,null,null,null,null,null,null,null,null,null,null,"QNX","SUSSEX ICB",null,"QNX","SUSSEX ICB",null,"QHM","R0B","SOUTH TYNESIDE AND SUNDERLAND NHS FOUNDATION TRUST",null,null,null,"RCB","EAST AND NORTH HERTFORDSHIRE NHS TRUST"]
[null,null,null,null,null,null,null,null,null,null,null,null,null,null,"QOC","SHROPSHIRE, TELFORD AND WREKIN ICB",null,"QOC","SHROPSHIRE, TELFORD AND WREKIN ICB",null,"QHM","RTR","SOUTH TEES HOSPITALS NHS FOUNDATION TRUST",null,null,null,"RCD","EAST CHESHIRE NHS TRUST"]
[null,null,null,null,null,null,null,null,null,null,null,null,null,null,"QOP","GREATER MANCHESTER ICB",null,"QOP","GREATER MANCHESTER ICB",null,"QHM","RTF","NORTHUMBRIA HEALTHCARE NHS FOUNDATION TRUST",null,null,null,"RCF","EAST KENT HOSPITALS UNIVERSITY NHS FOUNDATION TRUST"]
[null,null,null,null,null,null,null,null,null,null,null,null,null,null,"QOQ","HUMBER AND NORTH YORKSHIRE ICB",null,"QOQ","HUMBER AND NORTH YORKSHIRE ICB",null,"QHM","RTD","THE NEWCASTLE UPON TYNE HOSPITALS NHS FOUNDATION TRUST",null,null,null,"RCX","EAST LANCASHIRE HOSPITALS NHS TRUST"]
[null,null,null,null,null,null,null,null,null,null,null,null,null,null,"QOX","BATH AND NORTH EAST SOMERSET, SWINDON AND WILTSHIRE ICB",null,"QOX","BATH AND NORTH EAST SOMERSET, SWINDON AND WILTSHIRE ICB",null,"QJ2","RTG","UNIVERSITY HOSPITALS OF DERBY AND BURTON NHS FOUNDATION TRUST",null,null,null,"RD1","EAST SUFFOLK AND NORTH ESSEX NHS FOUNDATION TRUST"]
[null,null,null,null,null,null,null,null,null,null,null,null,null,null,"QPM","NORTHAMPTONSHIRE ICB",null,"QPM","NORTHAMPTONSHIRE ICB",null,"QJ2","RFS","CHESTERFIELD ROYAL HOSPITAL NHS FOUNDATION TRUST",null,null,null,"RD8","EAST SUSSEX HEALTHCARE NHS TRUST"]
[null,null,null,null,null,null,null,null,null,null,null,null,null,null,"QR1","GLOUCESTERSHIRE ICB",null,"QR1","GLOUCESTERSHIRE ICB",null,"QJG","RDE","EAST SUFFOLK AND NORTH ESSEX NHS FOUNDATION TRUST",null,null,null,"RDE","EPSOM AND ST HELIER UNIVERSITY HOSPITALS NHS TRUST"]
[null,null,null,null,null,null,null,null,null,null,null,null,null,null,"QRL","HAMPSHIRE AND ISLE OF WIGHT ICB",null,"QRL","HAMPSHIRE AND ISLE OF WIGHT ICB",null,"QJG","RGR","WEST SUFFOLK NHS FOUNDATION TRUST",null,null,null,"RDU","FRIMLEY HEALTH NHS FOUNDATION TRUST"]
[null,null,null,null,null,null,null,null,null,null,null,null,null,null,"QRV","NORTH WEST LONDON ICB",null,"QRV","NORTH WEST LONDON ICB",null,"QJK","RA9","TORBAY AND SOUTH DEVON NHS FOUNDATION TRUST",null,null,null,"REF","GATESHEAD HEALTH NHS FOUNDATION TRUST"]
[null,null,null,null,null,null,null,null,null,null,null,null,null,null,"QSL","SOMERSET ICB",null,"QSL","SOMERSET ICB",null,"QJK","RH8","ROYAL DEVON UNIVERSITY HEALTHCARE NHS FOUNDATION TRUST",null,null,null,"REP","GEORGE ELIOT HOSPITAL NHS TRUST"]
[null,null,null,null,null,null,null,null,null,null,null,null,null,null,"QT1","NOTTINGHAM AND NOTTINGHAMSHIRE ICB",null,"QT1","NOTTINGHAM AND NOTTINGHAMSHIRE ICB",null,"QJK","RK9","UNIVERSITY HOSPITALS PLYMOUTH NHS TRUST",null,null,null,"RF4","GLOUCESTERSHIRE HOSPITALS NHS FOUNDATION TRUST"]
[null,null,null,null,null,null,null,null,null,null,null,null,null,null,"QT6","CORNWALL AND THE ISLES OF SCILLY ICB",null,"QT6","CORNWALL AND THE ISLES OF SCILLY ICB",null,"QJM","RWD","UNITED LINCOLNSHIRE TEACHING HOSPITALS NHS TRUST",null,null,null,"RFF","GREAT WESTERN HOSPITALS NHS FOUNDATION TRUST"]
[null,null,null,null,null,null,null,null,null,null,null,null,null,null,"QU9","BUCKINGHAMSHIRE, OXFORDSHIRE AND BERKSHIRE WEST ICB",null,"QU9","BUCKINGHAMSHIRE, OXFORDSHIRE AND BERKSHIRE WEST ICB",null,"QK1","RWE","UNIVERSITY HOSPITALS OF LEICESTER NHS TRUST",null,null,null,"RFR","GUY'S AND ST THOMAS' NHS FOUNDATION TRUST"]
[null,null,null,null,null,null,null,null,null,null,null,null,null,null,"QUA","BLACK COUNTRY ICB",null,"QUA","BLACK COUNTRY ICB",null,"QKK","RJZ","KING'S COLLEGE HOSPITAL NHS FOUNDATION TRUST",null,null,null,"RFS","HAMPSHIRE HOSPITALS NHS FOUNDATION TRUST"]
[null,null,null,null,null,null,null,null,null,null,null,null,null,null,"QUE","CAMBRIDGESHIRE AND PETERBOROUGH ICB",null,"QUE","CAMBRIDGESHIRE AND PETERBOROUGH ICB",null,"QKK","RJ1","GUY'S AND ST THOMAS' NHS FOUNDATION TRUST",null,null,null,"RGN","HARROGATE AND DISTRICT NHS FOUNDATION TRUST"]
[null,null,null,null,null,null,null,null,null,null,null,null,null,null,"QUY","BRISTOL, NORTH SOMERSET AND SOUTH GLOUCESTERSHIRE ICB",null,"QUY","BRISTOL, NORTH SOMERSET AND SOUTH GLOUCESTERSHIRE ICB",null,"QKK","RJ2","LEWISHAM AND GREENWICH NHS TRUST",null,null,null,"RGP","HOMERTON HEALTHCARE NHS FOUNDATION TRUST"]
[null,null,null,null,null,null,null,null,null,null,null,null,null,null,"QVV","DORSET ICB",null,"QVV","DORSET ICB",null,"QKS","RVV","EAST KENT HOSPITALS UNIVERSITY NHS FOUNDATION TRUST",null,null,null,"RGR","HULL UNIVERSITY TEACHING HOSPITALS NHS TRUST"]
[null,null,null,null,null,null,null,null,null,null,null,null,null,null,"QWE","SOUTH WEST LONDON ICB",null,"QWE","SOUTH WEST LONDON ICB",null,"QKS","RWF","MAIDSTONE AND TUNBRIDGE WELLS NHS TRUST",null,null,null,"RGT","IMPERIAL COLLEGE HEALTHCARE NHS TRUST"]
[null,null,null,null,null,null,null,null,null,null,null,null,null,null,"QWO","WEST YORKSHIRE ICB",null,"QWO","WEST YORKSHIRE ICB",null,"QKS","RPA","MEDWAY NHS FOUNDATION TRUST",null,null,null,"RH5","ISLE OF WIGHT NHS TRUST"]
[null,null,null,null,null,null,null,null,null,null,null,null,null,null,"QWU","COVENTRY AND WARWICKSHIRE ICB",null,"QWU","COVENTRY AND WARWICKSHIRE ICB",null,"QKS","RN7","DARTFORD AND GRAVESHAM NHS TRUST",null,null,null,"RH8","JAMES PAGET UNIVERSITY HOSPITALS NHS FOUNDATION TRUST"]
[null,null,null,null,null,null,null,null,null,null,null,null,null,null,"QXU","SURREY HEARTLANDS ICB",null,"QXU","SURREY HEARTLANDS ICB",null,"QM7","RQW","THE PRINCESS ALEXANDRA HOSPITAL NHS TRUST",null,null,null,"RHM","KETTERING GENERAL HOSPITAL NHS FOUNDATION TRUST"]
[null,null,null,null,null,null,null,null,null,null,null,null,null,null,"QYG","CHESHIRE AND MERSEYSIDE ICB",null,"QYG","CHESHIRE AND MERSEYSIDE ICB",null,"QM7","RWG","WEST HERTFORDSHIRE TEACHING HOSPITALS NHS TRUST",null,null,null,"RHQ","KING'S COLLEGE HOSPITAL NHS FOUNDATION TRUST"]
[null,null,null,null,null,null,null,null,null,null,null,null,null,null,null,null,null,null,null,null,"QM7","RWH","EAST AND NORTH HERTFORDSHIRE NHS TRUST",null,null,null,"RHU","KINGSTON AND RICHMOND NHS FOUNDATION TRUST"]
[null,null,null,null,null,null,null,null,null,null,null,null,null,null,null,null,null,null,null,null,"QMF","RQX","HOMERTON HEALTHCARE NHS FOUNDATION TRUST",null,null,null,"RHW","LANCASHIRE TEACHING HOSPITALS NHS FOUNDATION TRUST"]
[null,null,null,null,null,null,null,null,null,null,null,null,null,null,null,null,null,null,null,null,"QMF","R1H","BARTS HEALTH NHS TRUST",null,null,null,"RJ1","LEEDS TEACHING HOSPITALS NHS TRUST"]
[null,null,null,null,null,null,null,null,null,null,null,null,null,null,null,null,null,null,null,null,"QMF","RF4","BARKING, HAVERING AND REDBRIDGE UNIVERSITY HOSPITALS NHS TRUST",null,null,null,"RJ2","LEWISHAM AND GREENWICH NHS TRUST"]
[null,null,null,null,null,null,null,null,null,null,null,null,null,null,null,null,null,null,null,null,"QMJ","RRV","UNIVERSITY COLLEGE LONDON HOSPITALS NHS FOUNDATION TRUST",null,null,null,"RJ6","LIVERPOOL WOMEN'S NHS FOUNDATION TRUST"]
[null,null,null,null,null,null,null,null,null,null,null,null,null,null,null,null,null,null,null,null,"QMJ","RKE","WHITTINGTON HEALTH NHS TRUST",null,null,null,"RJ7","LONDON NORTH WEST UNIVERSITY HEALTHCARE NHS TRUST"]
[null,null,null,null,null,null,null,null,null,null,null,null,null,null,null,null,null,null,null,null,"QMJ","RAL","ROYAL FREE LONDON NHS FOUNDATION TRUST",null,null,null,"RJC","MAIDSTONE AND TUNBRIDGE WELLS NHS TRUST"]
[null,null,null,null,null,null,null,null,null,null,null,null,null,null,null,null,null,null,null,null,"QMM","RM1","NORFOLK AND NORWICH UNIVERSITY HOSPITALS NHS FOUNDATION TRUST",null,null,null,"RJE","MANCHESTER UNIVERSITY NHS FOUNDATION TRUST"]
[null,null,null,null,null,null,null,null,null,null,null,null,null,null,null,null,null,null,null,null,"QMM","RGP","JAMES PAGET UNIVERSITY HOSPITALS NHS FOUNDATION TRUST",null,null,null,"RJL","MEDWAY NHS FOUNDATION TRUST"]
[null,null,null,null,null,null,null,null,null,null,null,null,null,null,null,null,null,null,null,null,"QMM","RCX","THE QUEEN ELIZABETH HOSPITAL, KING'S LYNN, NHS FOUNDATION TRUST",null,null,null,"RJN","MERSEY AND WEST LANCASHIRE TEACHING HOSPITALS NHS TRUST"]
[null,null,null,null,null,null,null,null,null,null,null,null,null,null,null,null,null,null,null,null,"QNC","RJE","UNIVERSITY HOSPITALS OF NORTH MIDLANDS NHS TRUST",null,null,null,"RJR","MID AND SOUTH ESSEX NHS FOUNDATION TRUST"]
[null,null,null,null,null,null,null,null,null,null,null,null,null,null,null,null,null,null,null,null,"QNQ","RDU","FRIMLEY HEALTH NHS FOUNDATION TRUST",null,null,null,"RJZ","MID CHESHIRE HOSPITALS NHS FOUNDATION TRUST"]
[null,null,null,null,null,null,null,null,null,null,null,null,null,null,null,null,null,null,null,null,"QNX","RXC","EAST SUSSEX HEALTHCARE NHS TRUST",null,null,null,"RK5","MID YORKSHIRE TEACHING NHS TRUST"]
[null,null,null,null,null,null,null,null,null,null,null,null,null,null,null,null,null,null,null,null,"QNX","RYR","UNIVERSITY HOSPITALS SUSSEX NHS FOUNDATION TRUST",null,null,null,"RK9","MILTON KEYNES UNIVERSITY HOSPITAL NHS FOUNDATION TRUST"]
[null,null,null,null,null,null,null,null,null,null,null,null,null,null,null,null,null,null,null,null,"QOC","RXW","THE SHREWSBURY AND TELFORD HOSPITAL NHS TRUST",null,null,null,"RKB","NORFOLK AND NORWICH UNIVERSITY HOSPITALS NHS FOUNDATION TRUST"]
[null,null,null,null,null,null,null,null,null,null,null,null,null,null,null,null,null,null,null,null,"QOP","RM3","NORTHERN CARE ALLIANCE NHS FOUNDATION TRUST",null,null,null,"RKE","NORTH BRISTOL NHS TRUST"]
[null,null,null,null,null,null,null,null,null,null,null,null,null,null,null,null,null,null,null,null,"QOP","RMP","TAMESIDE AND GLOSSOP INTEGRATED CARE NHS FOUNDATION TRUST",null,null,null,"RL4","NORTH CUMBRIA INTEGRATED CARE NHS FOUNDATION TRUST"]
[null,null,null,null,null,null,null,null,null,null,null,null,null,null,null,null,null,null,null,null,"QOP","RWJ","STOCKPORT NHS FOUNDATION TRUST",null,null,null,"RLQ","NORTH TEES AND HARTLEPOOL NHS FOUNDATION TRUST"]
[null,null,null,null,null,null,null,null,null,null,null,null,null,null,null,null,null,null,null,null,"QOP","RRF","WRIGHTINGTON, WIGAN AND LEIGH NHS FOUNDATION TRUST",null,null,null,"RLT","NORTH WEST ANGLIA NHS FOUNDATION TRUST"]
[null,null,null,null,null,null,null,null,null,null,null,null,null,null,null,null,null,null,null,null,"QOP","R0A","MANCHESTER UNIVERSITY NHS FOUNDATION TRUST",null,null,null,"RM1","NORTHAMPTON GENERAL HOSPITAL NHS TRUST"]
[null,null,null,null,null,null,null,null,null,null,null,null,null,null,null,null,null,null,null,null,"QOP","RMC","BOLTON NHS FOUNDATION TRUST",null,null,null,"RM3","NORTHERN CARE ALLIANCE NHS FOUNDATION TRUST"]
[null,null,null,null,null,null,null,null,null,null,null,null,null,null,null,null,null,null,null,null,"QOQ","RCB","YORK AND SCARBOROUGH TEACHING HOSPITALS NHS FOUNDATION TRUST",null,null,null,"RMC","NORTHERN LINCOLNSHIRE AND GOOLE NHS FOUNDATION TRUST"]
[null,null,null,null,null,null,null,null,null,null,null,null,null,null,null,null,null,null,null,null,"QOQ","RCD","HARROGATE AND DISTRICT NHS FOUNDATION TRUST",null,null,null,"RMP","NORTHUMBRIA HEALTHCARE NHS FOUNDATION TRUST"]
[null,null,null,null,null,null,null,null,null,null,null,null,null,null,null,null,null,null,null,null,"QOQ","RWA","HULL UNIVERSITY TEACHING HOSPITALS NHS TRUST",null,null,null,"RN3","NOTTINGHAM UNIVERSITY HOSPITALS NHS TRUST"]
[null,null,null,null,null,null,null,null,null,null,null,null,null,null,null,null,null,null,null,null,"QOQ","RJL","NORTHERN LINCOLNSHIRE AND GOOLE NHS FOUNDATION TRUST",null,null,null,"RN5","OXFORD UNIVERSITY HOSPITALS NHS FOUNDATION TRUST"]
[null,null,null,null,null,null,null,null,null,null,null,null,null,null,null,null,null,null,null,null,"QOX","RN3","GREAT WESTERN HOSPITALS NHS FOUNDATION TRUST",null,null,null,"RN7","PORTSMOUTH HOSPITALS UNIVERSITY NATIONAL HEALTH SERVICE TRUST"]
[null,null,null,null,null,null,null,null,null,null,null,null,null,null,null,null,null,null,null,null,"QOX","RNZ","SALISBURY NHS FOUNDATION TRUST",null,null,null,"RNA","ROYAL BERKSHIRE NHS FOUNDATION TRUST"]
[null,null,null,null,null,null,null,null,null,null,null,null,null,null,null,null,null,null,null,null,"QOX","RD1","ROYAL UNITED HOSPITALS BATH NHS FOUNDATION TRUST",null,null,null,"RNN","ROYAL CORNWALL HOSPITALS NHS TRUST"]
[null,null,null,null,null,null,null,null,null,null,null,null,null,null,null,null,null,null,null,null,"QPM","RNS","NORTHAMPTON GENERAL HOSPITAL NHS TRUST",null,null,null,"RNQ","ROYAL DEVON UNIVERSITY HEALTHCARE NHS FOUNDATION TRUST"]
[null,null,null,null,null,null,null,null,null,null,null,null,null,null,null,null,null,null,null,null,"QPM","RNQ","KETTERING GENERAL HOSPITAL NHS FOUNDATION TRUST",null,null,null,"RNS","ROYAL FREE LONDON NHS FOUNDATION TRUST"]
[null,null,null,null,null,null,null,null,null,null,null,null,null,null,null,null,null,null,null,null,"QR1","RTE","GLOUCESTERSHIRE HOSPITALS NHS FOUNDATION TRUST",null,null,null,"RNZ","ROYAL SURREY COUNTY HOSPITAL NHS FOUNDATION TRUST"]
[null,null,null,null,null,null,null,null,null,null,null,null,null,null,null,null,null,null,null,null,"QRL","R1F","ISLE OF WIGHT NHS TRUST",null,null,null,"RP5","ROYAL UNITED HOSPITALS BATH NHS FOUNDATION TRUST"]
[null,null,null,null,null,null,null,null,null,null,null,null,null,null,null,null,null,null,null,null,"QRL","RHU","PORTSMOUTH HOSPITALS UNIVERSITY NATIONAL HEALTH SERVICE TRUST",null,null,null,"RPA","SALISBURY NHS FOUNDATION TRUST"]
[null,null,null,null,null,null,null,null,null,null,null,null,null,null,null,null,null,null,null,null,"QRL","RN5","HAMPSHIRE HOSPITALS NHS FOUNDATION TRUST",null,null,null,"RQ3","SANDWELL AND WEST BIRMINGHAM HOSPITALS NHS TRUST"]
[null,null,null,null,null,null,null,null,null,null,null,null,null,null,null,null,null,null,null,null,"QRL","RHM","UNIVERSITY HOSPITAL SOUTHAMPTON NHS FOUNDATION TRUST",null,null,null,"RQW","SHEFFIELD TEACHING HOSPITALS NHS FOUNDATION TRUST"]
[null,null,null,null,null,null,null,null,null,null,null,null,null,null,null,null,null,null,null,null,"QRV","R1K","LONDON NORTH WEST UNIVERSITY HEALTHCARE NHS TRUST",null,null,null,"RQX","SHERWOOD FOREST HOSPITALS NHS FOUNDATION TRUST"]
[null,null,null,null,null,null,null,null,null,null,null,null,null,null,null,null,null,null,null,null,"QRV","RAS","THE HILLINGDON HOSPITALS NHS FOUNDATION TRUST",null,null,null,"RR7","SOMERSET NHS FOUNDATION TRUST"]
[null,null,null,null,null,null,null,null,null,null,null,null,null,null,null,null,null,null,null,null,"QRV","RYJ","IMPERIAL COLLEGE HEALTHCARE NHS TRUST",null,null,null,"RR8","SOUTH TEES HOSPITALS NHS FOUNDATION TRUST"]
[null,null,null,null,null,null,null,null,null,null,null,null,null,null,null,null,null,null,null,null,"QSL","RH5","SOMERSET NHS FOUNDATION TRUST",null,null,null,"RRF","SOUTH TYNESIDE AND SUNDERLAND NHS FOUNDATION TRUST"]
[null,null,null,null,null,null,null,null,null,null,null,null,null,null,null,null,null,null,null,null,"QT1","RX1","NOTTINGHAM UNIVERSITY HOSPITALS NHS TRUST",null,null,null,"RRK","SOUTH WARWICKSHIRE UNIVERSITY NHS FOUNDATION TRUST"]
[null,null,null,null,null,null,null,null,null,null,null,null,null,null,null,null,null,null,null,null,"QT1","RK5","SHERWOOD FOREST HOSPITALS NHS FOUNDATION TRUST",null,null,null,"RRV","ST GEORGE'S UNIVERSITY HOSPITALS NHS FOUNDATION TRUST"]
[null,null,null,null,null,null,null,null,null,null,null,null,null,null,null,null,null,null,null,null,"QT6","REF","ROYAL CORNWALL HOSPITALS NHS TRUST",null,null,null,"RTD","STOCKPORT NHS FOUNDATION TRUST"]
[null,null,null,null,null,null,null,null,null,null,null,null,null,null,null,null,null,null,null,null,"QU9","RHW","ROYAL BERKSHIRE NHS FOUNDATION TRUST",null,null,null,"RTE","SURREY AND SUSSEX HEALTHCARE NHS TRUST"]
[null,null,null,null,null,null,null,null,null,null,null,null,null,null,null,null,null,null,null,null,"QU9","RTH","OXFORD UNIVERSITY HOSPITALS NHS FOUNDATION TRUST",null,null,null,"RTF","TAMESIDE AND GLOSSOP INTEGRATED CARE NHS FOUNDATION TRUST"]
[null,null,null,null,null,null,null,null,null,null,null,null,null,null,null,null,null,null,null,null,"QU9","RXQ","BUCKINGHAMSHIRE HEALTHCARE NHS TRUST",null,null,null,"RTG","THE DUDLEY GROUP NHS FOUNDATION TRUST"]
[null,null,null,null,null,null,null,null,null,null,null,null,null,null,null,null,null,null,null,null,"QUA","RNA","THE DUDLEY GROUP NHS FOUNDATION TRUST",null,null,null,"RTH","THE HILLINGDON HOSPITALS NHS FOUNDATION TRUST"]
[null,null,null,null,null,null,null,null,null,null,null,null,null,null,null,null,null,null,null,null,"QUA","RBK","WALSALL HEALTHCARE NHS TRUST",null,null,null,"RTK","THE NEWCASTLE UPON TYNE HOSPITALS NHS FOUNDATION TRUST"]
[null,null,null,null,null,null,null,null,null,null,null,null,null,null,null,null,null,null,null,null,"QUA","RL4","THE ROYAL WOLVERHAMPTON NHS TRUST",null,null,null,"RTP","THE PRINCESS ALEXANDRA HOSPITAL NHS TRUST"]
[null,null,null,null,null,null,null,null,null,null,null,null,null,null,null,null,null,null,null,null,"QUE","RGT","CAMBRIDGE UNIVERSITY HOSPITALS NHS FOUNDATION TRUST",null,null,null,"RTR","THE QUEEN ELIZABETH HOSPITAL, KING'S LYNN, NHS FOUNDATION TRUST"]
[null,null,null,null,null,null,null,null,null,null,null,null,null,null,null,null,null,null,null,null,"QUE","RGN","NORTH WEST ANGLIA NHS FOUNDATION TRUST",null,null,null,"RTX","THE ROTHERHAM NHS FOUNDATION TRUST"]
[null,null,null,null,null,null,null,null,null,null,null,null,null,null,null,null,null,null,null,null,"QUY","RA7","UNIVERSITY HOSPITALS BRISTOL AND WESTON NHS FOUNDATION TRUST",null,null,null,"RVJ","THE ROYAL WOLVERHAMPTON NHS TRUST"]
[null,null,null,null,null,null,null,null,null,null,null,null,null,null,null,null,null,null,null,null,"QUY","RVJ","NORTH BRISTOL NHS TRUST",null,null,null,"RVR","THE SHREWSBURY AND TELFORD HOSPITAL NHS TRUST"]
[null,null,null,null,null,null,null,null,null,null,null,null,null,null,null,null,null,null,null,null,"QVV","R0D","UNIVERSITY HOSPITALS DORSET NHS FOUNDATION TRUST",null,null,null,"RVV","TORBAY AND SOUTH DEVON NHS FOUNDATION TRUST"]
[null,null,null,null,null,null,null,null,null,null,null,null,null,null,null,null,null,null,null,null,"QVV","RBD","DORSET COUNTY HOSPITAL NHS FOUNDATION TRUST",null,null,null,"RVW","UNITED LINCOLNSHIRE TEACHING HOSPITALS NHS TRUST"]
[null,null,null,null,null,null,null,null,null,null,null,null,null,null,null,null,null,null,null,null,"QWE","RJ6","CROYDON HEALTH SERVICES NHS TRUST",null,null,null,"RWA","UNIVERSITY COLLEGE LONDON HOSPITALS NHS FOUNDATION TRUST"]
[null,null,null,null,null,null,null,null,null,null,null,null,null,null,null,null,null,null,null,null,"QWE","RJ7","ST GEORGE'S UNIVERSITY HOSPITALS NHS FOUNDATION TRUST",null,null,null,"RWD","UNIVERSITY HOSPITAL SOUTHAMPTON NHS FOUNDATION TRUST"]
[null,null,null,null,null,null,null,null,null,null,null,null,null,null,null,null,null,null,null,null,"QWE","RVR","EPSOM AND ST HELIER UNIVERSITY HOSPITALS NHS TRUST",null,null,null,"RWE","UNIVERSITY HOSPITALS BIRMINGHAM NHS FOUNDATION TRUST"]
[null,null,null,null,null,null,null,null,null,null,null,null,null,null,null,null,null,null,null,null,"QWE","RAX","KINGSTON AND RICHMOND NHS FOUNDATION TRUST",null,null,null,"RWF","UNIVERSITY HOSPITALS BRISTOL AND WESTON NHS FOUNDATION TRUST"]
[null,null,null,null,null,null,null,null,null,null,null,null,null,null,null,null,null,null,null,null,"QWO","RAE","BRADFORD TEACHING HOSPITALS NHS FOUNDATION TRUST",null,null,null,"RWG","UNIVERSITY HOSPITALS COVENTRY AND WARWICKSHIRE NHS TRUST"]
[null,null,null,null,null,null,null,null,null,null,null,null,null,null,null,null,null,null,null,null,"QWO","RCF","AIREDALE NHS FOUNDATION TRUST",null,null,null,"RWH","UNIVERSITY HOSPITALS DORSET NHS FOUNDATION TRUST"]
[null,null,null,null,null,null,null,null,null,null,null,null,null,null,null,null,null,null,null,null,"QWO","RR8","LEEDS TEACHING HOSPITALS NHS TRUST",null,null,null,"RWJ","UNIVERSITY HOSPITALS OF DERBY AND BURTON NHS FOUNDATION TRUST"]
[null,null,null,null,null,null,null,null,null,null,null,null,null,null,null,null,null,null,null,null,"QWO","RWY","CALDERDALE AND HUDDERSFIELD NHS FOUNDATION TRUST",null,null,null,"RWP","UNIVERSITY HOSPITALS OF LEICESTER NHS TRUST"]
[null,null,null,null,null,null,null,null,null,null,null,null,null,null,null,null,null,null,null,null,"QWO","RXF","MID YORKSHIRE TEACHING NHS TRUST",null,null,null,"RWW","UNIVERSITY HOSPITALS OF MORECAMBE BAY NHS FOUNDATION TRUST"]
[null,null,null,null,null,null,null,null,null,null,null,null,null,null,null,null,null,null,null,null,"QWU","RJC","SOUTH WARWICKSHIRE UNIVERSITY NHS FOUNDATION TRUST",null,null,null,"RWY","UNIVERSITY HOSPITALS OF NORTH MIDLANDS NHS TRUST"]
[null,null,null,null,null,null,null,null,null,null,null,null,null,null,null,null,null,null,null,null,"QWU","RLT","GEORGE ELIOT HOSPITAL NHS TRUST",null,null,null,"RX1","UNIVERSITY HOSPITALS PLYMOUTH NHS TRUST"]
[null,null,null,null,null,null,null,null,null,null,null,null,null,null,null,null,null,null,null,null,"QWU","RKB","UNIVERSITY HOSPITALS COVENTRY AND WARWICKSHIRE NHS TRUST",null,null,null,"RXC","UNIVERSITY HOSPITALS SUSSEX NHS FOUNDATION TRUST"]
[null,null,null,null,null,null,null,null,null,null,null,null,null,null,null,null,null,null,null,null,"QXU","RTK","ASHFORD AND ST PETER'S HOSPITALS NHS FOUNDATION TRUST",null,null,null,"RXF","WALSALL HEALTHCARE NHS TRUST"]
[null,null,null,null,null,null,null,null,null,null,null,null,null,null,null,null,null,null,null,null,"QXU","RTP","SURREY AND SUSSEX HEALTHCARE NHS TRUST",null,null,null,"RXK","WARRINGTON AND HALTON TEACHING HOSPITALS NHS FOUNDATION TRUST"]
[null,null,null,null,null,null,null,null,null,null,null,null,null,null,null,null,null,null,null,null,"QXU","RA2","ROYAL SURREY COUNTY HOSPITAL NHS FOUNDATION TRUST",null,null,null,"RXL","WEST HERTFORDSHIRE TEACHING HOSPITALS NHS TRUST"]
[null,null,null,null,null,null,null,null,null,null,null,null,null,null,null,null,null,null,null,null,"QYG","RWW","WARRINGTON AND HALTON TEACHING HOSPITALS NHS FOUNDATION TRUST",null,null,null,"RXN","WEST SUFFOLK NHS FOUNDATION TRUST"]
[null,null,null,null,null,null,null,null,null,null,null,null,null,null,null,null,null,null,null,null,"QYG","RBL","WIRRAL UNIVERSITY TEACHING HOSPITAL NHS FOUNDATION TRUST",null,null,null,"RXP","WHITTINGTON HEALTH NHS TRUST"]
[null,null,null,null,null,null,null,null,null,null,null,null,null,null,null,null,null,null,null,null,"QYG","RBN","MERSEY AND WEST LANCASHIRE TEACHING HOSPITALS NHS TRUST",null,null,null,"RXQ","WIRRAL UNIVERSITY TEACHING HOSPITAL NHS FOUNDATION TRUST"]
[null,null,null,null,null,null,null,null,null,null,null,null,null,null,null,null,null,null,null,null,"QYG","RBT","MID CHESHIRE HOSPITALS NHS FOUNDATION TRUST",null,null,null,"RXR","WORCESTERSHIRE ACUTE HOSPITALS NHS TRUST"]
[null,null,null,null,null,null,null,null,null,null,null,null,null,null,null,null,null,null,null,null,"QYG","RJR","COUNTESS OF CHESTER HOSPITAL NHS FOUNDATION TRUST",null,null,null,"RXW","WRIGHTINGTON, WIGAN AND LEIGH NHS FOUNDATION TRUST"]
[null,null,null,null,null,null,null,null,null,null,null,null,null,null,null,null,null,null,null,null,"QYG","REP","LIVERPOOL WOMEN'S NHS FOUNDATION TRUST",null,null,null,"RYJ","WYE VALLEY NHS TRUST"]
[null,null,null,null,null,null,null,null,null,null,null,null,null,null,null,null,null,null,null,null,"QYG","RJN","EAST CHESHIRE NHS TRUST",null,null,null,"RYR","YORK AND SCARBOROUGH TEACHING HOSPITALS NHS FOUNDATION TRUST"]